Workbook

Sheet START
C30: Disclaimer
C31: FAO declines all responsibility for errors or deficiencies in the database or software or in the documentation accompanying it, for program maintenance and upgrading as well as for any damage that may arise from them. FAO also declines any responsibility for updating the data and assumes no responsibility for errors and omissions in the data provided. Users are, however, kindly asked to report any errors or deficiencies in this product to FAO. The choices of calculation made in this tool are those of the author(s) and do not necessarily reflect the views and choices of the Food and Agriculture Organization of the United Nations.
C35: © FAO, 2014

Sheet dummy database (hidden)
A1: From Natural resources
A2: Country | B2: Tanzania
B5: Feedstock 1 | C5: Feedstock 2 | D5: Feedstock 3 | E5: Feedstock 4
A6: Feedstock Amount (t/year) | B6: 400000 | C6: 7000000 | D6: 10000000 | E6: 11000000
A7: Feedstock yield (t/ha) | B7: 14.43 | C7: 20 | D7: 15 | E7: 30
A8: Factory price (cost of production) (USD/t) | B8: 291.62 | C8: 250 | D8: 300 | E8: 350
A9: Outgrower price (market price) (USD/t) | B9: 400 | C9: 200 | D9: 27 | E9: 100
A11: Crop | B11: Biofuel Conversión (L/t dry) | C11: Oil/TFS/starch content (%) | D11: Solvent | E11: Oil/sugar/starch Recovery (%) | F11: Comments
A12: Barley | B12: 402 | C12: 0.642 | D12: no | E12: 0.6 | G12: http://www.sciencedirect.com/science/article/pii/S0308814604008544
A13: Cassava | B13: 180 | C13: 0.265 | D13: no | E13: 0.6 | F13: Dry Cassava
A14: Coconut | B14: 130 | C14: 0.42 | D14: no | E14: 0.6 | F14: Oil recovered from copra
A15: Jatropha | B15: 215.2399565 | C15: 0.5459 | D15: no | E15: 0.8
A16: Maize | B16: 410 | C16: 0.778 | D16: no | E16: 0.52
A17: Oil Palm | B17: 223 | C17: 0.25 | D17: no | E17: 0.4
A18: Rapeseed | B18: 392 | C18: 0.476 | D18: no | E18: 0.8
A19: Soybean | B19: 183 | C19: 0.209 | D19: yes | E19: 0.8
A20: Sugarbeet | B20: 90 | C20: 0.2 | D20: no | E20: 0.75 | G20: http://fins.uns.ac.rs/index.php?mact=Magazines,cntnt01,details,0&cntnt01hierarchyid=8&cntnt01sortby=magazine_id&cntnt01sortorder=asc&cntnt01summarytemplate=current&cntnt01detailtemplate=detaljno&cntnt01cd_origpage=180&cntnt01magazineid=67&cntnt01returnid=188
A21: Sugarcane | B21: 81 | C21: 0.18 | D21: no | E21: 0.74 | F21: Burned & Cropped (B&C) SUGAR cane
A22: Sunflower | B22: 418 | C22: 0.53185 | D22: yes | E22: 0.8
A23: Sorghum | B23: 420 | C23: 0.7 | D23: no | E23: 0.6 | G23: http://www.scielo.br/scielo.php?pid=S0104-66322011000400005&script=sci_arttext
A24: Wheat | B24: 389 | C24: 0.737 | D24: no | E24: 0.55 | G24: http://www.mhprofessional.com/downloads/products/0071487492/DrapchoCh4.pdf
B42: MJ/L | C42: Kg/L
A43: Biodiesel | B43: 33 | C43: 0.88
A44: Ethanol | B44: 21.2 | C44: 0.789
A45: Gasoline | B45: 32.1 | C45: 0.745
A46: Diesel | B46: 35.8 | C46: 0.837

Sheet Biofuel Demand
C3: FUEL CONSUMPTION AND BLENDING TARGETS FOR LIQUID BIOFUELS
C5: Domestic fossil fuel consumption
D7: Consumption | E7: Unit | H7: Consumption | I7: Unit
C8: Diesel | E8: ML/year | F8: Gasoline | I8: ML/year
C10: Domestic blending target
D12: Blending target | E12: Biofuel demand | H12: Blending target | I12: Biofuel demand
C13: Biodiesel (ML/year) | E13: =D13*$D$8 -> 0 | F13: Ethanol (ML/year) | I13: =H13*$H$8 -> 0
C15: Biofuel production and trade
D17: Domestic production | E17: Imports | F17: Exports | G17: Net balance
C18: Biodiesel (ML/year) | G18: =D18+E18-F18 -> 0
C19: Ethanol (ML/year) | G19: =D19+E19-F19 -> 0
C21: Target domestic biofuel production
C24: Biodiesel (ML/year) | D24: =+E13-D18 -> 0
C25: Ethanol (ML/year) | D25: =+I13-D19 -> 0

Sheet Process Description
C3: PROCESSING SYSTEMS OF LIQUID BIOFUELS FOR TRANSPORTATION
C6: BIODIESEL PROCESSING FROM OILSEEDS
L8: Chemical/Energy Inputs
O9: Biodiesel Transportation
C15: Oilseeds
C16: Coconut
C17: Jatropha
C18: Oil Palm | H18: Meal/Extraction Cake | M18: Raw Glycerol
C19: Soybean
C20: Sunflower
C22: ETHANOL PROCESSING FROM SUGAR FEEDSTOCK
L24: Chemical/Energy Inputs
O25: Ethanol Transportation
E30: Sugar Feedstock
E31: Sugarcane
E32: Sugarbeet
C34: ETHANOL PROCESSING FROM STARCHY FEEDSTOCK
L36: Chemical/Energy Inputs
O37: Ethanol Transportation
E42: Starchy Feedstock
E43: Cassava
E44: Maize
E45: Sorghum | M45: Dried Distillers Grains with Solubles (DDGS)
E46: Wheat

Sheet STORAGE_FS1 (hidden)
C3: =UPPER("Biomass storage calculation for "&'Data Entry Needs'!$E$11) -> BIOMASS STORAGE CALCULATION FOR
C5: Biomass Safety Stock Rate Definition
F8: Capacities (Million litres per year)
D9: Unit | F9: 5 | I9: 25 | L9: 50 | O9: 100
C10: Biomass consumption | D10: t/year | F10: =+COST_FS1!$G$17 ->  | I10: =+COST_FS1!$G$18 ->  | L10: =+COST_FS1!$G$19 ->  | O10: =+COST_FS1!$G$20 -> 
D11: t/month | F11: =F10/12 ->  | I11: =I10/12 ->  | L11: =L10/12 ->  | O11: =O10/12 -> 
D12: kg/day | F12: =F10/365 ->  | I12: =I10/365 ->  | L12: =L10/365 ->  | O12: =O10/365 -> 
C14: Biomass production within a specific distance | D14: t/year | F14: =+COST_FS1!$D$9 -> 0 | I14: =F14 -> 0 | L14: =I14 -> 0 | O14: =L14 -> 0
C16: Biomass safety stock rate | F16: =+F17/100 -> 0.3 | G16: =+G17/100 -> 0 | H16: 0 | I16: 0.3 | J16: 0 | K16: 0 | L16: 0.3 | M16: 0 | N16: 0 | O16: 0.3
F17: 30 | I17: 30 | L17: 30 | O17: 30
C18: Biomass stock pile capacity | D18: t | F18: =+MAX(F25:F36) ->  | I18: =+MAX(I25:I36) ->  | L18: =+MAX(L25:L36) ->  | O18: =+MAX(O25:O36) -> 
C20: Maximum Storage Definition
F22: Capacities (Million litres per year)
F23: 5 | I23: 25 | L23: 50 | O23: 100 | AD23: Depletion time definition
C24: Harvest Month Selection | D24: Storage Month | E24: Monthly Consumption (t/month) | F24: Cumulative Storage (ton) | G24: Storage Depletion (t/month) | H24: Monthly Consumption (t/month) | I24: Cumulative Storage (ton) | J24: Storage Depletion (t/month) | K24: Monthly Consumption (t/month) | L24: Cumulative Storage (ton) | M24: Storage Depletion (t/month) | N24: Monthly Consumption (t/month) | O24: Cumulative Storage (ton) | P24: Storage Depletion (t/month) | AB24: Harvest Period | AC24: Harvest Period | AD24: Depletion term | AE24: Depletion month | AF24: EQ term | AG24: Depletion time | AH24: Storageterm | AI24: Storage month | AJ24: EQ term | AK24: Storage time
C25: January | D25: =+IF($AC25=0,0,IF($AC25>$AC36,1,IF($AC25=$AC36,$D36+1,IF($AC36>$AC25,0)))) -> 0 | E25: =+F$11 ->  | F25: =+IF(AND($D$25=1,$D$36=0,$D$26=0),$F$11*$AG25+$F$11*$F$16,IF($D25>0,($AG25*$F$11/$AK25)*$D25+$F$11*$F$16,0)) -> 0 | G25: =IF(AND($D$25=1,$D$36=0,$D$26=0),$F$11*$AG25+$G$36-E25,IF($D25>0,IFERROR(($AG25*$F$11/$AK25)*$D25,"")+$F$11*$F$16,IF($D25=0,G36-E25))) ->  | H25: =+I$11 ->  | I25: =+IF(AND($D$25=1,$D$36=0,$D$26=0),$I$11*$AG25+$I$11*$I$16,IF($D25>0,($AG25*$I$11/$AK25)*$D25+$I$11*$I$16,0)) -> 0 | J25: =IF(AND($D$25=1,$D$36=0,$D$26=0),$I$11*$AG25+$J$36-H25,IF($D25>0,IFERROR(($AG25*$I$11/$AK25)*$D25,"")+$I$11*$I$16,IF($D25=0,J36-H25))) ->  | K25: =+L$11 ->  | L25: =+IF(AND($D$25=1,$D$36=0,$D$26=0),$L$11*$AG25+$L$11*$L$16,IF($D25>0,($AG25*$L$11/$AK25)*$D25+$L$11*$L$16,0)) -> 0 | M25: =IF(AND($D$25=1,$D$36=0,$D$26=0),$L$11*$AG25+$M$36-K25,IF($D25>0,IFERROR(($AG25*$L$11/$AK25)*$D25,"")+$L$11*$L$16,IF($D25=0,M36-K25))) ->  | N25: =+O$11 ->  | O25: =+IF(AND($D$25=1,$D$36=0,$D$26=0),$O$11*$AG25+$O$11*$O$16,IF($D25>0,($AG25*$O$11/$AK25)*$D25+$O$11*$O$16,0)) -> 0 | P25: =IF(AND($D$25=1,$D$36=0,$D$26=0),$O$11*$AG25+$P$36-N25,IF($D25>0,IFERROR(($AG25*$O$11/$AK25)*$D25,"")+$O$11*$O$16,IF($D25=0,P36-N25))) ->  | AB25: FALSE | AC25: =+N(AB25) -> 0 | AD25: =+IF(AND(AC26>AC25,AC25=0),"Last"&AF25,"") ->  | AE25: =+IF($AC25=1,0,IF($AC25<$AC36,1,IF($AC25=$AC36,$AE36+1,IF($AC36>$AC25,1)))) -> 7 | AF25: 1 | AG25: =IFERROR(VLOOKUP("LAST"&AF25,$AD$25:$AE$36,2,FALSE),AK25) -> 10 | AH25: =+IF(AND(AI25>AI26,AI26=0),"Last"&AJ25,"") ->  | AI25: =+IF($AC25=0,0,IF($AC25>$AC36,1,IF($AC25=$AC36,$AI36+1,IF($AC36>$AC25,0)))) -> 0 | AJ25: 1 | AK25: =IFERROR(VLOOKUP("LAST"&AJ25,$AH$25:$AI$36,2,FALSE),VLOOKUP("LAST"&1,$AH$25:$AI$36,2,FALSE)) -> 2
C26: February | D26: =+IF($AC26=0,0,IF($AC26>$AC25,1,IF($AC26=$AC25,$D25+1,IF($AC25>$AC26,0)))) -> 0 | F26: =IF($D26>0,($AG26*$F$11/$AK26)*$D26+$F$11*$F$16,0) -> 0 | G26: =+IF($D26>0,IFERROR(($AG26*$F$11/$AK26)*$D26,"")+$F$11*$F$16,IF($D26=0,G25-E26)) ->  | I26: =IF($D26>0,($AG26*$I$11/$AK26)*$D26+$I$11*$I$16,0) -> 0 | J26: =+IF($D26>0,IFERROR(($AG26*$I$11/$AK26)*$D26,"")+$I$11*$I$16,IF($D26=0,J25-H26)) ->  | L26: =IF($D26>0,($AG26*$L$11/$AK26)*$D26+$L$11*$L$16,0) -> 0 | M26: =+IF($D26>0,IFERROR(($AG26*$L$11/$AK26)*$D26,"")+$L$11*$L$16,IF($D26=0,M25-K26)) ->  | O26: =IF($D26>0,($AG26*$O$11/$AK26)*$D26+$O$11*$O$16,0) -> 0 | P26: =+IF($D26>0,IFERROR(($AG26*$O$11/$AK26)*$D26,"")+$O$11*$O$16,IF($D26=0,P25-N26)) ->  | AB26: FALSE | AC26: =+N(AB26) -> 0 | AD26: =+IF(AND(AC27>AC26,AC26=0),"Last"&AF26,"") ->  | AE26: =+IF($AC26=1,0,IF($AC26<$AC25,1,IF($AC26=$AC25,$AE25+1,IF($AC25>$AC26,1)))) -> 8 | AF26: =+IF($AE25>$AE26,$AF25+1,$AF25) -> 1 | AG26: =IFERROR(VLOOKUP("LAST"&AF26,$AD$25:$AE$36,2,FALSE),$AG$25) -> 10 | AH26: =+IF(AND(AI26>AI27,AI27=0),"Last"&AJ26,"") ->  | AI26: =+IF($AC26=0,0,IF($AC26>$AC25,1,IF($AC26=$AC25,$AI25+1,IF($AC25>$AC26,0)))) -> 0 | AJ26: =+IF($AI25>$AI26,$AJ25+1,$AJ25) -> 1 | AK26: 2
C27: March | D27: 0 | F27: 0 | I27: 0 | L27: 0 | O27: 0 | AB27: FALSE | AC27: 0 | AD27: =+IF(AND(AC28>AC27,AC27=0),"Last"&AF27,"") ->  | AE27: 9 | AF27: 1 | AG27: 10 | AH27: =+IF(AND(AI27>AI28,AI28=0),"Last"&AJ27,"") ->  | AI27: 0 | AJ27: 1 | AK27: 2
C28: April | D28: 0 | F28: 0 | I28: 0 | L28: 0 | O28: 0 | AB28: FALSE | AC28: 0 | AD28: =+IF(AND(AC29>AC28,AC28=0),"Last"&AF28,"") -> Last1 | AE28: 10 | AF28: 1 | AG28: 10 | AH28: =+IF(AND(AI28>AI29,AI29=0),"Last"&AJ28,"") ->  | AI28: 0 | AJ28: 1 | AK28: 2
C29: May | D29: 1 | AB29: TRUE | AC29: 1 | AE29: 0 | AF29: 2 | AG29: 10 | AH29: =+IF(AND(AI29>AI30,AI30=0),"Last"&AJ29,"") ->  | AI29: 1 | AJ29: 1 | AK29: 2
C30: June | D30: 2 | AB30: TRUE | AC30: 1 | AE30: 0 | AF30: 2 | AG30: 10 | AH30: Last1 | AI30: 2 | AJ30: 1 | AK30: 2
C31: July | D31: 0 | F31: 0 | I31: 0 | L31: 0 | O31: 0 | AB31: FALSE | AC31: 0 | AE31: 1 | AF31: 2 | AG31: 10 | AI31: 0 | AJ31: 2 | AK31: 2
C32: August | D32: 0 | F32: 0 | I32: 0 | L32: 0 | O32: 0 | AB32: FALSE | AC32: 0 | AE32: 2 | AF32: 2 | AG32: 10 | AI32: 0 | AJ32: 2 | AK32: 2
C33: September | D33: 0 | F33: 0 | I33: 0 | L33: 0 | O33: 0 | AB33: FALSE | AC33: 0 | AE33: 3 | AF33: 2 | AG33: 10 | AI33: 0 | AJ33: 2 | AK33: 2
C34: October | D34: 0 | F34: 0 | I34: 0 | L34: 0 | O34: 0 | AB34: FALSE | AC34: 0 | AE34: 4 | AF34: 2 | AG34: 10 | AI34: 0 | AJ34: 2 | AK34: 2
C35: November | D35: 0 | F35: 0 | I35: 0 | L35: 0 | O35: 0 | AB35: FALSE | AC35: 0 | AE35: 5 | AF35: 2 | AG35: 10 | AI35: 0 | AJ35: 2 | AK35: 2
C36: December | D36: 0 | F36: 0 | I36: 0 | L36: 0 | O36: 0 | AB36: FALSE | AC36: 0 | AD36: =+IF(AND(AC25>AC36,AC36=0),"Last"&AF36,"") ->  | AE36: 6 | AF36: 2 | AG36: 10 | AH36: =+IF(AND(AI36>AI25,AI25=0),"Last"&AJ36,"") ->  | AI36: 0 | AJ36: 2 | AK36: 2
C38: Maximum Storage Capacity Required (ton) | F38: =+ROUNDUP(MAX(F25:F36),0) ->  | I38: =+ROUNDUP(MAX(I25:I36),0) ->  | L38: =+ROUNDUP(MAX(L25:L36),0) ->  | O38: =+ROUNDUP(MAX(O25:O36),0) -> 
C39: Minimum Safety Storage (ton) | F39: =+ROUNDUP(MIN(G25:G36),0) ->  | I39: =+ROUNDUP(MIN(J25:J36),0) ->  | L39: =+ROUNDUP(MIN(M25:M36),0) ->  | O39: =+ROUNDUP(MIN(P25:P36),0) -> 
AB40: No. Storage Months | AC40: =+COUNTIF(AC25:AC36,">0") -> 2
C41: Monthly Consumption of Biomass Stocked | AB41: Total Depletion Period | AC41: =12-AC40 -> 10
AH82: =5&" (ML/year)" -> 5 (ML/year) | AI82: =25&" (ML/year)" -> 25 (ML/year) | AJ82: =50&" (ML/year)" -> 50 (ML/year) | AK82: =100&" (ML/year)" -> 100 (ML/year)
AG83: =+LEFT(C25,3) -> Jan | AH83: =+G25 ->  | AI83: =+J25 ->  | AJ83: =+M25 ->  | AK83: =+P25 -> 
AG84: Feb
AG85: Mar
AG86: Apr
AG87: May
AG88: Jun
AG89: =+LEFT(C32,3) -> Aug | AH89: =+G32 ->  | AI89: =+J32 ->  | AJ89: =+M32 ->  | AK89: =+P32 -> 
AG90: =+LEFT(C33,3) -> Sep | AH90: =+G33 ->  | AI90: =+J33 ->  | AJ90: =+M33 ->  | AK90: =+P33 -> 
AG91: =+LEFT(C34,3) -> Oct | AH91: =+G34 ->  | AI91: =+J34 ->  | AJ91: =+M34 ->  | AK91: =+P34 -> 
AG92: =+LEFT(C35,3) -> Nov | AH92: =+G35 ->  | AI92: =+J35 ->  | AJ92: =+M35 ->  | AK92: =+P35 -> 
AG93: =+LEFT(C36,3) -> Dec | AH93: =+G36 ->  | AI93: =+J36 ->  | AJ93: =+M36 ->  | AK93: =+P36 -> 

Sheet STORAGE_FS2 (hidden)
C3: =+UPPER(" Processing costs for "&'Data Entry Needs'!$F$10&" Production from "&'Data Entry Needs'!$F$11) -> PROCESSING COSTS FOR PLEASE SELECT PRODUCTION FROM
C5: Biomass Safety Stock Rate Definition
F8: Capacities (Million litres per year)
D9: Unit | F9: 5 | I9: 25 | L9: 50 | O9: 100
C10: Biomass consumption | D10: t/year | F10: =+COST_FS2!$G$17 ->  | I10: =+COST_FS2!$G$18 ->  | L10: =+COST_FS2!$G$19 ->  | O10: =+COST_FS2!$G$20 -> 
D11: t/month | F11: =F10/12 ->  | I11: =I10/12 ->  | L11: =L10/12 ->  | O11: =O10/12 -> 
D12: kg/day | F12: =F10/365 ->  | I12: =I10/365 ->  | L12: =L10/365 ->  | O12: =O10/365 -> 
C14: Biomass production within a specific distance | D14: t/year | F14: =+COST_FS2!$D$9 -> 0 | I14: =F14 -> 0 | L14: =I14 -> 0 | O14: =L14 -> 0
C16: Biomass safety stock rate | F16: =+F17/100 -> 0.3 | G16: =+G17/100 -> 0 | H16: 0 | I16: 0.3 | J16: 0 | K16: 0 | L16: 0.3 | M16: 0 | N16: 0 | O16: 0.3
F17: 30 | I17: 30 | L17: 30 | O17: 30
C18: Biomass stock pile capacity | D18: t | F18: =+MAX(F25:F36) ->  | I18: =+MAX(I25:I36) ->  | L18: =+MAX(L25:L36) ->  | O18: =+MAX(O25:O36) -> 
C20: Maximum Storage Definition
F22: Capacities (Million litres per year)
E23: =+F9 -> 5 | F23: 5 | H23: =+I9 -> 25 | I23: 25 | K23: =+L9 -> 50 | L23: 50 | N23: =+O9 -> 100 | O23: 100 | AD23: Depletion time definition
C24: Harvest Month Selection | D24: Storage Month | E24: Monthly Consumption (Ton/month) | F24: Cumulative Storage (ton) | G24: Storage Depletion (Ton/month) | H24: Monthly Consumption (Ton/month) | I24: Cumulative Storage (ton) | J24: Storage Depletion (Ton/month) | K24: Monthly Consumption (Ton/month) | L24: Cumulative Storage (ton) | M24: Storage Depletion (Ton/month) | N24: Monthly Consumption (Ton/month) | O24: Cumulative Storage (ton) | P24: Storage Depletion (Ton/month) | AB24: Harvest Period | AC24: Harvest Period | AD24: Depletion term | AE24: Depletion month | AF24: EQ term | AG24: Depletion time | AH24: Storageterm | AI24: Storage month | AJ24: EQ term | AK24: Storage time
C25: January | D25: =+IF($AC25=0,0,IF($AC25>$AC36,1,IF($AC25=$AC36,$D36+1,IF($AC36>$AC25,0)))) -> 0 | E25: =+F$11 ->  | F25: =+IF(AND($D$25=1,$D$36=0,$D$26=0),$F$11*$AG25+$F$11*$F$16,IF($D25>0,($AG25*$F$11/$AK25)*$D25+$F$11*$F$16,0)) -> 0 | G25: =IF(AND($D$25=1,$D$36=0,$D$26=0),$F$11*$AG25+$G$36-E25,IF($D25>0,IFERROR(($AG25*$F$11/$AK25)*$D25,"")+$F$11*$F$16,IF($D25=0,G36-E25))) ->  | H25: =+I$11 ->  | I25: =+IF(AND($D$25=1,$D$36=0,$D$26=0),$I$11*$AG25+$I$11*$I$16,IF($D25>0,($AG25*$I$11/$AK25)*$D25+$I$11*$I$16,0)) -> 0 | J25: =IF(AND($D$25=1,$D$36=0,$D$26=0),$I$11*$AG25+$J$36-H25,IF($D25>0,IFERROR(($AG25*$I$11/$AK25)*$D25,"")+$I$11*$I$16,IF($D25=0,J36-H25))) ->  | K25: =+L$11 ->  | L25: =+IF(AND($D$25=1,$D$36=0,$D$26=0),$L$11*$AG25+$L$11*$L$16,IF($D25>0,($AG25*$L$11/$AK25)*$D25+$L$11*$L$16,0)) -> 0 | M25: =IF(AND($D$25=1,$D$36=0,$D$26=0),$L$11*$AG25+$M$36-K25,IF($D25>0,IFERROR(($AG25*$L$11/$AK25)*$D25,"")+$L$11*$L$16,IF($D25=0,M36-K25))) ->  | N25: =+O$11 ->  | O25: =+IF(AND($D$25=1,$D$36=0,$D$26=0),$O$11*$AG25+$O$11*$O$16,IF($D25>0,($AG25*$O$11/$AK25)*$D25+$O$11*$O$16,0)) -> 0 | P25: =IF(AND($D$25=1,$D$36=0,$D$26=0),$O$11*$AG25+$P$36-N25,IF($D25>0,IFERROR(($AG25*$O$11/$AK25)*$D25,"")+$O$11*$O$16,IF($D25=0,P36-N25))) ->  | AB25: FALSE | AC25: =+N(AB25) -> 0 | AD25: =+IF(AND(AC26>AC25,AC25=0),"Last"&AF25,"") ->  | AE25: =+IF($AC25=1,0,IF($AC25<$AC36,1,IF($AC25=$AC36,$AE36+1,IF($AC36>$AC25,1)))) -> 1 | AF25: 1 | AG25: =IFERROR(VLOOKUP("LAST"&AF25,$AD$25:$AE$36,2,FALSE),AK25) -> 6 | AH25: =+IF(AND(AI25>AI26,AI26=0),"Last"&AJ25,"") ->  | AI25: =+IF($AC25=0,0,IF($AC25>$AC36,1,IF($AC25=$AC36,$AI36+1,IF($AC36>$AC25,0)))) -> 0 | AJ25: 1 | AK25: =IFERROR(VLOOKUP("LAST"&AJ25,$AH$25:$AI$36,2,FALSE),VLOOKUP("LAST"&1,$AH$25:$AI$36,2,FALSE)) -> 1
C26: February | D26: =+IF($AC26=0,0,IF($AC26>$AC25,1,IF($AC26=$AC25,$D25+1,IF($AC25>$AC26,0)))) -> 0 | F26: =IF($D26>0,($AG26*$F$11/$AK26)*$D26+$F$11*$F$16,0) -> 0 | G26: =+IF($D26>0,IFERROR(($AG26*$F$11/$AK26)*$D26,"")+$F$11*$F$16,IF($D26=0,G25-E26)) ->  | I26: =IF($D26>0,($AG26*$I$11/$AK26)*$D26+$I$11*$I$16,0) -> 0 | J26: =+IF($D26>0,IFERROR(($AG26*$I$11/$AK26)*$D26,"")+$I$11*$I$16,IF($D26=0,J25-H26)) ->  | L26: =IF($D26>0,($AG26*$L$11/$AK26)*$D26+$L$11*$L$16,0) -> 0 | M26: =+IF($D26>0,IFERROR(($AG26*$L$11/$AK26)*$D26,"")+$L$11*$L$16,IF($D26=0,M25-K26)) ->  | O26: =IF($D26>0,($AG26*$O$11/$AK26)*$D26+$O$11*$O$16,0) -> 0 | P26: =+IF($D26>0,IFERROR(($AG26*$O$11/$AK26)*$D26,"")+$O$11*$O$16,IF($D26=0,P25-N26)) ->  | AB26: FALSE | AC26: =+N(AB26) -> 0 | AD26: =+IF(AND(AC27>AC26,AC26=0),"Last"&AF26,"") ->  | AE26: =+IF($AC26=1,0,IF($AC26<$AC25,1,IF($AC26=$AC25,$AE25+1,IF($AC25>$AC26,1)))) -> 2 | AF26: =+IF($AE25>$AE26,$AF25+1,$AF25) -> 1 | AG26: =IFERROR(VLOOKUP("LAST"&AF26,$AD$25:$AE$36,2,FALSE),$AG$25) -> 6 | AH26: =+IF(AND(AI26>AI27,AI27=0),"Last"&AJ26,"") ->  | AI26: =+IF($AC26=0,0,IF($AC26>$AC25,1,IF($AC26=$AC25,$AI25+1,IF($AC25>$AC26,0)))) -> 0 | AJ26: =+IF($AI25>$AI26,$AJ25+1,$AJ25) -> 1 | AK26: 1
C27: March | D27: 0 | F27: 0 | I27: 0 | L27: 0 | O27: 0 | AB27: FALSE | AC27: 0 | AD27: =+IF(AND(AC28>AC27,AC27=0),"Last"&AF27,"") ->  | AE27: 3 | AF27: 1 | AG27: 6 | AH27: =+IF(AND(AI27>AI28,AI28=0),"Last"&AJ27,"") ->  | AI27: 0 | AJ27: 1 | AK27: 1
C28: April | D28: 0 | F28: 0 | I28: 0 | L28: 0 | O28: 0 | AB28: FALSE | AC28: 0 | AD28: =+IF(AND(AC29>AC28,AC28=0),"Last"&AF28,"") ->  | AE28: 4 | AF28: 1 | AG28: 6 | AH28: =+IF(AND(AI28>AI29,AI29=0),"Last"&AJ28,"") ->  | AI28: 0 | AJ28: 1 | AK28: 1
C29: May | D29: 0 | F29: 0 | I29: 0 | L29: 0 | O29: 0 | AB29: FALSE | AC29: 0 | AE29: 5 | AF29: 1 | AG29: 6 | AH29: =+IF(AND(AI29>AI30,AI30=0),"Last"&AJ29,"") ->  | AI29: 0 | AJ29: 1 | AK29: 1
C30: June | D30: 0 | F30: 0 | I30: 0 | L30: 0 | O30: 0 | AB30: FALSE | AC30: 0 | AD30: Last1 | AE30: 6 | AF30: 1 | AG30: 6 | AI30: 0 | AJ30: 1 | AK30: 1
C31: July | D31: 1 | AB31: TRUE | AC31: 1 | AE31: 0 | AF31: 2 | AG31: 4 | AH31: Last1 | AI31: 1 | AJ31: 1 | AK31: 1
C32: August | D32: 0 | F32: 0 | I32: 0 | L32: 0 | O32: 0 | AB32: FALSE | AC32: 0 | AE32: 1 | AF32: 2 | AG32: 4 | AI32: 0 | AJ32: 2 | AK32: 1
C33: September | D33: 0 | F33: 0 | I33: 0 | L33: 0 | O33: 0 | AB33: FALSE | AC33: 0 | AE33: 2 | AF33: 2 | AG33: 4 | AI33: 0 | AJ33: 2 | AK33: 1
C34: October | D34: 0 | F34: 0 | I34: 0 | L34: 0 | O34: 0 | AB34: FALSE | AC34: 0 | AE34: 3 | AF34: 2 | AG34: 4 | AI34: 0 | AJ34: 2 | AK34: 1
C35: November | D35: 0 | F35: 0 | I35: 0 | L35: 0 | O35: 0 | AB35: FALSE | AC35: 0 | AD35: Last2 | AE35: 4 | AF35: 2 | AG35: 4 | AI35: 0 | AJ35: 2 | AK35: 1
C36: December | D36: 1 | AB36: TRUE | AC36: 1 | AD36: =+IF(AND(AC25>AC36,AC36=0),"Last"&AF36,"") ->  | AE36: 0 | AF36: 3 | AG36: 6 | AH36: =+IF(AND(AI36>AI25,AI25=0),"Last"&AJ36,"") -> Last2 | AI36: 1 | AJ36: 2 | AK36: 1
C38: Maximum Storage Capacity Required (ton) | F38: =+ROUNDUP(MAX(F25:F36),0) ->  | I38: =+ROUNDUP(MAX(I25:I36),0) ->  | L38: =+ROUNDUP(MAX(L25:L36),0) ->  | O38: =+ROUNDUP(MAX(O25:O36),0) -> 
C39: Minimum Safety Storage (ton) | F39: =+ROUNDUP(MIN(G25:G36),0) ->  | I39: =+ROUNDUP(MIN(J25:J36),0) ->  | L39: =+ROUNDUP(MIN(M25:M36),0) ->  | O39: =+ROUNDUP(MIN(P25:P36),0) -> 
AB40: No. Storage Months | AC40: =+COUNTIF(AC25:AC36,">0") -> 2
C41: Monthly Consumption of Biomass Stocked | AB41: Total Depletion Period | AC41: =12-AC40 -> 10
AE81: =5&" (ML/year)" -> 5 (ML/year) | AF81: =25&" (ML/year)" -> 25 (ML/year) | AG81: =50&" (ML/year)" -> 50 (ML/year) | AH81: =100&" (ML/year)" -> 100 (ML/year)
AD82: =+LEFT(C25,3) -> Jan | AE82: =+G25 ->  | AF82: =+J25 ->  | AG82: =+M25 ->  | AH82: =+P25 -> 
AD83: Feb
AD84: Mar
AD85: Apr
AD86: May
AD87: Jun
AD88: =+LEFT(C32,3) -> Aug | AE88: =+G32 ->  | AF88: =+J32 ->  | AG88: =+M32 ->  | AH88: =+P32 -> 
AD89: =+LEFT(C33,3) -> Sep | AE89: =+G33 ->  | AF89: =+J33 ->  | AG89: =+M33 ->  | AH89: =+P33 -> 
AD90: =+LEFT(C34,3) -> Oct | AE90: =+G34 ->  | AF90: =+J34 ->  | AG90: =+M34 ->  | AH90: =+P34 -> 
AD91: =+LEFT(C35,3) -> Nov | AE91: =+G35 ->  | AF91: =+J35 ->  | AG91: =+M35 ->  | AH91: =+P35 -> 
AD92: =+LEFT(C36,3) -> Dec | AE92: =+G36 ->  | AF92: =+J36 ->  | AG92: =+M36 ->  | AH92: =+P36 -> 

Sheet STORAGE_FS3 (hidden)
C3: =+UPPER(" Processing costs for "&'Data Entry Needs'!$G$10&" Production from "&'Data Entry Needs'!$G$11) -> PROCESSING COSTS FOR PLEASE SELECT PRODUCTION FROM
C5: Biomass Safety Stock Rate Definition
F8: Capacities (Million litres per year)
D9: Unit | F9: 5 | I9: 25 | L9: 50 | O9: 100
C10: Biomass consumption | D10: t/year | F10: =+COST_FS3!$G$17 ->  | I10: =+COST_FS3!$G$18 ->  | L10: =+COST_FS3!$G$19 ->  | O10: =+COST_FS3!$G$20 -> 
D11: t/month | F11: =F10/12 ->  | I11: =I10/12 ->  | L11: =L10/12 ->  | O11: =O10/12 -> 
D12: kg/day | F12: =F10/365 ->  | I12: =I10/365 ->  | L12: =L10/365 ->  | O12: =O10/365 -> 
C14: Biomass production within a specific distance | D14: t/year | F14: =+COST_FS3!$D$9 -> 0 | I14: =F14 -> 0 | L14: =I14 -> 0 | O14: =L14 -> 0
C16: Biomass safety stock rate | F16: =+F17/100 -> 0.3 | G16: =+G17/100 -> 0 | H16: 0 | I16: 0.3 | J16: 0 | K16: 0 | L16: 0.3 | M16: 0 | N16: 0 | O16: 0.3
F17: 30 | I17: 30 | L17: 30 | O17: 30
C18: Biomass stock pile capacity | D18: t | F18: =+MAX(F25:F36) ->  | I18: =+MAX(I25:I36) ->  | L18: =+MAX(L25:L36) ->  | O18: =+MAX(O25:O36) -> 
C20: Maximum Storage Definition
F22: Capacities (Million litres per year)
F23: 5 | I23: 25 | L23: 50 | O23: 100 | AD23: Depletion time definition
C24: Harvest Month Selection | D24: Storage Month | E24: Monthly Consumption (t/month) | F24: Cumulative Storage (ton) | G24: Storage Depletion (t/month) | H24: Monthly Consumption (t/month) | I24: Cumulative Storage (ton) | J24: Storage Depletion (t/month) | K24: Monthly Consumption (t/month) | L24: Cumulative Storage (ton) | M24: Storage Depletion (t/month) | N24: Monthly Consumption (t/month) | O24: Cumulative Storage (ton) | P24: Storage Depletion (t/month) | AB24: Harvest Period | AC24: Harvest Period | AD24: Depletion term | AE24: Depletion month | AF24: EQ term | AG24: Depletion time | AH24: Storageterm | AI24: Storage month | AJ24: EQ term | AK24: Storage time
C25: January | D25: =+IF($AC25=0,0,IF($AC25>$AC36,1,IF($AC25=$AC36,$D36+1,IF($AC36>$AC25,0)))) -> 0 | E25: =+F$11 ->  | F25: =+IF(AND($D$25=1,$D$36=0,$D$26=0),$F$11*$AG25+$F$11*$F$16,IF($D25>0,($AG25*$F$11/$AK25)*$D25+$F$11*$F$16,0)) -> 0 | G25: =IF(AND($D$25=1,$D$36=0,$D$26=0),$F$11*$AG25+$G$36-E25,IF($D25>0,IFERROR(($AG25*$F$11/$AK25)*$D25,"")+$F$11*$F$16,IF($D25=0,G36-E25))) ->  | H25: =+I$11 ->  | I25: =+IF(AND($D$25=1,$D$36=0,$D$26=0),$I$11*$AG25+$I$11*$I$16,IF($D25>0,($AG25*$I$11/$AK25)*$D25+$I$11*$I$16,0)) -> 0 | J25: =IF(AND($D$25=1,$D$36=0,$D$26=0),$I$11*$AG25+$J$36-H25,IF($D25>0,IFERROR(($AG25*$I$11/$AK25)*$D25,"")+$I$11*$I$16,IF($D25=0,J36-H25))) ->  | K25: =+L$11 ->  | L25: =+IF(AND($D$25=1,$D$36=0,$D$26=0),$L$11*$AG25+$L$11*$L$16,IF($D25>0,($AG25*$L$11/$AK25)*$D25+$L$11*$L$16,0)) -> 0 | M25: =IF(AND($D$25=1,$D$36=0,$D$26=0),$L$11*$AG25+$M$36-K25,IF($D25>0,IFERROR(($AG25*$L$11/$AK25)*$D25,"")+$L$11*$L$16,IF($D25=0,M36-K25))) ->  | N25: =+O$11 ->  | O25: =+IF(AND($D$25=1,$D$36=0,$D$26=0),$O$11*$AG25+$O$11*$O$16,IF($D25>0,($AG25*$O$11/$AK25)*$D25+$O$11*$O$16,0)) -> 0 | P25: =IF(AND($D$25=1,$D$36=0,$D$26=0),$O$11*$AG25+$P$36-N25,IF($D25>0,IFERROR(($AG25*$O$11/$AK25)*$D25,"")+$O$11*$O$16,IF($D25=0,P36-N25))) ->  | AB25: FALSE | AC25: =+N(AB25) -> 0 | AD25: =+IF(AND(AC26>AC25,AC25=0),"Last"&AF25,"") ->  | AE25: =+IF($AC25=1,0,IF($AC25<$AC36,1,IF($AC25=$AC36,$AE36+1,IF($AC36>$AC25,1)))) -> 1 | AF25: 1 | AG25: =IFERROR(VLOOKUP("LAST"&AF25,$AD$25:$AE$36,2,FALSE),AK25) -> 6 | AH25: =+IF(AND(AI25>AI26,AI26=0),"Last"&AJ25,"") ->  | AI25: =+IF($AC25=0,0,IF($AC25>$AC36,1,IF($AC25=$AC36,$AI36+1,IF($AC36>$AC25,0)))) -> 0 | AJ25: 1 | AK25: =IFERROR(VLOOKUP("LAST"&AJ25,$AH$25:$AI$36,2,FALSE),VLOOKUP("LAST"&1,$AH$25:$AI$36,2,FALSE)) -> 1
C26: February | D26: =+IF($AC26=0,0,IF($AC26>$AC25,1,IF($AC26=$AC25,$D25+1,IF($AC25>$AC26,0)))) -> 0 | F26: =IF($D26>0,($AG26*$F$11/$AK26)*$D26+$F$11*$F$16,0) -> 0 | G26: =+IF($D26>0,IFERROR(($AG26*$F$11/$AK26)*$D26,"")+$F$11*$F$16,IF($D26=0,G25-E26)) ->  | I26: =IF($D26>0,($AG26*$I$11/$AK26)*$D26+$I$11*$I$16,0) -> 0 | J26: =+IF($D26>0,IFERROR(($AG26*$I$11/$AK26)*$D26,"")+$I$11*$I$16,IF($D26=0,J25-H26)) ->  | L26: =IF($D26>0,($AG26*$L$11/$AK26)*$D26+$L$11*$L$16,0) -> 0 | M26: =+IF($D26>0,IFERROR(($AG26*$L$11/$AK26)*$D26,"")+$L$11*$L$16,IF($D26=0,M25-K26)) ->  | O26: =IF($D26>0,($AG26*$O$11/$AK26)*$D26+$O$11*$O$16,0) -> 0 | P26: =+IF($D26>0,IFERROR(($AG26*$O$11/$AK26)*$D26,"")+$O$11*$O$16,IF($D26=0,P25-N26)) ->  | AB26: FALSE | AC26: =+N(AB26) -> 0 | AD26: =+IF(AND(AC27>AC26,AC26=0),"Last"&AF26,"") ->  | AE26: =+IF($AC26=1,0,IF($AC26<$AC25,1,IF($AC26=$AC25,$AE25+1,IF($AC25>$AC26,1)))) -> 2 | AF26: =+IF($AE25>$AE26,$AF25+1,$AF25) -> 1 | AG26: =IFERROR(VLOOKUP("LAST"&AF26,$AD$25:$AE$36,2,FALSE),$AG$25) -> 6 | AH26: =+IF(AND(AI26>AI27,AI27=0),"Last"&AJ26,"") ->  | AI26: =+IF($AC26=0,0,IF($AC26>$AC25,1,IF($AC26=$AC25,$AI25+1,IF($AC25>$AC26,0)))) -> 0 | AJ26: =+IF($AI25>$AI26,$AJ25+1,$AJ25) -> 1 | AK26: 1
C27: March | D27: 0 | F27: 0 | I27: 0 | L27: 0 | O27: 0 | AB27: FALSE | AC27: 0 | AD27: =+IF(AND(AC28>AC27,AC27=0),"Last"&AF27,"") ->  | AE27: 3 | AF27: 1 | AG27: 6 | AH27: =+IF(AND(AI27>AI28,AI28=0),"Last"&AJ27,"") ->  | AI27: 0 | AJ27: 1 | AK27: 1
C28: April | D28: 0 | F28: 0 | I28: 0 | L28: 0 | O28: 0 | AB28: FALSE | AC28: 0 | AD28: =+IF(AND(AC29>AC28,AC28=0),"Last"&AF28,"") ->  | AE28: 4 | AF28: 1 | AG28: 6 | AH28: =+IF(AND(AI28>AI29,AI29=0),"Last"&AJ28,"") ->  | AI28: 0 | AJ28: 1 | AK28: 1
C29: May | D29: 0 | F29: 0 | I29: 0 | L29: 0 | O29: 0 | AB29: FALSE | AC29: 0 | AE29: 5 | AF29: 1 | AG29: 6 | AH29: =+IF(AND(AI29>AI30,AI30=0),"Last"&AJ29,"") ->  | AI29: 0 | AJ29: 1 | AK29: 1
C30: June | D30: 0 | F30: 0 | I30: 0 | L30: 0 | O30: 0 | AB30: FALSE | AC30: 0 | AD30: Last1 | AE30: 6 | AF30: 1 | AG30: 6 | AI30: 0 | AJ30: 1 | AK30: 1
C31: July | D31: 1 | AB31: TRUE | AC31: 1 | AE31: 0 | AF31: 2 | AG31: 4 | AH31: Last1 | AI31: 1 | AJ31: 1 | AK31: 1
C32: August | D32: 0 | F32: 0 | I32: 0 | L32: 0 | O32: 0 | AB32: FALSE | AC32: 0 | AE32: 1 | AF32: 2 | AG32: 4 | AI32: 0 | AJ32: 2 | AK32: 1
C33: September | D33: 0 | F33: 0 | I33: 0 | L33: 0 | O33: 0 | AB33: FALSE | AC33: 0 | AE33: 2 | AF33: 2 | AG33: 4 | AI33: 0 | AJ33: 2 | AK33: 1
C34: October | D34: 0 | F34: 0 | I34: 0 | L34: 0 | O34: 0 | AB34: FALSE | AC34: 0 | AE34: 3 | AF34: 2 | AG34: 4 | AI34: 0 | AJ34: 2 | AK34: 1
C35: November | D35: 0 | F35: 0 | I35: 0 | L35: 0 | O35: 0 | AB35: FALSE | AC35: 0 | AD35: Last2 | AE35: 4 | AF35: 2 | AG35: 4 | AI35: 0 | AJ35: 2 | AK35: 1
C36: December | D36: 1 | AB36: TRUE | AC36: 1 | AD36: =+IF(AND(AC25>AC36,AC36=0),"Last"&AF36,"") ->  | AE36: 0 | AF36: 3 | AG36: 6 | AH36: =+IF(AND(AI36>AI25,AI25=0),"Last"&AJ36,"") -> Last2 | AI36: 1 | AJ36: 2 | AK36: 1
C38: Maximum Storage Capacity Required (ton) | F38: =+ROUNDUP(MAX(F24:F35),0) ->  | I38: =+ROUNDUP(MAX(I24:I35),0) ->  | L38: =+ROUNDUP(MAX(L24:L35),0) ->  | O38: =+ROUNDUP(MAX(O24:O35),0) -> 
C39: Minimum Safety Storage (ton) | F39: =+ROUNDUP(MIN(G24:G35),0) ->  | I39: =+ROUNDUP(MIN(J24:J35),0) ->  | L39: =+ROUNDUP(MIN(M24:M35),0) ->  | O39: =+ROUNDUP(MIN(P24:P35),0) -> 
AB40: No. Storage Months | AC40: =+COUNTIF(AC25:AC36,">0") -> 2
C41: Monthly Consumption of Biomass Stocked | AB41: Total Depletion Period | AC41: =12-AC40 -> 10
AE80: =5&" (ML/year)" -> 5 (ML/year) | AF80: =25&" (ML/year)" -> 25 (ML/year) | AG80: =50&" (ML/year)" -> 50 (ML/year) | AH80: =100&" (ML/year)" -> 100 (ML/year)
AD81: =+LEFT(C25,3) -> Jan | AE81: =+G25 ->  | AF81: =+J25 ->  | AG81: =+M25 ->  | AH81: =+P25 -> 
AD82: Feb
AD83: Mar
AD84: Apr
AD85: May
AD86: Jun
AD87: =+LEFT(C32,3) -> Aug | AE87: =+G32 ->  | AF87: =+J32 ->  | AG87: =+M32 ->  | AH87: =+P32 -> 
AD88: =+LEFT(C33,3) -> Sep | AE88: =+G33 ->  | AF88: =+J33 ->  | AG88: =+M33 ->  | AH88: =+P33 -> 
AD89: =+LEFT(C34,3) -> Oct | AE89: =+G34 ->  | AF89: =+J34 ->  | AG89: =+M34 ->  | AH89: =+P34 -> 
AD90: =+LEFT(C35,3) -> Nov | AE90: =+G35 ->  | AF90: =+J35 ->  | AG90: =+M35 ->  | AH90: =+P35 -> 
AD91: =+LEFT(C36,3) -> Dec | AE91: =+G36 ->  | AF91: =+J36 ->  | AG91: =+M36 ->  | AH91: =+P36 -> 

Sheet STORAGE_FS4 (hidden)
C3: =+UPPER(" Processing costs for "&'Data Entry Needs'!$H$10&" Production from "&'Data Entry Needs'!$H$11) -> PROCESSING COSTS FOR PLEASE SELECT PRODUCTION FROM
C5: Biomass Safety Stock Rate Definition
F8: Capacities (Million litres per year)
D9: Unit | F9: 5 | I9: 25 | L9: 50 | O9: 100
C10: Biomass consumption | D10: t/year | F10: =+COST_FS4!$G$17 ->  | I10: =+COST_FS4!$G$18 ->  | L10: =+COST_FS4!$G$19 ->  | O10: =+COST_FS4!$G$20 -> 
D11: t/month | F11: =F10/12 ->  | I11: =I10/12 ->  | L11: =L10/12 ->  | O11: =O10/12 -> 
D12: kg/day | F12: =F10/365 ->  | I12: =I10/365 ->  | L12: =L10/365 ->  | O12: =O10/365 -> 
C14: Biomass production within a specific distance | D14: t/year | F14: =+COST_FS4!$D$9 -> 0 | I14: =F14 -> 0 | L14: =I14 -> 0 | O14: =L14 -> 0
C16: Biomass safety stock rate | F16: =+F17/100 -> 0.3 | G16: =+G17/100 -> 0.3 | H16: 0.3 | I16: 0.3 | J16: 0.3 | K16: 0.3 | L16: 0.3 | M16: 0.3 | N16: 0.3 | O16: 0.3
F17: 30 | G17: 30 | H17: 30 | I17: 30 | J17: 30 | K17: 30 | L17: 30 | M17: 30 | N17: 30 | O17: 30
C18: Biomass stock pile capacity | D18: t | F18: =+MAX(F25:F36) ->  | I18: =+MAX(I25:I36) ->  | L18: =+MAX(L25:L36) ->  | O18: =+MAX(O25:O36) -> 
C20: Maximum Storage Definition
F22: Capacities (Million litres per year)
F23: 5 | I23: 25 | L23: 50 | O23: 100 | AD23: Depletion time definition
C24: Harvest Month Selection | D24: Storage Month | E24: Monthly Consumption (t/month) | F24: Cumulative Storage (ton) | G24: Storage Depletion (t/month) | H24: Monthly Consumption (t/month) | I24: Cumulative Storage (ton) | J24: Storage Depletion (t/month) | K24: Monthly Consumption (t/month) | L24: Cumulative Storage (ton) | M24: Storage Depletion (t/month) | N24: Monthly Consumption (t/month) | O24: Cumulative Storage (ton) | P24: Storage Depletion (t/month) | AB24: Harvest Period | AC24: Harvest Period | AD24: Depletion term | AE24: Depletion month | AF24: EQ term | AG24: Depletion time | AH24: Storageterm | AI24: Storage month | AJ24: EQ term | AK24: Storage time
C25: January | D25: =+IF($AC25=0,0,IF($AC25>$AC36,1,IF($AC25=$AC36,$D36+1,IF($AC36>$AC25,0)))) -> 0 | E25: =+F$11 ->  | F25: =+IF(AND($D$25=1,$D$36=0,$D$26=0),$F$11*$AG25+$F$11*$F$16,IF($D25>0,($AG25*$F$11/$AK25)*$D25+$F$11*$F$16,0)) -> 0 | G25: =IF(AND($D$25=1,$D$36=0,$D$26=0),$F$11*$AG25+$G$36-E25,IF($D25>0,IFERROR(($AG25*$F$11/$AK25)*$D25,"")+$F$11*$F$16,IF($D25=0,G36-E25))) ->  | H25: =+I$11 ->  | I25: =+IF(AND($D$25=1,$D$36=0,$D$26=0),$I$11*$AG25+$I$11*$I$16,IF($D25>0,($AG25*$I$11/$AK25)*$D25+$I$11*$I$16,0)) -> 0 | J25: =IF(AND($D$25=1,$D$36=0,$D$26=0),$I$11*$AG25+$J$36-H25,IF($D25>0,IFERROR(($AG25*$I$11/$AK25)*$D25,"")+$I$11*$I$16,IF($D25=0,J36-H25))) ->  | K25: =+L$11 ->  | L25: =+IF(AND($D$25=1,$D$36=0,$D$26=0),$L$11*$AG25+$L$11*$L$16,IF($D25>0,($AG25*$L$11/$AK25)*$D25+$L$11*$L$16,0)) -> 0 | M25: =IF(AND($D$25=1,$D$36=0,$D$26=0),$L$11*$AG25+$M$36-K25,IF($D25>0,IFERROR(($AG25*$L$11/$AK25)*$D25,"")+$L$11*$L$16,IF($D25=0,M36-K25))) ->  | N25: =+O$11 ->  | O25: =+IF(AND($D$25=1,$D$36=0,$D$26=0),$O$11*$AG25+$O$11*$O$16,IF($D25>0,($AG25*$O$11/$AK25)*$D25+$O$11*$O$16,0)) -> 0 | P25: =IF(AND($D$25=1,$D$36=0,$D$26=0),$O$11*$AG25+$P$36-N25,IF($D25>0,IFERROR(($AG25*$O$11/$AK25)*$D25,"")+$O$11*$O$16,IF($D25=0,P36-N25))) ->  | AB25: FALSE | AC25: =+N(AB25) -> 0 | AD25: =+IF(AND(AC26>AC25,AC25=0),"Last"&AF25,"") ->  | AE25: =+IF($AC25=1,0,IF($AC25<$AC36,1,IF($AC25=$AC36,$AE36+1,IF($AC36>$AC25,1)))) -> 5 | AF25: 1 | AG25: =IFERROR(VLOOKUP("LAST"&AF25,$AD$25:$AE$36,2,FALSE),AK25) -> 7 | AH25: =+IF(AND(AI25>AI26,AI26=0),"Last"&AJ25,"") ->  | AI25: =+IF($AC25=0,0,IF($AC25>$AC36,1,IF($AC25=$AC36,$AI36+1,IF($AC36>$AC25,0)))) -> 0 | AJ25: 1 | AK25: =IFERROR(VLOOKUP("LAST"&AJ25,$AH$25:$AI$36,2,FALSE),VLOOKUP("LAST"&1,$AH$25:$AI$36,2,FALSE)) -> 5
C26: February | D26: =+IF($AC26=0,0,IF($AC26>$AC25,1,IF($AC26=$AC25,$D25+1,IF($AC25>$AC26,0)))) -> 0 | F26: =IF($D26>0,($AG26*$F$11/$AK26)*$D26+$F$11*$F$16,0) -> 0 | G26: =+IF($D26>0,IFERROR(($AG26*$F$11/$AK26)*$D26,"")+$F$11*$F$16,IF($D26=0,G25-E26)) ->  | I26: =IF($D26>0,($AG26*$I$11/$AK26)*$D26+$I$11*$I$16,0) -> 0 | J26: =+IF($D26>0,IFERROR(($AG26*$I$11/$AK26)*$D26,"")+$I$11*$I$16,IF($D26=0,J25-H26)) ->  | L26: =IF($D26>0,($AG26*$L$11/$AK26)*$D26+$L$11*$L$16,0) -> 0 | M26: =+IF($D26>0,IFERROR(($AG26*$L$11/$AK26)*$D26,"")+$L$11*$L$16,IF($D26=0,M25-K26)) ->  | O26: =IF($D26>0,($AG26*$O$11/$AK26)*$D26+$O$11*$O$16,0) -> 0 | P26: =+IF($D26>0,IFERROR(($AG26*$O$11/$AK26)*$D26,"")+$O$11*$O$16,IF($D26=0,P25-N26)) ->  | AB26: FALSE | AC26: =+N(AB26) -> 0 | AD26: =+IF(AND(AC27>AC26,AC26=0),"Last"&AF26,"") ->  | AE26: =+IF($AC26=1,0,IF($AC26<$AC25,1,IF($AC26=$AC25,$AE25+1,IF($AC25>$AC26,1)))) -> 6 | AF26: =+IF($AE25>$AE26,$AF25+1,$AF25) -> 1 | AG26: =IFERROR(VLOOKUP("LAST"&AF26,$AD$25:$AE$36,2,FALSE),$AG$25) -> 7 | AH26: =+IF(AND(AI26>AI27,AI27=0),"Last"&AJ26,"") ->  | AI26: =+IF($AC26=0,0,IF($AC26>$AC25,1,IF($AC26=$AC25,$AI25+1,IF($AC25>$AC26,0)))) -> 0 | AJ26: =+IF($AI25>$AI26,$AJ25+1,$AJ25) -> 1 | AK26: 5
C27: March | D27: 0 | F27: 0 | I27: 0 | L27: 0 | O27: 0 | AB27: FALSE | AC27: 0 | AD27: =+IF(AND(AC28>AC27,AC27=0),"Last"&AF27,"") -> Last1 | AE27: 7 | AF27: 1 | AG27: 7 | AH27: =+IF(AND(AI27>AI28,AI28=0),"Last"&AJ27,"") ->  | AI27: 0 | AJ27: 1 | AK27: 5
C28: April | D28: 1 | AB28: TRUE | AC28: 1 | AD28: =+IF(AND(AC29>AC28,AC28=0),"Last"&AF28,"") ->  | AE28: 0 | AF28: 2 | AG28: 7 | AH28: =+IF(AND(AI28>AI29,AI29=0),"Last"&AJ28,"") ->  | AI28: 1 | AJ28: 1 | AK28: 5
C29: May | D29: 2 | AB29: TRUE | AC29: 1 | AE29: 0 | AF29: 2 | AG29: 7 | AH29: =+IF(AND(AI29>AI30,AI30=0),"Last"&AJ29,"") ->  | AI29: 2 | AJ29: 1 | AK29: 5
C30: June | D30: 3 | AB30: TRUE | AC30: 1 | AE30: 0 | AF30: 2 | AG30: 7 | AI30: 3 | AJ30: 1 | AK30: 5
C31: July | D31: 4 | AB31: TRUE | AC31: 1 | AE31: 0 | AF31: 2 | AG31: 7 | AI31: 4 | AJ31: 1 | AK31: 5
C32: August | D32: 5 | AB32: TRUE | AC32: 1 | AE32: 0 | AF32: 2 | AG32: 7 | AH32: Last1 | AI32: 5 | AJ32: 1 | AK32: 5
C33: September | D33: 0 | F33: 0 | I33: 0 | L33: 0 | O33: 0 | AB33: FALSE | AC33: 0 | AE33: 1 | AF33: 2 | AG33: 7 | AI33: 0 | AJ33: 2 | AK33: 5
C34: October | D34: 0 | F34: 0 | I34: 0 | L34: 0 | O34: 0 | AB34: FALSE | AC34: 0 | AE34: 2 | AF34: 2 | AG34: 7 | AI34: 0 | AJ34: 2 | AK34: 5
C35: November | D35: 0 | F35: 0 | I35: 0 | L35: 0 | O35: 0 | AB35: FALSE | AC35: 0 | AE35: 3 | AF35: 2 | AG35: 7 | AI35: 0 | AJ35: 2 | AK35: 5
C36: December | D36: 0 | F36: 0 | I36: 0 | L36: 0 | O36: 0 | AB36: FALSE | AC36: 0 | AD36: =+IF(AND(AC25>AC36,AC36=0),"Last"&AF36,"") ->  | AE36: 4 | AF36: 2 | AG36: 7 | AH36: =+IF(AND(AI36>AI25,AI25=0),"Last"&AJ36,"") ->  | AI36: 0 | AJ36: 2 | AK36: 5
C38: Maximum Storage Capacity Required (ton) | F38: =+ROUNDUP(MAX(F24:F35),0) ->  | I38: =+ROUNDUP(MAX(I24:I35),0) ->  | L38: =+ROUNDUP(MAX(L24:L35),0) ->  | O38: =+ROUNDUP(MAX(O24:O35),0) -> 
C39: Minimum Safety Storage (ton) | F39: =+ROUNDUP(MIN(G24:G35),0) ->  | I39: =+ROUNDUP(MIN(J24:J35),0) ->  | L39: =+ROUNDUP(MIN(M24:M35),0) ->  | O39: =+ROUNDUP(MIN(P24:P35),0) -> 
AB40: No. Storage Months | AC40: =+COUNTIF(AC25:AC36,">0") -> 5
C41: Monthly Consumption of Biomass Stocked | AB41: Total Depletion Period | AC41: =12-AC40 -> 7
AF71: =5&" (ML/year)" -> 5 (ML/year) | AG71: =25&" (ML/year)" -> 25 (ML/year) | AH71: =50&" (ML/year)" -> 50 (ML/year) | AI71: =100&" (ML/year)" -> 100 (ML/year)
AE72: =+LEFT(C25,3) -> Jan | AF72: =+G25 ->  | AG72: =+J25 ->  | AH72: =+M25 ->  | AI72: =+P25 -> 
AE73: Feb
AE74: Mar
AE75: Apr
AE76: May
AE77: Jun
AE78: =+LEFT(C32,3) -> Aug | AF78: =+G32 ->  | AG78: =+J32 ->  | AH78: =+M32 ->  | AI78: =+P32 -> 
AE79: =+LEFT(C33,3) -> Sep | AF79: =+G33 ->  | AG79: =+J33 ->  | AH79: =+M33 ->  | AI79: =+P33 -> 
AE80: =+LEFT(C34,3) -> Oct | AF80: =+G34 ->  | AG80: =+J34 ->  | AH80: =+M34 ->  | AI80: =+P34 -> 
AE81: =+LEFT(C35,3) -> Nov | AF81: =+G35 ->  | AG81: =+J35 ->  | AH81: =+M35 ->  | AI81: =+P35 -> 
AE82: =+LEFT(C36,3) -> Dec | AF82: =+G36 ->  | AG82: =+J36 ->  | AH82: =+M36 ->  | AI82: =+P36 -> 

Sheet Data Entry Needs
C3: DATA ENTRY FOR LIQUID BIOFUELS
C6: Use white cells to input data | D6: Grey cells are used for calculations | F6: Sunflower | H6: cassava stalk
C7: Feedstock Availability and Cost
E9: Feedstock 1 | F9: Feedstock 2 | G9: Feedstock 3 | H9: Feedstock 4
E10: Please Select | F10: Please Select | G10: Please Select | H10: Please Select
C11: Feedstock
C12: Feedstock potential (t/year)
C13: Feedstock cost (cost of production) - Own production (USD/t)
C14: Feedstock cost (market price) - Outgrower (USD/t)
C15: Feedstock storage cost (USD/t)
C17: Biofuel Production Cost and Financial Parameters
C19: Chemical inputs*
C20: Biodiesel inputs | D20: USD/t | E20: Ethanol inputs | F20: USD/t | G20: Ethanol inputs | H20: USD/t
C21: =IF($V$155>=1,"Methanol ","") ->  | E21: =IF(OR(IF($X$155>=1,TRUE,FALSE),IF($W$155>=1,TRUE,FALSE)),"Ammonia","") ->  | G21: =IF($W$155>=1,"Lime","") -> 
C22: =IF($V$155>=1,"Sodium hydroxide ","") ->  | E22: =IF(OR(IF($X$155>=1,TRUE,FALSE),IF($W$155>=1,TRUE,FALSE)),"Yeast ","") ->  | G22: =IF($X$155>=1,"Alpha-amylase ","") -> 
C23: =IF($V$155>=1,"Hexane ","") ->  | E23: =IF(OR(IF($X$155>=1,TRUE,FALSE),IF($W$155>=1,TRUE,FALSE)),"Sulfuric acid ","") ->  | G23: =IF($X$155>=1,"Glucoamylase ","") -> 
C24: http://www.icis.com/chemicals/channel-info-chemicals-a-z/
C26: Utilities | E26: Unit
C27: Heat carrier | E27: USD/t steam
C28: Water | E28: USD/m3
C29: Electricity | E29: USD/kWh
C31: Labour | E31: Unit
C32: Unskilled worker | E32: USD/person-hour | F32: Working days per year
C33: Skilled worker | E33: USD/person-hour
C34: Miscellaneous cost (%)
C36: Transportation | E36: Unit
C37: Feedstock (farm to plant) | E37: USD/t/km
C38: Biofuel (plant to distribution point) | E38: USD/t/km
C40: Storage | E40: Unit
C41: Biodiesel storage cost | E41: USD/l/year | F41: Storage rate of biodiesel
C42: Ethanol storage cost | E42: USD/l/year | F42: Storage rate of ethanol
C44: Other costs
C45: Maintenance (%)
C46: Plant overhead (%)
C47: General and administrative (%)
C49: Price of co-products | E49: Unit | H49: Unit
C50: Raw glycerol | E50: USD/t | F50: DDGS | H50: USD/t
C51: Meal | E51: USD/t
C52: http://www.icis.com/chemicals/channel-info-chemicals-a-z/ | E52: http://www.indexmundi.com/commodities/?commodity=soybean-meal
C53: Price of transport fuels and net trade balance | E53: Unit | H53: Unit
C54: Net trade position – fossil fuels | D54: Net Importer | E54: Is the main port located at the main city in the Country?
C55: Net trade position – biofuels | D55: Interested in Exporting
E57: Unit | H57: Unit
C58: =IF(AND($V$156,$V$175),"Diesel FGP price","Diesel FOB price") -> Diesel FOB price | E58: USD/l | F58: =IF(AND($V$156,$V$176),"Biodiesel FGP price","Biodiesel FOB price") -> Biodiesel FOB price | H58: USD/l
C59: =IF(AND(OR($W$156,$X$156),$V$175),"Gasoline FGP price","Gasoline FOB price") -> Gasoline FOB price | E59: USD/l | F59: =IF(AND($V$176,OR($W$156,$X$156)),"Ethanol FGP price","Ethanol FOB price") -> Ethanol FOB price | H59: USD/l
C61: Distance from port to main city | E61: km
C63: Financial parameters | F63: Investment cost update
C64: Discount rate (%)
C65: Loan interest rate (%) | F65: =+"Plant Cost Index"&" during "&MONTH(TODAY())&"/"&YEAR(TODAY()) -> Plant Cost Index during 6/2018
C66: Loan term (years) | F66: http://base.intratec.us/home/ic-index
C68: Loan ratio
C69: 5 ML/year
C70: 25 ML/year
C71: 50 ML/year
C72: 100 ML/year
C74: Labour and Land Parameters
E76: =+E11 ->  | F76: =+F11 -> 
C77: Crop yield (t/ha) | D77: Outgrowers
C78: Labour manual (person-day/ha) | D78: Outgrowers
C79: Labour machinery (person-hour/ha) | D79: Outgrowers
C80: Crop Yield (t/ha) | D80: Own Production
C81: Labour manual (person-day/ha) | D81: Own Production
C82: Labour machinery (person-hour/ha) | D82: Own Production
N115: List1 | O115: List2 | P115: List 3 | S115: =+$N$116&N131 -> Biodiesel1 | T115: Coconut | U115: Biodiesel
L116: Please Select | M116: 1 | N116: Biodiesel | O116: Biodiesel | P116: Ethanol | S116: Biodiesel2 | T116: Jatropha | U116: Biodiesel
L117: Biodiesel | M117: 2 | N117: Ethanol | O117: Coconut | P117: Barley | S117: Biodiesel3 | T117: Oil Palm | U117: Biodiesel
L118: Ethanol | M118: 3 | O118: Jatropha | P118: Cassava | S118: Biodiesel4 | T118: Rapeseed | U118: Biodiesel
M119: 4 | O119: Oil Palm | P119: Maize | S119: Biodiesel5 | T119: Soybean | U119: Biodiesel
M120: 5 | O120: Rapeseed | P120: Sugarbeet | S120: Biodiesel6 | T120: Sunflower | U120: Biodiesel
M121: 6 | O121: Soybean | P121: Sugarcane | S121: =+$N$117&N131 -> Ethanol1 | T121: Barley | U121: Ethanol2
M122: 7 | O122: Sunflower | P122: Sorghum | S122: Ethanol2 | T122: Cassava | U122: Ethanol2
M123: 8 | P123: Wheat | S123: Ethanol3 | T123: Maize | U123: Ethanol2
S124: Ethanol4 | T124: Sugarbeet | U124: Ethanol1
S125: Ethanol5 | T125: Sugarcane | U125: Ethanol1
S126: Ethanol6 | T126: Sorghum | U126: Ethanol2
S127: Ethanol7 | T127: Wheat | U127: Ethanol2
N129: Feedstock 1 | O129: Selection Crop | P129: Crop | S129: PCI | T129: =IF(OR($H$65="",$H$65=" "),TRUE,FALSE) -> TRUE
O130: =+$E$10 -> Please Select
N131: 1 | P131: =+IFERROR(VLOOKUP($O$130&N131,$S$115:$T$127,2,FALSE),"") -> 
N132: 2
N133: 3
N134: 4
N135: 5
N136: 6
N137: 7 | U137: FS1 | V137: FS2 | W137: FS3 | X137: FS4
N138: Feedstock 2 | O138: Selection Crop | P138: Crop | U138: =+IF(E10="biodiesel",TRUE,FALSE) -> FALSE | V138: =+IF(F10="biodiesel",TRUE,FALSE) -> FALSE | W138: =+IF(G10="biodiesel",TRUE,FALSE) -> FALSE | X138: =+IF(H10="biodiesel",TRUE,FALSE) -> FALSE
O139: =+$F$10 -> Please Select
N140: 1 | P140: =+IFERROR(VLOOKUP($O$139&N140,$S$115:$T$127,2,FALSE),"") -> 
N141: 2
N142: 3
N143: 4
N144: 5
N145: 6
N146: 7
N147: Feedstock 3 | O147: Selection Crop | P147: Crop
O148: =+$G$10 -> Please Select
N149: 1 | P149: =+IFERROR(VLOOKUP($O$148&N149,$S$115:$T$127,2,FALSE),"") -> 
N150: 2 | V150: Biodiesel | W150: Ethanol1 | X150: Ethanol2
N151: 3 | U151: Feedstock 1 | V151: =IFERROR(IF($V$150=VLOOKUP($E$11,$T$115:$U$127,2,FALSE),1,0),0) -> 0 | W151: =IFERROR(IF($W$150=VLOOKUP($E$11,$T$115:$U$127,2,FALSE),1,0),0) -> 0 | X151: =IFERROR(IF($X$150=VLOOKUP($E$11,$T$115:$U$127,2,FALSE),1,0),0) -> 0
N152: 4 | U152: Feedstock 2 | V152: =IFERROR(IF($V$150=VLOOKUP($F$11,$T$115:$U$127,2,FALSE),1,0),0) -> 0 | W152: =IFERROR(IF($W$150=VLOOKUP($F$11,$T$115:$U$127,2,FALSE),1,0),0) -> 0 | X152: =IFERROR(IF($X$150=VLOOKUP($F$11,$T$115:$U$127,2,FALSE),1,0),0) -> 0
N153: 5 | U153: Feedstock 3 | V153: =+IFERROR(IF($V$150=VLOOKUP($G$11,$T$115:$U$127,2,FALSE),1,0),0) -> 0 | W153: =IFERROR(IF($W$150=VLOOKUP($G$11,$T$115:$U$127,2,FALSE),1,0),0) -> 0 | X153: =IFERROR(IF($X$150=VLOOKUP($G$11,$T$115:$U$127,2,FALSE),1,0),0) -> 0
N154: 6 | U154: Feedstock 4 | V154: =IFERROR(IF($V$150=VLOOKUP($H$11,$T$115:$U$127,2,FALSE),1,0),0) -> 0 | W154: =IFERROR(IF($W$150=VLOOKUP($H$11,$T$115:$U$127,2,FALSE),1,0),0) -> 0 | X154: =IFERROR(IF($X$150=VLOOKUP($H$11,$T$115:$U$127,2,FALSE),1,0),0) -> 0
N155: 7 | V155: =SUM(V151:V154) -> 0 | W155: =SUM(W151:W154) -> 0 | X155: =SUM(X151:X154) -> 0
N156: Feedstock 4 | O156: Selection Crop | P156: Crop | V156: =+IF(V155>0,TRUE,FALSE) -> FALSE | W156: =+IF(W155>0,TRUE,FALSE) -> FALSE | X156: =+IF(X155>0,TRUE,FALSE) -> FALSE
O157: =+$H$10 -> Please Select | U157: Biodiesel | V157: =+IF(V156=TRUE,FALSE,TRUE) -> TRUE | W157: Solvent | X157: =+NOT(OR(Allocator!H3:H6)) -> TRUE
N158: 1 | P158: =+IFERROR(VLOOKUP($O$157&N158,$S$115:$T$127,2,FALSE),"") ->  | U158: Ethanol1 | V158: =+IF(OR($W$156,$X$156)=TRUE,FALSE,TRUE) -> TRUE | W158: Lime | X158: =+NOT(W156) -> TRUE
N159: 2 | U159: Ethanol2 | V159: =+IF($X$156=TRUE,FALSE,TRUE) -> TRUE
N160: 3
N161: 4
N162: 5
N163: 6
N164: 7
M169: SENSITIVITY ANALYSIS
M170: Change in labour cost (%) | O170: 0 | Q170: yes
M171: Change in feedstock cost (%) | O171: 0 | Q171: no
M172: Change in cost of chemical inputs (%) | O172: 0 | Q172: FS1 | R172: FS2 | S172: FS3 | T172: FS4
M173: Change in investment cost (%) | O173: 0 | Q173: =+IF($E$10="please select",TRUE,FALSE) -> TRUE | R173: =+IF($F$10="please select",TRUE,FALSE) -> TRUE | S173: =+IF($G$10="please select",TRUE,FALSE) -> TRUE | T173: =+IF($H$10="please select",TRUE,FALSE) -> TRUE | V173: =+IF(U177="no",FALSE,TRUE) -> TRUE
M174: Change in product price (%) | O174: 0 | V174: Logic
M175: Inflation rate (%) | O175: 0 | Q175: fossil fuel | R175: biofuel | T175: fossil fuel | U175: Net importer | V175: =+IF($U$175="net exporter",TRUE,FALSE) -> FALSE
Q176: Net importer | R176: Net importer | T176: biofuel | U176: Net importer | V176: =+IF($U$176="net exporter",TRUE,FALSE) -> FALSE
Q177: Net exporter | R177: Net exporter | T177: Transportation | U177: yes | V177: =+IF(U177="yes",0,1) -> 0 | W177: =+$D$61 -> 0
R178: Interested in exporting | V178: =+IF(U177="no",TRUE,FALSE) -> FALSE
R179: Transportation | U179: Price | V179: Kg/L | W179: Transportation | X179: Total
N180: fossil fuel | O180: Net importer | P180: =+N180&O180 -> fossil fuelNet importer | Q180: Diesel FOB price | R180: 1 | T180: Diesel | U180: =+$D$58 -> 0 | V180: 0.837 | W180: =+VLOOKUP($T$175&$U$175,$P$180:$R$189,3,FALSE)*$V180*$V$177*$W$177/1000 -> 0 | X180: =+W180+U180 -> 0
N181: fossil fuel | O181: Net importer | P181: =+N181&O181 -> fossil fuelNet importer | Q181: Gasoline FOB price | R181: 1 | T181: Gasoline | U181: =+$D$59 -> 0 | V181: 0.745 | W181: =+VLOOKUP($T$175&$U$175,$P$180:$R$189,3,FALSE)*$V181*$V$177*$W$177/1000 -> 0 | X181: =+W181+U181 -> 0
N182: fossil fuel | O182: Net exporter | P182: fossil fuelNet exporter | Q182: Diesel FGP price | R182: 0 | T182: Biodiesel | U182: =+$G$58 -> 0 | V182: 0.88 | W182: =+VLOOKUP($T$176&$U$176,$P$180:$R$189,3,FALSE)*$V182*$V$177*$W$177/1000 -> 0 | X182: 0
N183: fossil fuel | O183: Net exporter | P183: fossil fuelNet exporter | Q183: Gasoline FGP price | R183: 0 | T183: Ethanol | U183: =+$G$59 -> 0 | V183: 0.789 | W183: =+VLOOKUP($T$176&$U$176,$P$180:$R$189,3,FALSE)*$V183*$V$177*$W$177/1000 -> 0 | X183: 0
N184: biofuel | O184: Net importer | P184: biofuelNet importer | Q184: Biodiesel FOB price | R184: 1
N185: biofuel | O185: Net importer | P185: biofuelNet importer | Q185: Ethanol FOB price | R185: 1
N186: biofuel | O186: Net exporter | P186: biofuelNet exporter | Q186: Biodiesel FGP price | R186: 0
N187: biofuel | O187: Net exporter | P187: biofuelNet exporter | Q187: Ethanol FGP price | R187: 0
N188: biofuel | O188: Interested in exporting | P188: biofuelInterested in exporting | Q188: Biodiesel FOB price | R188: -1
N189: biofuel | O189: Interested in exporting | P189: biofuelInterested in exporting | Q189: Ethanol FOB price | R189: -1

Sheet Allocator (hidden)
D1: Biofuel Conversión (L/t dry) | E1: Oil/TFS/starch content (%) | F1: Solvent | G1: Recovery (%)
A3: Fs1 | B3: =+VLOOKUP(C3,'Data Entry Needs'!$T$115:$U$127,2,FALSE) ->  | C3: =+'Data Entry Needs'!E$11 ->  | D3: =+VLOOKUP($C3,'dummy database'!$A$12:$E$24,2,FALSE) ->  | E3: =+VLOOKUP($C3,'dummy database'!$A$12:$E$24,3,FALSE) ->  | F3: =+VLOOKUP($C3,'dummy database'!$A$12:$E$24,4,FALSE) ->  | G3: =+VLOOKUP($C3,'dummy database'!$A$12:$E$24,5,FALSE) ->  | H3: =+IFERROR(IF(F3="yes",TRUE,FALSE),FALSE) -> FALSE
A4: Fs2 | B4: =+VLOOKUP(C4,'Data Entry Needs'!$T$115:$U$127,2,FALSE) ->  | C4: =+'Data Entry Needs'!F$11 ->  | D4: =+VLOOKUP($C4,'dummy database'!$A$12:$E$24,2,FALSE) ->  | E4: =+VLOOKUP($C4,'dummy database'!$A$12:$E$24,3,FALSE) ->  | F4: =+VLOOKUP($C4,'dummy database'!$A$12:$E$24,4,FALSE) ->  | G4: =+VLOOKUP($C4,'dummy database'!$A$12:$E$24,5,FALSE) ->  | H4: =+IFERROR(IF(F4="yes",TRUE,FALSE),FALSE) -> FALSE
A5: Fs3 | B5: =+VLOOKUP(C5,'Data Entry Needs'!$T$115:$U$127,2,FALSE) ->  | C5: =+'Data Entry Needs'!G$11 ->  | D5: =+VLOOKUP($C5,'dummy database'!$A$12:$E$24,2,FALSE) ->  | E5: =+VLOOKUP($C5,'dummy database'!$A$12:$E$24,3,FALSE) ->  | F5: =+VLOOKUP($C5,'dummy database'!$A$12:$E$24,4,FALSE) ->  | G5: =+VLOOKUP($C5,'dummy database'!$A$12:$E$24,5,FALSE) ->  | H5: FALSE
A6: Fs4 | B6: =+VLOOKUP(C6,'Data Entry Needs'!$T$115:$U$127,2,FALSE) ->  | C6: =+'Data Entry Needs'!H$11 ->  | D6: =+VLOOKUP($C6,'dummy database'!$A$12:$E$24,2,FALSE) ->  | E6: =+VLOOKUP($C6,'dummy database'!$A$12:$E$24,3,FALSE) ->  | F6: =+VLOOKUP($C6,'dummy database'!$A$12:$E$24,4,FALSE) ->  | G6: =+VLOOKUP($C6,'dummy database'!$A$12:$E$24,5,FALSE) ->  | H6: FALSE
C8: Biomass consumption (t dry biomass/year) | G8: key component content oil/sugar/starch (t dry/year)
C9: 5ML | D9: 25ML | E9: 50ML | F9: 100ML | G9: 5ML | H9: 25ML | I9: 50ML | J9: 100ML
B10: =+B3&C3 ->  | C10: =5000000/$D3 ->  | D10: =25000000/$D3 ->  | E10: =50000000/$D3 ->  | F10: =100000000/$D3 ->  | G10: =+C10*$E3*$G3 -> 
B11: =+B4&C4 ->  | C11: =5000000/$D4 ->  | D11: =25000000/$D4 ->  | E11: =50000000/$D4 ->  | F11: =100000000/$D4 -> 
B12: =+B5&C5 ->  | C12: =5000000/$D5 ->  | D12: =25000000/$D5 ->  | E12: =50000000/$D5 ->  | F12: =100000000/$D5 -> 
B13: =+B6&C6 ->  | C13: =5000000/$D6 ->  | D13: =25000000/$D6 ->  | E13: =50000000/$D6 ->  | F13: =100000000/$D6 -> 
B15: INVESTMENT
B16: Detailed Investment | L16: Simplified Investment
B17: Biodiesel | C17: Oilseeds | E17: 5ML | F17: 25ML | G17: 50ML | H17: 100ML | L17: 5ML | M17: 25ML | N17: 50ML | O17: 100ML
C18: Purchased Equipment | D18: installation | E18: 3990707.5 | F18: 10482030 | G18: 15887137.5 | H18: 24080712.5 | I18: Biodiesel | J18: =+D20 -> installation | K18: =+I18&J18 -> Biodieselinstallation | L18: =+E20 -> 4694950 | M18: =+F20 -> 12331800 | N18: =+G20 -> 18690750 | O18: =+H20 -> 28330250
C19: Equipment Setting | D19: installation | E19: 704242.5 | F19: 1849770 | G19: 2803612.5 | H19: 4249537.5 | I19: Biodiesel | J19: =+D29 -> buildings | K19: =+I19&J19 -> Biodieselbuildings | L19: =+E29 -> 1805750 | M19: =+F29 -> 4743000 | N19: =+G29 -> 7188750 | O19: =+H29 -> 10896250
C20: Total | D20: =+D19 -> installation | E20: =SUM(E18:E19) -> 4694950 | F20: =SUM(F18:F19) -> 12331800 | G20: =SUM(G18:G19) -> 18690750 | H20: =SUM(H18:H19) -> 28330250 | I20: Biodiesel | J20: =+D33 -> Installation Charges | K20: BiodieselInstallation Charges | L20: =+E33 -> 722300 | M20: =+F33 -> 1897200 | N20: =+G33 -> 2875500 | O20: =+H33 -> 4358500
C21: Piping | D21: buildings | E21: 180575 | F21: 474300 | G21: 718875 | H21: 1089625 | I21: Ethanol1 | J21: =+D38 -> installation | K21: Ethanol1installation | L21: =+E38 -> 2193657.1 | M21: =+F38 -> 2870145.5 | N21: =+G38 -> 4235944 | O21: =+H38 -> 5066977
C22: Civil | D22: buildings | E22: 90287.5 | F22: 237150 | G22: 359437.5 | H22: 544812.5 | I22: Ethanol1 | J22: =+D47 -> buildings | K22: Ethanol1buildings | L22: =+E47 -> 8086659 | M22: =+F47 -> 14305136 | N22: =+G47 -> 15683088 | O22: =+H47 -> 17004382
C23: Steel | D23: buildings | E23: 36115 | F23: 94860 | G23: 143775 | H23: 217925 | I23: Ethanol1 | J23: =+D51 -> Installation Charges | K23: Ethanol1Installation Charges | L23: =+E51 -> 4286718 | M23: =+F51 -> 4438663 | N23: =+G51 -> 5116493 | O23: =+H51 -> 5644854
C24: Instrumentation | D24: buildings | E24: 812587.5 | F24: 2134350 | G24: 3234937.5 | H24: 4903312.5 | I24: Ethanol2 | J24: =+D56 -> installation | K24: Ethanol2installation | L24: =+E56 -> 2479271.1 | M24: =+F56 -> 3521454.3 | N24: =+G56 -> 4699803 | O24: =+H56 -> 7609334
C25: Electrical | D25: buildings | E25: 36115 | F25: 94860 | G25: 143775 | H25: 217925 | I25: Ethanol2 | J25: =+D47 -> buildings | K25: Ethanol2buildings | L25: =+E65 -> 15116263 | M25: =+F65 -> 16498320 | N25: =+G65 -> 17844666 | O25: =+H65 -> 20480088
C26: Insulation | D26: buildings | E26: 54172.5 | F26: 142290 | G26: 215662.5 | H26: 326887.5 | I26: Ethanol2 | J26: =+D51 -> Installation Charges | K26: Ethanol2Installation Charges | L26: 4587367 | M26: 4587367 | N26: 4587367 | O26: 4587367
C27: Paint | D27: buildings | E27: 54172.5 | F27: 142290 | G27: 215662.5 | H27: 326887.5
C28: Other | D28: buildings | E28: 541725 | F28: 1422900 | G28: 2156625 | H28: 3268875
C29: Total | D29: =+D28 -> buildings | E29: =SUM(E21:E28) -> 1805750 | F29: =SUM(F21:F28) -> 4743000 | G29: =SUM(G21:G28) -> 7188750 | H29: =SUM(H21:H28) -> 10896250
C30: G. and A. Overheads | D30: Installation Charges | E30: 108345 | F30: 284580 | G30: 431325 | H30: 653775
C31: Contract Fee | D31: Installation Charges | E31: 252805 | F31: 664020 | G31: 1006425 | H31: 1525475
C32: Contingencies | D32: Installation Charges | E32: 361150 | F32: 948600 | G32: 1437750 | H32: 2179250
C33: Total | D33: =+D32 -> Installation Charges | E33: =SUM(E30:E32) -> 722300 | F33: =SUM(F30:F32) -> 1897200 | G33: =SUM(G30:G32) -> 2875500 | H33: =SUM(H30:H32) -> 4358500
B35: Ethanol1 | C35: Sugar feedstocks | E35: 5ML | F35: 25ML | G35: 50ML | H35: 100ML
C36: Purchased Equipment | D36: installation | E36: 2117300 | F36: 2802100 | G36: 4112700 | H36: 4944500
C37: Equipment Setting | D37: installation | E37: 76357.1 | F37: 68045.5 | G37: 123244 | H37: 122477
C38: Total | D38: =+D37 -> installation | E38: =SUM(E36:E37) -> 2193657.1 | F38: =SUM(F36:F37) -> 2870145.5 | G38: =SUM(G36:G37) -> 4235944 | H38: =SUM(H36:H37) -> 5066977
C39: Piping | D39: buildings | E39: 1520500 | F39: 1631960 | G39: 1828390 | H39: 2179430
C40: Civil | D40: buildings | E40: 409348 | F40: 423680 | G40: 625530 | H40: 693735
C41: Steel | D41: buildings | E41: 167114 | F41: 198460 | G41: 239890 | H41: 288456
C42: Instrumentation | D42: buildings | E42: 2948350 | F42: 3014790 | G42: 3118440 | H42: 3216990
C43: Electrical | D43: buildings | E43: 640398 | F43: 625776 | G43: 681807 | H43: 769149
C44: Insulation | D44: buildings | E44: 331506 | F44: 375420 | G44: 442124 | H44: 535653
C45: Paint | D45: buildings | E45: 143083 | F45: 134450 | G45: 151307 | H45: 171669
C46: Other | D46: buildings | E46: 1926360 | F46: 7900600 | G46: 8595600 | H46: 9149300
C47: Total | D47: =+D46 -> buildings | E47: =SUM(E39:E46) -> 8086659 | F47: =SUM(F39:F46) -> 14305136 | G47: =SUM(G39:G46) -> 15683088 | H47: =SUM(H39:H46) -> 17004382
C48: G. and A. Overheads | D48: Installation Charges | E48: 353186 | F48: 374253 | G48: 449710 | H48: 508046
C49: Contract Fee | D49: Installation Charges | E49: 779402 | F49: 767370 | G49: 847803 | H49: 908908
C50: Contingencies | D50: Installation Charges | E50: 3154130 | F50: 3297040 | G50: 3818980 | H50: 4227900
C51: Total | D51: =+D50 -> Installation Charges | E51: =SUM(E48:E50) -> 4286718 | F51: =SUM(F48:F50) -> 4438663 | G51: =SUM(G48:G50) -> 5116493 | H51: =SUM(H48:H50) -> 5644854
B53: Ethanol2 | C53: Starchy feedstocks
C54: Purchased Equipment | D54: installation | E54: 2387700 | F54: 3432000 | G54: 4576600 | H54: 7427700
C55: Equipment Setting | D55: installation | E55: 91571.1 | F55: 89454.3 | G55: 123203 | H55: 181634
C56: Total | D56: =+D55 -> installation | E56: =SUM(E54:E55) -> 2479271.1 | F56: =SUM(F54:F55) -> 3521454.3 | G56: =SUM(G54:G55) -> 4699803 | H56: =SUM(H54:H55) -> 7609334
C57: Piping | D57: buildings | E57: 1607640 | F57: 2004710 | G57: 2292860 | H57: 2913520
C58: Civil | D58: buildings | E58: 441428 | F58: 488294 | G58: 595648 | H58: 906812
C59: Steel | D59: buildings | E59: 174526 | F59: 230242 | G59: 255676 | H59: 323488
C60: Instrumentation | D60: buildings | E60: 3182360 | F60: 3308410 | G60: 3450490 | H60: 3520740
C61: Electrical | D61: buildings | E61: 661828 | F61: 681050 | G61: 710124 | H61: 836277
C62: Insulation | D62: buildings | E62: 365664 | F62: 482755 | G62: 562486 | H62: 763722
C63: Paint | D63: buildings | E63: 148017 | F63: 165959 | G63: 181782 | H63: 220629
C64: Other | D64: buildings | E64: 8534800 | F64: 9136900 | G64: 9795600 | H64: 10994900
C65: Total | D65: =+D64 -> buildings | E65: =SUM(E57:E64) -> 15116263 | F65: =SUM(F57:F64) -> 16498320 | G65: =SUM(G57:G64) -> 17844666 | H65: =SUM(H57:H64) -> 20480088
C66: G. and A. Overheads | D66: Installation Charges | E66: 381205 | F66: 447053 | G66: 515972 | H66: 674473
C67: Contract Fee | D67: Installation Charges | E67: 822332 | F67: 889009 | G67: 961459 | H67: 1124920
C68: Contingencies | D68: Installation Charges | E68: 3383830 | F68: 3844050 | G68: 4323940 | H68: 5379990
C69: Total | D69: =+D68 -> Installation Charges | E69: =SUM(E66:E68) -> 4587367 | F69: =SUM(F66:F68) -> 5180112 | G69: =SUM(G66:G68) -> 5801371 | H69: =SUM(H66:H68) -> 7179383
B72: Correlations
D73: Y=AX^3+BX^2+CX+D
D74: A | E74: B | F74: C | G74: D | H74: R² | I74: Unit | J74: Price
A75: 1 | B75: =+$B$17&A75 -> Biodiesel1 | C75: Sodium hydroxide | D75: 0 | E75: 4.0247e-09 | F75: 0.0068484 | G75: 15.37 | H75: 1 | I75: t/year | J75: =+'Data Entry Needs'!$D$22 -> 0
A76: 2 | B76: Biodiesel2 | C76: Methanol | D76: 0 | E76: =0.00000006134 -> 6.134e-08 | F76: 0.10074 | G76: 234.26 | H76: 1 | I76: t/year | J76: =+'Data Entry Needs'!$D$21 -> 0
A77: 3 | B77: Biodiesel3 | C77: Water | D77: 0 | E77: 9.1971e-08 | F77: 0.55297 | G77: 351.99 | H77: 1 | I77: m^3/year | J77: =+'Data Entry Needs'!$D$28 -> 0
A78: 4 | B78: Biodiesel4 | C78: Hexane | D78: 5.0372e-13 | E78: -8.9728e-08 | F78: 0.072829 | G78: -66.406 | H78: 1 | I78: t/year | J78: =+'Data Entry Needs'!$D$23 -> 0
A79: 6 | B79: Biodiesel6 | C79: Electricity | D79: 0 | E79: -2.161e-05 | F79: 8.2421 | G79: 2348800 | H79: 1 | I79: KWh/year | J79: =+'Data Entry Needs'!$D$29 -> 0
A80: 7 | B80: Biodiesel7 | C80: Heat carrier | D80: 0 | E80: 0 | F80: =1.2846 -> 1.2846 | G80: 4600.7 | H80: 1 | I80: t/year | J80: =+'Data Entry Needs'!$D$27 -> 0
A81: 8 | B81: Biodiesel8 | C81: Raw glycerol | D81: 0 | E81: -1.3736e-09 | F81: 0.10941 | G81: 67.732 | H81: 1 | I81: t/year | J81: =+'Data Entry Needs'!$D$50 -> 0
A82: 9 | B82: Biodiesel9 | C82: Meal | D82: -1.181e-10 | E82: 1.5596e-05 | F82: 0.56856 | G82: 1725.7 | H82: 1 | I82: t/year | J82: =+'Data Entry Needs'!$D$51 -> 0
A83: 1 | B83: =+$B$35&A83 -> Ethanol11 | C83: Lime | D83: 0 | E83: 2.2005e-09 | F83: 0.053195 | G83: 5.2107 | H83: 1 | I83: t/year | J83: =+'Data Entry Needs'!$H$21 -> 0
A84: 2 | B84: Ethanol12 | C84: Sulfuric acid | D84: 0 | E84: 2.7911e-09 | F84: 0.067472 | G84: 6.6092 | H84: 1 | I84: t/year | J84: =+'Data Entry Needs'!$F$23 -> 0
A85: 3 | B85: Ethanol13 | C85: Water | D85: 1.6173e-11 | E85: -3.5937e-06 | F85: 4.5564 | G85: -1060.8 | H85: 1 | I85: m^3/year | J85: =+'Data Entry Needs'!$D$28 -> 0
A86: 4 | B86: Ethanol14 | C86: Ammonia | D86: 0 | E86: 7.4935e-10 | F86: 0.018115 | G86: 1.7744 | H86: 1 | I86: t/year | J86: =+'Data Entry Needs'!$F$21 -> 0
A87: 5 | B87: Ethanol15 | C87: Yeast | D87: -1.2322e-14 | E87: 1.4982e-09 | F87: 0.0010874 | G87: 0.30096 | H87: 1 | I87: t/year | J87: =+'Data Entry Needs'!$F$22 -> 0
A88: 6 | B88: Ethanol16 | C88: Electricity | D88: -3.6894e-10 | E88: 8.0168e-06 | F88: 34.578 | G88: 1500300 | H88: 1 | I88: KWh/year | J88: =+'Data Entry Needs'!$D$29 -> 0
A89: 7 | B89: Ethanol17 | C89: Heat carrier | D89: 9.1287e-12 | E89: -5.0096e-06 | F89: 5.2209 | G89: -1541.1 | H89: 1 | I89: t/year | J89: =+'Data Entry Needs'!$D$27 -> 0
A90: 1 | B90: =+$B$53&A90 -> Ethanol21 | C90: Glucoamylase | D90: 0 | E90: 0 | F90: 0.0016629 | G90: -0.00034575 | H90: 1 | I90: t/year | J90: =+'Data Entry Needs'!$H$22 -> 0
A91: 2 | B91: Ethanol22 | C91: Alpha-amylase | D91: 0 | E91: 0 | F91: 0.0057609 | G91: -0.0011978 | H91: 1 | I91: t/year | J91: =+'Data Entry Needs'!$H$23 -> 0
A92: 3 | B92: Ethanol23 | C92: Water | D92: 5.0521e-11 | E92: -9.412e-06 | F92: 5.8762 | G92: -2634.1 | H92: 1 | I92: m^3/year | J92: =+'Data Entry Needs'!$D$28 -> 0
A93: 4 | B93: Ethanol24 | C93: Ammonia | D93: 0 | E93: 0 | F93: 0.0333 | G93: -5e-13 | H93: 1 | I93: t/year | J93: =+'Data Entry Needs'!$F$21 -> 0
A94: 5 | B94: Ethanol25 | C94: Yeast | D94: 0 | E94: 0 | F94: 0.0021 | G94: -3e-08 | H94: 1 | I94: t/year | J94: =+'Data Entry Needs'!$F$22 -> 0
A95: 6 | B95: Ethanol26 | C95: Electricity | D95: 1.8677e-08 | E95: -0.0027101 | F95: 143.89 | G95: 1338700 | H95: 0.98 | I95: KWh/year | J95: =+'Data Entry Needs'!$D$29 -> 0
A96: 7 | B96: Ethanol27 | C96: Heat carrier | D96: 1.4239e-09 | E96: -0.00025417 | F96: 27.948 | G96: -72973 | H96: 0.999 | I96: t/year | J96: =+'Data Entry Needs'!$D$27 -> 0
A97: 8 | B97: Ethanol28 | C97: DDGS | D97: -3.8605e-11 | E97: 8.2411e-06 | F97: 0.167237 | G97: 2464 | H97: 1 | I97: t/year | J97: =+'Data Entry Needs'!$G$50 -> 0
B98: 3 | C98: 4 | D98: 5 | E98: 6 | L98: 2 | M98: 3 | N98: 4 | O98: 5
B99: Feedstock 1 | G99: 5ML | H99: 25ML | I99: 50ML | J99: 100ML | L99: 5ML | M99: 25ML | N99: 50ML | O99: 100ML
B100: A | C100: B | D100: C | E100: D | F100: Material | G100: =+G$10 ->  | H100: =+H$10 ->  | K100: Investment
A101: 1 | B101: =+IFERROR(VLOOKUP($B$3&$A101,$B$74:$G$97,B$98,FALSE),0) -> 0 | C101: 0 | D101: 0 | E101: 0 | F101: =+IFERROR(VLOOKUP($B$3&A101,$B$74:$G$97,2,FALSE),"") ->  | G101: =+$B101*G$100^3+$C101*G$100^2+$D101*G$100+$E101 ->  | K101: installation | L101: =+IFERROR(VLOOKUP($B$3&$K101,$K$18:$O$26,L$98,FALSE),"") -> 
A102: 2 | B102: 0 | C102: 0 | D102: 0 | E102: 0 | F102: =+IFERROR(VLOOKUP($B$3&A102,$B$74:$G$97,2,FALSE),"") ->  | K102: buildings
A103: 3 | B103: 0 | C103: 0 | D103: 0 | E103: 0 | F103: =+IFERROR(VLOOKUP($B$3&A103,$B$74:$G$97,2,FALSE),"") ->  | K103: Installation Charges
A104: 4 | B104: 0 | C104: 0 | D104: 0 | E104: 0 | F104: =IF(AND($B$3="BIODIESEL",$F$3="NO"),"",IFERROR(VLOOKUP($B$3&A104,$B$74:$G$96,2,FALSE),"")) ->  | G104: =IF(AND($B$3="BIODIESEL",$F$3="NO"),0,$B104*G$100^3+$C104*G$100^2+$D104*G$100+$E104) ->  | H104: =IF(AND($B$3="BIODIESEL",$F$3="NO"),0,$B104*H$100^3+$C104*H$100^2+$D104*H$100+$E104) ->  | I104: =IF(AND($B$3="BIODIESEL",$F$3="NO"),0,$B104*I$100^3+$C104*I$100^2+$D104*I$100+$E104) ->  | J104: =IF(AND($B$3="BIODIESEL",$F$3="NO"),0,$B104*J$100^3+$C104*J$100^2+$D104*J$100+$E104) -> 
A105: 5 | B105: 0 | C105: 0 | D105: 0 | E105: 0 | F105: =+IFERROR(VLOOKUP($B$3&A105,$B$74:$G$97,2,FALSE),"") ->  | G105: =+$B105*G$100^3+$C105*G$100^2+$D105*G$100+$E105 -> 
A106: 6 | B106: 0 | C106: 0 | D106: 0 | E106: 0 | F106: =+IFERROR(VLOOKUP($B$3&A106,$B$74:$G$97,2,FALSE),"") -> 
A107: 7 | B107: 0 | C107: 0 | D107: 0 | E107: 0 | F107: =+IFERROR(VLOOKUP($B$3&A107,$B$74:$G$97,2,FALSE),"") -> 
A108: 8 | B108: 0 | C108: 0 | D108: 0 | E108: 0 | F108: =+IFERROR(VLOOKUP($B$3&A108,$B$74:$G$97,2,FALSE),"") -> 
A109: 9 | B109: 0 | C109: 0 | D109: 0 | E109: 0 | F109: =IF(AND($B$3="BIODIESEL",$F$3="NO"),"",IFERROR(VLOOKUP($B$3&A109,$B$74:$G$97,2,FALSE),"")) ->  | G109: =IF(AND($B$3="BIODIESEL",$F$3="NO"),0,$B109*G$100^3+$C109*G$100^2+$D109*G$100+$E109) ->  | H109: =IF(AND($B$3="BIODIESEL",$F$3="NO"),0,$B109*H$100^3+$C109*H$100^2+$D109*H$100+$E109) ->  | I109: =IF(AND($B$3="BIODIESEL",$F$3="NO"),0,$B109*I$100^3+$C109*I$100^2+$D109*I$100+$E109) ->  | J109: =IF(AND($B$3="BIODIESEL",$F$3="NO"),0,$B109*J$100^3+$C109*J$100^2+$D109*J$100+$E109) -> 
B111: Feedstock 2 | G111: 5ML | H111: 25ML | I111: 50ML | J111: 100ML | L111: 5ML | M111: 25ML | N111: 50ML | O111: 100ML
B112: A | C112: B | D112: C | E112: D | F112: Material | G112: =+G$11 ->  | H112: =+H$11 ->  | K112: Investment
A113: 1 | B113: =+IFERROR(VLOOKUP($B$4&$A113,$B$74:$G$97,B$98,FALSE),0) -> 0 | C113: 0 | D113: 0 | E113: 0 | F113: =+IFERROR(VLOOKUP($B$4&A113,$B$74:$G$97,2,FALSE),"") ->  | G113: =+$B113*G$112^3+$C113*G$112^2+$D113*G$112+$E113 ->  | K113: installation | L113: =+IFERROR(VLOOKUP($B$4&$K113,$K$18:$O$26,L$98,FALSE),"") -> 
A114: 2 | B114: 0 | C114: 0 | D114: 0 | E114: 0 | F114: =+IFERROR(VLOOKUP($B$4&A114,$B$74:$G$97,2,FALSE),"") ->  | K114: buildings
A115: 3 | B115: 0 | C115: 0 | D115: 0 | E115: 0 | F115: =+IFERROR(VLOOKUP($B$4&A115,$B$74:$G$97,2,FALSE),"") ->  | K115: Installation Charges
A116: 4 | B116: 0 | C116: 0 | D116: 0 | E116: 0 | F116: =IF(AND($B$4="BIODIESEL",$F$4="NO"),"",IFERROR(VLOOKUP($B$4&A116,$B$74:$G$97,2,FALSE),"")) ->  | G116: =IF(AND($B$4="BIODIESEL",$F$4="NO"),0,$B116*G$112^3+$C116*G$112^2+$D116*G$112+$E116) ->  | H116: =IF(AND($B$4="BIODIESEL",$F$4="NO"),0,$B116*H$112^3+$C116*H$112^2+$D116*H$112+$E116) ->  | I116: =IF(AND($B$4="BIODIESEL",$F$4="NO"),0,$B116*I$112^3+$C116*I$112^2+$D116*I$112+$E116) ->  | J116: =IF(AND($B$4="BIODIESEL",$F$4="NO"),0,$B116*J$112^3+$C116*J$112^2+$D116*J$112+$E116) -> 
A117: 5 | B117: 0 | C117: 0 | D117: 0 | E117: 0 | F117: =+IFERROR(VLOOKUP($B$4&A117,$B$74:$G$97,2,FALSE),"") ->  | G117: =+$B117*G$112^3+$C117*G$112^2+$D117*G$112+$E117 -> 
A118: 6 | B118: 0 | C118: 0 | D118: 0 | E118: 0 | F118: =+IFERROR(VLOOKUP($B$4&A118,$B$74:$G$97,2,FALSE),"") -> 
A119: 7 | B119: 0 | C119: 0 | D119: 0 | E119: 0 | F119: =+IFERROR(VLOOKUP($B$4&A119,$B$74:$G$97,2,FALSE),"") -> 
A120: 8 | B120: 0 | C120: 0 | D120: 0 | E120: 0 | F120: =+IFERROR(VLOOKUP($B$4&A120,$B$74:$G$97,2,FALSE),"") -> 
A121: 9 | B121: 0 | C121: 0 | D121: 0 | E121: 0 | F121: =IF(AND($B$4="BIODIESEL",$F$4="NO"),"",IFERROR(VLOOKUP($B$4&A121,$B$74:$G$97,2,FALSE),"")) ->  | G121: =IF(AND($B$4="BIODIESEL",$F$4="NO"),0,$B121*G$112^3+$C121*G$112^2+$D121*G$112+$E121) ->  | H121: =IF(AND($B$4="BIODIESEL",$F$4="NO"),0,$B121*H$112^3+$C121*H$112^2+$D121*H$112+$E121) ->  | I121: =IF(AND($B$4="BIODIESEL",$F$4="NO"),0,$B121*I$112^3+$C121*I$112^2+$D121*I$112+$E121) ->  | J121: =IF(AND($B$4="BIODIESEL",$F$4="NO"),0,$B121*J$112^3+$C121*J$112^2+$D121*J$112+$E121) -> 
B123: Feedstock 3 | G123: 5ML | H123: 25ML | I123: 50ML | J123: 100ML | L123: 5ML | M123: 25ML | N123: 50ML | O123: 100ML
B124: A | C124: B | D124: C | E124: D | F124: Material | G124: =+G$12 ->  | H124: =+H$12 ->  | K124: Investment
A125: 1 | B125: =+IFERROR(VLOOKUP($B$5&$A125,$B$74:$G$97,B$98,FALSE),0) -> 0 | C125: 0 | D125: 0 | E125: 0 | F125: =+IFERROR(VLOOKUP($B$5&A125,$B$74:$G$97,2,FALSE),"") ->  | G125: =+$B125*G$124^3+$C125*G$124^2+$D125*G$124+$E125 ->  | K125: installation | L125: =+IFERROR(VLOOKUP($B$5&$K125,$K$18:$O$26,L$98,FALSE),"") -> 
A126: 2 | B126: 0 | C126: 0 | D126: 0 | E126: 0 | F126: =+IFERROR(VLOOKUP($B$5&A126,$B$74:$G$97,2,FALSE),"") ->  | K126: buildings
A127: 3 | B127: 0 | C127: 0 | D127: 0 | E127: 0 | F127: =+IFERROR(VLOOKUP($B$5&A127,$B$74:$G$97,2,FALSE),"") ->  | K127: Installation Charges
A128: 4 | B128: 0 | C128: 0 | D128: 0 | E128: 0 | F128: =IF(AND($B$5="BIODIESEL",$F$5="NO"),"",IFERROR(VLOOKUP($B$5&A128,$B$74:$G$96,2,FALSE),"")) ->  | G128: =IF(AND($B$5="BIODIESEL",$F$5="NO"),0,$B128*G$124^3+$C128*G$124^2+$D128*G$124+$E128) ->  | H128: =IF(AND($B$5="BIODIESEL",$F$5="NO"),0,$B128*H$124^3+$C128*H$124^2+$D128*H$124+$E128) ->  | I128: =IF(AND($B$5="BIODIESEL",$F$5="NO"),0,$B128*I$124^3+$C128*I$124^2+$D128*I$124+$E128) ->  | J128: =IF(AND($B$5="BIODIESEL",$F$5="NO"),0,$B128*J$124^3+$C128*J$124^2+$D128*J$124+$E128) -> 
A129: 5 | B129: 0 | C129: 0 | D129: 0 | E129: 0 | F129: =+IFERROR(VLOOKUP($B$5&A129,$B$74:$G$96,2,FALSE),"") ->  | G129: =+$B129*G$124^3+$C129*G$124^2+$D129*G$124+$E129 -> 
A130: 6 | B130: 0 | C130: 0 | D130: 0 | E130: 0 | F130: =+IFERROR(VLOOKUP($B$5&A130,$B$74:$G$96,2,FALSE),"") -> 
A131: 7 | B131: 0 | C131: 0 | D131: 0 | E131: 0 | F131: =+IFERROR(VLOOKUP($B$5&A131,$B$74:$G$96,2,FALSE),"") -> 
A132: 8 | B132: 0 | C132: 0 | D132: 0 | E132: 0 | F132: =+IFERROR(VLOOKUP($B$5&A132,$B$74:$G$97,2,FALSE),"") -> 
A133: 9 | B133: 0 | C133: 0 | D133: 0 | E133: 0 | F133: =IF(AND($B$5="BIODIESEL",$F$5="NO"),"",IFERROR(VLOOKUP($B$5&A133,$B$74:$G$97,2,FALSE),"")) ->  | G133: =IF(AND($B$5="BIODIESEL",$F$5="NO"),0,$B133*G$124^3+$C133*G$124^2+$D133*G$124+$E133) ->  | H133: =IF(AND($B$5="BIODIESEL",$F$5="NO"),0,$B133*H$124^3+$C133*H$124^2+$D133*H$124+$E133) ->  | I133: =IF(AND($B$5="BIODIESEL",$F$5="NO"),0,$B133*I$124^3+$C133*I$124^2+$D133*I$124+$E133) ->  | J133: =IF(AND($B$5="BIODIESEL",$F$5="NO"),0,$B133*J$124^3+$C133*J$124^2+$D133*J$124+$E133) -> 
B135: Feedstock 4 | G135: 5ML | H135: 25ML | I135: 50ML | J135: 100ML | L135: 5ML | M135: 25ML | N135: 50ML | O135: 100ML
B136: A | C136: B | D136: C | E136: D | F136: Material | G136: =+G$13 ->  | H136: =+H$13 ->  | K136: Investment
A137: 1 | B137: =+IFERROR(VLOOKUP($B$6&$A137,$B$74:$G$97,B$98,FALSE),0) -> 0 | C137: 0 | D137: 0 | E137: 0 | F137: =+IFERROR(VLOOKUP($B$6&A137,$B$74:$G$97,2,FALSE),"") ->  | G137: =+$B137*G$136^3+$C137*G$136^2+$D137*G$136+$E137 ->  | K137: installation | L137: =+IFERROR(VLOOKUP($B$6&$K137,$K$18:$O$26,L$98,FALSE),"") -> 
A138: 2 | B138: 0 | C138: 0 | D138: 0 | E138: 0 | F138: =+IFERROR(VLOOKUP($B$6&A138,$B$74:$G$97,2,FALSE),"") ->  | K138: buildings
A139: 3 | B139: 0 | C139: 0 | D139: 0 | E139: 0 | F139: =+IFERROR(VLOOKUP($B$6&A139,$B$74:$G$97,2,FALSE),"") ->  | K139: Installation Charges
A140: 4 | B140: 0 | C140: 0 | D140: 0 | E140: 0 | F140: =IF(AND($B$6="BIODIESEL",$F$6="NO"),"",IFERROR(VLOOKUP($B$6&A140,$B$74:$G$97,2,FALSE),"")) ->  | G140: =IF(AND($B$6="BIODIESEL",$F$6="NO"),0,$B140*G$136^3+$C140*G$136^2+$D140*G$136+$E140) ->  | H140: =IF(AND($B$6="BIODIESEL",$F$6="NO"),0,$B140*H$136^3+$C140*H$136^2+$D140*H$136+$E140) ->  | I140: =IF(AND($B$6="BIODIESEL",$F$6="NO"),0,$B140*I$136^3+$C140*I$136^2+$D140*I$136+$E140) ->  | J140: =IF(AND($B$6="BIODIESEL",$F$6="NO"),0,$B140*J$136^3+$C140*J$136^2+$D140*J$136+$E140) -> 
A141: 5 | B141: 0 | C141: 0 | D141: 0 | E141: 0 | F141: =+IFERROR(VLOOKUP($B$6&A141,$B$74:$G$97,2,FALSE),"") ->  | G141: =+$B141*G$136^3+$C141*G$136^2+$D141*G$136+$E141 -> 
A142: 6 | B142: 0 | C142: 0 | D142: 0 | E142: 0 | F142: =+IFERROR(VLOOKUP($B$6&A142,$B$74:$G$97,2,FALSE),"") -> 
A143: 7 | B143: 0 | C143: 0 | D143: 0 | E143: 0 | F143: =+IFERROR(VLOOKUP($B$6&A143,$B$74:$G$97,2,FALSE),"") -> 
A144: 8 | B144: 0 | C144: 0 | D144: 0 | E144: 0 | F144: =+IFERROR(VLOOKUP($B$6&A144,$B$74:$G$97,2,FALSE),"") -> 
A145: 9 | B145: 0 | C145: 0 | D145: 0 | E145: 0 | F145: =IF(AND($B$6="BIODIESEL",$F$6="NO"),"",IFERROR(VLOOKUP($B$6&A145,$B$74:$G$97,2,FALSE),"")) ->  | G145: =IF(AND($B$6="BIODIESEL",$F$6="NO"),0,$B145*G$136^3+$C145*G$136^2+$D145*G$136+$E145) ->  | H145: =IF(AND($B$6="BIODIESEL",$F$6="NO"),0,$B145*H$136^3+$C145*H$136^2+$D145*H$136+$E145) ->  | I145: =IF(AND($B$6="BIODIESEL",$F$6="NO"),0,$B145*I$136^3+$C145*I$136^2+$D145*I$136+$E145) ->  | J145: =IF(AND($B$6="BIODIESEL",$F$6="NO"),0,$B145*J$136^3+$C145*J$136^2+$D145*J$136+$E145) -> 

Sheet COST_FS1
C3: =+UPPER(" Processing costs for "&'Data Entry Needs'!$E$10&" Production from "&'Data Entry Needs'!$E$11) -> PROCESSING COSTS FOR PLEASE SELECT PRODUCTION FROM
C6: Use white cells to input data | D6: Grey cells are used for calculations
C7: Summary of Feedstock and Storage | F7: Financial Parameters | J7: Investment Cost Update
C9: Feedstock available (t/year) | D9: =+'Data Entry Needs'!$E$12 -> 0 | F9: Discount rate (%) | H9: =+'Data Entry Needs'!D64 -> 0 | J9: =+'Data Entry Needs'!$F$65 -> Plant Cost Index during 6/2018 | L9: =+'Data Entry Needs'!$H$65 -> 0
C10: =+IF('Data Entry Needs'!$E$10="biodiesel",'Data Entry Needs'!$C$41,'Data Entry Needs'!$C$42)&" (USD/l)" -> Ethanol storage cost (USD/l) | D10: =+IF('Data Entry Needs'!$E$10="biodiesel",'Data Entry Needs'!$D$41,'Data Entry Needs'!$D$42) -> 0 | F10: Loan interest rate (%) | H10: =+'Data Entry Needs'!$D$65 -> 0
C11: =+IF('Data Entry Needs'!$E$10="biodiesel",'Data Entry Needs'!$F$41,'Data Entry Needs'!$F$42) -> Storage rate of ethanol | D11: =+IF('Data Entry Needs'!$V$157,'Data Entry Needs'!$H$41,'Data Entry Needs'!$H$42) -> 0 | F11: Loan term (years) | H11: =+'Data Entry Needs'!D66 -> 0
C12: Feedstock storage cost (USD/t) | D12: =+'Data Entry Needs'!$E$15 -> 0
C16: Transport Distance of Feedstock | E16: Transport Quantity
C17: Distance SIZE 1 (5 ML) (km) | E17: Size 1 (t/year) | G17: =+$F$42 -> 
C18: Distance SIZE 2 (25 ML) (km) | E18: Size 2 (t/year) | G18: =+$H$42 -> 
C19: Distance SIZE 3 (50 ML) (km) | E19: Size 3 (t/year) | G19: =+$J$42 -> 
C20: Distance SIZE 4 (100 ML) (km) | E20: Size 4 (t/year) | G20: =+$L$42 -> 
C22: Feedstock Production Schemes
C23: PLEASE INCLUDE AT LEAST ONE SCENARIO TO OBTAIN RESULTS
C24: Scenario 1: Own Production | F24: Scenario 2: Mixed | J24: Scenario 3: Outgrowers
C25: =+"Description: 100% of "&'Data Entry Needs'!$E$11&" feedstock produced directly by processing plant" -> Description: 100% of feedstock produced directly by processing plant | F25: =+"Description: "&$AC$127&"% of "&'Data Entry Needs'!$E$11&" feedstock produced directly by processing plant, and "&(100-$AC$127)&"% provided by outgrowers at market price." -> Description: 60% of feedstock produced directly by processing plant, and 40% provided by outgrowers at market price. | J25: =+"Description: 100% of "&'Data Entry Needs'!$E$11&" feedstock is provided by outgrowers at market price." -> Description: 100% of feedstock is provided by outgrowers at market price.
C28: Feedstock Price = 100%*Production Cost | F28: ="Feedstock Price = "&$AC$127&"%*Production Cost + "&(100-$AC$127)&"%*Market Price" -> Feedstock Price = 60%*Production Cost + 40%*Market Price | J28: Feedstock Price = 100%*Market Price | K28: Feedstock Price = 100%*Production Cost
C29: =+'Data Entry Needs'!$E$13 -> 0 | F29: ='Data Entry Needs'!$E$14*COST_FS1!$AB$128+'Data Entry Needs'!$E$13*COST_FS1!$AB$127 -> 0 | J29: ='Data Entry Needs'!$E$14 -> 0
C31: Production Cost Details
F33: Capacities (Million litres per year)
F34: 5 | H34: 25 | J34: 50 | L34: 100
F35: Operating hours per year | G35: 8000 | H35: Operating hours per year | I35: 8000 | J35: Operating hours per year | K35: 8000 | L35: Operating hours per year | M35: 8000
C36: Scenario 1: Own Production
C37: Scenario 2: Mixed
C38: Scenario 3: Outgrowers
C40: Feedstock | D40: Unit | E40: Unit Price | F40: Quantity | G40: Total | H40: Quantity | I40: Total | J40: Quantity | K40: Total | L40: Quantity | M40: Total
E41: (USD) | F41: (Unit) | G41: (USD/year) | H41: (Unit) | I41: (USD/year) | J41: (Unit) | K41: (USD/year) | L41: (Unit) | M41: (USD/year)
C42: =+'Data Entry Needs'!$E$11&" Scenario 1" -> Scenario 1 | D42: t | E42: =+$C$29 -> 0 | F42: =+Allocator!$C$10 ->  | G42: =+F42*E42 ->  | H42: =+Allocator!$D$10 ->  | I42: =+H42*$E42 ->  | J42: =+Allocator!$E$10 ->  | K42: =+J42*$E42 ->  | L42: =+Allocator!$F$10 ->  | M42: =+L42*$E42 -> 
C43: =+'Data Entry Needs'!$E$11&" Scenario 2" -> Scenario 2 | D43: t | E43: =+$F$29 -> 0 | F43: =+Allocator!$C$10 ->  | G43: =+F43*E43 ->  | H43: =+Allocator!$D$10 ->  | I43: =+H43*$E43 ->  | J43: =+Allocator!$E$10 ->  | K43: =+J43*$E43 ->  | L43: =+Allocator!$F$10 ->  | M43: =+L43*$E43 -> 
C44: =+'Data Entry Needs'!$E$11&" Scenario 3" -> Scenario 3 | D44: t | E44: =+J29 -> 0 | F44: =+Allocator!$C$10 ->  | G44: =+F44*E44 ->  | H44: =+Allocator!$D$10 ->  | I44: =+H44*$E44 ->  | J44: =+Allocator!$E$10 ->  | K44: =+J44*$E44 ->  | L44: =+Allocator!$F$10 ->  | M44: =+L44*$E44 -> 
C46: Other chemical inputs | D46: Unit | E46: Unit Price | F46: Quantity | G46: Total | H46: Quantity | I46: Total | J46: Quantity | K46: Total | L46: Quantity | M46: Total
E47: (USD) | F47: (Unit) | G47: (USD/year) | H47: (Unit) | I47: (USD/year) | J47: (Unit) | K47: (USD/year) | L47: (Unit) | M47: (USD/year)
C48: =+Allocator!F101 ->  | D48: =IFERROR(VLOOKUP($C48,Allocator!$C$75:$J$97,7,FALSE),"") ->  | E48: =IFERROR(VLOOKUP($C48,Allocator!$C$75:$J$97,8,FALSE),0) -> 0 | F48: =+Allocator!$G101 ->  | G48: =+F48*E48 ->  | H48: =+Allocator!$H101 ->  | I48: =+H48*$E48 ->  | J48: =+Allocator!$I101 ->  | K48: =+J48*$E48 ->  | L48: =+Allocator!$J101 ->  | M48: =+L48*$E48 -> 
C49: =+Allocator!F102 ->  | D49: =IFERROR(VLOOKUP($C49,Allocator!$C$75:$J$97,7,FALSE),"") ->  | E49: =IFERROR(VLOOKUP($C49,Allocator!$C$75:$J$97,8,FALSE),0) -> 0 | F49: =+Allocator!$G102 ->  | G49: =+F49*E49 ->  | H49: =+Allocator!$H102 ->  | I49: =+H49*$E49 ->  | J49: =+Allocator!$I102 ->  | K49: =+J49*$E49 ->  | L49: =+Allocator!$J102 ->  | M49: =+L49*$E49 -> 
C50: =+Allocator!F103 ->  | D50: =IFERROR(VLOOKUP($C50,Allocator!$C$75:$J$97,7,FALSE),"") ->  | E50: =IFERROR(VLOOKUP($C50,Allocator!$C$75:$J$97,8,FALSE),0) -> 0 | F50: =+Allocator!$G103 ->  | G50: =+F50*E50 ->  | H50: =+Allocator!$H103 ->  | I50: =+H50*$E50 ->  | J50: =+Allocator!$I103 ->  | K50: =+J50*$E50 ->  | L50: =+Allocator!$J103 ->  | M50: =+L50*$E50 -> 
C51: =+Allocator!F104 ->  | D51: =IFERROR(VLOOKUP($C51,Allocator!$C$75:$J$97,7,FALSE),"") ->  | E51: =IFERROR(VLOOKUP($C51,Allocator!$C$75:$J$97,8,FALSE),0) -> 0 | F51: =+Allocator!$G104 ->  | G51: =+F51*E51 ->  | H51: =+Allocator!$H104 ->  | I51: =+H51*$E51 ->  | J51: =+Allocator!$I104 ->  | K51: =+J51*$E51 ->  | L51: =+Allocator!$J104 ->  | M51: =+L51*$E51 -> 
C52: =+Allocator!F105 ->  | D52: =IFERROR(VLOOKUP($C52,Allocator!$C$75:$J$97,7,FALSE),"") ->  | E52: =IFERROR(VLOOKUP($C52,Allocator!$C$75:$J$97,8,FALSE),0) -> 0 | F52: =+Allocator!$G105 ->  | G52: =+F52*E52 ->  | H52: =+Allocator!$H105 ->  | I52: =+H52*$E52 ->  | J52: =+Allocator!$I105 ->  | K52: =+J52*$E52 ->  | L52: =+Allocator!$J105 -> 
C53: Energy inputs | D53: Unit | E53: Unit Price | F53: Quantity | G53: Total | H53: Quantity | I53: Total | J53: Quantity | K53: Total | L53: Quantity | M53: Total
E54: (USD) | F54: (Unit/year) | G54: (USD/year) | H54: (Unit/year) | I54: (USD/year) | J54: (Unit/year) | K54: (USD/year) | L54: (Unit/year) | M54: (USD/year)
C55: =+Allocator!F106 ->  | D55: =IFERROR(VLOOKUP($C55,Allocator!$C$75:$J$96,7,FALSE),"") ->  | E55: =IFERROR(VLOOKUP($C55,Allocator!$C$75:$J$96,8,FALSE),0) -> 0 | F55: =+Allocator!$G106 ->  | H55: =+Allocator!$H106 ->  | J55: =+Allocator!$I106 ->  | L55: =+Allocator!$J106 -> 
C56: =+Allocator!F107 ->  | D56: =IFERROR(VLOOKUP($C56,Allocator!$C$75:$J$96,7,FALSE),"") ->  | E56: =IFERROR(VLOOKUP($C56,Allocator!$C$75:$J$96,8,FALSE),0) -> 0 | F56: =+Allocator!$G107 ->  | H56: =+Allocator!$H107 ->  | J56: =+Allocator!$I107 ->  | L56: =+Allocator!$J107 -> 
C57: Subtotal | G57: =SUM(G48:G56) ->  | I57: =SUM(I48:I56) ->  | K57: =SUM(K48:K56) ->  | M57: =SUM(M48:M56) -> 
C59: Labour and miscellaneous cost | D59: Unit | E59: Unit Price | F59: Quantity | G59: Total | H59: Quantity | I59: Total | J59: Quantity | K59: Total | L59: Quantity | M59: Total
E60: (USD/hour) | F60: (Unit) | G60: (USD/year) | H60: (Unit) | I60: (USD/year) | J60: (Unit) | K60: (USD/year) | L60: (Unit) | M60: (USD/year)
C61: Unskilled worker | D61: # Employee | E61: =+'Data Entry Needs'!$D$32 -> 0 | F61: =+IF((F34/3.785)<6,6,ROUND(F34/3.785,0))*3 -> 18 | G61: =+E61*F61*8000 -> 0 | H61: =+IF((H34/3.785)<6,6,ROUND(H34/3.785,0))*3 -> 21 | I61: =+$E61*H61*8000 -> 0 | J61: =+IF((J34/3.785)<6,6,ROUND(J34/3.785,0))*3 -> 39 | K61: =+$E61*J61*8000 -> 0 | L61: =+IF((L34/3.785)<6,6,ROUND(L34/3.785,0))*3 -> 78 | M61: =+$E61*L61*8000 -> 0
C62: Skilled worker | D62: # Employee | E62: =+'Data Entry Needs'!$D$33 -> 0 | F62: =+ROUND(F61/4,0) -> 5 | G62: =+E62*F62*8000 -> 0 | H62: =+ROUND(H61/4,0) -> 5 | I62: =+$E62*H62*8000 -> 0 | J62: =+ROUND(J61/4,0) -> 10 | K62: =+$E62*J62*8000 -> 0 | L62: =+ROUND(L61/4,0) -> 20 | M62: =+$E62*L62*8000 -> 0
C63: Miscellaneous costs | F63: =+'Data Entry Needs'!$D$34 -> 0 | G63: =+F63*SUM(G61:G62) -> 0 | H63: =+$F$63 -> 0 | I63: =+H63*SUM(I61:I62) -> 0 | J63: =+H63 -> 0 | K63: =+J63*SUM(K61:K62) -> 0 | L63: =+J63 -> 0 | M63: =+L63*SUM(M61:M62) -> 0
C64: Subtotal | G64: =SUM(G61:G63) -> 0 | I64: =SUM(I61:I63) -> 0 | K64: =SUM(K61:K63) -> 0 | M64: =SUM(M61:M63) -> 0
C66: Transportation | D66: Unit | E66: Unit Price | F66: Quantity | G66: Total | H66: Quantity | I66: Total | J66: Quantity | K66: Total | L66: Quantity | M66: Total
E67: (USD/t/unit) | F67: (Unit) | G67: (USD/year) | H67: (Unit) | I67: (USD/year) | J67: (Unit) | K67: (USD/year) | L67: (Unit) | M67: (USD/year)
C68: Feedstock (farm to plant) | D68: km | E68: =+'Data Entry Needs'!$D$37 -> 0 | F68: =+$D$17 -> 0 | G68: =+$E$68*F68*$G$17 ->  | H68: =+$D$18 -> 0 | I68: =+$E$68*H68*$G$18 ->  | J68: =+$D$19 -> 0 | K68: =+$E$68*J68*$G$19 ->  | L68: =$D$20 -> 0 | M68: =+$E$68*L68*$G$20 -> 
C70: Subtotal | G70: =SUM(G68:G68) ->  | I70: =SUM(I68:I68) ->  | K70: =SUM(K68:K68) ->  | M70: =SUM(M68:M68) -> 
C72: Investment | D72: Unit | E72: Years | F72: Total | G72: Depreciation | H72: Total | I72: Depreciation | J72: Total | K72: Depreciation | L72: Total | M72: Depreciation
C73: Investment | F73: (USD) | G73: (USD/year) | H73: (USD) | I73: (USD/year) | J73: (USD) | K73: (USD/year) | L73: (USD) | M73: (USD/year)
C74: Equipment | D74: USD | E74: 20 | F74: =+Allocator!$L101*('Data Entry Needs'!$H$65/142.7) ->  | G74: =+F74/$E74 ->  | H74: =+Allocator!$M101*('Data Entry Needs'!$H$65/142.7) ->  | I74: =+H74/$E74 ->  | J74: =+Allocator!$N101*('Data Entry Needs'!$H$65/142.7) ->  | K74: =+J74/$E74 ->  | L74: =+Allocator!$O101*('Data Entry Needs'!$H$65/142.7) ->  | M74: =+L74/$E74 -> 
C75: Buildings | D75: USD | E75: =+E74/2 -> 10 | F75: =+Allocator!$L102*('Data Entry Needs'!$H$65/142.7) ->  | G75: =+F75/$E75 ->  | H75: =+Allocator!$M102*('Data Entry Needs'!$H$65/142.7) ->  | I75: =+H75/$E75 ->  | J75: =+Allocator!$N102*('Data Entry Needs'!$H$65/142.7) ->  | L75: =+Allocator!$O102*('Data Entry Needs'!$H$65/142.7) ->  | M75: =+L75/$E75 -> 
C76: Installation charges | D76: USD | E76: =+E74/2 -> 10 | F76: =+Allocator!$L103*('Data Entry Needs'!$H$65/142.7) ->  | G76: =+F76/$E76 ->  | H76: =+Allocator!$M103*('Data Entry Needs'!$H$65/142.7) ->  | J76: =+Allocator!$N103*('Data Entry Needs'!$H$65/142.7) ->  | L76: =+Allocator!$O103*('Data Entry Needs'!$H$65/142.7) ->  | M76: =+L76/$E76 -> 
C77: Total investment | F77: =SUM(F74:F76) ->  | H77: =SUM(H74:H76) ->  | J77: =SUM(J74:J76) ->  | L77: =SUM(L74:L76) -> 
F78: Total Depreciation | G78: =SUM(G74:G77) ->  | H78: Total Depreciation | I78: =SUM(I74:I77) ->  | J78: Total Depreciation | K78: =SUM(K74:K77) ->  | L78: Total Depreciation | M78: =SUM(M74:M77) -> 
C79: Maintenance cost | E79: =+'Data Entry Needs'!$D$45 -> 0 | G79: =+$E$79*G78 ->  | I79: =+E79*$I$78 ->  | K79: =+$E$79*K78 ->  | M79: =+$E$79*M78 -> 
C80: Subtotal | G80: =SUM(G78:G79) ->  | I80: =SUM(I78:I79) ->  | K80: =SUM(K78:K79) ->  | M80: =SUM(M78:M79) -> 
C82: Storage | D82: Unit | E82: Unit Price | F82: Quantity | G82: Total | H82: Quantity | I82: Total | J82: Quantity | K82: Total | L82: Quantity | M82: Total
D83: (%) | E83: (USD) | F83: (Unit) | G83: (USD/year) | H83: (Unit) | I83: (USD/year) | J83: (Unit) | K83: (USD/year) | L83: (Unit) | M83: (USD/year)
C84: Feedstock (biomass) | D84: t | E84: =+$D$12 -> 0 | F84: =+STORAGE_FS1!$F$38 ->  | G84: =+F84*$E$84 ->  | H84: =+STORAGE_FS1!$I$38 ->  | I84: =+H84*$E$84 ->  | J84: =+STORAGE_FS1!$L$38 ->  | K84: =+J84*$E$84 ->  | L84: =+STORAGE_FS1!$O$38 ->  | M84: =+L84*$E$84 -> 
C85: =+'Data Entry Needs'!$E$10&" product" -> Please Select product | D85: litre | E85: =+$D$10 -> 0 | F85: =5000000*$D$11 -> 0 | G85: =+$E$85*F85 -> 0 | H85: =25000000*$D$11 -> 0 | I85: =+$E$85*H85 -> 0 | J85: =50000000*$D$11 -> 0 | K85: =+$E$85*J85 -> 0 | L85: =100000000*$D$11 -> 0 | M85: =+$E$85*L85 -> 0
C86: Subtotal | G86: =SUM(G84:G85) ->  | I86: =SUM(I84:I85) ->  | K86: =SUM(K84:K85) ->  | M86: =SUM(M84:M85) -> 
C88: Other costs | D88: Unit | E88: Rate (%) | G88: Total | I88: Total | K88: Total | M88: Total
G89: (USD/year) | I89: (USD/year) | K89: (USD/year) | M89: (USD/year)
C90: Plant overhead | D90: USD | E90: =+'Data Entry Needs'!$D$46 -> 0 | G90: =+(G61+G62+G79)*$E$90 ->  | I90: =+(I61+I62+I79)*$E$90 ->  | K90: =+(K61+K62+K79)*$E$90 ->  | M90: =+(M61+M62+M79)*$E$90 -> 
C91: General and administrative | D91: USD | E91: =+'Data Entry Needs'!$D$47 -> 0 | G91: =+(G57+G64+G90+G79)*$E$91 ->  | I91: =+(I57+I64+I90+I79)*$E$91 ->  | K91: =+(K57+K64+K90+K79)*$E$91 ->  | M91: =+(M57+M64+M90+M79)*$E$91 -> 
C92: Loan interest | D92: USD | G92: =-FA5_FS1_SC1!$G$69 ->  | I92: =-FA25_FS1_SC1!G69 ->  | K92: =-FA50_FS1_SC1!$G$69 ->  | M92: =-FA100_FS1_SC1!$G$69 -> 
C93: Subtotal | G93: =SUM(G90:G92) ->  | I93: =SUM(I90:I92) ->  | K93: =SUM(K90:K92) ->  | M93: =SUM(M90:M92) -> 
C95: Total Production Costs (USD/year)
F97: Total | G97: Total | H97: Total | I97: Total | J97: Total | K97: Total | L97: Total | M97: Total
F98: (USD/year) | G98: (USD/l) | H98: (USD/year) | I98: (USD/l) | J98: (USD/year) | K98: (USD/l) | L98: (USD/year) | M98: (USD/l)
C99: Scenario 1
C100: Total operating costs | F100: =G42+G57+G64+G70 ->  | G100: =+F100/5000000 ->  | H100: =I42+I57+I64+I70 ->  | I100: =+H100/25000000 ->  | J100: =K42+K57+K64+K70 ->  | K100: =+J100/50000000 ->  | L100: =M42+M57+M64+M70 ->  | M100: =+L100/100000000 -> 
C101: Total fixed costs | F101: =+$G$80+$G$86 ->  | G101: =+F101/5000000 ->  | H101: =+$I$80+$I$86 ->  | I101: =+H101/25000000 ->  | J101: =+$K$80+$K$86 ->  | K101: =+J101/50000000 ->  | L101: =+$M$80+$M$86 ->  | M101: =+L101/100000000 -> 
C102: Total other costs | F102: =+$G$93 ->  | G102: =+F102/5000000 ->  | H102: =+$I$93 ->  | I102: =+H102/25000000 ->  | J102: =+$K$93 ->  | K102: =+J102/50000000 ->  | L102: =+$M$93 ->  | M102: =+L102/100000000 -> 
C103: Total production costs scenario 1 (USD/year) | F103: =SUM(F100:F102) ->  | H103: =SUM(H100:H102) ->  | J103: =SUM(J100:J102) ->  | L103: =SUM(L100:L102) -> 
C104: Total production costs scenario 1 (USD/l) | G104: =SUM(G100:G102) ->  | I104: =SUM(I100:I102) ->  | K104: =SUM(K100:K103) ->  | M104: =SUM(M100:M103) -> 
C106: Scenario 2
C107: Total operating costs | F107: =+G43+G57+G64+G70 ->  | G107: =+F107/5000000 ->  | H107: =I43+I57+I64+I70 ->  | I107: =+H107/25000000 ->  | J107: =K43+K57+K64+K70 ->  | K107: =+J107/50000000 ->  | L107: =M43+M57+M64+M70 ->  | M107: =+L107/100000000 -> 
C108: Total fixed costs | F108: =+$G$80+$G$86 ->  | G108: =+F108/5000000 ->  | H108: =+$I$80+$I$86 ->  | I108: =+H108/25000000 ->  | J108: =+$K$80+$K$86 ->  | K108: =+J108/50000000 ->  | L108: =+$M$80+$M$86 ->  | M108: =+L108/100000000 -> 
C109: Total other costs | F109: =+$G$93 ->  | G109: =+F109/5000000 ->  | H109: =+$I$93 ->  | I109: =+H109/25000000 ->  | J109: =+$K$93 ->  | K109: =+J109/50000000 ->  | L109: =+$M$93 ->  | M109: =+L109/100000000 -> 
C110: Total production costs scenario 2 (USD/year) | F110: =SUM(F107:F109) ->  | H110: =SUM(H107:H109) ->  | J110: =SUM(J107:J109) ->  | L110: =SUM(L107:L109) -> 
C111: Total production costs scenario 2 (USD/l) | G111: =SUM(G107:G109) ->  | I111: =SUM(I107:I109) ->  | K111: =SUM(K107:K110) ->  | M111: =SUM(M107:M110) -> 
C113: Scenario 3
C114: Total operating costs | F114: =+G44+G57+G64+G70 ->  | G114: =+F114/5000000 ->  | H114: =I44+I57+I64+I70 ->  | I114: =+H114/25000000 ->  | J114: =K44+K57+K64+K70 ->  | K114: =+J114/50000000 ->  | L114: =M44+M57+M64+M70 ->  | M114: =+L114/100000000 -> 
C115: Total fixed costs | F115: =+$G$80+$G$86 ->  | G115: =+F115/5000000 ->  | H115: =+$I$80+$I$86 ->  | I115: =+H115/25000000 ->  | J115: =+$K$80+$K$86 ->  | K115: =+J115/50000000 ->  | L115: =+$M$80+$M$86 ->  | M115: =+L115/100000000 -> 
C116: Total other costs | F116: =+$G$93 ->  | G116: =+F116/5000000 ->  | H116: =+$I$93 ->  | I116: =+H116/25000000 ->  | J116: =+$K$93 ->  | K116: =+J116/50000000 ->  | L116: =+$M$93 ->  | M116: =+L116/100000000 -> 
C117: Total production costs scenario 3 (USD/year) | F117: =SUM(F114:F116) ->  | H117: =SUM(H114:H116) ->  | J117: =SUM(J114:J116) ->  | L117: =SUM(L114:L116) -> 
C118: Total production costs scenario 3 (USD/l) | G118: =SUM(G114:G116) ->  | I118: =SUM(I114:I116) ->  | K118: =SUM(K114:K117) ->  | M118: =SUM(M114:M117) -> 
AK122: Scenario 1 | AL122: 1
AK123: Scenario 2 | AL123: 1
AK124: Scenario 3 | AL124: 1
AL125: =IF(SUM(AL122:AL124)=0,FALSE,TRUE) -> TRUE
AA126: sc2 | AD126: sc1 | AF126: sc3
AA127: Factory (%) | AB127: =+AC127/100 -> 0.6 | AC127: 60 | AD127: Factory (%) | AE127: 1 | AF127: Factory (%) | AG127: 0 | AH127: yes | AI127: =IF(#REF!="NO",TRUE,FALSE) -> 
AA128: Outgrower (%) | AB128: =1-AB127 -> 0.4 | AD128: Outgrower (%) | AE128: 0 | AF128: Outgrower (%) | AG128: 1 | AH128: no
AD131: Capacities (ML/year)
AD132: 5 | AE132: 25 | AF132: 50 | AG132: 100
AA133: Biofuel Production (L/day) | AD133: =+AD132*1000000/(G35/24) -> 15000 | AE133: =+AE132*1000000/(I35/24) -> 75000 | AF133: =+AF132*1000000/(K35/24) -> 150000 | AG133: =+AG132*1000000/(M35/24) -> 300000
AA134: Tanker Truck Capacity (L) | AB134: =+'Data Entry Needs'!$G$38 -> 0
AA135: Number of Tanker Trucks per day | AD135: =+ROUNDUP(AD133/$AB$134,0) ->  | AE135: =+ROUNDUP(AE133/$AB$134,0) ->  | AF135: =+ROUNDUP(AF133/$AB$134,0) ->  | AG135: =+ROUNDUP(AG133/$AB$134,0) -> 
AA136: Biofuel Transportation Cost (USD/L/km) | AD136: =+'Data Entry Needs'!$D$38 -> 0 | AE136: =+'Data Entry Needs'!$D$38 -> 0 | AF136: =+'Data Entry Needs'!$D$38 -> 0 | AG136: =+'Data Entry Needs'!$D$38 -> 0
AD139: Potential Revenues
AA140: By-products Revenue | AB140: Unit | AC140: Unit Price | AD140: Quantity | AE140: Total | AF140: Quantity | AG140: Total | AH140: Quantity | AI140: Total | AJ140: Quantity | AK140: Total
AC141: (USD/t) | AD141: (Unit) | AE141: (USD/year) | AF141: (Unit) | AG141: (USD/year) | AH141: (Unit) | AI141: (USD/year) | AJ141: (Unit) | AK141: (USD/year)
AA142: =+Allocator!F108 ->  | AB142: =IFERROR(VLOOKUP($AA142,Allocator!$C$75:$J$97,7,FALSE),"") ->  | AC142: =IFERROR(VLOOKUP($AA142,Allocator!$C$75:$J$97,8,FALSE),0) -> 0 | AD142: =+Allocator!G108 ->  | AE142: =+$AC$142*AD142 ->  | AF142: =+Allocator!H108 ->  | AG142: =+$AC$142*AF142 ->  | AH142: =+Allocator!I108 ->  | AI142: =+$AC$142*AH142 ->  | AJ142: =+Allocator!J108 ->  | AK142: =+$AC$142*AJ142 -> 
AA143: =+Allocator!F109 ->  | AB143: =IFERROR(VLOOKUP($AA143,Allocator!$C$75:$J$97,7,FALSE),"") ->  | AC143: =IFERROR(VLOOKUP($AA143,Allocator!$C$75:$J$97,8,FALSE),0) -> 0 | AD143: =+Allocator!G109 ->  | AE143: =+$AC$143*AD143 ->  | AF143: =+Allocator!H109 ->  | AG143: =+$AC$143*AF143 ->  | AH143: =+Allocator!I109 ->  | AI143: =+$AC$143*AH143 ->  | AJ143: =+Allocator!J109 ->  | AK143: =+$AC$143*AJ143 -> 
AA144: Subtotal | AE144: =SUM(AE142:AE143) ->  | AG144: =SUM(AG142:AG143) ->  | AI144: =SUM(AI142:AI143) ->  | AK144: =SUM(AK142:AK143) -> 

Sheet FA5_FS1_SC1 (hidden)
B2: =+UPPER("FINANCIAL EVALUATION OF "&'Data Entry Needs'!$E$10&" PRODUCTION 5 Million Litres/year SCENARIO 1") -> FINANCIAL EVALUATION OF PLEASE SELECT PRODUCTION 5 MILLION LITRES/YEAR SCENARIO 1
A5: ="Revenues of "&'Data Entry Needs'!$E$10&" production (Benefit)" -> Revenues of Please Select production (Benefit)
B7: Operating Year | C7: 0 | D7: 1 | E7: 2 | F7: 3 | G7: 4 | H7: 5 | I7: 6 | J7: 7 | K7: 8 | L7: 9 | M7: 10 | N7: 11 | O7: 12 | P7: 13 | Q7: 14 | R7: 15 | S7: 16 | T7: 17 | U7: 18 | V7: 19 | W7: 20
B9: Capacity (million of litres) | C9: 5 | D9: =C9 -> 5 | E9: 5 | F9: 5 | G9: 5 | H9: 5 | I9: 5 | J9: 5 | K9: 5 | L9: 5 | M9: 5 | N9: 5 | O9: 5 | P9: 5 | Q9: 5 | R9: 5 | S9: 5 | T9: 5 | U9: 5 | V9: 5 | W9: 5
B10: Annual production (litres per year) | C10: =+C9*1000000 -> 5000000 | D10: =+C10 -> 5000000 | E10: 5000000 | F10: 5000000 | G10: 5000000 | H10: 5000000 | I10: 5000000 | J10: 5000000 | K10: 5000000 | L10: 5000000 | M10: 5000000 | N10: 5000000 | O10: 5000000 | P10: 5000000 | Q10: 5000000 | R10: 5000000 | S10: 5000000 | T10: 5000000 | U10: 5000000 | V10: 5000000 | W10: 5000000
B11: Loss in production processing (%) | D11: 0 | E11: =+D11 -> 0 | F11: 0 | G11: 0 | H11: 0 | I11: 0 | J11: 0 | K11: 0 | L11: 0 | M11: 0 | N11: 0 | O11: 0 | P11: 0 | Q11: 0 | R11: 0 | S11: 0 | T11: 0 | U11: 0 | V11: 0 | W11: 0
B12: Sales to customers (litres per year) | C12: =+C10*(1-C11) -> 5000000 | D12: =+C12 -> 5000000 | E12: =+D12 -> 5000000 | F12: 5000000 | G12: 5000000 | H12: 5000000 | I12: 5000000 | J12: 5000000 | K12: 5000000 | L12: 5000000 | M12: 5000000 | N12: 5000000 | O12: 5000000 | P12: 5000000 | Q12: 5000000 | R12: 5000000 | S12: 5000000 | T12: 5000000 | U12: 5000000 | V12: 5000000 | W12: 5000000
B14: ="Price of "&'Data Entry Needs'!$E$10&" (USD/litre)" -> Price of Please Select (USD/litre) | C14: =+VLOOKUP('Data Entry Needs'!$E$10,'Data Entry Needs'!$T$180:$X$183,5,FALSE) ->  | D14: =+C14*(100%+D17) ->  | E14: =+D14*(100%+E17) -> 
B15: =+IF(COST_FS1!$AA$142="","","Price of "&COST_FS1!$AA$142&" (USD/ton)") ->  | C15: =+IF(COST_FS1!$AA$142="",0,COST_FS1!$AC$142) -> 0 | D15: =+C15*(100%+$C17) -> 0 | E15: =+D15*(100%+$C17) -> 0 | F15: =+E15*(100%+$C17) -> 0 | G15: 0 | H15: 0 | I15: 0 | J15: 0 | K15: 0 | L15: 0 | M15: 0 | N15: 0 | O15: 0 | P15: 0 | Q15: 0 | R15: 0 | S15: 0 | T15: 0 | U15: 0 | V15: 0 | W15: 0
B16: =+IF(COST_FS1!$AA$143="","","Price of "&COST_FS1!$AA$143&" (USD/ton)") ->  | C16: =+IF(COST_FS1!$AA$143="",0,COST_FS1!$AC$143) ->  | D16: =+C16*(100%+$C17) ->  | E16: =+D16*(100%+$C17) -> 
B17: ="Increase rate of price of "&'Data Entry Needs'!$E$10&" (%)" -> Increase rate of price of Please Select (%) | C17: =+'Data Entry Needs'!$O$174 -> 0 | D17: =+C17 -> 0 | E17: =+D17 -> 0 | F17: 0 | G17: 0 | H17: 0 | I17: 0 | J17: 0 | K17: 0 | L17: 0 | M17: 0 | N17: 0 | O17: 0 | P17: 0 | Q17: 0 | R17: 0 | S17: 0 | T17: 0 | U17: 0 | V17: 0 | W17: 0
B18: Income (USD per year) | C18: =+C12*C14 ->  | D18: =+D12*D14 -> 
B20: By-products revenue | C20: =+COST_FS1!$AD$142*C15+COST_FS1!$AD$143*C16 ->  | D20: =+COST_FS1!$AD$142*D15+COST_FS1!$AD$143*D16 ->  | E20: =+COST_FS1!$AD$142*E15+COST_FS1!$AD$143*E16 ->  | F20: =+COST_FS1!$AD$142*F15+COST_FS1!$AD$143*F16 ->  | G20: =+COST_FS1!$AD$142*G15+COST_FS1!$AD$143*G16 ->  | H20: =+COST_FS1!$AD$142*H15+COST_FS1!$AD$143*H16 ->  | I20: =+COST_FS1!$AD$142*I15+COST_FS1!$AD$143*I16 ->  | J20: =+COST_FS1!$AD$142*J15+COST_FS1!$AD$143*J16 ->  | K20: =+COST_FS1!$AD$142*K15+COST_FS1!$AD$143*K16 ->  | L20: =+COST_FS1!$AD$142*L15+COST_FS1!$AD$143*L16 ->  | M20: =+COST_FS1!$AD$142*M15+COST_FS1!$AD$143*M16 ->  | N20: =+COST_FS1!$AD$142*N15+COST_FS1!$AD$143*N16 ->  | O20: =+COST_FS1!$AD$142*O15+COST_FS1!$AD$143*O16 ->  | P20: =+COST_FS1!$AD$142*P15+COST_FS1!$AD$143*P16 ->  | Q20: =+COST_FS1!$AD$142*Q15+COST_FS1!$AD$143*Q16 ->  | R20: =+COST_FS1!$AD$142*R15+COST_FS1!$AD$143*R16 ->  | S20: =+COST_FS1!$AD$142*S15+COST_FS1!$AD$143*S16 ->  | T20: =+COST_FS1!$AD$142*T15+COST_FS1!$AD$143*T16 ->  | U20: =+COST_FS1!$AD$142*U15+COST_FS1!$AD$143*U16 ->  | V20: =+COST_FS1!$AD$142*V15+COST_FS1!$AD$143*V16 ->  | W20: =+COST_FS1!$AD$142*W15+COST_FS1!$AD$143*W16 -> 
B22: Total income | D22: =+D18+D20 ->  | E22: =+E18+E20 -> 
A25: Capital and operating cost
B27: Operating Year | C27: Appraisal | D27: 1 | E27: 2 | F27: 3 | G27: 4 | H27: 5 | I27: 6 | J27: 7 | K27: 8 | L27: 9 | M27: 10 | N27: 11 | O27: 12 | P27: 13 | Q27: 14 | R27: 15 | S27: 16 | T27: 17 | U27: 18 | V27: 19 | W27: 20
B28: Direct capital cost (USD)
B29: Equipments | C29: =+COST_FS1!$F74 -> 
B30: Building | C30: =+COST_FS1!$F75 ->  | N30: =+C30 -> 
B31: Installation | C31: =+COST_FS1!$F76 ->  | N31: =+C31 -> 
B33: Total capital cost (USD) | C33: =C29+C30+C31 ->  | D33: 0 | E33: 0 | F33: 0 | G33: 0 | H33: 0 | I33: 0 | J33: 0 | K33: 0 | L33: 0 | M33: 0 | O33: 0 | P33: 0 | Q33: 0 | R33: 0 | S33: 0 | T33: 0 | U33: 0 | V33: 0 | W33: 0
B34: Capital cost (USD/MLN litres) | C34: =+C33/C9 -> 
B35: Capital cost (USD/ litre) | C35: =+C33/C12 -> 
B38: Operating Year | C38: Appraisal | D38: 1 | E38: 2 | F38: 3 | G38: 4 | H38: 5 | I38: 6 | J38: 7 | K38: 8 | L38: 9 | M38: 10 | N38: 11 | O38: 12 | P38: 13 | Q38: 14 | R38: 15 | S38: 16 | T38: 17 | U38: 18 | V38: 19 | W38: 20
B39: Annual operating and maintenance cost
B40: Sub-total input cost (USD) | C40: =+C41+C42 -> 
B41: Feedstock cost (USD/year) | C41: =+COST_FS1!$G$42 ->  | D41: =+C41 -> 
B42: Other raw material costs (USD/year) | C42: =+COST_FS1!$G$57 ->  | D42: =+C42 -> 
B43: Labour cost (USD/year) | C43: =+COST_FS1!$G$64 -> 0 | D43: =C43*(1+D63) -> 0 | E43: 0 | F43: 0 | G43: 0 | H43: 0 | I43: 0 | J43: 0 | K43: 0 | L43: 0 | M43: 0 | N43: 0 | O43: 0 | P43: 0 | Q43: 0 | R43: 0 | S43: 0 | T43: 0 | U43: 0 | V43: 0 | W43: 0
B44: Transportation cost (USD/year) | C44: =+COST_FS1!$G$70 ->  | D44: =+C44 -> 
B45: Investment cost (USD/year) | C45: =+COST_FS1!$G$78 ->  | D45: =+C45 -> 
B46: Maintenance cost (USD/year) | C46: =+COST_FS1!$G$79 ->  | D46: =+C46 -> 
B47: Storage cost (USD/year) | C47: =+COST_FS1!$G$86 ->  | D47: =C47 -> 
B48: Plant overhead (USD/year) | C48: =+COST_FS1!G90 ->  | D48: =+C48 -> 
B49: General and administrative cost (USD/year) | C49: =+COST_FS1!G91 ->  | D49: =+C49 -> 
B50: Total annualized cost (USD) | C50: =SUM(C41:C49) ->  | D50: =SUM(D41:D49) -> 
B51: Total cost per litre (USD/l) | C51: =+C50/C12 -> 
A53: Financial parameters
B54: Operating Year | C54: Appraisal | D54: 1 | E54: 2 | F54: 3 | G54: 4 | H54: 5 | I54: 6 | J54: 7 | K54: 8 | L54: 9 | M54: 10 | N54: 11 | O54: 12 | P54: 13 | Q54: 14 | R54: 15 | S54: 16 | T54: 17 | U54: 18 | V54: 19 | W54: 20
B55: Raw material cost escalation rate (%) | D55: =+'Data Entry Needs'!$O$172 -> 0 | E55: =D55 -> 0 | F55: 0 | G55: 0 | H55: 0 | I55: 0 | J55: 0 | K55: 0 | L55: 0 | M55: 0 | N55: 0 | O55: 0 | P55: 0 | Q55: 0 | R55: 0 | S55: 0 | T55: 0 | U55: 0 | V55: 0 | W55: 0
B56: Inflation rate (%) | D56: =+'Data Entry Needs'!$O$175 -> 0 | E56: =D56 -> 0 | F56: 0 | G56: 0 | H56: 0 | I56: 0 | J56: 0 | K56: 0 | L56: 0 | M56: 0 | N56: 0 | O56: 0 | P56: 0 | Q56: 0 | R56: 0 | S56: 0 | T56: 0 | U56: 0 | V56: 0 | W56: 0
B57: Discount rate (%) | C57: =+'Data Entry Needs'!$D$64 -> 0
B58: Debt ratio (%) | C58: =+'Data Entry Needs'!$D$69 -> 0
B60: Loan | D60: 1 | E60: 2 | F60: 3 | G60: 4 | H60: 5 | I60: 6 | J60: 7 | K60: 8 | L60: 9 | M60: 10 | N60: 11 | O60: 12 | P60: 13 | Q60: 14 | R60: 15 | S60: 16 | T60: 17 | U60: 18 | V60: 19 | W60: 20
B61: Loan amount (USD ) | C61: =C58*C33 -> 
B62: Increasing rate of price of biodiesel (%) | C62: =+'Data Entry Needs'!$O$174 -> 0 | D62: =+C62 -> 0 | E62: 0 | F62: 0 | G62: 0 | H62: 0 | I62: 0 | J62: 0 | K62: 0 | L62: 0 | M62: 0 | N62: 0 | O62: 0 | P62: 0 | Q62: 0 | R62: 0 | S62: 0 | T62: 0 | U62: 0 | V62: 0 | W62: 0
B63: Escalation rate of labour cost (%) | D63: =+'Data Entry Needs'!$O$170 -> 0 | E63: =+D63 -> 0 | F63: 0 | G63: 0 | H63: 0 | I63: 0 | J63: 0 | K63: 0 | L63: 0 | M63: 0 | N63: 0 | O63: 0 | P63: 0 | Q63: 0 | R63: 0 | S63: 0 | T63: 0 | U63: 0 | V63: 0 | W63: 0
B64: Loan interest rate (%) | C64: =+'Data Entry Needs'!$D$65 -> 0
B65: Loan term (years) | C65: =+'Data Entry Needs'!$D$66 -> 0
B66: Loan payment (USD/month) | C66: =(PMT(C64/12,(12*C65),C61)) -> 
B67: Loan payment (USD/year) | D67: =IF(D54<=$C$65,$C$66*12,0) -> 0 | E67: 0 | F67: 0 | G67: 0 | H67: 0 | I67: 0 | J67: 0 | K67: 0 | L67: 0 | M67: 0 | N67: 0 | O67: 0 | P67: 0 | Q67: 0 | R67: 0 | S67: 0 | T67: 0 | U67: 0 | V67: 0 | W67: 0
B68: Total loan payment (USD) | C68: =SUM(D67:W67) -> 0
B69: Loan interest payment (USD) | C69: =C68+C61 ->  | D69: Average loan interest payment for project lifetime | G69: =C69/20 ->  | H69: USD per year
A71: Income tax analysis
B72: Operating Year | C72: Appraisal | D72: 1 | E72: 2 | F72: 3 | G72: 4 | H72: 5 | I72: 6 | J72: 7 | K72: 8 | L72: 9 | M72: 10 | N72: 11 | O72: 12 | P72: 13 | Q72: 14 | R72: 15 | S72: 16 | T72: 17 | U72: 18 | V72: 19 | W72: 20
B73: Effective income tax rate (%) | C73: 0 | D73: =C73 -> 0 | E73: 0 | F73: 0 | G73: 0 | H73: 0 | I73: 0 | J73: 0 | K73: 0 | L73: 0 | M73: 0 | N73: 0 | O73: 0 | P73: 0 | Q73: 0 | R73: 0 | S73: 0 | T73: 0 | U73: 0 | V73: 0 | W73: 0
B74: Income tax | D74: =IF(D97<0,0,D73*D97) -> 
A76: Depreciation
B77: Operating Year | C77: Appraisal | D77: 1 | E77: 2 | F77: 3 | G77: 4 | H77: 5 | I77: 6 | J77: 7 | K77: 8 | L77: 9 | M77: 10 | N77: 11 | O77: 12 | P77: 13 | Q77: 14 | R77: 15 | S77: 16 | T77: 17 | U77: 18 | V77: 19 | W77: 20
B78: Depreciation method | C78: Straight-line
B79: Total depreciation (USD) | D79: =+C45 ->  | E79: =D79 -> 
A82: Summary of this project - before tax
B83: Operating Year | C83: Appraisal | D83: 1 | E83: 2 | F83: 3 | G83: 4 | H83: 5 | I83: 6 | J83: 7 | K83: 8 | L83: 9 | M83: 10 | N83: 11 | O83: 12 | P83: 13 | Q83: 14 | R83: 15 | S83: 16 | T83: 17 | U83: 18 | V83: 19 | W83: 20
B84: Total revenue (USD) | D84: =+D22 -> 
B85: Total capital cost (USD) | C85: =-(C33-C61) -> 
B86: Total operating and maintenance cost (USD) | D86: =-(D50-D45) -> 
B87: Debt payment (USD) | D87: =D67 -> 0 | E87: 0 | F87: 0 | G87: 0 | H87: 0 | I87: 0 | J87: 0 | K87: 0 | L87: 0 | M87: 0 | N87: 0 | O87: 0 | P87: 0 | Q87: 0 | R87: 0 | S87: 0 | T87: 0 | U87: 0 | V87: 0 | W87: 0
B88: Cash-flow - before tax (USD) | C88: =SUM(C84:C87) -> 
B89: Present cash-flow - before tax (USD) | D89: =+D88/((1+$C57)^D83) -> 
D90: =+PV($C57,D83,,-D88,) -> 
A91: Summary of this project - after tax
B92: Operating Year | C92: Appraisal | D92: 1 | E92: 2 | F92: 3 | G92: 4 | H92: 5 | I92: 6 | J92: 7 | K92: 8 | L92: 9 | M92: 10 | N92: 11 | O92: 12 | P92: 13 | Q92: 14 | R92: 15 | S92: 16 | T92: 17 | U92: 18 | V92: 19 | W92: 20
B93: Total revenue (USD) | C93: =C84 -> 0
B94: Total operating and maintenance cost (USD) | D94: =-(D50-D45) -> 
B95: Debt payment (USD) | D95: =D67 -> 0 | E95: 0 | F95: 0 | G95: 0 | H95: 0 | I95: 0 | J95: 0 | K95: 0 | L95: 0 | M95: 0 | N95: 0 | O95: 0 | P95: 0 | Q95: 0 | R95: 0 | S95: 0 | T95: 0 | U95: 0 | V95: 0 | W95: 0
B96: Depreciation of fixed cost (USD) | D96: =-D79 -> 
B97: Net Profit - before tax (USD) for income tax calculation | C97: =SUM(C93:C96) -> 0
B98: Income tax | D98: =-D74 -> 
D99: =+PV($C57,D92,,-D98) -> 
B100: Cash-flow - after tax (USD) | C100: =C85 ->  | D100: =D88+D98 -> 
B101: Present cash-flow - after tax (USD) | D101: =+PV($C57,D92,,-D100) -> 
A103: Cumulative value of Net Profit
B104: Operating Year | C104: Appraisal | D104: 1 | E104: 2 | F104: 3 | G104: 4 | H104: 5 | I104: 6 | J104: 7 | K104: 8 | L104: 9 | M104: 10 | N104: 11 | O104: 12 | P104: 13 | Q104: 14 | R104: 15 | S104: 16 | T104: 17 | U104: 18 | V104: 19 | W104: 20
B105: Cumulative value of Net Profit - before tax | C105: =C88 ->  | D105: =C105+(D89) -> 
B106: Cumulative value of Net Profit - after tax | C106: =C100 ->  | D106: =C106+(D101) -> 
A108: Financial Analysis Result
B110: Net Present Value (NPV) (USD) - before tax | C110: =NPV(C57,D88:W88)+C88 -> 
B111: Internal Rate of Return (IRR) (%) - before tax | C111: =IF(C110<0,"Not feasible",IRR(C88:W88,0.000001)) -> 
B112: Payback period (years) | C112: Please see Figure of the cumulative value of Net Profit - before tax
B115: Net Present Value (NPV) (USD) - after tax | C115: =NPV(C57,D100:W100)+C100 -> 
B116: Internal Rate of Return (IRR) (%) - after tax | C116: =IF(C115<0,"Not feasible",IRR(C100:W100,0.000001)) -> 
B117: Payback period (years) | C117: Please see Figure of the cumulative value of Net Profit - after tax
B118: Total income tax payment of project lifetime | C118: =SUM(D99:W99) -> 

Sheet FA5_FS1_SC2 (hidden)
B2: =+UPPER("FINANCIAL EVALUATION OF "&'Data Entry Needs'!$E$10&" PRODUCTION 5 Million Litres/year SCENARIO 2") -> FINANCIAL EVALUATION OF PLEASE SELECT PRODUCTION 5 MILLION LITRES/YEAR SCENARIO 2
A5: ="Revenues of "&'Data Entry Needs'!$E$10&" production (Benefit)" -> Revenues of Please Select production (Benefit)
B7: Operating Year | C7: 0 | D7: 1 | E7: 2 | F7: 3 | G7: 4 | H7: 5 | I7: 6 | J7: 7 | K7: 8 | L7: 9 | M7: 10 | N7: 11 | O7: 12 | P7: 13 | Q7: 14 | R7: 15 | S7: 16 | T7: 17 | U7: 18 | V7: 19 | W7: 20
B9: Capacity (million of litres) | C9: 5 | D9: =C9 -> 5 | E9: 5 | F9: 5 | G9: 5 | H9: 5 | I9: 5 | J9: 5 | K9: 5 | L9: 5 | M9: 5 | N9: 5 | O9: 5 | P9: 5 | Q9: 5 | R9: 5 | S9: 5 | T9: 5 | U9: 5 | V9: 5 | W9: 5
B10: Annual production (litres per year) | C10: =+C9*1000000 -> 5000000 | D10: =+C10 -> 5000000 | E10: 5000000 | F10: 5000000 | G10: 5000000 | H10: 5000000 | I10: 5000000 | J10: 5000000 | K10: 5000000 | L10: 5000000 | M10: 5000000 | N10: 5000000 | O10: 5000000 | P10: 5000000 | Q10: 5000000 | R10: 5000000 | S10: 5000000 | T10: 5000000 | U10: 5000000 | V10: 5000000 | W10: 5000000
B11: Loss in production processing (%) | D11: 0 | E11: =+D11 -> 0 | F11: 0 | G11: 0 | H11: 0 | I11: 0 | J11: 0 | K11: 0 | L11: 0 | M11: 0 | N11: 0 | O11: 0 | P11: 0 | Q11: 0 | R11: 0 | S11: 0 | T11: 0 | U11: 0 | V11: 0 | W11: 0
B12: Sales to customers (litres per year) | C12: =+C10*(1-C11) -> 5000000 | D12: =+C12 -> 5000000 | E12: =+D12 -> 5000000 | F12: 5000000 | G12: 5000000 | H12: 5000000 | I12: 5000000 | J12: 5000000 | K12: 5000000 | L12: 5000000 | M12: 5000000 | N12: 5000000 | O12: 5000000 | P12: 5000000 | Q12: 5000000 | R12: 5000000 | S12: 5000000 | T12: 5000000 | U12: 5000000 | V12: 5000000 | W12: 5000000
B14: ="Price of "&'Data Entry Needs'!$E$10&" (USD/litre)" -> Price of Please Select (USD/litre) | C14: =+VLOOKUP('Data Entry Needs'!$E$10,'Data Entry Needs'!$T$180:$X$183,5,FALSE) ->  | D14: =+C14*(100%+D17) ->  | E14: =+D14*(100%+E17) -> 
B15: =+IF(COST_FS1!$AA$142="","","Price of "&COST_FS1!$AA$142&" (USD/ton)") ->  | C15: =+IF(COST_FS1!$AA$142="",0,COST_FS1!$AC$142) -> 0 | D15: =+C15*(100%+$C17) -> 0 | E15: =+D15*(100%+$C17) -> 0 | F15: =+E15*(100%+$C17) -> 0 | G15: 0 | H15: 0 | I15: 0 | J15: 0 | K15: 0 | L15: 0 | M15: 0 | N15: 0 | O15: 0 | P15: 0 | Q15: 0 | R15: 0 | S15: 0 | T15: 0 | U15: 0 | V15: 0 | W15: 0
B16: =+IF(COST_FS1!$AA$143="","","Price of "&COST_FS1!$AA$143&" (USD/ton)") ->  | C16: =+IF(COST_FS1!$AA$143="",0,COST_FS1!$AC$143) ->  | D16: =+C16*(100%+$C17) ->  | E16: =+D16*(100%+$C17) -> 
B17: ="Increase rate of price of "&'Data Entry Needs'!$E$10&" (%)" -> Increase rate of price of Please Select (%) | C17: =+'Data Entry Needs'!$O$174 -> 0 | D17: =+C17 -> 0 | E17: =+D17 -> 0 | F17: 0 | G17: 0 | H17: 0 | I17: 0 | J17: 0 | K17: 0 | L17: 0 | M17: 0 | N17: 0 | O17: 0 | P17: 0 | Q17: 0 | R17: 0 | S17: 0 | T17: 0 | U17: 0 | V17: 0 | W17: 0
B18: Income (USD per year) | C18: =+C12*C14 ->  | D18: =+D12*D14 -> 
B20: By-products revenue | C20: =+COST_FS1!$AD$142*C15+COST_FS1!$AD$143*C16 ->  | D20: =+COST_FS1!$AD$142*D15+COST_FS1!$AD$143*D16 ->  | E20: =+COST_FS1!$AD$142*E15+COST_FS1!$AD$143*E16 ->  | F20: =+COST_FS1!$AD$142*F15+COST_FS1!$AD$143*F16 ->  | G20: =+COST_FS1!$AD$142*G15+COST_FS1!$AD$143*G16 ->  | H20: =+COST_FS1!$AD$142*H15+COST_FS1!$AD$143*H16 ->  | I20: =+COST_FS1!$AD$142*I15+COST_FS1!$AD$143*I16 ->  | J20: =+COST_FS1!$AD$142*J15+COST_FS1!$AD$143*J16 ->  | K20: =+COST_FS1!$AD$142*K15+COST_FS1!$AD$143*K16 ->  | L20: =+COST_FS1!$AD$142*L15+COST_FS1!$AD$143*L16 ->  | M20: =+COST_FS1!$AD$142*M15+COST_FS1!$AD$143*M16 ->  | N20: =+COST_FS1!$AD$142*N15+COST_FS1!$AD$143*N16 ->  | O20: =+COST_FS1!$AD$142*O15+COST_FS1!$AD$143*O16 ->  | P20: =+COST_FS1!$AD$142*P15+COST_FS1!$AD$143*P16 ->  | Q20: =+COST_FS1!$AD$142*Q15+COST_FS1!$AD$143*Q16 ->  | R20: =+COST_FS1!$AD$142*R15+COST_FS1!$AD$143*R16 ->  | S20: =+COST_FS1!$AD$142*S15+COST_FS1!$AD$143*S16 ->  | T20: =+COST_FS1!$AD$142*T15+COST_FS1!$AD$143*T16 ->  | U20: =+COST_FS1!$AD$142*U15+COST_FS1!$AD$143*U16 ->  | V20: =+COST_FS1!$AD$142*V15+COST_FS1!$AD$143*V16 ->  | W20: =+COST_FS1!$AD$142*W15+COST_FS1!$AD$143*W16 -> 
B22: Total income | D22: =+D18+D20 ->  | E22: =+E18+E20 -> 
A25: Capital and operating cost
B27: Operating Year | C27: Appraisal | D27: 1 | E27: 2 | F27: 3 | G27: 4 | H27: 5 | I27: 6 | J27: 7 | K27: 8 | L27: 9 | M27: 10 | N27: 11 | O27: 12 | P27: 13 | Q27: 14 | R27: 15 | S27: 16 | T27: 17 | U27: 18 | V27: 19 | W27: 20
B28: Direct capital cost (USD)
B29: Equipments | C29: =+COST_FS1!$F74 -> 
B30: Building | C30: =+COST_FS1!$F75 ->  | N30: =+C30 -> 
B31: Installation | C31: =+COST_FS1!$F76 ->  | N31: =+C31 -> 
B33: Total capital cost (USD) | C33: =C29+C30+C31 ->  | D33: 0 | E33: 0 | F33: 0 | G33: 0 | H33: 0 | I33: 0 | J33: 0 | K33: 0 | L33: 0 | M33: 0 | O33: 0 | P33: 0 | Q33: 0 | R33: 0 | S33: 0 | T33: 0 | U33: 0 | V33: 0 | W33: 0
B34: Capital cost (USD/MLN litres) | C34: =+C33/C9 -> 
B35: Capital cost (USD/ litre) | C35: =+C33/C12 -> 
B38: Operating Year | C38: Appraisal | D38: 1 | E38: 2 | F38: 3 | G38: 4 | H38: 5 | I38: 6 | J38: 7 | K38: 8 | L38: 9 | M38: 10 | N38: 11 | O38: 12 | P38: 13 | Q38: 14 | R38: 15 | S38: 16 | T38: 17 | U38: 18 | V38: 19 | W38: 20
B39: Annual operating and maintenance cost
B40: Sub-total input cost (USD) | C40: =+C41+C42 -> 
B41: Feedstock cost (USD/year) | C41: =+COST_FS1!$G$43 ->  | D41: =+C41 -> 
B42: Other raw material costs (USD/year) | C42: =+COST_FS1!$G$57 ->  | D42: =+C42 -> 
B43: Labour cost (USD/year) | C43: =+COST_FS1!$G$64 -> 0 | D43: =C43*(1+D63) -> 0 | E43: 0 | F43: 0 | G43: 0 | H43: 0 | I43: 0 | J43: 0 | K43: 0 | L43: 0 | M43: 0 | N43: 0 | O43: 0 | P43: 0 | Q43: 0 | R43: 0 | S43: 0 | T43: 0 | U43: 0 | V43: 0 | W43: 0
B44: Transportation cost (USD/year) | C44: =+COST_FS1!$G$70 ->  | D44: =+C44 -> 
B45: Investment cost (USD/year) | C45: =+COST_FS1!$G$78 ->  | D45: =+C45 -> 
B46: Maintenance cost (USD/year) | C46: =+COST_FS1!$G$79 ->  | D46: =+C46 -> 
B47: Storage cost (USD/year) | C47: =+COST_FS1!$G$86 ->  | D47: =C47 -> 
B48: Plant overhead (USD/year) | C48: =+COST_FS1!G90 ->  | D48: =+C48 -> 
B49: General and administrative cost (USD/year) | C49: =+COST_FS1!G91 ->  | D49: =+C49 -> 
B50: Total annualized cost (USD) | C50: =SUM(C41:C49) ->  | D50: =SUM(D41:D49) -> 
B51: Total cost per litre (USD/l) | C51: =+C50/C12 -> 
A53: Financial parameters
B54: Operating Year | C54: Appraisal | D54: 1 | E54: 2 | F54: 3 | G54: 4 | H54: 5 | I54: 6 | J54: 7 | K54: 8 | L54: 9 | M54: 10 | N54: 11 | O54: 12 | P54: 13 | Q54: 14 | R54: 15 | S54: 16 | T54: 17 | U54: 18 | V54: 19 | W54: 20
B55: Raw material cost escalation rate (%) | D55: =+'Data Entry Needs'!$O$172 -> 0 | E55: =D55 -> 0 | F55: 0 | G55: 0 | H55: 0 | I55: 0 | J55: 0 | K55: 0 | L55: 0 | M55: 0 | N55: 0 | O55: 0 | P55: 0 | Q55: 0 | R55: 0 | S55: 0 | T55: 0 | U55: 0 | V55: 0 | W55: 0
B56: Inflation rate (%) | D56: =+'Data Entry Needs'!$O$175 -> 0 | E56: =D56 -> 0 | F56: 0 | G56: 0 | H56: 0 | I56: 0 | J56: 0 | K56: 0 | L56: 0 | M56: 0 | N56: 0 | O56: 0 | P56: 0 | Q56: 0 | R56: 0 | S56: 0 | T56: 0 | U56: 0 | V56: 0 | W56: 0
B57: Discount rate (%) | C57: =+'Data Entry Needs'!$D$64 -> 0
B58: Debt ratio (%) | C58: =+'Data Entry Needs'!$D$69 -> 0
B60: Loan | D60: 1 | E60: 2 | F60: 3 | G60: 4 | H60: 5 | I60: 6 | J60: 7 | K60: 8 | L60: 9 | M60: 10 | N60: 11 | O60: 12 | P60: 13 | Q60: 14 | R60: 15 | S60: 16 | T60: 17 | U60: 18 | V60: 19 | W60: 20
B61: Loan amount (USD ) | C61: =C58*C33 -> 
B62: Increasing rate of price of biodiesel (%) | C62: =+'Data Entry Needs'!$O$174 -> 0 | D62: =+C62 -> 0 | E62: 0 | F62: 0 | G62: 0 | H62: 0 | I62: 0 | J62: 0 | K62: 0 | L62: 0 | M62: 0 | N62: 0 | O62: 0 | P62: 0 | Q62: 0 | R62: 0 | S62: 0 | T62: 0 | U62: 0 | V62: 0 | W62: 0
B63: Escalation rate of labour cost (%) | D63: =+'Data Entry Needs'!$O$170 -> 0 | E63: =+D63 -> 0 | F63: 0 | G63: 0 | H63: 0 | I63: 0 | J63: 0 | K63: 0 | L63: 0 | M63: 0 | N63: 0 | O63: 0 | P63: 0 | Q63: 0 | R63: 0 | S63: 0 | T63: 0 | U63: 0 | V63: 0 | W63: 0
B64: Loan interest rate (%) | C64: =+'Data Entry Needs'!$D$65 -> 0
B65: Loan term (years) | C65: =+'Data Entry Needs'!$D$66 -> 0
B66: Loan payment (USD/month) | C66: =(PMT(C64/12,(12*C65),C61)) -> 
B67: Loan payment (USD/year) | D67: =IF(D54<=$C$65,$C$66*12,0) -> 0 | E67: 0 | F67: 0 | G67: 0 | H67: 0 | I67: 0 | J67: 0 | K67: 0 | L67: 0 | M67: 0 | N67: 0 | O67: 0 | P67: 0 | Q67: 0 | R67: 0 | S67: 0 | T67: 0 | U67: 0 | V67: 0 | W67: 0
B68: Total loan payment (USD) | C68: =SUM(D67:W67) -> 0
B69: Loan interest payment (USD) | C69: =C68+C61 ->  | D69: Average loan interest payment for project lifetime | G69: =C69/20 ->  | H69: USD per year
A71: Income tax analysis
B72: Operating Year | C72: Appraisal | D72: 1 | E72: 2 | F72: 3 | G72: 4 | H72: 5 | I72: 6 | J72: 7 | K72: 8 | L72: 9 | M72: 10 | N72: 11 | O72: 12 | P72: 13 | Q72: 14 | R72: 15 | S72: 16 | T72: 17 | U72: 18 | V72: 19 | W72: 20
B73: Effective income tax rate (%) | C73: 0 | D73: =C73 -> 0 | E73: 0 | F73: 0 | G73: 0 | H73: 0 | I73: 0 | J73: 0 | K73: 0 | L73: 0 | M73: 0 | N73: 0 | O73: 0 | P73: 0 | Q73: 0 | R73: 0 | S73: 0 | T73: 0 | U73: 0 | V73: 0 | W73: 0
B74: Income tax | D74: =IF(D97<0,0,D73*D97) -> 
A76: Depreciation
B77: Operating Year | C77: Appraisal | D77: 1 | E77: 2 | F77: 3 | G77: 4 | H77: 5 | I77: 6 | J77: 7 | K77: 8 | L77: 9 | M77: 10 | N77: 11 | O77: 12 | P77: 13 | Q77: 14 | R77: 15 | S77: 16 | T77: 17 | U77: 18 | V77: 19 | W77: 20
B78: Depreciation method | C78: Straight-line
B79: Total depreciation (USD) | D79: =+C45 ->  | E79: =D79 -> 
A82: Summary of this project - before tax
B83: Operating Year | C83: Appraisal | D83: 1 | E83: 2 | F83: 3 | G83: 4 | H83: 5 | I83: 6 | J83: 7 | K83: 8 | L83: 9 | M83: 10 | N83: 11 | O83: 12 | P83: 13 | Q83: 14 | R83: 15 | S83: 16 | T83: 17 | U83: 18 | V83: 19 | W83: 20
B84: Total revenue (USD) | D84: =+D22 -> 
B85: Total capital cost (USD) | C85: =-(C33-C61) -> 
B86: Total operating and maintenance cost (USD) | D86: =-(D50-D45) -> 
B87: Debt payment (USD) | D87: =D67 -> 0 | E87: 0 | F87: 0 | G87: 0 | H87: 0 | I87: 0 | J87: 0 | K87: 0 | L87: 0 | M87: 0 | N87: 0 | O87: 0 | P87: 0 | Q87: 0 | R87: 0 | S87: 0 | T87: 0 | U87: 0 | V87: 0 | W87: 0
B88: Cash-flow - before tax (USD) | C88: =SUM(C84:C87) -> 
B89: Present cash-flow - before tax (USD) | D89: =+D88/((1+$C57)^D83) -> 
D90: =+PV($C57,D83,,-D88,) -> 
A91: Summary of this project - after tax
B92: Operating Year | C92: Appraisal | D92: 1 | E92: 2 | F92: 3 | G92: 4 | H92: 5 | I92: 6 | J92: 7 | K92: 8 | L92: 9 | M92: 10 | N92: 11 | O92: 12 | P92: 13 | Q92: 14 | R92: 15 | S92: 16 | T92: 17 | U92: 18 | V92: 19 | W92: 20
B93: =B84 -> Total revenue (USD) | C93: 0
B94: Total operating and maintenance cost (USD) | D94: =-(D50-D45) -> 
B95: Debt payment (USD) | D95: =D67 -> 0 | E95: 0 | F95: 0 | G95: 0 | H95: 0 | I95: 0 | J95: 0 | K95: 0 | L95: 0 | M95: 0 | N95: 0 | O95: 0 | P95: 0 | Q95: 0 | R95: 0 | S95: 0 | T95: 0 | U95: 0 | V95: 0 | W95: 0
B96: Depreciation of fixed cost (USD) | D96: =-D79 -> 
B97: Net Profit - before tax (USD) for income tax calculation | C97: =SUM(C93:C96) -> 0
B98: Income tax | D98: =-D74 -> 
D99: =+PV($C57,D92,,-D98) -> 
B100: Cash-flow - after tax (USD) | C100: =C85 ->  | D100: =D88+D98 -> 
B101: Present cash-flow - after tax (USD) | D101: =+PV($C57,D92,,-D100) -> 
A103: Cumulative value of Net Profit
B104: Operating Year | C104: Appraisal | D104: 1 | E104: 2 | F104: 3 | G104: 4 | H104: 5 | I104: 6 | J104: 7 | K104: 8 | L104: 9 | M104: 10 | N104: 11 | O104: 12 | P104: 13 | Q104: 14 | R104: 15 | S104: 16 | T104: 17 | U104: 18 | V104: 19 | W104: 20
B105: Cumulative value of Net Profit - before tax | C105: =C88 ->  | D105: =C105+(D89) -> 
B106: Cumulative value of Net Profit - after tax | C106: =C100 ->  | D106: =C106+(D101) -> 
A108: Financial analysis result
B110: Net Present Value (NPV) (USD) - before tax | C110: =NPV(C57,D88:W88)+C88 -> 
B111: Internal Rate of Return (IRR) (%) - before tax | C111: =IF(C110<0,"Not feasible",IRR(C88:W88,0.000001)) -> 
B112: Payback period (years) | C112: Please see Figure of the cumulative value of Net Profit - before tax
B115: Net Present Value (NPV) (USD) - after tax | C115: =NPV(C57,D100:W100)+C100 -> 
B116: Internal Rate of Return (IRR) (%) - after tax | C116: =IF(C115<0,"Not feasible",IRR(C100:W100,0.000001)) -> 
B117: Payback period (years) | C117: Please see Figure of the Cumulative value of Net Profit - after tax
B118: Total Income tax payment of project lifetime | C118: =SUM(D99:W99) -> 

Sheet FA5_FS1_SC3 (hidden)
B2: =+UPPER("FINANCIAL EVALUATION OF "&'Data Entry Needs'!$E$10&" PRODUCTION 5 Million Litres/year SCENARIO 3") -> FINANCIAL EVALUATION OF PLEASE SELECT PRODUCTION 5 MILLION LITRES/YEAR SCENARIO 3
A5: ="Revenues of "&'Data Entry Needs'!$E$10&" production (Benefit)" -> Revenues of Please Select production (Benefit)
B7: Operating Year | C7: 0 | D7: 1 | E7: 2 | F7: 3 | G7: 4 | H7: 5 | I7: 6 | J7: 7 | K7: 8 | L7: 9 | M7: 10 | N7: 11 | O7: 12 | P7: 13 | Q7: 14 | R7: 15 | S7: 16 | T7: 17 | U7: 18 | V7: 19 | W7: 20
B9: Capacity (million of litres) | C9: 5 | D9: =C9 -> 5 | E9: 5 | F9: 5 | G9: 5 | H9: 5 | I9: 5 | J9: 5 | K9: 5 | L9: 5 | M9: 5 | N9: 5 | O9: 5 | P9: 5 | Q9: 5 | R9: 5 | S9: 5 | T9: 5 | U9: 5 | V9: 5 | W9: 5
B10: Annual production (litres per year) | C10: =+C9*1000000 -> 5000000 | D10: =+C10 -> 5000000 | E10: 5000000 | F10: 5000000 | G10: 5000000 | H10: 5000000 | I10: 5000000 | J10: 5000000 | K10: 5000000 | L10: 5000000 | M10: 5000000 | N10: 5000000 | O10: 5000000 | P10: 5000000 | Q10: 5000000 | R10: 5000000 | S10: 5000000 | T10: 5000000 | U10: 5000000 | V10: 5000000 | W10: 5000000
B11: Loss in production processing (%) | D11: 0 | E11: =+D11 -> 0 | F11: 0 | G11: 0 | H11: 0 | I11: 0 | J11: 0 | K11: 0 | L11: 0 | M11: 0 | N11: 0 | O11: 0 | P11: 0 | Q11: 0 | R11: 0 | S11: 0 | T11: 0 | U11: 0 | V11: 0 | W11: 0
B12: Sales to customers (litres per year) | C12: =+C10*(1-C11) -> 5000000 | D12: =+C12 -> 5000000 | E12: =+D12 -> 5000000 | F12: 5000000 | G12: 5000000 | H12: 5000000 | I12: 5000000 | J12: 5000000 | K12: 5000000 | L12: 5000000 | M12: 5000000 | N12: 5000000 | O12: 5000000 | P12: 5000000 | Q12: 5000000 | R12: 5000000 | S12: 5000000 | T12: 5000000 | U12: 5000000 | V12: 5000000 | W12: 5000000
B14: ="Price of "&'Data Entry Needs'!$E$10&" (USD/litre)" -> Price of Please Select (USD/litre) | C14: =+VLOOKUP('Data Entry Needs'!$E$10,'Data Entry Needs'!$T$180:$X$183,5,FALSE) ->  | D14: =+C14*(100%+D17) ->  | E14: =+D14*(100%+E17) -> 
B15: =+IF(COST_FS1!$AA$142="","","Price of "&COST_FS1!$AA$142&" (USD/ton)") ->  | C15: =+IF(COST_FS1!$AA$142="",0,COST_FS1!$AC$142) -> 0 | D15: =+C15*(100%+$C17) -> 0 | E15: =+D15*(100%+$C17) -> 0 | F15: =+E15*(100%+$C17) -> 0 | G15: 0 | H15: 0 | I15: 0 | J15: 0 | K15: 0 | L15: 0 | M15: 0 | N15: 0 | O15: 0 | P15: 0 | Q15: 0 | R15: 0 | S15: 0 | T15: 0 | U15: 0 | V15: 0 | W15: 0
B16: =+IF(COST_FS1!$AA$143="","","Price of "&COST_FS1!$AA$143&" (USD/ton)") ->  | C16: =+IF(COST_FS1!$AA$143="",0,COST_FS1!$AC$143) ->  | D16: =+C16*(100%+$C17) ->  | E16: =+D16*(100%+$C17) -> 
B17: ="Increase rate of price of "&'Data Entry Needs'!$E$10&" (%)" -> Increase rate of price of Please Select (%) | C17: =+'Data Entry Needs'!$O$174 -> 0 | D17: =+C17 -> 0 | E17: =+D17 -> 0 | F17: 0 | G17: 0 | H17: 0 | I17: 0 | J17: 0 | K17: 0 | L17: 0 | M17: 0 | N17: 0 | O17: 0 | P17: 0 | Q17: 0 | R17: 0 | S17: 0 | T17: 0 | U17: 0 | V17: 0 | W17: 0
B18: Income (USD per year) | C18: =+C12*C14 ->  | D18: =+D12*D14 -> 
B20: By-products revenue | C20: =+COST_FS1!$AD$142*C15+COST_FS1!$AD$143*C16 ->  | D20: =+COST_FS1!$AD$142*D15+COST_FS1!$AD$143*D16 ->  | E20: =+COST_FS1!$AD$142*E15+COST_FS1!$AD$143*E16 ->  | F20: =+COST_FS1!$AD$142*F15+COST_FS1!$AD$143*F16 ->  | G20: =+COST_FS1!$AD$142*G15+COST_FS1!$AD$143*G16 ->  | H20: =+COST_FS1!$AD$142*H15+COST_FS1!$AD$143*H16 ->  | I20: =+COST_FS1!$AD$142*I15+COST_FS1!$AD$143*I16 ->  | J20: =+COST_FS1!$AD$142*J15+COST_FS1!$AD$143*J16 ->  | K20: =+COST_FS1!$AD$142*K15+COST_FS1!$AD$143*K16 ->  | L20: =+COST_FS1!$AD$142*L15+COST_FS1!$AD$143*L16 ->  | M20: =+COST_FS1!$AD$142*M15+COST_FS1!$AD$143*M16 ->  | N20: =+COST_FS1!$AD$142*N15+COST_FS1!$AD$143*N16 ->  | O20: =+COST_FS1!$AD$142*O15+COST_FS1!$AD$143*O16 ->  | P20: =+COST_FS1!$AD$142*P15+COST_FS1!$AD$143*P16 ->  | Q20: =+COST_FS1!$AD$142*Q15+COST_FS1!$AD$143*Q16 ->  | R20: =+COST_FS1!$AD$142*R15+COST_FS1!$AD$143*R16 ->  | S20: =+COST_FS1!$AD$142*S15+COST_FS1!$AD$143*S16 ->  | T20: =+COST_FS1!$AD$142*T15+COST_FS1!$AD$143*T16 ->  | U20: =+COST_FS1!$AD$142*U15+COST_FS1!$AD$143*U16 ->  | V20: =+COST_FS1!$AD$142*V15+COST_FS1!$AD$143*V16 ->  | W20: =+COST_FS1!$AD$142*W15+COST_FS1!$AD$143*W16 -> 
B22: Total income | D22: =+D18+D20 ->  | E22: =+E18+E20 -> 
A25: Capital and operating cost
B27: Operating Year | C27: Appraisal | D27: 1 | E27: 2 | F27: 3 | G27: 4 | H27: 5 | I27: 6 | J27: 7 | K27: 8 | L27: 9 | M27: 10 | N27: 11 | O27: 12 | P27: 13 | Q27: 14 | R27: 15 | S27: 16 | T27: 17 | U27: 18 | V27: 19 | W27: 20
B28: Direct capital cost (USD)
B29: Equipments | C29: =+COST_FS1!$F74 -> 
B30: Building | C30: =+COST_FS1!$F75 ->  | N30: =+C30 -> 
B31: Installation | C31: =+COST_FS1!$F76 ->  | N31: =+C31 -> 
B33: Total capital cost (USD) | C33: =C29+C30+C31 ->  | D33: 0 | E33: 0 | F33: 0 | G33: 0 | H33: 0 | I33: 0 | J33: 0 | K33: 0 | L33: 0 | M33: 0 | O33: 0 | P33: 0 | Q33: 0 | R33: 0 | S33: 0 | T33: 0 | U33: 0 | V33: 0 | W33: 0
B34: Capital cost (USD/MLN litres) | C34: =+C33/C9 -> 
B35: Capital cost (USD/ litre) | C35: =+C33/C12 -> 
B38: Operating Year | C38: Appraisal | D38: 1 | E38: 2 | F38: 3 | G38: 4 | H38: 5 | I38: 6 | J38: 7 | K38: 8 | L38: 9 | M38: 10 | N38: 11 | O38: 12 | P38: 13 | Q38: 14 | R38: 15 | S38: 16 | T38: 17 | U38: 18 | V38: 19 | W38: 20
B39: Annual operating and maintenance cost
B40: Sub-total input cost (USD) | C40: =+C41+C42 -> 
B41: Feedstock cost (USD/year) | C41: =+COST_FS1!$G$44 ->  | D41: =+C41 -> 
B42: Other raw material costs (USD/year) | C42: =+COST_FS1!$G$57 ->  | D42: =+C42 -> 
B43: Labour cost (USD/year) | C43: =+COST_FS1!$G$64 -> 0 | D43: =C43*(1+D63) -> 0 | E43: 0 | F43: 0 | G43: 0 | H43: 0 | I43: 0 | J43: 0 | K43: 0 | L43: 0 | M43: 0 | N43: 0 | O43: 0 | P43: 0 | Q43: 0 | R43: 0 | S43: 0 | T43: 0 | U43: 0 | V43: 0 | W43: 0
B44: Transportation cost (USD/year) | C44: =+COST_FS1!$G$70 ->  | D44: =+C44 -> 
B45: Investment cost (USD/year) | C45: =+COST_FS1!$G$78 ->  | D45: =+C45 -> 
B46: Maintenance cost (USD/year) | C46: =+COST_FS1!$G$79 ->  | D46: =+C46 -> 
B47: Storage cost (USD/year) | C47: =+COST_FS1!$G$86 ->  | D47: =C47 -> 
B48: Plant overhead (USD/year) | C48: =+COST_FS1!G90 ->  | D48: =+C48 -> 
B49: General and administrative cost (USD/year) | C49: =+COST_FS1!G91 ->  | D49: =+C49 -> 
B50: Total annualized cost (USD) | C50: =SUM(C41:C49) ->  | D50: =SUM(D41:D49) -> 
B51: Total cost per litre (USD/l) | C51: =+C50/C12 -> 
A53: Financial parameters
B54: Operating Year | C54: Appraisal | D54: 1 | E54: 2 | F54: 3 | G54: 4 | H54: 5 | I54: 6 | J54: 7 | K54: 8 | L54: 9 | M54: 10 | N54: 11 | O54: 12 | P54: 13 | Q54: 14 | R54: 15 | S54: 16 | T54: 17 | U54: 18 | V54: 19 | W54: 20
B55: Raw material cost escalation rate (%) | D55: =+'Data Entry Needs'!$O$172 -> 0 | E55: =D55 -> 0 | F55: 0 | G55: 0 | H55: 0 | I55: 0 | J55: 0 | K55: 0 | L55: 0 | M55: 0 | N55: 0 | O55: 0 | P55: 0 | Q55: 0 | R55: 0 | S55: 0 | T55: 0 | U55: 0 | V55: 0 | W55: 0
B56: Inflation rate (%) | D56: =+'Data Entry Needs'!$O$175 -> 0 | E56: =D56 -> 0 | F56: 0 | G56: 0 | H56: 0 | I56: 0 | J56: 0 | K56: 0 | L56: 0 | M56: 0 | N56: 0 | O56: 0 | P56: 0 | Q56: 0 | R56: 0 | S56: 0 | T56: 0 | U56: 0 | V56: 0 | W56: 0
B57: Discount rate (%) | C57: =+'Data Entry Needs'!$D$64 -> 0
B58: Debt ratio (%) | C58: =+'Data Entry Needs'!$D$69 -> 0
B60: Loan | D60: 1 | E60: 2 | F60: 3 | G60: 4 | H60: 5 | I60: 6 | J60: 7 | K60: 8 | L60: 9 | M60: 10 | N60: 11 | O60: 12 | P60: 13 | Q60: 14 | R60: 15 | S60: 16 | T60: 17 | U60: 18 | V60: 19 | W60: 20
B61: Loan amount (USD ) | C61: =C58*C33 -> 
B62: Increasing rate of price of biodiesel (%) | C62: =+'Data Entry Needs'!$O$174 -> 0 | D62: =+C62 -> 0 | E62: 0 | F62: 0 | G62: 0 | H62: 0 | I62: 0 | J62: 0 | K62: 0 | L62: 0 | M62: 0 | N62: 0 | O62: 0 | P62: 0 | Q62: 0 | R62: 0 | S62: 0 | T62: 0 | U62: 0 | V62: 0 | W62: 0
B63: Escalation rate of labour cost (%) | D63: =+'Data Entry Needs'!$O$170 -> 0 | E63: =+D63 -> 0 | F63: 0 | G63: 0 | H63: 0 | I63: 0 | J63: 0 | K63: 0 | L63: 0 | M63: 0 | N63: 0 | O63: 0 | P63: 0 | Q63: 0 | R63: 0 | S63: 0 | T63: 0 | U63: 0 | V63: 0 | W63: 0
B64: Loan interest rate (%) | C64: =+'Data Entry Needs'!$D$65 -> 0
B65: Loan term (years) | C65: =+'Data Entry Needs'!$D$66 -> 0
B66: Loan payment (USD/month) | C66: =(PMT(C64/12,(12*C65),C61)) -> 
B67: Loan payment (USD/year) | D67: =IF(D54<=$C$65,$C$66*12,0) -> 0 | E67: 0 | F67: 0 | G67: 0 | H67: 0 | I67: 0 | J67: 0 | K67: 0 | L67: 0 | M67: 0 | N67: 0 | O67: 0 | P67: 0 | Q67: 0 | R67: 0 | S67: 0 | T67: 0 | U67: 0 | V67: 0 | W67: 0
B68: Total loan payment (USD) | C68: =SUM(D67:W67) -> 0
B69: Loan interest payment (USD) | C69: =C68+C61 ->  | D69: Average loan interest payment for project lifetime | G69: =C69/20 ->  | H69: USD per year
A71: Income tax analysis
B72: Operating Year | C72: Appraisal | D72: 1 | E72: 2 | F72: 3 | G72: 4 | H72: 5 | I72: 6 | J72: 7 | K72: 8 | L72: 9 | M72: 10 | N72: 11 | O72: 12 | P72: 13 | Q72: 14 | R72: 15 | S72: 16 | T72: 17 | U72: 18 | V72: 19 | W72: 20
B73: Effective income tax rate (%) | C73: 0 | D73: =C73 -> 0 | E73: 0 | F73: 0 | G73: 0 | H73: 0 | I73: 0 | J73: 0 | K73: 0 | L73: 0 | M73: 0 | N73: 0 | O73: 0 | P73: 0 | Q73: 0 | R73: 0 | S73: 0 | T73: 0 | U73: 0 | V73: 0 | W73: 0
B74: Income tax | D74: =IF(D97<0,0,D73*D97) -> 
A76: Depreciation
B77: Operating Year | C77: Appraisal | D77: 1 | E77: 2 | F77: 3 | G77: 4 | H77: 5 | I77: 6 | J77: 7 | K77: 8 | L77: 9 | M77: 10 | N77: 11 | O77: 12 | P77: 13 | Q77: 14 | R77: 15 | S77: 16 | T77: 17 | U77: 18 | V77: 19 | W77: 20
B78: Depreciation method | C78: Straight-line
B79: Total depreciation (USD) | D79: =+C45 ->  | E79: =D79 -> 
A82: Summary of this project - before tax
B83: Operating Year | C83: Appraisal | D83: 1 | E83: 2 | F83: 3 | G83: 4 | H83: 5 | I83: 6 | J83: 7 | K83: 8 | L83: 9 | M83: 10 | N83: 11 | O83: 12 | P83: 13 | Q83: 14 | R83: 15 | S83: 16 | T83: 17 | U83: 18 | V83: 19 | W83: 20
B84: Total revenue (USD) | D84: =+D22 -> 
B85: Total capital cost (USD) | C85: =-(C33-C61) -> 
B86: Total operating and maintenance cost (USD) | D86: =-(D50-D45) -> 
B87: Debt payment (USD) | D87: =D67 -> 0 | E87: 0 | F87: 0 | G87: 0 | H87: 0 | I87: 0 | J87: 0 | K87: 0 | L87: 0 | M87: 0 | N87: 0 | O87: 0 | P87: 0 | Q87: 0 | R87: 0 | S87: 0 | T87: 0 | U87: 0 | V87: 0 | W87: 0
B88: Cash-flow - before tax (USD) | C88: =SUM(C84:C87) -> 
B89: Present cash-flow - before tax (USD) | D89: =+D88/((1+$C57)^D83) -> 
D90: =+PV($C57,D83,,-D88,) -> 
A91: Summary of this project - after tax
B92: Operating Year | C92: Appraisal | D92: 1 | E92: 2 | F92: 3 | G92: 4 | H92: 5 | I92: 6 | J92: 7 | K92: 8 | L92: 9 | M92: 10 | N92: 11 | O92: 12 | P92: 13 | Q92: 14 | R92: 15 | S92: 16 | T92: 17 | U92: 18 | V92: 19 | W92: 20
B93: =B84 -> Total revenue (USD) | C93: 0
B94: Total operating and maintenance cost (USD) | D94: =-(D50-D45) -> 
B95: Debt payment (USD) | D95: =D67 -> 0 | E95: 0 | F95: 0 | G95: 0 | H95: 0 | I95: 0 | J95: 0 | K95: 0 | L95: 0 | M95: 0 | N95: 0 | O95: 0 | P95: 0 | Q95: 0 | R95: 0 | S95: 0 | T95: 0 | U95: 0 | V95: 0 | W95: 0
B96: Depreciation of fixed cost (USD) | D96: =-D79 -> 
B97: Net Profit - before tax (USD) for income tax calculation | C97: =SUM(C93:C96) -> 0
B98: Income tax | D98: =-D74 -> 
D99: =+PV($C57,D92,,-D98) -> 
B100: Cash-flow - after tax (USD) | C100: =C85 ->  | D100: =D88+D98 -> 
B101: Present cash-flow - after tax (USD) | D101: =+PV($C57,D92,,-D100) -> 
A103: Cumulative value of Net Profit
B104: Operating Year | C104: Appraisal | D104: 1 | E104: 2 | F104: 3 | G104: 4 | H104: 5 | I104: 6 | J104: 7 | K104: 8 | L104: 9 | M104: 10 | N104: 11 | O104: 12 | P104: 13 | Q104: 14 | R104: 15 | S104: 16 | T104: 17 | U104: 18 | V104: 19 | W104: 20
B105: Cumulative value of Net Profit - before tax | C105: =C88 ->  | D105: =C105+(D89) -> 
B106: Cumulative value of Net Profit - after tax | C106: =C100 ->  | D106: =C106+(D101) -> 
A108: Financial analysis result
B110: Net Present Value (NPV) (USD) - before tax | C110: =NPV(C57,D88:W88)+C88 -> 
B111: Internal Rate of Return (IRR) (%) - before tax | C111: =IF(C110<0,"Not feasible",IRR(C88:W88,0.000001)) -> 
B112: Payback period (years) | C112: Please see Figure of the cumulative value of net profit - before tax
B115: Net Present Value (NPV) (USD) - After Tax | C115: =NPV(C57,D100:W100)+C100 -> 
B116: Internal Rate of Return (IRR) (%) - After Tax | C116: =IF(C115<0,"Not feasible",IRR(C100:W100,0.000001)) -> 
B117: Payback period (years) | C117: Please see Figure of the cumulative value of Net Profit - after tax
B118: Total income tax payment of project lifetime | C118: =SUM(D99:W99) -> 

Sheet FA25_FS1_SC1 (hidden)
B2: =+UPPER("FINANCIAL EVALUATION OF "&'Data Entry Needs'!$E$10&" PRODUCTION 25 Million Litres/year SCENARIO 1") -> FINANCIAL EVALUATION OF PLEASE SELECT PRODUCTION 25 MILLION LITRES/YEAR SCENARIO 1
A5: ="Revenues of "&'Data Entry Needs'!$E$10&" production (Benefit)" -> Revenues of Please Select production (Benefit)
B7: Operating Year | C7: 0 | D7: 1 | E7: 2 | F7: 3 | G7: 4 | H7: 5 | I7: 6 | J7: 7 | K7: 8 | L7: 9 | M7: 10 | N7: 11 | O7: 12 | P7: 13 | Q7: 14 | R7: 15 | S7: 16 | T7: 17 | U7: 18 | V7: 19 | W7: 20
B9: Capacity (million of litres) | C9: 25 | D9: =C9 -> 25 | E9: 25 | F9: 25 | G9: 25 | H9: 25 | I9: 25 | J9: 25 | K9: 25 | L9: 25 | M9: 25 | N9: 25 | O9: 25 | P9: 25 | Q9: 25 | R9: 25 | S9: 25 | T9: 25 | U9: 25 | V9: 25 | W9: 25
B10: Annual production (litres per year) | C10: =+C9*1000000 -> 25000000 | D10: =+C10 -> 25000000 | E10: 25000000 | F10: 25000000 | G10: 25000000 | H10: 25000000 | I10: 25000000 | J10: 25000000 | K10: 25000000 | L10: 25000000 | M10: 25000000 | N10: 25000000 | O10: 25000000 | P10: 25000000 | Q10: 25000000 | R10: 25000000 | S10: 25000000 | T10: 25000000 | U10: 25000000 | V10: 25000000 | W10: 25000000
B11: Loss in production processing (%) | D11: 0 | E11: =+D11 -> 0 | F11: 0 | G11: 0 | H11: 0 | I11: 0 | J11: 0 | K11: 0 | L11: 0 | M11: 0 | N11: 0 | O11: 0 | P11: 0 | Q11: 0 | R11: 0 | S11: 0 | T11: 0 | U11: 0 | V11: 0 | W11: 0
B12: Sales to customers (litres per year) | C12: =+C10*(1-C11) -> 25000000 | D12: =+C12 -> 25000000 | E12: =+D12 -> 25000000 | F12: 25000000 | G12: 25000000 | H12: 25000000 | I12: 25000000 | J12: 25000000 | K12: 25000000 | L12: 25000000 | M12: 25000000 | N12: 25000000 | O12: 25000000 | P12: 25000000 | Q12: 25000000 | R12: 25000000 | S12: 25000000 | T12: 25000000 | U12: 25000000 | V12: 25000000 | W12: 25000000
B14: ="Price of "&'Data Entry Needs'!$E$10&" (USD/litre)" -> Price of Please Select (USD/litre) | C14: =+VLOOKUP('Data Entry Needs'!$E$10,'Data Entry Needs'!$T$180:$X$183,5,FALSE) ->  | D14: =+C14*(100%+D17) ->  | E14: =+D14*(100%+E17) -> 
B15: =+IF(COST_FS1!$AA$142="","","Price of "&COST_FS1!$AA$142&" (USD/ton)") ->  | C15: =+IF(COST_FS1!$AA$142="",0,COST_FS1!$AC$142) -> 0 | D15: =+C15*(100%+$C17) -> 0 | E15: =+D15*(100%+$C17) -> 0 | F15: =+E15*(100%+$C17) -> 0 | G15: 0 | H15: 0 | I15: 0 | J15: 0 | K15: 0 | L15: 0 | M15: 0 | N15: 0 | O15: 0 | P15: 0 | Q15: 0 | R15: 0 | S15: 0 | T15: 0 | U15: 0 | V15: 0 | W15: 0
B16: =+IF(COST_FS1!$AA$143="","","Price of "&COST_FS1!$AA$143&" (USD/ton)") ->  | C16: =+IF(COST_FS1!$AA$143="",0,COST_FS1!$AC$143) ->  | D16: =+C16*(100%+$C17) ->  | E16: =+D16*(100%+$C17) -> 
B17: ="Increase rate of price of "&'Data Entry Needs'!$E$10&" (%)" -> Increase rate of price of Please Select (%) | C17: =+'Data Entry Needs'!$O$174 -> 0 | D17: =+C17 -> 0 | E17: =+D17 -> 0 | F17: 0 | G17: 0 | H17: 0 | I17: 0 | J17: 0 | K17: 0 | L17: 0 | M17: 0 | N17: 0 | O17: 0 | P17: 0 | Q17: 0 | R17: 0 | S17: 0 | T17: 0 | U17: 0 | V17: 0 | W17: 0
B18: Income (USD per year) | C18: =+C12*C14 ->  | D18: =+D12*D14 -> 
B20: By-products revenue | C20: =+COST_FS1!$AF$142*C15+COST_FS1!$AF$143*C16 ->  | D20: =+COST_FS1!$AF$142*D15+COST_FS1!$AF$143*D16 ->  | E20: =+COST_FS1!$AF$142*E15+COST_FS1!$AF$143*E16 ->  | F20: =+COST_FS1!$AF$142*F15+COST_FS1!$AF$143*F16 ->  | G20: =+COST_FS1!$AF$142*G15+COST_FS1!$AF$143*G16 ->  | H20: =+COST_FS1!$AF$142*H15+COST_FS1!$AF$143*H16 ->  | I20: =+COST_FS1!$AF$142*I15+COST_FS1!$AF$143*I16 ->  | J20: =+COST_FS1!$AF$142*J15+COST_FS1!$AF$143*J16 ->  | K20: =+COST_FS1!$AF$142*K15+COST_FS1!$AF$143*K16 ->  | L20: =+COST_FS1!$AF$142*L15+COST_FS1!$AF$143*L16 ->  | M20: =+COST_FS1!$AF$142*M15+COST_FS1!$AF$143*M16 ->  | N20: =+COST_FS1!$AF$142*N15+COST_FS1!$AF$143*N16 ->  | O20: =+COST_FS1!$AF$142*O15+COST_FS1!$AF$143*O16 ->  | P20: =+COST_FS1!$AF$142*P15+COST_FS1!$AF$143*P16 ->  | Q20: =+COST_FS1!$AF$142*Q15+COST_FS1!$AF$143*Q16 ->  | R20: =+COST_FS1!$AF$142*R15+COST_FS1!$AF$143*R16 ->  | S20: =+COST_FS1!$AF$142*S15+COST_FS1!$AF$143*S16 ->  | T20: =+COST_FS1!$AF$142*T15+COST_FS1!$AF$143*T16 ->  | U20: =+COST_FS1!$AF$142*U15+COST_FS1!$AF$143*U16 ->  | V20: =+COST_FS1!$AF$142*V15+COST_FS1!$AF$143*V16 ->  | W20: =+COST_FS1!$AF$142*W15+COST_FS1!$AF$143*W16 -> 
B22: Total income | D22: =+D18+D20 ->  | E22: =+E18+E20 -> 
A25: Capital and operating cost
B27: Operating Year | C27: Appraisal | D27: 1 | E27: 2 | F27: 3 | G27: 4 | H27: 5 | I27: 6 | J27: 7 | K27: 8 | L27: 9 | M27: 10 | N27: 11 | O27: 12 | P27: 13 | Q27: 14 | R27: 15 | S27: 16 | T27: 17 | U27: 18 | V27: 19 | W27: 20
B28: Direct capital cost (USD)
B29: Equipments | C29: =+COST_FS1!$H74 -> 
B30: Building | C30: =+COST_FS1!$H75 ->  | N30: =+C30 -> 
B31: Installation | C31: =+COST_FS1!$H76 ->  | N31: =+C31 -> 
B33: Total capital cost (USD) | C33: =C29+C30+C31 ->  | D33: 0 | E33: 0 | F33: 0 | G33: 0 | H33: 0 | I33: 0 | J33: 0 | K33: 0 | L33: 0 | M33: 0 | O33: 0 | P33: 0 | Q33: 0 | R33: 0 | S33: 0 | T33: 0 | U33: 0 | V33: 0 | W33: 0
B34: Capital cost (USD/MLN litres) | C34: =+C33/C9 -> 
B35: Capital cost (USD/ litre) | C35: =+C33/C12 -> 
B38: Operating Year | C38: Appraisal | D38: 1 | E38: 2 | F38: 3 | G38: 4 | H38: 5 | I38: 6 | J38: 7 | K38: 8 | L38: 9 | M38: 10 | N38: 11 | O38: 12 | P38: 13 | Q38: 14 | R38: 15 | S38: 16 | T38: 17 | U38: 18 | V38: 19 | W38: 20
B39: Annual operating and maintenance cost
B40: Sub-total input cost (USD) | C40: =+C41+C42 -> 
B41: Feedstock cost (USD/year) | C41: =+COST_FS1!$I$42 ->  | D41: =+C41 -> 
B42: Other raw material costs (USD/year) | C42: =+COST_FS1!$I$57 ->  | D42: =+C42 -> 
B43: Labour cost (USD/year) | C43: =+COST_FS1!$I$64 -> 0 | D43: =C43*(1+D63) -> 0 | E43: 0 | F43: 0 | G43: 0 | H43: 0 | I43: 0 | J43: 0 | K43: 0 | L43: 0 | M43: 0 | N43: 0 | O43: 0 | P43: 0 | Q43: 0 | R43: 0 | S43: 0 | T43: 0 | U43: 0 | V43: 0 | W43: 0
B44: Transportation cost (USD/year) | C44: =+COST_FS1!$I$70 ->  | D44: =+C44 -> 
B45: Investment cost (USD/year) | C45: =+COST_FS1!$I$78 ->  | D45: =+C45 -> 
B46: Maintenance cost (USD/year) | C46: =+COST_FS1!$I$79 ->  | D46: =+C46 -> 
B47: Storage cost (USD/year) | C47: =+COST_FS1!$I$86 ->  | D47: =C47 -> 
B48: Plant overhead (USD/year) | C48: =+COST_FS1!$I$90 ->  | D48: =+C48 -> 
B49: General and administrative cost (USD/year) | C49: =+COST_FS1!$I$91 ->  | D49: =+C49 -> 
B50: Total annualized cost (USD) | C50: =SUM(C41:C49) ->  | D50: =SUM(D41:D49) -> 
B51: Total cost per litre (USD/l) | C51: =+C50/C12 -> 
A53: Financial parameters
B54: Operating Year | C54: Appraisal | D54: 1 | E54: 2 | F54: 3 | G54: 4 | H54: 5 | I54: 6 | J54: 7 | K54: 8 | L54: 9 | M54: 10 | N54: 11 | O54: 12 | P54: 13 | Q54: 14 | R54: 15 | S54: 16 | T54: 17 | U54: 18 | V54: 19 | W54: 20
B55: Raw material cost escalation rate (%) | D55: =+'Data Entry Needs'!$O$172 -> 0 | E55: =D55 -> 0 | F55: 0 | G55: 0 | H55: 0 | I55: 0 | J55: 0 | K55: 0 | L55: 0 | M55: 0 | N55: 0 | O55: 0 | P55: 0 | Q55: 0 | R55: 0 | S55: 0 | T55: 0 | U55: 0 | V55: 0 | W55: 0
B56: Inflation rate (%) | D56: =+'Data Entry Needs'!$O$175 -> 0 | E56: =D56 -> 0 | F56: 0 | G56: 0 | H56: 0 | I56: 0 | J56: 0 | K56: 0 | L56: 0 | M56: 0 | N56: 0 | O56: 0 | P56: 0 | Q56: 0 | R56: 0 | S56: 0 | T56: 0 | U56: 0 | V56: 0 | W56: 0
B57: Discount rate (%) | C57: =+'Data Entry Needs'!$D$64 -> 0
B58: Debt ratio (%) | C58: ='Data Entry Needs'!$D$70 -> 0
B60: Loan | D60: 1 | E60: 2 | F60: 3 | G60: 4 | H60: 5 | I60: 6 | J60: 7 | K60: 8 | L60: 9 | M60: 10 | N60: 11 | O60: 12 | P60: 13 | Q60: 14 | R60: 15 | S60: 16 | T60: 17 | U60: 18 | V60: 19 | W60: 20
B61: Loan amount (USD ) | C61: =C58*C33 -> 
B62: Increasing rate of price of biodiesel (%) | C62: =+'Data Entry Needs'!$O$174 -> 0 | D62: =+C62 -> 0 | E62: 0 | F62: 0 | G62: 0 | H62: 0 | I62: 0 | J62: 0 | K62: 0 | L62: 0 | M62: 0 | N62: 0 | O62: 0 | P62: 0 | Q62: 0 | R62: 0 | S62: 0 | T62: 0 | U62: 0 | V62: 0 | W62: 0
B63: Escalation rate of labour cost (%) | D63: =+'Data Entry Needs'!$O$170 -> 0 | E63: =+D63 -> 0 | F63: 0 | G63: 0 | H63: 0 | I63: 0 | J63: 0 | K63: 0 | L63: 0 | M63: 0 | N63: 0 | O63: 0 | P63: 0 | Q63: 0 | R63: 0 | S63: 0 | T63: 0 | U63: 0 | V63: 0 | W63: 0
B64: Loan interest rate (%) | C64: =+'Data Entry Needs'!$D$65 -> 0
B65: Loan term (years) | C65: =+'Data Entry Needs'!$D$66 -> 0
B66: Loan payment (USD/month) | C66: =(PMT(C64/12,(12*C65),C61)) -> 
B67: Loan payment (USD/year) | D67: =IF(D54<=$C$65,$C$66*12,0) -> 0 | E67: 0 | F67: 0 | G67: 0 | H67: 0 | I67: 0 | J67: 0 | K67: 0 | L67: 0 | M67: 0 | N67: 0 | O67: 0 | P67: 0 | Q67: 0 | R67: 0 | S67: 0 | T67: 0 | U67: 0 | V67: 0 | W67: 0
B68: Total loan payment (USD) | C68: =SUM(D67:W67) -> 0
B69: Loan interest payment (USD) | C69: =C68+C61 ->  | D69: Average loan interest payment for project lifetime | G69: =C69/20 ->  | H69: USD per year
A71: Income tax analysis
B72: Operating Year | C72: Appraisal | D72: 1 | E72: 2 | F72: 3 | G72: 4 | H72: 5 | I72: 6 | J72: 7 | K72: 8 | L72: 9 | M72: 10 | N72: 11 | O72: 12 | P72: 13 | Q72: 14 | R72: 15 | S72: 16 | T72: 17 | U72: 18 | V72: 19 | W72: 20
B73: Effective income tax rate (%) | C73: 0 | D73: =C73 -> 0 | E73: 0 | F73: 0 | G73: 0 | H73: 0 | I73: 0 | J73: 0 | K73: 0 | L73: 0 | M73: 0 | N73: 0 | O73: 0 | P73: 0 | Q73: 0 | R73: 0 | S73: 0 | T73: 0 | U73: 0 | V73: 0 | W73: 0
B74: Income tax | D74: =IF(D97<0,0,D73*D97) -> 
A76: Depreciation
B77: Operating Year | C77: Appraisal | D77: 1 | E77: 2 | F77: 3 | G77: 4 | H77: 5 | I77: 6 | J77: 7 | K77: 8 | L77: 9 | M77: 10 | N77: 11 | O77: 12 | P77: 13 | Q77: 14 | R77: 15 | S77: 16 | T77: 17 | U77: 18 | V77: 19 | W77: 20
B78: Depreciation method | C78: Straight-line
B79: Total depreciation (USD) | D79: =+C45 ->  | E79: =D79 -> 
A82: Summary of this project - before tax
B83: Operating Year | C83: Appraisal | D83: 1 | E83: 2 | F83: 3 | G83: 4 | H83: 5 | I83: 6 | J83: 7 | K83: 8 | L83: 9 | M83: 10 | N83: 11 | O83: 12 | P83: 13 | Q83: 14 | R83: 15 | S83: 16 | T83: 17 | U83: 18 | V83: 19 | W83: 20
B84: Total revenue (USD) | D84: =+D22 -> 
B85: Total capital cost (USD) | C85: =-(C33-C61) -> 
B86: Total operating and maintenance cost (USD) | D86: =-(D50-D45) -> 
B87: Debt payment (USD) | D87: =D67 -> 0 | E87: 0 | F87: 0 | G87: 0 | H87: 0 | I87: 0 | J87: 0 | K87: 0 | L87: 0 | M87: 0 | N87: 0 | O87: 0 | P87: 0 | Q87: 0 | R87: 0 | S87: 0 | T87: 0 | U87: 0 | V87: 0 | W87: 0
B88: Cash-flow - before tax (USD) | C88: =SUM(C84:C87) -> 
B89: Present cash-flow - before tax (USD) | D89: =+D88/((1+$C57)^D83) -> 
D90: =+PV($C57,D83,,-D88,) -> 
A91: Summary of this project - after tax
B92: Operating Year | C92: Appraisal | D92: 1 | E92: 2 | F92: 3 | G92: 4 | H92: 5 | I92: 6 | J92: 7 | K92: 8 | L92: 9 | M92: 10 | N92: 11 | O92: 12 | P92: 13 | Q92: 14 | R92: 15 | S92: 16 | T92: 17 | U92: 18 | V92: 19 | W92: 20
B93: =B84 -> Total revenue (USD) | C93: 0
B94: Total operating and maintenance cost (USD) | D94: =-(D50-D45) -> 
B95: Debt payment (USD) | D95: =D67 -> 0 | E95: 0 | F95: 0 | G95: 0 | H95: 0 | I95: 0 | J95: 0 | K95: 0 | L95: 0 | M95: 0 | N95: 0 | O95: 0 | P95: 0 | Q95: 0 | R95: 0 | S95: 0 | T95: 0 | U95: 0 | V95: 0 | W95: 0
B96: Depreciation of fixed cost (USD) | D96: =-D79 -> 
B97: Net Profit - before tax (USD) for income tax calculation | C97: =SUM(C93:C96) -> 0
B98: Income tax | D98: =-D74 -> 
D99: =+PV($C57,D92,,-D98) -> 
B100: Cash-flow - after tax (USD) | C100: =C85 ->  | D100: =D88+D98 -> 
B101: Present cash-flow - after tax (USD) | D101: =+PV($C57,D92,,-D100) -> 
A103: Cumulative value of Net Profit
B104: Operating Year | C104: Appraisal | D104: 1 | E104: 2 | F104: 3 | G104: 4 | H104: 5 | I104: 6 | J104: 7 | K104: 8 | L104: 9 | M104: 10 | N104: 11 | O104: 12 | P104: 13 | Q104: 14 | R104: 15 | S104: 16 | T104: 17 | U104: 18 | V104: 19 | W104: 20
B105: Cumulative value of Net Profit - before tax | C105: =C88 ->  | D105: =C105+(D89) -> 
B106: Cumulative value of Net Profit - after tax | C106: =C100 ->  | D106: =C106+(D101) -> 
A108: Financial analysis result
B110: Net Present Value (NPV) (USD) - before tax | C110: =NPV(C57,D88:W88)+C88 -> 
B111: Internal Rate of Return (IRR) (%) - before tax | C111: =IF(C110<0,"Not feasible",IRR(C88:W88,0.000001)) -> 
B112: Payback period (years) | C112: Please see Figure of the cumulative value of Net Profit - before tax
B115: Net Present Value (NPV) (USD) - after tax | C115: =NPV(C57,D100:W100)+C100 -> 
B116: Internal Rate of Return (IRR) (%) - after tax | C116: =IF(C115<0,"Not feasible",IRR(C100:W100,0.000001)) -> 
B117: Payback period (years) | C117: Please see Figure of the cumulative value of Net Profit - after tax
B118: Total Income tax payment of project lifetime | C118: =SUM(D99:W99) -> 

Sheet FA25_FS1_SC2 (hidden)
B2: =+UPPER("FINANCIAL EVALUATION OF "&'Data Entry Needs'!$E$10&" PRODUCTION 25 Million Litres/year SCENARIO 2") -> FINANCIAL EVALUATION OF PLEASE SELECT PRODUCTION 25 MILLION LITRES/YEAR SCENARIO 2
A5: ="Revenues of "&'Data Entry Needs'!$E$10&" production (Benefit)" -> Revenues of Please Select production (Benefit)
B7: Operating Year | C7: 0 | D7: 1 | E7: 2 | F7: 3 | G7: 4 | H7: 5 | I7: 6 | J7: 7 | K7: 8 | L7: 9 | M7: 10 | N7: 11 | O7: 12 | P7: 13 | Q7: 14 | R7: 15 | S7: 16 | T7: 17 | U7: 18 | V7: 19 | W7: 20
B9: Capacity (million of litres) | C9: 25 | D9: =C9 -> 25 | E9: 25 | F9: 25 | G9: 25 | H9: 25 | I9: 25 | J9: 25 | K9: 25 | L9: 25 | M9: 25 | N9: 25 | O9: 25 | P9: 25 | Q9: 25 | R9: 25 | S9: 25 | T9: 25 | U9: 25 | V9: 25 | W9: 25
B10: Annual production (litres per year) | C10: =+C9*1000000 -> 25000000 | D10: =+C10 -> 25000000 | E10: 25000000 | F10: 25000000 | G10: 25000000 | H10: 25000000 | I10: 25000000 | J10: 25000000 | K10: 25000000 | L10: 25000000 | M10: 25000000 | N10: 25000000 | O10: 25000000 | P10: 25000000 | Q10: 25000000 | R10: 25000000 | S10: 25000000 | T10: 25000000 | U10: 25000000 | V10: 25000000 | W10: 25000000
B11: Loss in production processing (%) | D11: 0 | E11: =+D11 -> 0 | F11: 0 | G11: 0 | H11: 0 | I11: 0 | J11: 0 | K11: 0 | L11: 0 | M11: 0 | N11: 0 | O11: 0 | P11: 0 | Q11: 0 | R11: 0 | S11: 0 | T11: 0 | U11: 0 | V11: 0 | W11: 0
B12: Sales to customers (litres per year) | C12: =+C10*(1-C11) -> 25000000 | D12: =+C12 -> 25000000 | E12: =+D12 -> 25000000 | F12: 25000000 | G12: 25000000 | H12: 25000000 | I12: 25000000 | J12: 25000000 | K12: 25000000 | L12: 25000000 | M12: 25000000 | N12: 25000000 | O12: 25000000 | P12: 25000000 | Q12: 25000000 | R12: 25000000 | S12: 25000000 | T12: 25000000 | U12: 25000000 | V12: 25000000 | W12: 25000000
B14: ="Price of "&'Data Entry Needs'!$E$10&" (USD/litre)" -> Price of Please Select (USD/litre) | C14: =+VLOOKUP('Data Entry Needs'!$E$10,'Data Entry Needs'!$T$180:$X$183,5,FALSE) ->  | D14: =+C14*(100%+D17) ->  | E14: =+D14*(100%+E17) -> 
B15: =+IF(COST_FS1!$AA$142="","","Price of "&COST_FS1!$AA$142&" (USD/ton)") ->  | C15: =+IF(COST_FS1!$AA$142="",0,COST_FS1!$AC$142) -> 0 | D15: =+C15*(100%+$C17) -> 0 | E15: =+D15*(100%+$C17) -> 0 | F15: =+E15*(100%+$C17) -> 0 | G15: 0 | H15: 0 | I15: 0 | J15: 0 | K15: 0 | L15: 0 | M15: 0 | N15: 0 | O15: 0 | P15: 0 | Q15: 0 | R15: 0 | S15: 0 | T15: 0 | U15: 0 | V15: 0 | W15: 0
B16: =+IF(COST_FS1!$AA$143="","","Price of "&COST_FS1!$AA$143&" (USD/ton)") ->  | C16: =+IF(COST_FS1!$AA$143="",0,COST_FS1!$AC$143) ->  | D16: =+C16*(100%+$C17) ->  | E16: =+D16*(100%+$C17) -> 
B17: ="Increase rate of price of "&'Data Entry Needs'!$E$10&" (%)" -> Increase rate of price of Please Select (%) | C17: =+'Data Entry Needs'!$O$174 -> 0 | D17: =+C17 -> 0 | E17: =+D17 -> 0 | F17: 0 | G17: 0 | H17: 0 | I17: 0 | J17: 0 | K17: 0 | L17: 0 | M17: 0 | N17: 0 | O17: 0 | P17: 0 | Q17: 0 | R17: 0 | S17: 0 | T17: 0 | U17: 0 | V17: 0 | W17: 0
B18: Income (USD per year) | C18: =+C12*C14 ->  | D18: =+D12*D14 -> 
B20: By-products revenue | C20: =+COST_FS1!$AF$142*C15+COST_FS1!$AF$143*C16 ->  | D20: =+COST_FS1!$AF$142*D15+COST_FS1!$AF$143*D16 ->  | E20: =+COST_FS1!$AF$142*E15+COST_FS1!$AF$143*E16 ->  | F20: =+COST_FS1!$AF$142*F15+COST_FS1!$AF$143*F16 ->  | G20: =+COST_FS1!$AF$142*G15+COST_FS1!$AF$143*G16 ->  | H20: =+COST_FS1!$AF$142*H15+COST_FS1!$AF$143*H16 ->  | I20: =+COST_FS1!$AF$142*I15+COST_FS1!$AF$143*I16 ->  | J20: =+COST_FS1!$AF$142*J15+COST_FS1!$AF$143*J16 ->  | K20: =+COST_FS1!$AF$142*K15+COST_FS1!$AF$143*K16 ->  | L20: =+COST_FS1!$AF$142*L15+COST_FS1!$AF$143*L16 ->  | M20: =+COST_FS1!$AF$142*M15+COST_FS1!$AF$143*M16 ->  | N20: =+COST_FS1!$AF$142*N15+COST_FS1!$AF$143*N16 ->  | O20: =+COST_FS1!$AF$142*O15+COST_FS1!$AF$143*O16 ->  | P20: =+COST_FS1!$AF$142*P15+COST_FS1!$AF$143*P16 ->  | Q20: =+COST_FS1!$AF$142*Q15+COST_FS1!$AF$143*Q16 ->  | R20: =+COST_FS1!$AF$142*R15+COST_FS1!$AF$143*R16 ->  | S20: =+COST_FS1!$AF$142*S15+COST_FS1!$AF$143*S16 ->  | T20: =+COST_FS1!$AF$142*T15+COST_FS1!$AF$143*T16 ->  | U20: =+COST_FS1!$AF$142*U15+COST_FS1!$AF$143*U16 ->  | V20: =+COST_FS1!$AF$142*V15+COST_FS1!$AF$143*V16 ->  | W20: =+COST_FS1!$AF$142*W15+COST_FS1!$AF$143*W16 -> 
B22: Total income | D22: =+D18+D20 ->  | E22: =+E18+E20 -> 
A25: Capital and operating cost
B27: Operating Year | C27: Appraisal | D27: 1 | E27: 2 | F27: 3 | G27: 4 | H27: 5 | I27: 6 | J27: 7 | K27: 8 | L27: 9 | M27: 10 | N27: 11 | O27: 12 | P27: 13 | Q27: 14 | R27: 15 | S27: 16 | T27: 17 | U27: 18 | V27: 19 | W27: 20
B28: Direct capital cost (USD)
B29: Equipments | C29: =+COST_FS1!$H74 -> 
B30: Building | C30: =+COST_FS1!$H75 ->  | N30: =+C30 -> 
B31: Installation | C31: =+COST_FS1!$H76 ->  | N31: =+C31 -> 
B33: Total capital cost (USD) | C33: =C29+C30+C31 ->  | D33: 0 | E33: 0 | F33: 0 | G33: 0 | H33: 0 | I33: 0 | J33: 0 | K33: 0 | L33: 0 | M33: 0 | O33: 0 | P33: 0 | Q33: 0 | R33: 0 | S33: 0 | T33: 0 | U33: 0 | V33: 0 | W33: 0
B34: Capital cost (USD/MLN litres) | C34: =+C33/C9 -> 
B35: Capital cost (USD/ litre) | C35: =+C33/C12 -> 
B38: Operating Year | C38: Appraisal | D38: 1 | E38: 2 | F38: 3 | G38: 4 | H38: 5 | I38: 6 | J38: 7 | K38: 8 | L38: 9 | M38: 10 | N38: 11 | O38: 12 | P38: 13 | Q38: 14 | R38: 15 | S38: 16 | T38: 17 | U38: 18 | V38: 19 | W38: 20
B39: Annual operating and maintenance cost
B40: Sub-total input cost (USD) | C40: =+C41+C42 -> 
B41: Feedstock cost (USD/year) | C41: =+COST_FS1!$I$43 ->  | D41: =+C41 -> 
B42: Other raw material costs (USD/year) | C42: =+COST_FS1!$I$57 ->  | D42: =+C42 -> 
B43: Labour cost (USD/year) | C43: =+COST_FS1!$I$64 -> 0 | D43: =C43*(1+D63) -> 0 | E43: 0 | F43: 0 | G43: 0 | H43: 0 | I43: 0 | J43: 0 | K43: 0 | L43: 0 | M43: 0 | N43: 0 | O43: 0 | P43: 0 | Q43: 0 | R43: 0 | S43: 0 | T43: 0 | U43: 0 | V43: 0 | W43: 0
B44: Transportation cost (USD/year) | C44: =+COST_FS1!$I$70 ->  | D44: =+C44 -> 
B45: Investment cost (USD/year) | C45: =+COST_FS1!$I$78 ->  | D45: =+C45 -> 
B46: Maintenance cost (USD/year) | C46: =+COST_FS1!$I$79 ->  | D46: =+C46 -> 
B47: Storage cost (USD/year) | C47: =+COST_FS1!$I$86 ->  | D47: =C47 -> 
B48: Plant overhead (USD/year) | C48: =+COST_FS1!$I$90 ->  | D48: =+C48 -> 
B49: General and administrative cost (USD/year) | C49: =+COST_FS1!$I$91 ->  | D49: =+C49 -> 
B50: Total annualized cost (USD) | C50: =SUM(C41:C49) ->  | D50: =SUM(D41:D49) -> 
B51: Total cost per litre (USD/l) | C51: =+C50/C12 -> 
A53: Financial parameters
B54: Operating Year | C54: Appraisal | D54: 1 | E54: 2 | F54: 3 | G54: 4 | H54: 5 | I54: 6 | J54: 7 | K54: 8 | L54: 9 | M54: 10 | N54: 11 | O54: 12 | P54: 13 | Q54: 14 | R54: 15 | S54: 16 | T54: 17 | U54: 18 | V54: 19 | W54: 20
B55: Raw material cost escalation rate (%) | D55: =+'Data Entry Needs'!$O$172 -> 0 | E55: =D55 -> 0 | F55: 0 | G55: 0 | H55: 0 | I55: 0 | J55: 0 | K55: 0 | L55: 0 | M55: 0 | N55: 0 | O55: 0 | P55: 0 | Q55: 0 | R55: 0 | S55: 0 | T55: 0 | U55: 0 | V55: 0 | W55: 0
B56: Inflation rate (%) | D56: =+'Data Entry Needs'!$O$175 -> 0 | E56: =D56 -> 0 | F56: 0 | G56: 0 | H56: 0 | I56: 0 | J56: 0 | K56: 0 | L56: 0 | M56: 0 | N56: 0 | O56: 0 | P56: 0 | Q56: 0 | R56: 0 | S56: 0 | T56: 0 | U56: 0 | V56: 0 | W56: 0
B57: Discount rate (%) | C57: =+'Data Entry Needs'!$D$64 -> 0
B58: Debt ratio (%) | C58: ='Data Entry Needs'!$D$70 -> 0
B60: Loan | D60: 1 | E60: 2 | F60: 3 | G60: 4 | H60: 5 | I60: 6 | J60: 7 | K60: 8 | L60: 9 | M60: 10 | N60: 11 | O60: 12 | P60: 13 | Q60: 14 | R60: 15 | S60: 16 | T60: 17 | U60: 18 | V60: 19 | W60: 20
B61: Loan amount (USD ) | C61: =C58*C33 -> 
B62: Increasing rate of price of biodiesel (%) | C62: =+'Data Entry Needs'!$O$174 -> 0 | D62: =+C62 -> 0 | E62: 0 | F62: 0 | G62: 0 | H62: 0 | I62: 0 | J62: 0 | K62: 0 | L62: 0 | M62: 0 | N62: 0 | O62: 0 | P62: 0 | Q62: 0 | R62: 0 | S62: 0 | T62: 0 | U62: 0 | V62: 0 | W62: 0
B63: Escalation rate of labour cost (%) | D63: =+'Data Entry Needs'!$O$170 -> 0 | E63: =+D63 -> 0 | F63: 0 | G63: 0 | H63: 0 | I63: 0 | J63: 0 | K63: 0 | L63: 0 | M63: 0 | N63: 0 | O63: 0 | P63: 0 | Q63: 0 | R63: 0 | S63: 0 | T63: 0 | U63: 0 | V63: 0 | W63: 0
B64: Loan interest rate (%) | C64: =+'Data Entry Needs'!$D$65 -> 0
B65: Loan term (years) | C65: =+'Data Entry Needs'!$D$66 -> 0
B66: Loan payment (USD/month) | C66: =(PMT(C64/12,(12*C65),C61)) -> 
B67: Loan payment (USD/year) | D67: =IF(D54<=$C$65,$C$66*12,0) -> 0 | E67: 0 | F67: 0 | G67: 0 | H67: 0 | I67: 0 | J67: 0 | K67: 0 | L67: 0 | M67: 0 | N67: 0 | O67: 0 | P67: 0 | Q67: 0 | R67: 0 | S67: 0 | T67: 0 | U67: 0 | V67: 0 | W67: 0
B68: Total loan payment (USD) | C68: =SUM(D67:W67) -> 0
B69: Loan interest payment (USD) | C69: =C68+C61 ->  | D69: Average loan interest payment for project lifetime | G69: =C69/20 ->  | H69: USD per year
A71: Income tax analysis
B72: Operating Year | C72: Appraisal | D72: 1 | E72: 2 | F72: 3 | G72: 4 | H72: 5 | I72: 6 | J72: 7 | K72: 8 | L72: 9 | M72: 10 | N72: 11 | O72: 12 | P72: 13 | Q72: 14 | R72: 15 | S72: 16 | T72: 17 | U72: 18 | V72: 19 | W72: 20
B73: Effective income tax rate (%) | C73: 0 | D73: =C73 -> 0 | E73: 0 | F73: 0 | G73: 0 | H73: 0 | I73: 0 | J73: 0 | K73: 0 | L73: 0 | M73: 0 | N73: 0 | O73: 0 | P73: 0 | Q73: 0 | R73: 0 | S73: 0 | T73: 0 | U73: 0 | V73: 0 | W73: 0
B74: Income tax | D74: =IF(D97<0,0,D73*D97) -> 
A76: Depreciation
B77: Operating Year | C77: Appraisal | D77: 1 | E77: 2 | F77: 3 | G77: 4 | H77: 5 | I77: 6 | J77: 7 | K77: 8 | L77: 9 | M77: 10 | N77: 11 | O77: 12 | P77: 13 | Q77: 14 | R77: 15 | S77: 16 | T77: 17 | U77: 18 | V77: 19 | W77: 20
B78: Depreciation method | C78: Straight-line
B79: Total depreciation (USD) | D79: =+C45 ->  | E79: =D79 -> 
A82: Summary of this project - before tax
B83: Operating Year | C83: Appraisal | D83: 1 | E83: 2 | F83: 3 | G83: 4 | H83: 5 | I83: 6 | J83: 7 | K83: 8 | L83: 9 | M83: 10 | N83: 11 | O83: 12 | P83: 13 | Q83: 14 | R83: 15 | S83: 16 | T83: 17 | U83: 18 | V83: 19 | W83: 20
B84: Total revenue (USD) | D84: =+D22 -> 
B85: Total capital cost (USD) | C85: =-(C33-C61) -> 
B86: Total operating and maintenance cost (USD) | D86: =-(D50-D45) -> 
B87: Debt payment (USD) | D87: =D67 -> 0 | E87: 0 | F87: 0 | G87: 0 | H87: 0 | I87: 0 | J87: 0 | K87: 0 | L87: 0 | M87: 0 | N87: 0 | O87: 0 | P87: 0 | Q87: 0 | R87: 0 | S87: 0 | T87: 0 | U87: 0 | V87: 0 | W87: 0
B88: Cash-flow - before tax (USD) | C88: =SUM(C84:C87) -> 
B89: Present cash-flow - before tax (USD) | D89: =+D88/((1+$C57)^D83) -> 
D90: =+PV($C57,D83,,-D88,) -> 
A91: Summary of this project - after tax
B92: Operating Year | C92: Appraisal | D92: 1 | E92: 2 | F92: 3 | G92: 4 | H92: 5 | I92: 6 | J92: 7 | K92: 8 | L92: 9 | M92: 10 | N92: 11 | O92: 12 | P92: 13 | Q92: 14 | R92: 15 | S92: 16 | T92: 17 | U92: 18 | V92: 19 | W92: 20
B93: =B84 -> Total revenue (USD) | C93: 0
B94: Total operating and maintenance cost (USD) | D94: =-(D50-D45) -> 
B95: Debt payment (USD) | D95: =D67 -> 0 | E95: 0 | F95: 0 | G95: 0 | H95: 0 | I95: 0 | J95: 0 | K95: 0 | L95: 0 | M95: 0 | N95: 0 | O95: 0 | P95: 0 | Q95: 0 | R95: 0 | S95: 0 | T95: 0 | U95: 0 | V95: 0 | W95: 0
B96: Depreciation of fixed cost (USD) | D96: =-D79 -> 
B97: Net Profit - before tax (USD) for income tax calculation | C97: =SUM(C93:C96) -> 0
B98: Income tax | D98: =-D74 -> 
D99: =+PV($C57,D92,,-D98) -> 
B100: Cash-flow - after tax (USD) | C100: =C85 ->  | D100: =D88+D98 -> 
B101: Present cash-flow - after tax (USD) | D101: =+PV($C57,D92,,-D100) -> 
A103: Cumulative value of Net Profit
B104: Operating Year | C104: Appraisal | D104: 1 | E104: 2 | F104: 3 | G104: 4 | H104: 5 | I104: 6 | J104: 7 | K104: 8 | L104: 9 | M104: 10 | N104: 11 | O104: 12 | P104: 13 | Q104: 14 | R104: 15 | S104: 16 | T104: 17 | U104: 18 | V104: 19 | W104: 20
B105: Cumulative value of Net Profit - before tax | C105: =C88 ->  | D105: =C105+(D89) -> 
B106: Cumulative value of Net Profit - after tax | C106: =C100 ->  | D106: =C106+(D101) -> 
A108: Financial analysis result
B110: Net Present Value (NPV) (USD) - before tax | C110: =NPV(C57,D88:W88)+C88 -> 
B111: Internal Rate of Return (IRR) (%) - before tax | C111: =IF(C110<0,"Not feasible",IRR(C88:W88,0.000001)) -> 
B112: Payback period (years) | C112: Please see Figure of the Cumulative value of Net Profit - before tax
B115: Net Present Value (NPV) (USD) - after tax | C115: =NPV(C57,D100:W100)+C100 -> 
B116: Internal Rate of Return (IRR) (%) - after tax | C116: =IF(C115<0,"Not feasible",IRR(C100:W100,0.000001)) -> 
B117: Payback period (years) | C117: Please see Figure of the cumulative value of Net Profit - after tax
B118: Total Income tax payment of project lifetime | C118: =SUM(D99:W99) -> 

Sheet FA25_FS1_SC3 (hidden)
B2: =+UPPER("FINANCIAL EVALUATION OF "&'Data Entry Needs'!$E$10&" PRODUCTION 25 Million Litres/year SCENARIO 3") -> FINANCIAL EVALUATION OF PLEASE SELECT PRODUCTION 25 MILLION LITRES/YEAR SCENARIO 3
A5: ="Revenues of "&'Data Entry Needs'!$E$10&" production (Benefit)" -> Revenues of Please Select production (Benefit)
B7: Operating Year | C7: 0 | D7: 1 | E7: 2 | F7: 3 | G7: 4 | H7: 5 | I7: 6 | J7: 7 | K7: 8 | L7: 9 | M7: 10 | N7: 11 | O7: 12 | P7: 13 | Q7: 14 | R7: 15 | S7: 16 | T7: 17 | U7: 18 | V7: 19 | W7: 20
B9: Capacity (million of litres) | C9: 25 | D9: =C9 -> 25 | E9: 25 | F9: 25 | G9: 25 | H9: 25 | I9: 25 | J9: 25 | K9: 25 | L9: 25 | M9: 25 | N9: 25 | O9: 25 | P9: 25 | Q9: 25 | R9: 25 | S9: 25 | T9: 25 | U9: 25 | V9: 25 | W9: 25
B10: Annual production (litres per year) | C10: =+C9*1000000 -> 25000000 | D10: =+C10 -> 25000000 | E10: 25000000 | F10: 25000000 | G10: 25000000 | H10: 25000000 | I10: 25000000 | J10: 25000000 | K10: 25000000 | L10: 25000000 | M10: 25000000 | N10: 25000000 | O10: 25000000 | P10: 25000000 | Q10: 25000000 | R10: 25000000 | S10: 25000000 | T10: 25000000 | U10: 25000000 | V10: 25000000 | W10: 25000000
B11: Loss in production processing (%) | D11: 0 | E11: =+D11 -> 0 | F11: 0 | G11: 0 | H11: 0 | I11: 0 | J11: 0 | K11: 0 | L11: 0 | M11: 0 | N11: 0 | O11: 0 | P11: 0 | Q11: 0 | R11: 0 | S11: 0 | T11: 0 | U11: 0 | V11: 0 | W11: 0
B12: Sales to customers (litres per year) | C12: =+C10*(1-C11) -> 25000000 | D12: =+C12 -> 25000000 | E12: =+D12 -> 25000000 | F12: 25000000 | G12: 25000000 | H12: 25000000 | I12: 25000000 | J12: 25000000 | K12: 25000000 | L12: 25000000 | M12: 25000000 | N12: 25000000 | O12: 25000000 | P12: 25000000 | Q12: 25000000 | R12: 25000000 | S12: 25000000 | T12: 25000000 | U12: 25000000 | V12: 25000000 | W12: 25000000
B14: ="Price of "&'Data Entry Needs'!$E$10&" (USD/litre)" -> Price of Please Select (USD/litre) | C14: =+VLOOKUP('Data Entry Needs'!$E$10,'Data Entry Needs'!$T$180:$X$183,5,FALSE) ->  | D14: =+C14*(100%+D17) ->  | E14: =+D14*(100%+E17) -> 
B15: =+IF(COST_FS1!$AA$142="","","Price of "&COST_FS1!$AA$142&" (USD/ton)") ->  | C15: =+IF(COST_FS1!$AA$142="",0,COST_FS1!$AC$142) -> 0 | D15: =+C15*(100%+$C17) -> 0 | E15: =+D15*(100%+$C17) -> 0 | F15: =+E15*(100%+$C17) -> 0 | G15: 0 | H15: 0 | I15: 0 | J15: 0 | K15: 0 | L15: 0 | M15: 0 | N15: 0 | O15: 0 | P15: 0 | Q15: 0 | R15: 0 | S15: 0 | T15: 0 | U15: 0 | V15: 0 | W15: 0
B16: =+IF(COST_FS1!$AA$143="","","Price of "&COST_FS1!$AA$143&" (USD/ton)") ->  | C16: =+IF(COST_FS1!$AA$143="",0,COST_FS1!$AC$143) ->  | D16: =+C16*(100%+$C17) ->  | E16: =+D16*(100%+$C17) -> 
B17: ="Increase rate of price of "&'Data Entry Needs'!$E$10&" (%)" -> Increase rate of price of Please Select (%) | C17: =+'Data Entry Needs'!$O$174 -> 0 | D17: =+C17 -> 0 | E17: =+D17 -> 0 | F17: 0 | G17: 0 | H17: 0 | I17: 0 | J17: 0 | K17: 0 | L17: 0 | M17: 0 | N17: 0 | O17: 0 | P17: 0 | Q17: 0 | R17: 0 | S17: 0 | T17: 0 | U17: 0 | V17: 0 | W17: 0
B18: Income (USD per year) | C18: =+C12*C14 ->  | D18: =+D12*D14 -> 
B20: By-products revenue | C20: =+COST_FS1!$AF$142*C15+COST_FS1!$AF$143*C16 ->  | D20: =+COST_FS1!$AF$142*D15+COST_FS1!$AF$143*D16 ->  | E20: =+COST_FS1!$AF$142*E15+COST_FS1!$AF$143*E16 ->  | F20: =+COST_FS1!$AF$142*F15+COST_FS1!$AF$143*F16 ->  | G20: =+COST_FS1!$AF$142*G15+COST_FS1!$AF$143*G16 ->  | H20: =+COST_FS1!$AF$142*H15+COST_FS1!$AF$143*H16 ->  | I20: =+COST_FS1!$AF$142*I15+COST_FS1!$AF$143*I16 ->  | J20: =+COST_FS1!$AF$142*J15+COST_FS1!$AF$143*J16 ->  | K20: =+COST_FS1!$AF$142*K15+COST_FS1!$AF$143*K16 ->  | L20: =+COST_FS1!$AF$142*L15+COST_FS1!$AF$143*L16 ->  | M20: =+COST_FS1!$AF$142*M15+COST_FS1!$AF$143*M16 ->  | N20: =+COST_FS1!$AF$142*N15+COST_FS1!$AF$143*N16 ->  | O20: =+COST_FS1!$AF$142*O15+COST_FS1!$AF$143*O16 ->  | P20: =+COST_FS1!$AF$142*P15+COST_FS1!$AF$143*P16 ->  | Q20: =+COST_FS1!$AF$142*Q15+COST_FS1!$AF$143*Q16 ->  | R20: =+COST_FS1!$AF$142*R15+COST_FS1!$AF$143*R16 ->  | S20: =+COST_FS1!$AF$142*S15+COST_FS1!$AF$143*S16 ->  | T20: =+COST_FS1!$AF$142*T15+COST_FS1!$AF$143*T16 ->  | U20: =+COST_FS1!$AF$142*U15+COST_FS1!$AF$143*U16 ->  | V20: =+COST_FS1!$AF$142*V15+COST_FS1!$AF$143*V16 ->  | W20: =+COST_FS1!$AF$142*W15+COST_FS1!$AF$143*W16 -> 
B22: Total income | D22: =+D18+D20 ->  | E22: =+E18+E20 -> 
A25: Capital and operating cost
B27: Operating Year | C27: Appraisal | D27: 1 | E27: 2 | F27: 3 | G27: 4 | H27: 5 | I27: 6 | J27: 7 | K27: 8 | L27: 9 | M27: 10 | N27: 11 | O27: 12 | P27: 13 | Q27: 14 | R27: 15 | S27: 16 | T27: 17 | U27: 18 | V27: 19 | W27: 20
B28: Direct capital cost (USD)
B29: Equipments | C29: =+COST_FS1!$H74 -> 
B30: Building | C30: =+COST_FS1!$H75 ->  | N30: =+C30 -> 
B31: Installation | C31: =+COST_FS1!$H76 ->  | N31: =+C31 -> 
B33: Total capital cost (USD) | C33: =C29+C30+C31 ->  | D33: 0 | E33: 0 | F33: 0 | G33: 0 | H33: 0 | I33: 0 | J33: 0 | K33: 0 | L33: 0 | M33: 0 | O33: 0 | P33: 0 | Q33: 0 | R33: 0 | S33: 0 | T33: 0 | U33: 0 | V33: 0 | W33: 0
B34: Capital cost (USD/MLN litres) | C34: =+C33/C9 -> 
B35: Capital cost (USD/ litre) | C35: =+C33/C12 -> 
B38: Operating Year | C38: Appraisal | D38: 1 | E38: 2 | F38: 3 | G38: 4 | H38: 5 | I38: 6 | J38: 7 | K38: 8 | L38: 9 | M38: 10 | N38: 11 | O38: 12 | P38: 13 | Q38: 14 | R38: 15 | S38: 16 | T38: 17 | U38: 18 | V38: 19 | W38: 20
B39: Annual operating and maintenance cost
B40: Sub-total input cost (USD) | C40: =+C41+C42 -> 
B41: Feedstock cost (USD/year) | C41: =+COST_FS1!$I$44 ->  | D41: =+C41 -> 
B42: Other raw material costs (USD/year) | C42: =+COST_FS1!$I$57 ->  | D42: =+C42 -> 
B43: Labour cost (USD/year) | C43: =+COST_FS1!$I$64 -> 0 | D43: =C43*(1+D63) -> 0 | E43: 0 | F43: 0 | G43: 0 | H43: 0 | I43: 0 | J43: 0 | K43: 0 | L43: 0 | M43: 0 | N43: 0 | O43: 0 | P43: 0 | Q43: 0 | R43: 0 | S43: 0 | T43: 0 | U43: 0 | V43: 0 | W43: 0
B44: Transportation cost (USD/year) | C44: =+COST_FS1!$I$70 ->  | D44: =+C44 -> 
B45: Investment cost (USD/year) | C45: =+COST_FS1!$I$78 ->  | D45: =+C45 -> 
B46: Maintenance cost (USD/year) | C46: =+COST_FS1!$I$79 ->  | D46: =+C46 -> 
B47: Storage cost (USD/year) | C47: =+COST_FS1!$I$86 ->  | D47: =C47 -> 
B48: Plant overhead (USD/year) | C48: =+COST_FS1!$I$90 ->  | D48: =+C48 -> 
B49: General and administrative cost (USD/year) | C49: =+COST_FS1!$I$91 ->  | D49: =+C49 -> 
B50: Total annualized cost (USD) | C50: =SUM(C41:C49) ->  | D50: =SUM(D41:D49) -> 
B51: Total cost per litre (USD/l) | C51: =+C50/C12 -> 
A53: Financial parameters
B54: Operating Year | C54: Appraisal | D54: 1 | E54: 2 | F54: 3 | G54: 4 | H54: 5 | I54: 6 | J54: 7 | K54: 8 | L54: 9 | M54: 10 | N54: 11 | O54: 12 | P54: 13 | Q54: 14 | R54: 15 | S54: 16 | T54: 17 | U54: 18 | V54: 19 | W54: 20
B55: Raw material cost escalation rate (%) | D55: =+'Data Entry Needs'!$O$172 -> 0 | E55: =D55 -> 0 | F55: 0 | G55: 0 | H55: 0 | I55: 0 | J55: 0 | K55: 0 | L55: 0 | M55: 0 | N55: 0 | O55: 0 | P55: 0 | Q55: 0 | R55: 0 | S55: 0 | T55: 0 | U55: 0 | V55: 0 | W55: 0
B56: Inflation rate (%) | D56: =+'Data Entry Needs'!$O$175 -> 0 | E56: =D56 -> 0 | F56: 0 | G56: 0 | H56: 0 | I56: 0 | J56: 0 | K56: 0 | L56: 0 | M56: 0 | N56: 0 | O56: 0 | P56: 0 | Q56: 0 | R56: 0 | S56: 0 | T56: 0 | U56: 0 | V56: 0 | W56: 0
B57: Discount rate (%) | C57: =+'Data Entry Needs'!$D$64 -> 0
B58: Debt ratio (%) | C58: ='Data Entry Needs'!$D$70 -> 0
B60: Loan | D60: 1 | E60: 2 | F60: 3 | G60: 4 | H60: 5 | I60: 6 | J60: 7 | K60: 8 | L60: 9 | M60: 10 | N60: 11 | O60: 12 | P60: 13 | Q60: 14 | R60: 15 | S60: 16 | T60: 17 | U60: 18 | V60: 19 | W60: 20
B61: Loan amount (USD ) | C61: =C58*C33 -> 
B62: Increasing rate of price of biodiesel (%) | C62: =+'Data Entry Needs'!$O$174 -> 0 | D62: =+C62 -> 0 | E62: 0 | F62: 0 | G62: 0 | H62: 0 | I62: 0 | J62: 0 | K62: 0 | L62: 0 | M62: 0 | N62: 0 | O62: 0 | P62: 0 | Q62: 0 | R62: 0 | S62: 0 | T62: 0 | U62: 0 | V62: 0 | W62: 0
B63: Escalation rate of labour cost (%) | D63: =+'Data Entry Needs'!$O$170 -> 0 | E63: =+D63 -> 0 | F63: 0 | G63: 0 | H63: 0 | I63: 0 | J63: 0 | K63: 0 | L63: 0 | M63: 0 | N63: 0 | O63: 0 | P63: 0 | Q63: 0 | R63: 0 | S63: 0 | T63: 0 | U63: 0 | V63: 0 | W63: 0
B64: Loan interest rate (%) | C64: =+'Data Entry Needs'!$D$65 -> 0
B65: Loan term (years) | C65: =+'Data Entry Needs'!$D$66 -> 0
B66: Loan payment (USD/month) | C66: =(PMT(C64/12,(12*C65),C61)) -> 
B67: Loan payment (USD/year) | D67: =IF(D54<=$C$65,$C$66*12,0) -> 0 | E67: 0 | F67: 0 | G67: 0 | H67: 0 | I67: 0 | J67: 0 | K67: 0 | L67: 0 | M67: 0 | N67: 0 | O67: 0 | P67: 0 | Q67: 0 | R67: 0 | S67: 0 | T67: 0 | U67: 0 | V67: 0 | W67: 0
B68: Total loan payment (USD) | C68: =SUM(D67:W67) -> 0
B69: Loan interest payment (USD) | C69: =C68+C61 ->  | D69: Average loan interest payment for project lifetime | G69: =C69/20 ->  | H69: USD per year
A71: Income tax analysis
B72: Operating Year | C72: Appraisal | D72: 1 | E72: 2 | F72: 3 | G72: 4 | H72: 5 | I72: 6 | J72: 7 | K72: 8 | L72: 9 | M72: 10 | N72: 11 | O72: 12 | P72: 13 | Q72: 14 | R72: 15 | S72: 16 | T72: 17 | U72: 18 | V72: 19 | W72: 20
B73: Effective income tax rate (%) | C73: 0 | D73: =C73 -> 0 | E73: 0 | F73: 0 | G73: 0 | H73: 0 | I73: 0 | J73: 0 | K73: 0 | L73: 0 | M73: 0 | N73: 0 | O73: 0 | P73: 0 | Q73: 0 | R73: 0 | S73: 0 | T73: 0 | U73: 0 | V73: 0 | W73: 0
B74: Income tax | D74: =IF(D97<0,0,D73*D97) -> 
A76: Depreciation
B77: Operating Year | C77: Appraisal | D77: 1 | E77: 2 | F77: 3 | G77: 4 | H77: 5 | I77: 6 | J77: 7 | K77: 8 | L77: 9 | M77: 10 | N77: 11 | O77: 12 | P77: 13 | Q77: 14 | R77: 15 | S77: 16 | T77: 17 | U77: 18 | V77: 19 | W77: 20
B78: Depreciation method | C78: Straight-line
B79: Total depreciation (USD) | D79: =+C45 ->  | E79: =D79 -> 
A82: Summary of this project - before tax
B83: Operating Year | C83: Appraisal | D83: 1 | E83: 2 | F83: 3 | G83: 4 | H83: 5 | I83: 6 | J83: 7 | K83: 8 | L83: 9 | M83: 10 | N83: 11 | O83: 12 | P83: 13 | Q83: 14 | R83: 15 | S83: 16 | T83: 17 | U83: 18 | V83: 19 | W83: 20
B84: Total revenue (USD) | D84: =+D22 -> 
B85: Total capital cost (USD) | C85: =-(C33-C61) -> 
B86: Total operating and maintenance cost (USD) | D86: =-(D50-D45) -> 
B87: Debt payment (USD) | D87: =D67 -> 0 | E87: 0 | F87: 0 | G87: 0 | H87: 0 | I87: 0 | J87: 0 | K87: 0 | L87: 0 | M87: 0 | N87: 0 | O87: 0 | P87: 0 | Q87: 0 | R87: 0 | S87: 0 | T87: 0 | U87: 0 | V87: 0 | W87: 0
B88: Cash-flow - before tax (USD) | C88: =SUM(C84:C87) -> 
B89: Present cash-flow - before tax (USD) | D89: =+D88/((1+$C57)^D83) -> 
D90: =+PV($C57,D83,,-D88,) -> 
A91: Summary of this project - after tax
B92: Operating Year | C92: Appraisal | D92: 1 | E92: 2 | F92: 3 | G92: 4 | H92: 5 | I92: 6 | J92: 7 | K92: 8 | L92: 9 | M92: 10 | N92: 11 | O92: 12 | P92: 13 | Q92: 14 | R92: 15 | S92: 16 | T92: 17 | U92: 18 | V92: 19 | W92: 20
B93: =B84 -> Total revenue (USD) | C93: 0
B94: Total operating and maintenance cost (USD) | D94: =-(D50-D45) -> 
B95: Debt payment (USD) | D95: =D67 -> 0 | E95: 0 | F95: 0 | G95: 0 | H95: 0 | I95: 0 | J95: 0 | K95: 0 | L95: 0 | M95: 0 | N95: 0 | O95: 0 | P95: 0 | Q95: 0 | R95: 0 | S95: 0 | T95: 0 | U95: 0 | V95: 0 | W95: 0
B96: Depreciation of fixed cost (USD) | D96: =-D79 -> 
B97: Net Profit - before tax (USD) for income tax calculation | C97: =SUM(C93:C96) -> 0
B98: Income tax | D98: =-D74 -> 
D99: =+PV($C57,D92,,-D98) -> 
B100: Cash-flow - after tax (USD) | C100: =C85 ->  | D100: =D88+D98 -> 
B101: Present cash-flow - after tax (USD) | D101: =+PV($C57,D92,,-D100) -> 
A103: Cumulative value of Net Profit
B104: Operating Year | C104: Appraisal | D104: 1 | E104: 2 | F104: 3 | G104: 4 | H104: 5 | I104: 6 | J104: 7 | K104: 8 | L104: 9 | M104: 10 | N104: 11 | O104: 12 | P104: 13 | Q104: 14 | R104: 15 | S104: 16 | T104: 17 | U104: 18 | V104: 19 | W104: 20
B105: Cumulative value of Net Profit - before tax | C105: =C88 ->  | D105: =C105+(D89) -> 
B106: Cumulative value of Net Profit - after tax | C106: =C100 ->  | D106: =C106+(D101) -> 
A108: Financial analysis result
B110: Net Present Value (NPV) (USD) - before tax | C110: =NPV(C57,D88:W88)+C88 -> 
B111: Internal Rate of Return (IRR) (%) - before tax | C111: =IF(C110<0,"Not feasible",IRR(C88:W88,0.000001)) -> 
B112: Payback period (years) | C112: Please see Figure of the cumulative value of Net Profit - before tax
B115: Net Present Value (NPV) (USD) - after tax | C115: =NPV(C57,D100:W100)+C100 -> 
B116: Internal Rate of Return (IRR) (%) - after tax | C116: =IF(C115<0,"Not feasible",IRR(C100:W100,0.000001)) -> 
B117: Payback period (years) | C117: Please see Figure of the cumulative value of Net Profit - after tax
B118: Total Income tax payment of project lifetime | C118: =SUM(D99:W99) -> 

Sheet FA50_FS1_SC1 (hidden)
B2: =+UPPER("FINANCIAL EVALUATION OF "&'Data Entry Needs'!$E$10&" PRODUCTION 50 Million Litres/year SCENARIO 1") -> FINANCIAL EVALUATION OF PLEASE SELECT PRODUCTION 50 MILLION LITRES/YEAR SCENARIO 1
A5: ="Revenues of "&'Data Entry Needs'!$E$10&" production (Benefit)" -> Revenues of Please Select production (Benefit)
B7: Operating Year | C7: 0 | D7: 1 | E7: 2 | F7: 3 | G7: 4 | H7: 5 | I7: 6 | J7: 7 | K7: 8 | L7: 9 | M7: 10 | N7: 11 | O7: 12 | P7: 13 | Q7: 14 | R7: 15 | S7: 16 | T7: 17 | U7: 18 | V7: 19 | W7: 20
B9: Capacity (million of litres) | C9: 50 | D9: =C9 -> 50 | E9: 50 | F9: 50 | G9: 50 | H9: 50 | I9: 50 | J9: 50 | K9: 50 | L9: 50 | M9: 50 | N9: 50 | O9: 50 | P9: 50 | Q9: 50 | R9: 50 | S9: 50 | T9: 50 | U9: 50 | V9: 50 | W9: 50
B10: Annual production (litres per year) | C10: =+C9*1000000 -> 50000000 | D10: =+C10 -> 50000000 | E10: 50000000 | F10: 50000000 | G10: 50000000 | H10: 50000000 | I10: 50000000 | J10: 50000000 | K10: 50000000 | L10: 50000000 | M10: 50000000 | N10: 50000000 | O10: 50000000 | P10: 50000000 | Q10: 50000000 | R10: 50000000 | S10: 50000000 | T10: 50000000 | U10: 50000000 | V10: 50000000 | W10: 50000000
B11: Loss in production processing (%) | D11: 0 | E11: =+D11 -> 0 | F11: 0 | G11: 0 | H11: 0 | I11: 0 | J11: 0 | K11: 0 | L11: 0 | M11: 0 | N11: 0 | O11: 0 | P11: 0 | Q11: 0 | R11: 0 | S11: 0 | T11: 0 | U11: 0 | V11: 0 | W11: 0
B12: Sales to customers (litres per year) | C12: =+C10*(1-C11) -> 50000000 | D12: =+C12 -> 50000000 | E12: =+D12 -> 50000000 | F12: 50000000 | G12: 50000000 | H12: 50000000 | I12: 50000000 | J12: 50000000 | K12: 50000000 | L12: 50000000 | M12: 50000000 | N12: 50000000 | O12: 50000000 | P12: 50000000 | Q12: 50000000 | R12: 50000000 | S12: 50000000 | T12: 50000000 | U12: 50000000 | V12: 50000000 | W12: 50000000
B14: ="Price of "&'Data Entry Needs'!$E$10&" (USD/liter)" -> Price of Please Select (USD/liter) | C14: =+VLOOKUP('Data Entry Needs'!$E$10,'Data Entry Needs'!$T$180:$X$183,5,FALSE) ->  | D14: =+C14*(100%+D17) ->  | E14: =+D14*(100%+E17) -> 
B15: =+IF(COST_FS1!$AA$142="","","Price of "&COST_FS1!$AA$142&" (USD/ton)") ->  | C15: =+IF(COST_FS1!$AA$142="",0,COST_FS1!$AC$142) -> 0 | D15: =+C15*(100%+$C17) -> 0 | E15: =+D15*(100%+$C17) -> 0 | F15: =+E15*(100%+$C17) -> 0 | G15: 0 | H15: 0 | I15: 0 | J15: 0 | K15: 0 | L15: 0 | M15: 0 | N15: 0 | O15: 0 | P15: 0 | Q15: 0 | R15: 0 | S15: 0 | T15: 0 | U15: 0 | V15: 0 | W15: 0
B16: =+IF(COST_FS1!$AA$143="","","Price of "&COST_FS1!$AA$143&" (USD/ton)") ->  | C16: =+IF(COST_FS1!$AA$143="",0,COST_FS1!$AC$143) ->  | D16: =+C16*(100%+$C17) ->  | E16: =+D16*(100%+$C17) -> 
B17: ="Increase rate of price of "&'Data Entry Needs'!$E$10&" (%)" -> Increase rate of price of Please Select (%) | C17: =+'Data Entry Needs'!$O$174 -> 0 | D17: =+C17 -> 0 | E17: =+D17 -> 0 | F17: 0 | G17: 0 | H17: 0 | I17: 0 | J17: 0 | K17: 0 | L17: 0 | M17: 0 | N17: 0 | O17: 0 | P17: 0 | Q17: 0 | R17: 0 | S17: 0 | T17: 0 | U17: 0 | V17: 0 | W17: 0
B18: Income (USD per year) | C18: =+C12*C14 ->  | D18: =+D12*D14 -> 
B20: By-products revenue | C20: =+COST_FS1!$AH$142*C15+COST_FS1!$AH$143*C16 ->  | D20: =+COST_FS1!$AH$142*D15+COST_FS1!$AH$143*D16 ->  | E20: =+COST_FS1!$AH$142*E15+COST_FS1!$AH$143*E16 ->  | F20: =+COST_FS1!$AH$142*F15+COST_FS1!$AH$143*F16 ->  | G20: =+COST_FS1!$AH$142*G15+COST_FS1!$AH$143*G16 ->  | H20: =+COST_FS1!$AH$142*H15+COST_FS1!$AH$143*H16 ->  | I20: =+COST_FS1!$AH$142*I15+COST_FS1!$AH$143*I16 ->  | J20: =+COST_FS1!$AH$142*J15+COST_FS1!$AH$143*J16 ->  | K20: =+COST_FS1!$AH$142*K15+COST_FS1!$AH$143*K16 ->  | L20: =+COST_FS1!$AH$142*L15+COST_FS1!$AH$143*L16 ->  | M20: =+COST_FS1!$AH$142*M15+COST_FS1!$AH$143*M16 ->  | N20: =+COST_FS1!$AH$142*N15+COST_FS1!$AH$143*N16 ->  | O20: =+COST_FS1!$AH$142*O15+COST_FS1!$AH$143*O16 ->  | P20: =+COST_FS1!$AH$142*P15+COST_FS1!$AH$143*P16 ->  | Q20: =+COST_FS1!$AH$142*Q15+COST_FS1!$AH$143*Q16 ->  | R20: =+COST_FS1!$AH$142*R15+COST_FS1!$AH$143*R16 ->  | S20: =+COST_FS1!$AH$142*S15+COST_FS1!$AH$143*S16 ->  | T20: =+COST_FS1!$AH$142*T15+COST_FS1!$AH$143*T16 ->  | U20: =+COST_FS1!$AH$142*U15+COST_FS1!$AH$143*U16 ->  | V20: =+COST_FS1!$AH$142*V15+COST_FS1!$AH$143*V16 ->  | W20: =+COST_FS1!$AH$142*W15+COST_FS1!$AH$143*W16 -> 
B22: Total income | D22: =+D18+D20 ->  | E22: =+E18+E20 -> 
A25: Capital and operating cost
B27: Operating Year | C27: Appraisal | D27: 1 | E27: 2 | F27: 3 | G27: 4 | H27: 5 | I27: 6 | J27: 7 | K27: 8 | L27: 9 | M27: 10 | N27: 11 | O27: 12 | P27: 13 | Q27: 14 | R27: 15 | S27: 16 | T27: 17 | U27: 18 | V27: 19 | W27: 20
B28: Direct capital cost (USD)
B29: Equipments | C29: =+COST_FS1!$J74 -> 
B30: Building | C30: =+COST_FS1!$J75 ->  | N30: =+C30 -> 
B31: Installation | C31: =+COST_FS1!$J76 ->  | N31: =+C31 -> 
B33: Total capital cost (USD) | C33: =C29+C30+C31 ->  | D33: 0 | E33: 0 | F33: 0 | G33: 0 | H33: 0 | I33: 0 | J33: 0 | K33: 0 | L33: 0 | M33: 0 | O33: 0 | P33: 0 | Q33: 0 | R33: 0 | S33: 0 | T33: 0 | U33: 0 | V33: 0 | W33: 0
B34: Capital cost (USD/MLN litres) | C34: =+C33/C9 -> 
B35: Capital cost (USD/ litre) | C35: =+C33/C12 -> 
B38: Operating Year | C38: Appraisal | D38: 1 | E38: 2 | F38: 3 | G38: 4 | H38: 5 | I38: 6 | J38: 7 | K38: 8 | L38: 9 | M38: 10 | N38: 11 | O38: 12 | P38: 13 | Q38: 14 | R38: 15 | S38: 16 | T38: 17 | U38: 18 | V38: 19 | W38: 20
B39: Annual operating and maintenance cost
B40: Sub-total input cost (USD) | C40: =+C41+C42 -> 
B41: Feedstock cost (USD/year) | C41: =+COST_FS1!$K$42 ->  | D41: =+C41 -> 
B42: Other raw material costs (USD/year) | C42: =+COST_FS1!$K$57 ->  | D42: =+C42 -> 
B43: Labour cost (USD/year) | C43: =+COST_FS1!$K$64 -> 0 | D43: =C43*(1+D63) -> 0 | E43: 0 | F43: 0 | G43: 0 | H43: 0 | I43: 0 | J43: 0 | K43: 0 | L43: 0 | M43: 0 | N43: 0 | O43: 0 | P43: 0 | Q43: 0 | R43: 0 | S43: 0 | T43: 0 | U43: 0 | V43: 0 | W43: 0
B44: Transportation cost (USD/year) | C44: =+COST_FS1!$K$70 ->  | D44: =+C44 -> 
B45: Investment cost (USD/year) | C45: =+COST_FS1!$K$78 ->  | D45: =+C45 -> 
B46: Maintenance cost (USD/year) | C46: =+COST_FS1!$K$79 ->  | D46: =+C46 -> 
B47: Storage cost (USD/year) | C47: =+COST_FS1!$K$86 ->  | D47: =C47 -> 
B48: Plant overhead (USD/year) | C48: =+COST_FS1!$K$90 ->  | D48: =+C48 -> 
B49: General and administrative cost (USD/year) | C49: =+COST_FS1!$K$91 ->  | D49: =+C49 -> 
B50: Total annualized cost (USD) | C50: =SUM(C41:C49) ->  | D50: =SUM(D41:D49) -> 
B51: Total cost per litre (USD/l) | C51: =+C50/C12 -> 
A53: Financial parameters
B54: Operating Year | C54: Appraisal | D54: 1 | E54: 2 | F54: 3 | G54: 4 | H54: 5 | I54: 6 | J54: 7 | K54: 8 | L54: 9 | M54: 10 | N54: 11 | O54: 12 | P54: 13 | Q54: 14 | R54: 15 | S54: 16 | T54: 17 | U54: 18 | V54: 19 | W54: 20
B55: Raw material cost escalation rate (%) | D55: =+'Data Entry Needs'!$O$172 -> 0 | E55: =D55 -> 0 | F55: 0 | G55: 0 | H55: 0 | I55: 0 | J55: 0 | K55: 0 | L55: 0 | M55: 0 | N55: 0 | O55: 0 | P55: 0 | Q55: 0 | R55: 0 | S55: 0 | T55: 0 | U55: 0 | V55: 0 | W55: 0
B56: Inflation rate (%) | D56: =+'Data Entry Needs'!$O$175 -> 0 | E56: =D56 -> 0 | F56: 0 | G56: 0 | H56: 0 | I56: 0 | J56: 0 | K56: 0 | L56: 0 | M56: 0 | N56: 0 | O56: 0 | P56: 0 | Q56: 0 | R56: 0 | S56: 0 | T56: 0 | U56: 0 | V56: 0 | W56: 0
B57: Discount rate (%) | C57: =+'Data Entry Needs'!$D$64 -> 0
B58: Debt ratio (%) | C58: =+'Data Entry Needs'!$D$71 -> 0
B60: Loan | D60: 1 | E60: 2 | F60: 3 | G60: 4 | H60: 5 | I60: 6 | J60: 7 | K60: 8 | L60: 9 | M60: 10 | N60: 11 | O60: 12 | P60: 13 | Q60: 14 | R60: 15 | S60: 16 | T60: 17 | U60: 18 | V60: 19 | W60: 20
B61: Loan amount (USD ) | C61: =C58*C33 -> 
B62: Increasing rate of price of biodiesel (%) | C62: =+'Data Entry Needs'!$O$174 -> 0 | D62: =+C62 -> 0 | E62: 0 | F62: 0 | G62: 0 | H62: 0 | I62: 0 | J62: 0 | K62: 0 | L62: 0 | M62: 0 | N62: 0 | O62: 0 | P62: 0 | Q62: 0 | R62: 0 | S62: 0 | T62: 0 | U62: 0 | V62: 0 | W62: 0
B63: Escalation rate of labour cost (%) | D63: =+'Data Entry Needs'!$O$170 -> 0 | E63: =+D63 -> 0 | F63: 0 | G63: 0 | H63: 0 | I63: 0 | J63: 0 | K63: 0 | L63: 0 | M63: 0 | N63: 0 | O63: 0 | P63: 0 | Q63: 0 | R63: 0 | S63: 0 | T63: 0 | U63: 0 | V63: 0 | W63: 0
B64: Loan interest rate (%) | C64: =+'Data Entry Needs'!$D$65 -> 0
B65: Loan term (years) | C65: =+'Data Entry Needs'!$D$66 -> 0
B66: Loan payment (USD/month) | C66: =(PMT(C64/12,(12*C65),C61)) -> 
B67: Loan payment (USD/year) | D67: =IF(D54<=$C$65,$C$66*12,0) -> 0 | E67: 0 | F67: 0 | G67: 0 | H67: 0 | I67: 0 | J67: 0 | K67: 0 | L67: 0 | M67: 0 | N67: 0 | O67: 0 | P67: 0 | Q67: 0 | R67: 0 | S67: 0 | T67: 0 | U67: 0 | V67: 0 | W67: 0
B68: Total loan payment (USD) | C68: =SUM(D67:W67) -> 0
B69: Loan interest payment (USD) | C69: =C68+C61 ->  | D69: Average loan interest payment for project lifetime | G69: =C69/20 ->  | H69: USD per year
A71: Income tax analysis
B72: Operating Year | C72: Appraisal | D72: 1 | E72: 2 | F72: 3 | G72: 4 | H72: 5 | I72: 6 | J72: 7 | K72: 8 | L72: 9 | M72: 10 | N72: 11 | O72: 12 | P72: 13 | Q72: 14 | R72: 15 | S72: 16 | T72: 17 | U72: 18 | V72: 19 | W72: 20
B73: Effective income tax rate (%) | C73: 0 | D73: =C73 -> 0 | E73: 0 | F73: 0 | G73: 0 | H73: 0 | I73: 0 | J73: 0 | K73: 0 | L73: 0 | M73: 0 | N73: 0 | O73: 0 | P73: 0 | Q73: 0 | R73: 0 | S73: 0 | T73: 0 | U73: 0 | V73: 0 | W73: 0
B74: Income tax | D74: =IF(D97<0,0,D73*D97) -> 
A76: Depreciation
B77: Operating Year | C77: Appraisal | D77: 1 | E77: 2 | F77: 3 | G77: 4 | H77: 5 | I77: 6 | J77: 7 | K77: 8 | L77: 9 | M77: 10 | N77: 11 | O77: 12 | P77: 13 | Q77: 14 | R77: 15 | S77: 16 | T77: 17 | U77: 18 | V77: 19 | W77: 20
B78: Depreciation method | C78: Straight-line
B79: Total depreciation (USD) | D79: =+C45 ->  | E79: =D79 -> 
A82: Summary of this project - before tax
B83: Operating Year | C83: Appraisal | D83: 1 | E83: 2 | F83: 3 | G83: 4 | H83: 5 | I83: 6 | J83: 7 | K83: 8 | L83: 9 | M83: 10 | N83: 11 | O83: 12 | P83: 13 | Q83: 14 | R83: 15 | S83: 16 | T83: 17 | U83: 18 | V83: 19 | W83: 20
B84: Total revenue (USD) | D84: =+D22 -> 
B85: Total capital cost (USD) | C85: =-(C33-C61) -> 
B86: Total operating and maintenance cost (USD) | D86: =-(D50-D45) -> 
B87: Debt payment (USD) | D87: =D67 -> 0 | E87: 0 | F87: 0 | G87: 0 | H87: 0 | I87: 0 | J87: 0 | K87: 0 | L87: 0 | M87: 0 | N87: 0 | O87: 0 | P87: 0 | Q87: 0 | R87: 0 | S87: 0 | T87: 0 | U87: 0 | V87: 0 | W87: 0
B88: Cash-flow - before tax (USD) | C88: =SUM(C84:C87) -> 
B89: Present cash-flow - before tax (USD) | D89: =+D88/((1+$C57)^D83) -> 
D90: =+PV($C57,D83,,-D88,) -> 
A91: Summary of this project - after tax
B92: Operating Year | C92: Appraisal | D92: 1 | E92: 2 | F92: 3 | G92: 4 | H92: 5 | I92: 6 | J92: 7 | K92: 8 | L92: 9 | M92: 10 | N92: 11 | O92: 12 | P92: 13 | Q92: 14 | R92: 15 | S92: 16 | T92: 17 | U92: 18 | V92: 19 | W92: 20
B93: =B84 -> Total revenue (USD) | C93: 0
B94: Total operating and maintenance cost (USD) | D94: =-(D50-D45) -> 
B95: Debt payment (USD) | D95: =D67 -> 0 | E95: 0 | F95: 0 | G95: 0 | H95: 0 | I95: 0 | J95: 0 | K95: 0 | L95: 0 | M95: 0 | N95: 0 | O95: 0 | P95: 0 | Q95: 0 | R95: 0 | S95: 0 | T95: 0 | U95: 0 | V95: 0 | W95: 0
B96: Depreciation of fixed cost (USD) | D96: =-D79 -> 
B97: Net Profit - before tax (USD) for income tax calculation | C97: =SUM(C93:C96) -> 0
B98: Income tax | D98: =-D74 -> 
D99: =+PV($C57,D92,,-D98) -> 
B100: Cash-flow - after tax (USD) | C100: =C85 ->  | D100: =D88+D98 -> 
B101: Present cash-flow - after tax (USD) | D101: =+PV($C57,D92,,-D100) -> 
A103: Cumulative value of Net Profit
B104: Operating Year | C104: Appraisal | D104: 1 | E104: 2 | F104: 3 | G104: 4 | H104: 5 | I104: 6 | J104: 7 | K104: 8 | L104: 9 | M104: 10 | N104: 11 | O104: 12 | P104: 13 | Q104: 14 | R104: 15 | S104: 16 | T104: 17 | U104: 18 | V104: 19 | W104: 20
B105: Cumulative value of Net Profit - before tax | C105: =C88 ->  | D105: =C105+(D89) -> 
B106: Cumulative value of Net Profit - after tax | C106: =C100 ->  | D106: =C106+(D101) -> 
A108: Financial analysis result
B110: Net Present Value (NPV) (USD) - before tax | C110: =NPV(C57,D88:W88)+C88 -> 
B111: Internal Rate of Return (IRR) (%) - before tax | C111: =IF(C110<0,"Not feasible",IRR(C88:W88,0.000001)) -> 
B112: Payback period (years) | C112: Please see Figure of the cumulative value of Net Profit - before tax
B115: Net Present Value (NPV) (USD) - after tax | C115: =NPV(C57,D100:W100)+C100 -> 
B116: Internal Rate of Return (IRR) (%) - after tax | C116: =IF(C115<0,"Not feasible",IRR(C100:W100,0.000001)) -> 
B117: Payback period (years) | C117: Please see Figure of the cumulative value of Net Profit - after tax
B118: Total income tax payment of project lifetime | C118: =SUM(D99:W99) -> 

Sheet FA50_FS1_SC2 (hidden)
B2: =+UPPER("FINANCIAL EVALUATION OF "&'Data Entry Needs'!$E$10&" PRODUCTION 50 Million Litres/year SCENARIO 2") -> FINANCIAL EVALUATION OF PLEASE SELECT PRODUCTION 50 MILLION LITRES/YEAR SCENARIO 2
A5: ="Revenues of "&'Data Entry Needs'!$E$10&" production (Benefit)" -> Revenues of Please Select production (Benefit)
B7: Operating Year | C7: 0 | D7: 1 | E7: 2 | F7: 3 | G7: 4 | H7: 5 | I7: 6 | J7: 7 | K7: 8 | L7: 9 | M7: 10 | N7: 11 | O7: 12 | P7: 13 | Q7: 14 | R7: 15 | S7: 16 | T7: 17 | U7: 18 | V7: 19 | W7: 20
B9: Capacity (million of litres) | C9: 50 | D9: =C9 -> 50 | E9: 50 | F9: 50 | G9: 50 | H9: 50 | I9: 50 | J9: 50 | K9: 50 | L9: 50 | M9: 50 | N9: 50 | O9: 50 | P9: 50 | Q9: 50 | R9: 50 | S9: 50 | T9: 50 | U9: 50 | V9: 50 | W9: 50
B10: Annual production (litres per year) | C10: =+C9*1000000 -> 50000000 | D10: =+C10 -> 50000000 | E10: 50000000 | F10: 50000000 | G10: 50000000 | H10: 50000000 | I10: 50000000 | J10: 50000000 | K10: 50000000 | L10: 50000000 | M10: 50000000 | N10: 50000000 | O10: 50000000 | P10: 50000000 | Q10: 50000000 | R10: 50000000 | S10: 50000000 | T10: 50000000 | U10: 50000000 | V10: 50000000 | W10: 50000000
B11: Loss in production processing (%) | D11: 0 | E11: =+D11 -> 0 | F11: 0 | G11: 0 | H11: 0 | I11: 0 | J11: 0 | K11: 0 | L11: 0 | M11: 0 | N11: 0 | O11: 0 | P11: 0 | Q11: 0 | R11: 0 | S11: 0 | T11: 0 | U11: 0 | V11: 0 | W11: 0
B12: Sales to customers (litres per year) | C12: =+C10*(1-C11) -> 50000000 | D12: =+C12 -> 50000000 | E12: =+D12 -> 50000000 | F12: 50000000 | G12: 50000000 | H12: 50000000 | I12: 50000000 | J12: 50000000 | K12: 50000000 | L12: 50000000 | M12: 50000000 | N12: 50000000 | O12: 50000000 | P12: 50000000 | Q12: 50000000 | R12: 50000000 | S12: 50000000 | T12: 50000000 | U12: 50000000 | V12: 50000000 | W12: 50000000
B14: ="Price of "&'Data Entry Needs'!$E$10&" (USD/litre)" -> Price of Please Select (USD/litre) | C14: =+VLOOKUP('Data Entry Needs'!$E$10,'Data Entry Needs'!$T$180:$X$183,5,FALSE) ->  | D14: =+C14*(100%+D17) ->  | E14: =+D14*(100%+E17) -> 
B15: =+IF(COST_FS1!$AA$142="","","Price of "&COST_FS1!$AA$142&" (USD/ton)") ->  | C15: =+IF(COST_FS1!$AA$142="",0,COST_FS1!$AC$142) -> 0 | D15: =+C15*(100%+$C17) -> 0 | E15: =+D15*(100%+$C17) -> 0 | F15: =+E15*(100%+$C17) -> 0 | G15: 0 | H15: 0 | I15: 0 | J15: 0 | K15: 0 | L15: 0 | M15: 0 | N15: 0 | O15: 0 | P15: 0 | Q15: 0 | R15: 0 | S15: 0 | T15: 0 | U15: 0 | V15: 0 | W15: 0
B16: =+IF(COST_FS1!$AA$143="","","Price of "&COST_FS1!$AA$143&" (USD/ton)") ->  | C16: =+IF(COST_FS1!$AA$143="",0,COST_FS1!$AC$143) ->  | D16: =+C16*(100%+$C17) ->  | E16: =+D16*(100%+$C17) -> 
B17: ="Increase rate of price of "&'Data Entry Needs'!$E$10&" (%)" -> Increase rate of price of Please Select (%) | C17: =+'Data Entry Needs'!$O$174 -> 0 | D17: =+C17 -> 0 | E17: =+D17 -> 0 | F17: 0 | G17: 0 | H17: 0 | I17: 0 | J17: 0 | K17: 0 | L17: 0 | M17: 0 | N17: 0 | O17: 0 | P17: 0 | Q17: 0 | R17: 0 | S17: 0 | T17: 0 | U17: 0 | V17: 0 | W17: 0
B18: Income (USD per year) | C18: =+C12*C14 ->  | D18: =+D12*D14 -> 
B20: By-products revenue | C20: =+COST_FS1!$AH$142*C15+COST_FS1!$AH$143*C16 ->  | D20: =+COST_FS1!$AH$142*D15+COST_FS1!$AH$143*D16 ->  | E20: =+COST_FS1!$AH$142*E15+COST_FS1!$AH$143*E16 ->  | F20: =+COST_FS1!$AH$142*F15+COST_FS1!$AH$143*F16 ->  | G20: =+COST_FS1!$AH$142*G15+COST_FS1!$AH$143*G16 ->  | H20: =+COST_FS1!$AH$142*H15+COST_FS1!$AH$143*H16 ->  | I20: =+COST_FS1!$AH$142*I15+COST_FS1!$AH$143*I16 ->  | J20: =+COST_FS1!$AH$142*J15+COST_FS1!$AH$143*J16 ->  | K20: =+COST_FS1!$AH$142*K15+COST_FS1!$AH$143*K16 ->  | L20: =+COST_FS1!$AH$142*L15+COST_FS1!$AH$143*L16 ->  | M20: =+COST_FS1!$AH$142*M15+COST_FS1!$AH$143*M16 ->  | N20: =+COST_FS1!$AH$142*N15+COST_FS1!$AH$143*N16 ->  | O20: =+COST_FS1!$AH$142*O15+COST_FS1!$AH$143*O16 ->  | P20: =+COST_FS1!$AH$142*P15+COST_FS1!$AH$143*P16 ->  | Q20: =+COST_FS1!$AH$142*Q15+COST_FS1!$AH$143*Q16 ->  | R20: =+COST_FS1!$AH$142*R15+COST_FS1!$AH$143*R16 ->  | S20: =+COST_FS1!$AH$142*S15+COST_FS1!$AH$143*S16 ->  | T20: =+COST_FS1!$AH$142*T15+COST_FS1!$AH$143*T16 ->  | U20: =+COST_FS1!$AH$142*U15+COST_FS1!$AH$143*U16 ->  | V20: =+COST_FS1!$AH$142*V15+COST_FS1!$AH$143*V16 ->  | W20: =+COST_FS1!$AH$142*W15+COST_FS1!$AH$143*W16 -> 
B22: Total income | D22: =+D18+D20 ->  | E22: =+E18+E20 -> 
A25: Capital and operating cost
B27: Operating Year | C27: Appraisal | D27: 1 | E27: 2 | F27: 3 | G27: 4 | H27: 5 | I27: 6 | J27: 7 | K27: 8 | L27: 9 | M27: 10 | N27: 11 | O27: 12 | P27: 13 | Q27: 14 | R27: 15 | S27: 16 | T27: 17 | U27: 18 | V27: 19 | W27: 20
B28: Direct capital cost (USD)
B29: Equipments | C29: =+COST_FS1!$J74 -> 
B30: Building | C30: =+COST_FS1!$J75 ->  | N30: =+C30 -> 
B31: Installation | C31: =+COST_FS1!$J76 ->  | N31: =+C31 -> 
B33: Total capital cost (USD) | C33: =C29+C30+C31 ->  | D33: 0 | E33: 0 | F33: 0 | G33: 0 | H33: 0 | I33: 0 | J33: 0 | K33: 0 | L33: 0 | M33: 0 | O33: 0 | P33: 0 | Q33: 0 | R33: 0 | S33: 0 | T33: 0 | U33: 0 | V33: 0 | W33: 0
B34: Capital cost (USD/MLN litres) | C34: =+C33/C9 -> 
B35: Capital cost (USD/ litre) | C35: =+C33/C12 -> 
B38: Operating Year | C38: Appraisal | D38: 1 | E38: 2 | F38: 3 | G38: 4 | H38: 5 | I38: 6 | J38: 7 | K38: 8 | L38: 9 | M38: 10 | N38: 11 | O38: 12 | P38: 13 | Q38: 14 | R38: 15 | S38: 16 | T38: 17 | U38: 18 | V38: 19 | W38: 20
B39: Annual operating and maintenance cost
B40: Sub-total input cost (USD) | C40: =+C41+C42 -> 
B41: Feedstock cost (USD/year) | C41: =+COST_FS1!$K$43 ->  | D41: =+C41 -> 
B42: Other raw material costs (USD/year) | C42: =+COST_FS1!$K$57 ->  | D42: =+C42 -> 
B43: Labour cost (USD/year) | C43: =+COST_FS1!$K$64 -> 0 | D43: =C43*(1+D63) -> 0 | E43: 0 | F43: 0 | G43: 0 | H43: 0 | I43: 0 | J43: 0 | K43: 0 | L43: 0 | M43: 0 | N43: 0 | O43: 0 | P43: 0 | Q43: 0 | R43: 0 | S43: 0 | T43: 0 | U43: 0 | V43: 0 | W43: 0
B44: Transportation cost (USD/year) | C44: =+COST_FS1!$K$70 ->  | D44: =+C44 -> 
B45: Investment cost (USD/year) | C45: =+COST_FS1!$K$78 ->  | D45: =+C45 -> 
B46: Maintenance cost (USD/year) | C46: =+COST_FS1!$K$79 ->  | D46: =+C46 -> 
B47: Storage cost (USD/year) | C47: =+COST_FS1!$K$86 ->  | D47: =C47 -> 
B48: Plant overhead (USD/year) | C48: =+COST_FS1!$K$90 ->  | D48: =+C48 -> 
B49: General and administrative cost (USD/year) | C49: =+COST_FS1!$K$91 ->  | D49: =+C49 -> 
B50: Total annualized cost (USD) | C50: =SUM(C41:C49) ->  | D50: =SUM(D41:D49) -> 
B51: Total cost per litre (USD/l) | C51: =+C50/C12 -> 
A53: Financial parameters
B54: Operating Year | C54: Appraisal | D54: 1 | E54: 2 | F54: 3 | G54: 4 | H54: 5 | I54: 6 | J54: 7 | K54: 8 | L54: 9 | M54: 10 | N54: 11 | O54: 12 | P54: 13 | Q54: 14 | R54: 15 | S54: 16 | T54: 17 | U54: 18 | V54: 19 | W54: 20
B55: Raw material cost escalation rate (%) | D55: =+'Data Entry Needs'!$O$172 -> 0 | E55: =D55 -> 0 | F55: 0 | G55: 0 | H55: 0 | I55: 0 | J55: 0 | K55: 0 | L55: 0 | M55: 0 | N55: 0 | O55: 0 | P55: 0 | Q55: 0 | R55: 0 | S55: 0 | T55: 0 | U55: 0 | V55: 0 | W55: 0
B56: Inflation rate (%) | D56: =+'Data Entry Needs'!$O$175 -> 0 | E56: =D56 -> 0 | F56: 0 | G56: 0 | H56: 0 | I56: 0 | J56: 0 | K56: 0 | L56: 0 | M56: 0 | N56: 0 | O56: 0 | P56: 0 | Q56: 0 | R56: 0 | S56: 0 | T56: 0 | U56: 0 | V56: 0 | W56: 0
B57: Discount rate (%) | C57: =+'Data Entry Needs'!$D$64 -> 0
B58: Debt ratio (%) | C58: =+'Data Entry Needs'!$D$71 -> 0
B60: Loan | D60: 1 | E60: 2 | F60: 3 | G60: 4 | H60: 5 | I60: 6 | J60: 7 | K60: 8 | L60: 9 | M60: 10 | N60: 11 | O60: 12 | P60: 13 | Q60: 14 | R60: 15 | S60: 16 | T60: 17 | U60: 18 | V60: 19 | W60: 20
B61: Loan amount (USD ) | C61: =C58*C33 -> 
B62: Increasing rate of price of biodiesel (%) | C62: =+'Data Entry Needs'!$O$174 -> 0 | D62: =+C62 -> 0 | E62: 0 | F62: 0 | G62: 0 | H62: 0 | I62: 0 | J62: 0 | K62: 0 | L62: 0 | M62: 0 | N62: 0 | O62: 0 | P62: 0 | Q62: 0 | R62: 0 | S62: 0 | T62: 0 | U62: 0 | V62: 0 | W62: 0
B63: Escalation rate of labour cost (%) | D63: =+'Data Entry Needs'!$O$170 -> 0 | E63: =+D63 -> 0 | F63: 0 | G63: 0 | H63: 0 | I63: 0 | J63: 0 | K63: 0 | L63: 0 | M63: 0 | N63: 0 | O63: 0 | P63: 0 | Q63: 0 | R63: 0 | S63: 0 | T63: 0 | U63: 0 | V63: 0 | W63: 0
B64: Loan interest rate (%) | C64: =+'Data Entry Needs'!$D$65 -> 0
B65: Loan term (years) | C65: =+'Data Entry Needs'!$D$66 -> 0
B66: Loan payment (USD/month) | C66: =(PMT(C64/12,(12*C65),C61)) -> 
B67: Loan payment (USD/year) | D67: =IF(D54<=$C$65,$C$66*12,0) -> 0 | E67: 0 | F67: 0 | G67: 0 | H67: 0 | I67: 0 | J67: 0 | K67: 0 | L67: 0 | M67: 0 | N67: 0 | O67: 0 | P67: 0 | Q67: 0 | R67: 0 | S67: 0 | T67: 0 | U67: 0 | V67: 0 | W67: 0
B68: Total loan payment (USD) | C68: =SUM(D67:W67) -> 0
B69: Loan interest payment (USD) | C69: =C68+C61 ->  | D69: Average loan interest payment for project lifetime | G69: =C69/20 ->  | H69: USD per year
A71: Income tax analysis
B72: Operating Year | C72: Appraisal | D72: 1 | E72: 2 | F72: 3 | G72: 4 | H72: 5 | I72: 6 | J72: 7 | K72: 8 | L72: 9 | M72: 10 | N72: 11 | O72: 12 | P72: 13 | Q72: 14 | R72: 15 | S72: 16 | T72: 17 | U72: 18 | V72: 19 | W72: 20
B73: Effective income tax rate (%) | C73: 0 | D73: =C73 -> 0 | E73: 0 | F73: 0 | G73: 0 | H73: 0 | I73: 0 | J73: 0 | K73: 0 | L73: 0 | M73: 0 | N73: 0 | O73: 0 | P73: 0 | Q73: 0 | R73: 0 | S73: 0 | T73: 0 | U73: 0 | V73: 0 | W73: 0
B74: Income tax | D74: =IF(D97<0,0,D73*D97) -> 
A76: Depreciation
B77: Operating Year | C77: Appraisal | D77: 1 | E77: 2 | F77: 3 | G77: 4 | H77: 5 | I77: 6 | J77: 7 | K77: 8 | L77: 9 | M77: 10 | N77: 11 | O77: 12 | P77: 13 | Q77: 14 | R77: 15 | S77: 16 | T77: 17 | U77: 18 | V77: 19 | W77: 20
B78: Depreciation method | C78: Straight-line
B79: Total depreciation (USD) | D79: =+C45 ->  | E79: =D79 -> 
A82: Summary of this project - before tax
B83: Operating Year | C83: Appraisal | D83: 1 | E83: 2 | F83: 3 | G83: 4 | H83: 5 | I83: 6 | J83: 7 | K83: 8 | L83: 9 | M83: 10 | N83: 11 | O83: 12 | P83: 13 | Q83: 14 | R83: 15 | S83: 16 | T83: 17 | U83: 18 | V83: 19 | W83: 20
B84: Total revenue (USD) | D84: =+D22 -> 
B85: Total capital cost (USD) | C85: =-(C33-C61) -> 
B86: Total operating and maintenance cost (USD) | D86: =-(D50-D45) -> 
B87: Debt payment (USD) | D87: =D67 -> 0 | E87: 0 | F87: 0 | G87: 0 | H87: 0 | I87: 0 | J87: 0 | K87: 0 | L87: 0 | M87: 0 | N87: 0 | O87: 0 | P87: 0 | Q87: 0 | R87: 0 | S87: 0 | T87: 0 | U87: 0 | V87: 0 | W87: 0
B88: Cash-flow - before tax (USD) | C88: =SUM(C84:C87) -> 
B89: Present cash-flow - before tax (USD) | D89: =+D88/((1+$C57)^D83) -> 
D90: =+PV($C57,D83,,-D88,) -> 
A91: Summary of this project - after tax
B92: Operating Year | C92: Appraisal | D92: 1 | E92: 2 | F92: 3 | G92: 4 | H92: 5 | I92: 6 | J92: 7 | K92: 8 | L92: 9 | M92: 10 | N92: 11 | O92: 12 | P92: 13 | Q92: 14 | R92: 15 | S92: 16 | T92: 17 | U92: 18 | V92: 19 | W92: 20
B93: Total revenue (USD) | C93: =C84 -> 0
B94: Total operating and maintenance cost (USD) | D94: =-(D50-D45) -> 
B95: Debt payment (USD) | D95: =D67 -> 0 | E95: 0 | F95: 0 | G95: 0 | H95: 0 | I95: 0 | J95: 0 | K95: 0 | L95: 0 | M95: 0 | N95: 0 | O95: 0 | P95: 0 | Q95: 0 | R95: 0 | S95: 0 | T95: 0 | U95: 0 | V95: 0 | W95: 0
B96: Depreciation of fixed cost (USD) | D96: =-D79 -> 
B97: Net Profit - before tax (USD) for income tax calculation | C97: =SUM(C93:C96) -> 0
B98: Income tax | D98: =-D74 -> 
D99: =+PV($C57,D92,,-D98) -> 
B100: Cash-flow - after tax (USD) | C100: =C85 ->  | D100: =D88+D98 -> 
B101: Present cash-flow - after tax (USD) | D101: =+PV($C57,D92,,-D100) -> 
A103: Cumulative value of Net Profit
B104: Operating Year | C104: Appraisal | D104: 1 | E104: 2 | F104: 3 | G104: 4 | H104: 5 | I104: 6 | J104: 7 | K104: 8 | L104: 9 | M104: 10 | N104: 11 | O104: 12 | P104: 13 | Q104: 14 | R104: 15 | S104: 16 | T104: 17 | U104: 18 | V104: 19 | W104: 20
B105: Cumulative value of Net Profit - before tax | C105: =C88 ->  | D105: =C105+(D89) -> 
B106: Cumulative value of Net Profit - after tax | C106: =C100 ->  | D106: =C106+(D101) -> 
A108: Financial Analysis Result
B110: Net Present Value (NPV) (USD) - before tax | C110: =NPV(C57,D88:W88)+C88 -> 
B111: Internal Rate of Return (IRR) (%) - before tax | C111: =IF(C110<0,"Not feasible",IRR(C88:W88,0.000001)) -> 
B112: Payback period (years) | C112: Please see Figure of the cumulative value of Net Profit - before tax
B115: Net Present Value (NPV) (USD) - after tax | C115: =NPV(C57,D100:W100)+C100 -> 
B116: Internal Rate of Return (IRR) (%) - after tax | C116: =IF(C115<0,"Not feasible",IRR(C100:W100,0.000001)) -> 
B117: Payback period (years) | C117: Please see Figure of the Cumulative value of Net Profit - after tax
B118: Total income tax payment of project lifetime | C118: =SUM(D99:W99) -> 

Sheet FA50_FS1_SC3 (hidden)
B2: =+UPPER("FINANCIAL EVALUATION OF "&'Data Entry Needs'!$E$10&" PRODUCTION 50 Million Litres/year SCENARIO 3") -> FINANCIAL EVALUATION OF PLEASE SELECT PRODUCTION 50 MILLION LITRES/YEAR SCENARIO 3
A5: ="Revenues of "&'Data Entry Needs'!$E$10&" production (Benefit)" -> Revenues of Please Select production (Benefit)
B7: Operating Year | C7: 0 | D7: 1 | E7: 2 | F7: 3 | G7: 4 | H7: 5 | I7: 6 | J7: 7 | K7: 8 | L7: 9 | M7: 10 | N7: 11 | O7: 12 | P7: 13 | Q7: 14 | R7: 15 | S7: 16 | T7: 17 | U7: 18 | V7: 19 | W7: 20
B9: Capacity (million of litres) | C9: 50 | D9: =C9 -> 50 | E9: 50 | F9: 50 | G9: 50 | H9: 50 | I9: 50 | J9: 50 | K9: 50 | L9: 50 | M9: 50 | N9: 50 | O9: 50 | P9: 50 | Q9: 50 | R9: 50 | S9: 50 | T9: 50 | U9: 50 | V9: 50 | W9: 50
B10: Annual production (litres per year) | C10: =+C9*1000000 -> 50000000 | D10: =+C10 -> 50000000 | E10: 50000000 | F10: 50000000 | G10: 50000000 | H10: 50000000 | I10: 50000000 | J10: 50000000 | K10: 50000000 | L10: 50000000 | M10: 50000000 | N10: 50000000 | O10: 50000000 | P10: 50000000 | Q10: 50000000 | R10: 50000000 | S10: 50000000 | T10: 50000000 | U10: 50000000 | V10: 50000000 | W10: 50000000
B11: Loss in production processing (%) | D11: 0 | E11: =+D11 -> 0 | F11: 0 | G11: 0 | H11: 0 | I11: 0 | J11: 0 | K11: 0 | L11: 0 | M11: 0 | N11: 0 | O11: 0 | P11: 0 | Q11: 0 | R11: 0 | S11: 0 | T11: 0 | U11: 0 | V11: 0 | W11: 0
B12: Sales to customers (litres per year) | C12: =+C10*(1-C11) -> 50000000 | D12: =+C12 -> 50000000 | E12: =+D12 -> 50000000 | F12: 50000000 | G12: 50000000 | H12: 50000000 | I12: 50000000 | J12: 50000000 | K12: 50000000 | L12: 50000000 | M12: 50000000 | N12: 50000000 | O12: 50000000 | P12: 50000000 | Q12: 50000000 | R12: 50000000 | S12: 50000000 | T12: 50000000 | U12: 50000000 | V12: 50000000 | W12: 50000000
B14: ="Price of "&'Data Entry Needs'!$E$10&" (USD/litre)" -> Price of Please Select (USD/litre) | C14: =+VLOOKUP('Data Entry Needs'!$E$10,'Data Entry Needs'!$T$180:$X$183,5,FALSE) ->  | D14: =+C14*(100%+D17) ->  | E14: =+D14*(100%+E17) -> 
B15: =+IF(COST_FS1!$AA$142="","","Price of "&COST_FS1!$AA$142&" (USD/ton)") ->  | C15: =+IF(COST_FS1!$AA$142="",0,COST_FS1!$AC$142) -> 0 | D15: =+C15*(100%+$C17) -> 0 | E15: =+D15*(100%+$C17) -> 0 | F15: =+E15*(100%+$C17) -> 0 | G15: 0 | H15: 0 | I15: 0 | J15: 0 | K15: 0 | L15: 0 | M15: 0 | N15: 0 | O15: 0 | P15: 0 | Q15: 0 | R15: 0 | S15: 0 | T15: 0 | U15: 0 | V15: 0 | W15: 0
B16: =+IF(COST_FS1!$AA$143="","","Price of "&COST_FS1!$AA$143&" (USD/ton)") ->  | C16: =+IF(COST_FS1!$AA$143="",0,COST_FS1!$AC$143) ->  | D16: =+C16*(100%+$C17) ->  | E16: =+D16*(100%+$C17) -> 
B17: ="Increase rate of price of "&'Data Entry Needs'!$E$10&" (%)" -> Increase rate of price of Please Select (%) | C17: =+'Data Entry Needs'!$O$174 -> 0 | D17: =+C17 -> 0 | E17: =+D17 -> 0 | F17: 0 | G17: 0 | H17: 0 | I17: 0 | J17: 0 | K17: 0 | L17: 0 | M17: 0 | N17: 0 | O17: 0 | P17: 0 | Q17: 0 | R17: 0 | S17: 0 | T17: 0 | U17: 0 | V17: 0 | W17: 0
B18: Income (USD per year) | C18: =+C12*C14 ->  | D18: =+D12*D14 -> 
B20: By-products revenue | C20: =+COST_FS1!$AH$142*C15+COST_FS1!$AH$143*C16 ->  | D20: =+COST_FS1!$AH$142*D15+COST_FS1!$AH$143*D16 ->  | E20: =+COST_FS1!$AH$142*E15+COST_FS1!$AH$143*E16 ->  | F20: =+COST_FS1!$AH$142*F15+COST_FS1!$AH$143*F16 ->  | G20: =+COST_FS1!$AH$142*G15+COST_FS1!$AH$143*G16 ->  | H20: =+COST_FS1!$AH$142*H15+COST_FS1!$AH$143*H16 ->  | I20: =+COST_FS1!$AH$142*I15+COST_FS1!$AH$143*I16 ->  | J20: =+COST_FS1!$AH$142*J15+COST_FS1!$AH$143*J16 ->  | K20: =+COST_FS1!$AH$142*K15+COST_FS1!$AH$143*K16 ->  | L20: =+COST_FS1!$AH$142*L15+COST_FS1!$AH$143*L16 ->  | M20: =+COST_FS1!$AH$142*M15+COST_FS1!$AH$143*M16 ->  | N20: =+COST_FS1!$AH$142*N15+COST_FS1!$AH$143*N16 ->  | O20: =+COST_FS1!$AH$142*O15+COST_FS1!$AH$143*O16 ->  | P20: =+COST_FS1!$AH$142*P15+COST_FS1!$AH$143*P16 ->  | Q20: =+COST_FS1!$AH$142*Q15+COST_FS1!$AH$143*Q16 ->  | R20: =+COST_FS1!$AH$142*R15+COST_FS1!$AH$143*R16 ->  | S20: =+COST_FS1!$AH$142*S15+COST_FS1!$AH$143*S16 ->  | T20: =+COST_FS1!$AH$142*T15+COST_FS1!$AH$143*T16 ->  | U20: =+COST_FS1!$AH$142*U15+COST_FS1!$AH$143*U16 ->  | V20: =+COST_FS1!$AH$142*V15+COST_FS1!$AH$143*V16 ->  | W20: =+COST_FS1!$AH$142*W15+COST_FS1!$AH$143*W16 -> 
B22: Total income | D22: =+D18+D20 ->  | E22: =+E18+E20 -> 
A25: Capital and operating cost
B27: Operating Year | C27: Appraisal | D27: 1 | E27: 2 | F27: 3 | G27: 4 | H27: 5 | I27: 6 | J27: 7 | K27: 8 | L27: 9 | M27: 10 | N27: 11 | O27: 12 | P27: 13 | Q27: 14 | R27: 15 | S27: 16 | T27: 17 | U27: 18 | V27: 19 | W27: 20
B28: Direct capital cost (USD)
B29: Equipments | C29: =+COST_FS1!$J74 -> 
B30: Building | C30: =+COST_FS1!$J75 ->  | N30: =+C30 -> 
B31: Installation | C31: =+COST_FS1!$J76 ->  | N31: =+C31 -> 
B33: Total capital cost (USD) | C33: =C29+C30+C31 ->  | D33: 0 | E33: 0 | F33: 0 | G33: 0 | H33: 0 | I33: 0 | J33: 0 | K33: 0 | L33: 0 | M33: 0 | O33: 0 | P33: 0 | Q33: 0 | R33: 0 | S33: 0 | T33: 0 | U33: 0 | V33: 0 | W33: 0
B34: Capital cost (USD/MLN litres) | C34: =+C33/C9 -> 
B35: Capital cost (USD/ litre) | C35: =+C33/C12 -> 
B38: Operating Year | C38: Appraisal | D38: 1 | E38: 2 | F38: 3 | G38: 4 | H38: 5 | I38: 6 | J38: 7 | K38: 8 | L38: 9 | M38: 10 | N38: 11 | O38: 12 | P38: 13 | Q38: 14 | R38: 15 | S38: 16 | T38: 17 | U38: 18 | V38: 19 | W38: 20
B39: Annual operating and maintenance cost
B40: Sub-total input cost (USD) | C40: =+C41+C42 -> 
B41: Feedstock cost (USD/year) | C41: =+COST_FS1!$K$44 ->  | D41: =+C41 -> 
B42: Other raw material costs (USD/year) | C42: =+COST_FS1!$K$57 ->  | D42: =+C42 -> 
B43: Labour cost (USD/year) | C43: =+COST_FS1!$K$64 -> 0 | D43: =C43*(1+D63) -> 0 | E43: 0 | F43: 0 | G43: 0 | H43: 0 | I43: 0 | J43: 0 | K43: 0 | L43: 0 | M43: 0 | N43: 0 | O43: 0 | P43: 0 | Q43: 0 | R43: 0 | S43: 0 | T43: 0 | U43: 0 | V43: 0 | W43: 0
B44: Transportation cost (USD/year) | C44: =+COST_FS1!$K$70 ->  | D44: =+C44 -> 
B45: Investment cost (USD/year) | C45: =+COST_FS1!$K$78 ->  | D45: =+C45 -> 
B46: Maintenance cost (USD/year) | C46: =+COST_FS1!$K$79 ->  | D46: =+C46 -> 
B47: Storage cost (USD/year) | C47: =+COST_FS1!$K$86 ->  | D47: =C47 -> 
B48: Plant overhead (USD/year) | C48: =+COST_FS1!$K$90 ->  | D48: =+C48 -> 
B49: General and administrative cost (USD/year) | C49: =+COST_FS1!$K$91 ->  | D49: =+C49 -> 
B50: Total annualized cost (USD) | C50: =SUM(C41:C49) ->  | D50: =SUM(D41:D49) -> 
B51: Total cost per litre (USD/l) | C51: =+C50/C12 -> 
A53: Financial parameters
B54: Operating Year | C54: Appraisal | D54: 1 | E54: 2 | F54: 3 | G54: 4 | H54: 5 | I54: 6 | J54: 7 | K54: 8 | L54: 9 | M54: 10 | N54: 11 | O54: 12 | P54: 13 | Q54: 14 | R54: 15 | S54: 16 | T54: 17 | U54: 18 | V54: 19 | W54: 20
B55: Raw material cost escalation rate (%) | D55: =+'Data Entry Needs'!$O$172 -> 0 | E55: =D55 -> 0 | F55: 0 | G55: 0 | H55: 0 | I55: 0 | J55: 0 | K55: 0 | L55: 0 | M55: 0 | N55: 0 | O55: 0 | P55: 0 | Q55: 0 | R55: 0 | S55: 0 | T55: 0 | U55: 0 | V55: 0 | W55: 0
B56: Inflation rate (%) | D56: =+'Data Entry Needs'!$O$175 -> 0 | E56: =D56 -> 0 | F56: 0 | G56: 0 | H56: 0 | I56: 0 | J56: 0 | K56: 0 | L56: 0 | M56: 0 | N56: 0 | O56: 0 | P56: 0 | Q56: 0 | R56: 0 | S56: 0 | T56: 0 | U56: 0 | V56: 0 | W56: 0
B57: Discount rate (%) | C57: =+'Data Entry Needs'!$D$64 -> 0
B58: Debt ratio (%) | C58: =+'Data Entry Needs'!$D$71 -> 0
B60: Loan | D60: 1 | E60: 2 | F60: 3 | G60: 4 | H60: 5 | I60: 6 | J60: 7 | K60: 8 | L60: 9 | M60: 10 | N60: 11 | O60: 12 | P60: 13 | Q60: 14 | R60: 15 | S60: 16 | T60: 17 | U60: 18 | V60: 19 | W60: 20
B61: Loan amount (USD ) | C61: =C58*C33 -> 
B62: Increasing rate of price of biodiesel (%) | C62: =+'Data Entry Needs'!$O$174 -> 0 | D62: =+C62 -> 0 | E62: 0 | F62: 0 | G62: 0 | H62: 0 | I62: 0 | J62: 0 | K62: 0 | L62: 0 | M62: 0 | N62: 0 | O62: 0 | P62: 0 | Q62: 0 | R62: 0 | S62: 0 | T62: 0 | U62: 0 | V62: 0 | W62: 0
B63: Escalation rate of labour cost (%) | D63: =+'Data Entry Needs'!$O$170 -> 0 | E63: =+D63 -> 0 | F63: 0 | G63: 0 | H63: 0 | I63: 0 | J63: 0 | K63: 0 | L63: 0 | M63: 0 | N63: 0 | O63: 0 | P63: 0 | Q63: 0 | R63: 0 | S63: 0 | T63: 0 | U63: 0 | V63: 0 | W63: 0
B64: Loan interest rate (%) | C64: =+'Data Entry Needs'!$D$65 -> 0
B65: Loan term (years) | C65: =+'Data Entry Needs'!$D$66 -> 0
B66: Loan payment (USD/month) | C66: =(PMT(C64/12,(12*C65),C61)) -> 
B67: Loan payment (USD/year) | D67: =IF(D54<=$C$65,$C$66*12,0) -> 0 | E67: 0 | F67: 0 | G67: 0 | H67: 0 | I67: 0 | J67: 0 | K67: 0 | L67: 0 | M67: 0 | N67: 0 | O67: 0 | P67: 0 | Q67: 0 | R67: 0 | S67: 0 | T67: 0 | U67: 0 | V67: 0 | W67: 0
B68: Total loan payment (USD) | C68: =SUM(D67:W67) -> 0
B69: Loan interest payment (USD) | C69: =C68+C61 ->  | D69: Average loan interest payment for project lifetime | G69: =C69/20 ->  | H69: USD per year
A71: Income tax analysis
B72: Operating Year | C72: Appraisal | D72: 1 | E72: 2 | F72: 3 | G72: 4 | H72: 5 | I72: 6 | J72: 7 | K72: 8 | L72: 9 | M72: 10 | N72: 11 | O72: 12 | P72: 13 | Q72: 14 | R72: 15 | S72: 16 | T72: 17 | U72: 18 | V72: 19 | W72: 20
B73: Effective income tax rate (%) | C73: 0 | D73: =C73 -> 0 | E73: 0 | F73: 0 | G73: 0 | H73: 0 | I73: 0 | J73: 0 | K73: 0 | L73: 0 | M73: 0 | N73: 0 | O73: 0 | P73: 0 | Q73: 0 | R73: 0 | S73: 0 | T73: 0 | U73: 0 | V73: 0 | W73: 0
B74: Income tax | D74: =IF(D97<0,0,D73*D97) -> 
A76: Depreciation
B77: Operating Year | C77: Appraisal | D77: 1 | E77: 2 | F77: 3 | G77: 4 | H77: 5 | I77: 6 | J77: 7 | K77: 8 | L77: 9 | M77: 10 | N77: 11 | O77: 12 | P77: 13 | Q77: 14 | R77: 15 | S77: 16 | T77: 17 | U77: 18 | V77: 19 | W77: 20
B78: Depreciation method | C78: Straight-line
B79: Total depreciation (USD) | D79: =+C45 ->  | E79: =D79 -> 
A82: Summary of this project - before tax
B83: Operating Year | C83: Appraisal | D83: 1 | E83: 2 | F83: 3 | G83: 4 | H83: 5 | I83: 6 | J83: 7 | K83: 8 | L83: 9 | M83: 10 | N83: 11 | O83: 12 | P83: 13 | Q83: 14 | R83: 15 | S83: 16 | T83: 17 | U83: 18 | V83: 19 | W83: 20
B84: Total revenue (USD) | D84: =+D22 -> 
B85: Total capital cost (USD) | C85: =-(C33-C61) -> 
B86: Total operating and maintenance cost (USD) | D86: =-(D50-D45) -> 
B87: Debt payment (USD) | D87: =D67 -> 0 | E87: 0 | F87: 0 | G87: 0 | H87: 0 | I87: 0 | J87: 0 | K87: 0 | L87: 0 | M87: 0 | N87: 0 | O87: 0 | P87: 0 | Q87: 0 | R87: 0 | S87: 0 | T87: 0 | U87: 0 | V87: 0 | W87: 0
B88: Cash-flow - before tax (USD) | C88: =SUM(C84:C87) -> 
B89: Present cash-flow - before tax (USD) | D89: =+D88/((1+$C57)^D83) -> 
D90: =+PV($C57,D83,,-D88,) -> 
A91: Summary of this project - after tax
B92: Operating Year | C92: Appraisal | D92: 1 | E92: 2 | F92: 3 | G92: 4 | H92: 5 | I92: 6 | J92: 7 | K92: 8 | L92: 9 | M92: 10 | N92: 11 | O92: 12 | P92: 13 | Q92: 14 | R92: 15 | S92: 16 | T92: 17 | U92: 18 | V92: 19 | W92: 20
B93: Total revenue (USD) | C93: =C84 -> 0
B94: Total operating and maintenance cost (USD) | D94: =-(D50-D45) -> 
B95: Debt payment (USD) | D95: =D67 -> 0 | E95: 0 | F95: 0 | G95: 0 | H95: 0 | I95: 0 | J95: 0 | K95: 0 | L95: 0 | M95: 0 | N95: 0 | O95: 0 | P95: 0 | Q95: 0 | R95: 0 | S95: 0 | T95: 0 | U95: 0 | V95: 0 | W95: 0
B96: Depreciation of fixed cost (USD) | D96: =-D79 -> 
B97: Net Profit - before tax (USD) for income tax calculation | C97: =SUM(C93:C96) -> 0
B98: Income tax | D98: =-D74 -> 
D99: =+PV($C57,D92,,-D98) -> 
B100: Cash-flow - after tax (USD) | C100: =C85 ->  | D100: =D88+D98 -> 
B101: Present cash-flow - after tax (USD) | D101: =+PV($C57,D92,,-D100) -> 
A103: Cumulative value of Net Profit
B104: Operating Year | C104: Appraisal | D104: 1 | E104: 2 | F104: 3 | G104: 4 | H104: 5 | I104: 6 | J104: 7 | K104: 8 | L104: 9 | M104: 10 | N104: 11 | O104: 12 | P104: 13 | Q104: 14 | R104: 15 | S104: 16 | T104: 17 | U104: 18 | V104: 19 | W104: 20
B105: Cumulative value of Net Profit - before tax | C105: =C88 ->  | D105: =C105+(D89) -> 
B106: Cumulative value of Net Profit - after tax | C106: =C100 ->  | D106: =C106+(D101) -> 
A108: Financial Analysis Result
B110: Net Present Value (NPV) (USD) - before tax | C110: =NPV(C57,D88:W88)+C88 -> 
B111: Internal Rate of Return (IRR) (%) - before tax | C111: =IF(C110<0,"Not feasible",IRR(C88:W88,0.000001)) -> 
B112: Payback period (years) | C112: Please see Figure of the cumulative value of Net Profit - before tax
B115: Net Present Value (NPV) (USD) - after tax | C115: =NPV(C57,D100:W100)+C100 -> 
B116: Internal Rate of Return (IRR) (%) - after tax | C116: =IF(C115<0,"Not feasible",IRR(C100:W100,0.000001)) -> 
B117: Payback period (years) | C117: Please see Figure of the cumulative value of Net Profit - after tax
B118: Total income tax payment of project lifetime | C118: =SUM(D99:W99) -> 

Sheet FA100_FS1_SC1 (hidden)
B2: =+UPPER("FINANCIAL EVALUATION OF "&'Data Entry Needs'!$E$10&" PRODUCTION 100 Million Litres/year SCENARIO 1") -> FINANCIAL EVALUATION OF PLEASE SELECT PRODUCTION 100 MILLION LITRES/YEAR SCENARIO 1
A5: ="Revenues of "&'Data Entry Needs'!$E$10&" production (Benefit)" -> Revenues of Please Select production (Benefit)
B7: Operating Year | C7: 0 | D7: 1 | E7: 2 | F7: 3 | G7: 4 | H7: 5 | I7: 6 | J7: 7 | K7: 8 | L7: 9 | M7: 10 | N7: 11 | O7: 12 | P7: 13 | Q7: 14 | R7: 15 | S7: 16 | T7: 17 | U7: 18 | V7: 19 | W7: 20
B9: Capacity (million of litres) | C9: 100 | D9: =C9 -> 100 | E9: 100 | F9: 100 | G9: 100 | H9: 100 | I9: 100 | J9: 100 | K9: 100 | L9: 100 | M9: 100 | N9: 100 | O9: 100 | P9: 100 | Q9: 100 | R9: 100 | S9: 100 | T9: 100 | U9: 100 | V9: 100 | W9: 100
B10: Annual production (litres per year) | C10: =+C9*1000000 -> 100000000 | D10: =+C10 -> 100000000 | E10: 100000000 | F10: 100000000 | G10: 100000000 | H10: 100000000 | I10: 100000000 | J10: 100000000 | K10: 100000000 | L10: 100000000 | M10: 100000000 | N10: 100000000 | O10: 100000000 | P10: 100000000 | Q10: 100000000 | R10: 100000000 | S10: 100000000 | T10: 100000000 | U10: 100000000 | V10: 100000000 | W10: 100000000
B11: Loss in production processing (%) | D11: 0 | E11: =+D11 -> 0 | F11: 0 | G11: 0 | H11: 0 | I11: 0 | J11: 0 | K11: 0 | L11: 0 | M11: 0 | N11: 0 | O11: 0 | P11: 0 | Q11: 0 | R11: 0 | S11: 0 | T11: 0 | U11: 0 | V11: 0 | W11: 0
B12: Sales to customers (litres per year) | C12: =+C10*(1-C11) -> 100000000 | D12: =+C12 -> 100000000 | E12: =+D12 -> 100000000 | F12: 100000000 | G12: 100000000 | H12: 100000000 | I12: 100000000 | J12: 100000000 | K12: 100000000 | L12: 100000000 | M12: 100000000 | N12: 100000000 | O12: 100000000 | P12: 100000000 | Q12: 100000000 | R12: 100000000 | S12: 100000000 | T12: 100000000 | U12: 100000000 | V12: 100000000 | W12: 100000000
B14: ="Price of "&'Data Entry Needs'!$E$10&" (USD/litre)" -> Price of Please Select (USD/litre) | C14: =+VLOOKUP('Data Entry Needs'!$E$10,'Data Entry Needs'!$T$180:$X$183,5,FALSE) ->  | D14: =+C14*(100%+D17) ->  | E14: =+D14*(100%+E17) -> 
B15: =+IF(COST_FS1!$AA$142="","","Price of "&COST_FS1!$AA$142&" (USD/ton)") ->  | C15: =+IF(COST_FS1!$AA$142="",0,COST_FS1!$AC$142) -> 0 | D15: =+C15*(100%+$C17) -> 0 | E15: =+D15*(100%+$C17) -> 0 | F15: =+E15*(100%+$C17) -> 0 | G15: 0 | H15: 0 | I15: 0 | J15: 0 | K15: 0 | L15: 0 | M15: 0 | N15: 0 | O15: 0 | P15: 0 | Q15: 0 | R15: 0 | S15: 0 | T15: 0 | U15: 0 | V15: 0 | W15: 0
B16: =+IF(COST_FS1!$AA$143="","","Price of "&COST_FS1!$AA$143&" (USD/ton)") ->  | C16: =+IF(COST_FS1!$AA$143="",0,COST_FS1!$AC$143) ->  | D16: =+C16*(100%+$C17) ->  | E16: =+D16*(100%+$C17) -> 
B17: ="Increase rate of price of "&'Data Entry Needs'!$E$10&" (%)" -> Increase rate of price of Please Select (%) | C17: =+'Data Entry Needs'!$O$174 -> 0 | D17: =+C17 -> 0 | E17: =+D17 -> 0 | F17: 0 | G17: 0 | H17: 0 | I17: 0 | J17: 0 | K17: 0 | L17: 0 | M17: 0 | N17: 0 | O17: 0 | P17: 0 | Q17: 0 | R17: 0 | S17: 0 | T17: 0 | U17: 0 | V17: 0 | W17: 0
B18: Income (USD per year) | C18: =+C12*C14 ->  | D18: =+D12*D14 -> 
B20: By-products revenue | C20: =+COST_FS1!$AJ$142*C15+COST_FS1!$AJ$143*C16 ->  | D20: =+COST_FS1!$AJ$142*D15+COST_FS1!$AJ$143*D16 ->  | E20: =+COST_FS1!$AJ$142*E15+COST_FS1!$AJ$143*E16 ->  | F20: =+COST_FS1!$AJ$142*F15+COST_FS1!$AJ$143*F16 ->  | G20: =+COST_FS1!$AJ$142*G15+COST_FS1!$AJ$143*G16 ->  | H20: =+COST_FS1!$AJ$142*H15+COST_FS1!$AJ$143*H16 ->  | I20: =+COST_FS1!$AJ$142*I15+COST_FS1!$AJ$143*I16 ->  | J20: =+COST_FS1!$AJ$142*J15+COST_FS1!$AJ$143*J16 ->  | K20: =+COST_FS1!$AJ$142*K15+COST_FS1!$AJ$143*K16 ->  | L20: =+COST_FS1!$AJ$142*L15+COST_FS1!$AJ$143*L16 ->  | M20: =+COST_FS1!$AJ$142*M15+COST_FS1!$AJ$143*M16 ->  | N20: =+COST_FS1!$AJ$142*N15+COST_FS1!$AJ$143*N16 ->  | O20: =+COST_FS1!$AJ$142*O15+COST_FS1!$AJ$143*O16 ->  | P20: =+COST_FS1!$AJ$142*P15+COST_FS1!$AJ$143*P16 ->  | Q20: =+COST_FS1!$AJ$142*Q15+COST_FS1!$AJ$143*Q16 ->  | R20: =+COST_FS1!$AJ$142*R15+COST_FS1!$AJ$143*R16 ->  | S20: =+COST_FS1!$AJ$142*S15+COST_FS1!$AJ$143*S16 ->  | T20: =+COST_FS1!$AJ$142*T15+COST_FS1!$AJ$143*T16 ->  | U20: =+COST_FS1!$AJ$142*U15+COST_FS1!$AJ$143*U16 ->  | V20: =+COST_FS1!$AJ$142*V15+COST_FS1!$AJ$143*V16 ->  | W20: =+COST_FS1!$AJ$142*W15+COST_FS1!$AJ$143*W16 -> 
B22: Total income | D22: =+D18+D20 ->  | E22: =+E18+E20 -> 
A25: Capital and operating cost
B27: Operating Year | C27: Appraisal | D27: 1 | E27: 2 | F27: 3 | G27: 4 | H27: 5 | I27: 6 | J27: 7 | K27: 8 | L27: 9 | M27: 10 | N27: 11 | O27: 12 | P27: 13 | Q27: 14 | R27: 15 | S27: 16 | T27: 17 | U27: 18 | V27: 19 | W27: 20
B28: Direct capital cost (USD)
B29: Equipments | C29: =+COST_FS1!$L74 -> 
B30: Building | C30: =+COST_FS1!$L75 ->  | N30: =+C30 -> 
B31: Installation | C31: =+COST_FS1!$L76 ->  | N31: =+C31 -> 
B33: Total capital cost (USD) | C33: =C29+C30+C31 ->  | D33: 0 | E33: 0 | F33: 0 | G33: 0 | H33: 0 | I33: 0 | J33: 0 | K33: 0 | L33: 0 | M33: 0 | O33: 0 | P33: 0 | Q33: 0 | R33: 0 | S33: 0 | T33: 0 | U33: 0 | V33: 0 | W33: 0
B34: Capital cost (USD/MLN litres) | C34: =+C33/C9 -> 
B35: Capital cost (USD/ litre) | C35: =+C33/C12 -> 
B38: Operating Year | C38: Appraisal | D38: 1 | E38: 2 | F38: 3 | G38: 4 | H38: 5 | I38: 6 | J38: 7 | K38: 8 | L38: 9 | M38: 10 | N38: 11 | O38: 12 | P38: 13 | Q38: 14 | R38: 15 | S38: 16 | T38: 17 | U38: 18 | V38: 19 | W38: 20
B39: Annual operating and maintenance cost
B40: Sub-total input cost (USD) | C40: =+C41+C42 -> 
B41: Feedstock cost (USD/year) | C41: =+COST_FS1!$M$42 ->  | D41: =+C41 -> 
B42: Other raw material costs (USD/year) | C42: =+COST_FS1!$M$57 ->  | D42: =+C42 -> 
B43: Labour cost (USD/year) | C43: =+COST_FS1!$M$64 -> 0 | D43: =C43*(1+D63) -> 0 | E43: 0 | F43: 0 | G43: 0 | H43: 0 | I43: 0 | J43: 0 | K43: 0 | L43: 0 | M43: 0 | N43: 0 | O43: 0 | P43: 0 | Q43: 0 | R43: 0 | S43: 0 | T43: 0 | U43: 0 | V43: 0 | W43: 0
B44: Transportation cost (USD/year) | C44: =+COST_FS1!$M$70 ->  | D44: =+C44 -> 
B45: Investment cost (USD/year) | C45: =+COST_FS1!$M$78 ->  | D45: =+C45 -> 
B46: Maintenance cost (USD/year) | C46: =+COST_FS1!$M$79 ->  | D46: =+C46 -> 
B47: Storage cost (USD/year) | C47: =+COST_FS1!$M$86 ->  | D47: =C47 -> 
B48: Plant overhead (USD/year) | C48: =+COST_FS1!$M$90 ->  | D48: =+C48 -> 
B49: General and administrative cost (USD/year) | C49: =+COST_FS1!$M$91 ->  | D49: =+C49 -> 
B50: Total annualized cost (USD) | C50: =SUM(C41:C49) ->  | D50: =SUM(D41:D49) -> 
B51: Total cost per litre (USD/l) | C51: =+C50/C12 -> 
A53: Financial parameters
B54: Operating Year | C54: Appraisal | D54: 1 | E54: 2 | F54: 3 | G54: 4 | H54: 5 | I54: 6 | J54: 7 | K54: 8 | L54: 9 | M54: 10 | N54: 11 | O54: 12 | P54: 13 | Q54: 14 | R54: 15 | S54: 16 | T54: 17 | U54: 18 | V54: 19 | W54: 20
B55: Raw material cost escalation rate (%) | D55: =+'Data Entry Needs'!$O$172 -> 0 | E55: =D55 -> 0 | F55: 0 | G55: 0 | H55: 0 | I55: 0 | J55: 0 | K55: 0 | L55: 0 | M55: 0 | N55: 0 | O55: 0 | P55: 0 | Q55: 0 | R55: 0 | S55: 0 | T55: 0 | U55: 0 | V55: 0 | W55: 0
B56: Inflation rate (%) | D56: =+'Data Entry Needs'!$O$175 -> 0 | E56: =D56 -> 0 | F56: 0 | G56: 0 | H56: 0 | I56: 0 | J56: 0 | K56: 0 | L56: 0 | M56: 0 | N56: 0 | O56: 0 | P56: 0 | Q56: 0 | R56: 0 | S56: 0 | T56: 0 | U56: 0 | V56: 0 | W56: 0
B57: Discount rate (%) | C57: =+'Data Entry Needs'!$D$64 -> 0
B58: Debt ratio (%) | C58: ='Data Entry Needs'!$D$72 -> 0
B60: Loan | D60: 1 | E60: 2 | F60: 3 | G60: 4 | H60: 5 | I60: 6 | J60: 7 | K60: 8 | L60: 9 | M60: 10 | N60: 11 | O60: 12 | P60: 13 | Q60: 14 | R60: 15 | S60: 16 | T60: 17 | U60: 18 | V60: 19 | W60: 20
B61: Loan amount (USD ) | C61: =C58*C33 -> 
B62: Increasing rate of price of biodiesel (%) | C62: =+'Data Entry Needs'!$O$174 -> 0 | D62: =+C62 -> 0 | E62: 0 | F62: 0 | G62: 0 | H62: 0 | I62: 0 | J62: 0 | K62: 0 | L62: 0 | M62: 0 | N62: 0 | O62: 0 | P62: 0 | Q62: 0 | R62: 0 | S62: 0 | T62: 0 | U62: 0 | V62: 0 | W62: 0
B63: Escalation rate of labour cost (%) | D63: =+'Data Entry Needs'!$O$170 -> 0 | E63: =+D63 -> 0 | F63: 0 | G63: 0 | H63: 0 | I63: 0 | J63: 0 | K63: 0 | L63: 0 | M63: 0 | N63: 0 | O63: 0 | P63: 0 | Q63: 0 | R63: 0 | S63: 0 | T63: 0 | U63: 0 | V63: 0 | W63: 0
B64: Loan interest rate (%) | C64: =+'Data Entry Needs'!$D$65 -> 0
B65: Loan term (years) | C65: =+'Data Entry Needs'!$D$66 -> 0
B66: Loan payment (USD/month) | C66: =(PMT(C64/12,(12*C65),C61)) -> 
B67: Loan payment (USD/year) | D67: =IF(D54<=$C$65,$C$66*12,0) -> 0 | E67: 0 | F67: 0 | G67: 0 | H67: 0 | I67: 0 | J67: 0 | K67: 0 | L67: 0 | M67: 0 | N67: 0 | O67: 0 | P67: 0 | Q67: 0 | R67: 0 | S67: 0 | T67: 0 | U67: 0 | V67: 0 | W67: 0
B68: Total loan payment (USD) | C68: =SUM(D67:W67) -> 0
B69: Loan interest payment (USD) | C69: =C68+C61 ->  | D69: Average loan interest payment for project lifetime | G69: =C69/20 ->  | H69: USD per year
A71: Income tax analysis
B72: Operating Year | C72: Appraisal | D72: 1 | E72: 2 | F72: 3 | G72: 4 | H72: 5 | I72: 6 | J72: 7 | K72: 8 | L72: 9 | M72: 10 | N72: 11 | O72: 12 | P72: 13 | Q72: 14 | R72: 15 | S72: 16 | T72: 17 | U72: 18 | V72: 19 | W72: 20
B73: Effective income tax rate (%) | C73: 0 | D73: =C73 -> 0 | E73: 0 | F73: 0 | G73: 0 | H73: 0 | I73: 0 | J73: 0 | K73: 0 | L73: 0 | M73: 0 | N73: 0 | O73: 0 | P73: 0 | Q73: 0 | R73: 0 | S73: 0 | T73: 0 | U73: 0 | V73: 0 | W73: 0
B74: Income tax | D74: =IF(D97<0,0,D73*D97) -> 
A76: Depreciation
B77: Operating Year | C77: Appraisal | D77: 1 | E77: 2 | F77: 3 | G77: 4 | H77: 5 | I77: 6 | J77: 7 | K77: 8 | L77: 9 | M77: 10 | N77: 11 | O77: 12 | P77: 13 | Q77: 14 | R77: 15 | S77: 16 | T77: 17 | U77: 18 | V77: 19 | W77: 20
B78: Depreciation method | C78: Straight-line
B79: Total depreciation (USD) | D79: =+C45 ->  | E79: =D79 -> 
A82: Summary of this project - before tax
B83: Operating Year | C83: Appraisal | D83: 1 | E83: 2 | F83: 3 | G83: 4 | H83: 5 | I83: 6 | J83: 7 | K83: 8 | L83: 9 | M83: 10 | N83: 11 | O83: 12 | P83: 13 | Q83: 14 | R83: 15 | S83: 16 | T83: 17 | U83: 18 | V83: 19 | W83: 20
B84: Total revenue (USD) | D84: =+D22 -> 
B85: Total capital cost (USD) | C85: =-(C33-C61) -> 
B86: Total operating and maintenance cost (USD) | D86: =-(D50-D45) -> 
B87: Debt payment (USD) | D87: =D67 -> 0 | E87: 0 | F87: 0 | G87: 0 | H87: 0 | I87: 0 | J87: 0 | K87: 0 | L87: 0 | M87: 0 | N87: 0 | O87: 0 | P87: 0 | Q87: 0 | R87: 0 | S87: 0 | T87: 0 | U87: 0 | V87: 0 | W87: 0
B88: Cash-flow - before tax (USD) | C88: =SUM(C84:C87) -> 
B89: Present cash-flow - before tax (USD) | D89: =+D88/((1+$C57)^D83) -> 
D90: =+PV($C57,D83,,-D88,) -> 
A91: Summary of this project - after tax
B92: Operating Year | C92: Appraisal | D92: 1 | E92: 2 | F92: 3 | G92: 4 | H92: 5 | I92: 6 | J92: 7 | K92: 8 | L92: 9 | M92: 10 | N92: 11 | O92: 12 | P92: 13 | Q92: 14 | R92: 15 | S92: 16 | T92: 17 | U92: 18 | V92: 19 | W92: 20
B93: Total revenue (USD) | C93: =C84 -> 0
B94: Total operating and maintenance cost (USD) | D94: =-(D50-D45) -> 
B95: Debt payment (USD) | D95: =D67 -> 0 | E95: 0 | F95: 0 | G95: 0 | H95: 0 | I95: 0 | J95: 0 | K95: 0 | L95: 0 | M95: 0 | N95: 0 | O95: 0 | P95: 0 | Q95: 0 | R95: 0 | S95: 0 | T95: 0 | U95: 0 | V95: 0 | W95: 0
B96: Depreciation of fixed cost (USD) | D96: =-D79 -> 
B97: Net Profit - before tax (USD) for income tax calculation | C97: =SUM(C93:C96) -> 0
B98: Income tax | D98: =-D74 -> 
D99: =+PV($C57,D92,,-D98) -> 
B100: Cash-flow - after tax (USD) | C100: =C85 ->  | D100: =D88+D98 -> 
B101: Present cash-flow - after tax (USD) | D101: =+PV($C57,D92,,-D100) -> 
A103: Cumulative value of Net Profit
B104: Operating Year | C104: Appraisal | D104: 1 | E104: 2 | F104: 3 | G104: 4 | H104: 5 | I104: 6 | J104: 7 | K104: 8 | L104: 9 | M104: 10 | N104: 11 | O104: 12 | P104: 13 | Q104: 14 | R104: 15 | S104: 16 | T104: 17 | U104: 18 | V104: 19 | W104: 20
B105: Cumulative value of Net Profit - before tax | C105: =C88 ->  | D105: =C105+(D89) -> 
B106: Cumulative value of Net Profit - after tax | C106: =C100 ->  | D106: =C106+(D101) -> 
A108: Financial Analysis Result
B110: Net Present Value (NPV) (USD) - before tax | C110: =NPV(C57,D88:W88)+C88 -> 
B111: Internal Rate of Return (IRR) (%) - before tax | C111: =IF(C110<0,"Not feasible",IRR(C88:W88,0.000001)) -> 
B112: Payback period (years) | C112: Please see Figure of the cumulative value of Net Profit - before tax
B115: Net Present Value (NPV) (USD) - after tax | C115: =NPV(C57,D100:W100)+C100 -> 
B116: Internal Rate of Return (IRR) (%) - after tax | C116: =IF(C115<0,"Not feasible",IRR(C100:W100,0.000001)) -> 
B117: Payback period (years) | C117: Please see Figure of the cumulative value of Net Profit - after tax
B118: Total income tax payment of project lifetime | C118: =SUM(D99:W99) -> 

Sheet FA100_FS1_SC2 (hidden)
B2: =+UPPER("FINANCIAL EVALUATION OF "&'Data Entry Needs'!$E$10&" PRODUCTION 100 Million Litres/year SCENARIO 2") -> FINANCIAL EVALUATION OF PLEASE SELECT PRODUCTION 100 MILLION LITRES/YEAR SCENARIO 2
A5: ="Revenues of "&'Data Entry Needs'!$E$10&" production (Benefit)" -> Revenues of Please Select production (Benefit)
B7: Operating Year | C7: 0 | D7: 1 | E7: 2 | F7: 3 | G7: 4 | H7: 5 | I7: 6 | J7: 7 | K7: 8 | L7: 9 | M7: 10 | N7: 11 | O7: 12 | P7: 13 | Q7: 14 | R7: 15 | S7: 16 | T7: 17 | U7: 18 | V7: 19 | W7: 20
B9: Capacity (million of litres) | C9: 100 | D9: =C9 -> 100 | E9: 100 | F9: 100 | G9: 100 | H9: 100 | I9: 100 | J9: 100 | K9: 100 | L9: 100 | M9: 100 | N9: 100 | O9: 100 | P9: 100 | Q9: 100 | R9: 100 | S9: 100 | T9: 100 | U9: 100 | V9: 100 | W9: 100
B10: Annual production (litres per year) | C10: =+C9*1000000 -> 100000000 | D10: =+C10 -> 100000000 | E10: 100000000 | F10: 100000000 | G10: 100000000 | H10: 100000000 | I10: 100000000 | J10: 100000000 | K10: 100000000 | L10: 100000000 | M10: 100000000 | N10: 100000000 | O10: 100000000 | P10: 100000000 | Q10: 100000000 | R10: 100000000 | S10: 100000000 | T10: 100000000 | U10: 100000000 | V10: 100000000 | W10: 100000000
B11: Loss in production processing (%) | D11: 0 | E11: =+D11 -> 0 | F11: 0 | G11: 0 | H11: 0 | I11: 0 | J11: 0 | K11: 0 | L11: 0 | M11: 0 | N11: 0 | O11: 0 | P11: 0 | Q11: 0 | R11: 0 | S11: 0 | T11: 0 | U11: 0 | V11: 0 | W11: 0
B12: Sales to customers (litres per year) | C12: =+C10*(1-C11) -> 100000000 | D12: =+C12 -> 100000000 | E12: =+D12 -> 100000000 | F12: 100000000 | G12: 100000000 | H12: 100000000 | I12: 100000000 | J12: 100000000 | K12: 100000000 | L12: 100000000 | M12: 100000000 | N12: 100000000 | O12: 100000000 | P12: 100000000 | Q12: 100000000 | R12: 100000000 | S12: 100000000 | T12: 100000000 | U12: 100000000 | V12: 100000000 | W12: 100000000
B14: ="Price of "&'Data Entry Needs'!$E$10&" (USD/litre)" -> Price of Please Select (USD/litre) | C14: =+VLOOKUP('Data Entry Needs'!$E$10,'Data Entry Needs'!$T$180:$X$183,5,FALSE) ->  | D14: =+C14*(100%+D17) ->  | E14: =+D14*(100%+E17) -> 
B15: =+IF(COST_FS1!$AA$142="","","Price of "&COST_FS1!$AA$142&" (USD/ton)") ->  | C15: =+IF(COST_FS1!$AA$142="",0,COST_FS1!$AC$142) -> 0 | D15: =+C15*(100%+$C17) -> 0 | E15: =+D15*(100%+$C17) -> 0 | F15: =+E15*(100%+$C17) -> 0 | G15: 0 | H15: 0 | I15: 0 | J15: 0 | K15: 0 | L15: 0 | M15: 0 | N15: 0 | O15: 0 | P15: 0 | Q15: 0 | R15: 0 | S15: 0 | T15: 0 | U15: 0 | V15: 0 | W15: 0
B16: =+IF(COST_FS1!$AA$143="","","Price of "&COST_FS1!$AA$143&" (USD/ton)") ->  | C16: =+IF(COST_FS1!$AA$143="",0,COST_FS1!$AC$143) ->  | D16: =+C16*(100%+$C17) ->  | E16: =+D16*(100%+$C17) -> 
B17: ="Increase rate of price of "&'Data Entry Needs'!$E$10&" (%)" -> Increase rate of price of Please Select (%) | C17: =+'Data Entry Needs'!$O$174 -> 0 | D17: =+C17 -> 0 | E17: =+D17 -> 0 | F17: 0 | G17: 0 | H17: 0 | I17: 0 | J17: 0 | K17: 0 | L17: 0 | M17: 0 | N17: 0 | O17: 0 | P17: 0 | Q17: 0 | R17: 0 | S17: 0 | T17: 0 | U17: 0 | V17: 0 | W17: 0
B18: Income (USD per year) | C18: =+C12*C14 ->  | D18: =+D12*D14 -> 
B20: By-products revenue | C20: =+COST_FS1!$AJ$142*C15+COST_FS1!$AJ$143*C16 ->  | D20: =+COST_FS1!$AJ$142*D15+COST_FS1!$AJ$143*D16 ->  | E20: =+COST_FS1!$AJ$142*E15+COST_FS1!$AJ$143*E16 ->  | F20: =+COST_FS1!$AJ$142*F15+COST_FS1!$AJ$143*F16 ->  | G20: =+COST_FS1!$AJ$142*G15+COST_FS1!$AJ$143*G16 ->  | H20: =+COST_FS1!$AJ$142*H15+COST_FS1!$AJ$143*H16 ->  | I20: =+COST_FS1!$AJ$142*I15+COST_FS1!$AJ$143*I16 ->  | J20: =+COST_FS1!$AJ$142*J15+COST_FS1!$AJ$143*J16 ->  | K20: =+COST_FS1!$AJ$142*K15+COST_FS1!$AJ$143*K16 ->  | L20: =+COST_FS1!$AJ$142*L15+COST_FS1!$AJ$143*L16 ->  | M20: =+COST_FS1!$AJ$142*M15+COST_FS1!$AJ$143*M16 ->  | N20: =+COST_FS1!$AJ$142*N15+COST_FS1!$AJ$143*N16 ->  | O20: =+COST_FS1!$AJ$142*O15+COST_FS1!$AJ$143*O16 ->  | P20: =+COST_FS1!$AJ$142*P15+COST_FS1!$AJ$143*P16 ->  | Q20: =+COST_FS1!$AJ$142*Q15+COST_FS1!$AJ$143*Q16 ->  | R20: =+COST_FS1!$AJ$142*R15+COST_FS1!$AJ$143*R16 ->  | S20: =+COST_FS1!$AJ$142*S15+COST_FS1!$AJ$143*S16 ->  | T20: =+COST_FS1!$AJ$142*T15+COST_FS1!$AJ$143*T16 ->  | U20: =+COST_FS1!$AJ$142*U15+COST_FS1!$AJ$143*U16 ->  | V20: =+COST_FS1!$AJ$142*V15+COST_FS1!$AJ$143*V16 ->  | W20: =+COST_FS1!$AJ$142*W15+COST_FS1!$AJ$143*W16 -> 
B22: Total income | D22: =+D18+D20 ->  | E22: =+E18+E20 -> 
A25: Capital and operating cost
B27: Operating Year | C27: Appraisal | D27: 1 | E27: 2 | F27: 3 | G27: 4 | H27: 5 | I27: 6 | J27: 7 | K27: 8 | L27: 9 | M27: 10 | N27: 11 | O27: 12 | P27: 13 | Q27: 14 | R27: 15 | S27: 16 | T27: 17 | U27: 18 | V27: 19 | W27: 20
B28: Direct capital cost (USD)
B29: Equipments | C29: =+COST_FS1!$L74 -> 
B30: Building | C30: =+COST_FS1!$L75 ->  | N30: =+C30 -> 
B31: Installation | C31: =+COST_FS1!$L76 ->  | N31: =+C31 -> 
B33: Total capital cost (USD) | C33: =C29+C30+C31 ->  | D33: 0 | E33: 0 | F33: 0 | G33: 0 | H33: 0 | I33: 0 | J33: 0 | K33: 0 | L33: 0 | M33: 0 | O33: 0 | P33: 0 | Q33: 0 | R33: 0 | S33: 0 | T33: 0 | U33: 0 | V33: 0 | W33: 0
B34: Capital cost (USD/MLN litres) | C34: =+C33/C9 -> 
B35: Capital cost (USD/ litre) | C35: =+C33/C12 -> 
B38: Operating Year | C38: Appraisal | D38: 1 | E38: 2 | F38: 3 | G38: 4 | H38: 5 | I38: 6 | J38: 7 | K38: 8 | L38: 9 | M38: 10 | N38: 11 | O38: 12 | P38: 13 | Q38: 14 | R38: 15 | S38: 16 | T38: 17 | U38: 18 | V38: 19 | W38: 20
B39: Annual operating and maintenance cost
B40: Sub-total input cost (USD) | C40: =+C41+C42 -> 
B41: Feedstock cost (USD/year) | C41: =+COST_FS1!$M$43 ->  | D41: =+C41 -> 
B42: Other raw material costs (USD/year) | C42: =+COST_FS1!$M$57 ->  | D42: =+C42 -> 
B43: Labour cost (USD/year) | C43: =+COST_FS1!$M$64 -> 0 | D43: =C43*(1+D63) -> 0 | E43: 0 | F43: 0 | G43: 0 | H43: 0 | I43: 0 | J43: 0 | K43: 0 | L43: 0 | M43: 0 | N43: 0 | O43: 0 | P43: 0 | Q43: 0 | R43: 0 | S43: 0 | T43: 0 | U43: 0 | V43: 0 | W43: 0
B44: Transportation cost (USD/year) | C44: =+COST_FS1!$M$70 ->  | D44: =+C44 -> 
B45: Investment cost (USD/year) | C45: =+COST_FS1!$M$78 ->  | D45: =+C45 -> 
B46: Maintenance cost (USD/year) | C46: =+COST_FS1!$M$79 ->  | D46: =+C46 -> 
B47: Storage cost (USD/year) | C47: =+COST_FS1!$M$86 ->  | D47: =C47 -> 
B48: Plant overhead (USD/year) | C48: =+COST_FS1!$M$90 ->  | D48: =+C48 -> 
B49: General and administrative cost (USD/year) | C49: =+COST_FS1!$M$91 ->  | D49: =+C49 -> 
B50: Total annualized cost (USD) | C50: =SUM(C41:C49) ->  | D50: =SUM(D41:D49) -> 
B51: Total cost per litre (USD/l) | C51: =+C50/C12 -> 
A53: Financial parameters
B54: Operating Year | C54: Appraisal | D54: 1 | E54: 2 | F54: 3 | G54: 4 | H54: 5 | I54: 6 | J54: 7 | K54: 8 | L54: 9 | M54: 10 | N54: 11 | O54: 12 | P54: 13 | Q54: 14 | R54: 15 | S54: 16 | T54: 17 | U54: 18 | V54: 19 | W54: 20
B55: Raw material cost escalation rate (%) | D55: =+'Data Entry Needs'!$O$172 -> 0 | E55: =D55 -> 0 | F55: 0 | G55: 0 | H55: 0 | I55: 0 | J55: 0 | K55: 0 | L55: 0 | M55: 0 | N55: 0 | O55: 0 | P55: 0 | Q55: 0 | R55: 0 | S55: 0 | T55: 0 | U55: 0 | V55: 0 | W55: 0
B56: Inflation rate (%) | D56: =+'Data Entry Needs'!$O$175 -> 0 | E56: =D56 -> 0 | F56: 0 | G56: 0 | H56: 0 | I56: 0 | J56: 0 | K56: 0 | L56: 0 | M56: 0 | N56: 0 | O56: 0 | P56: 0 | Q56: 0 | R56: 0 | S56: 0 | T56: 0 | U56: 0 | V56: 0 | W56: 0
B57: Discount rate (%) | C57: =+'Data Entry Needs'!$D$64 -> 0
B58: Debt ratio (%) | C58: ='Data Entry Needs'!$D$72 -> 0
B60: Loan | D60: 1 | E60: 2 | F60: 3 | G60: 4 | H60: 5 | I60: 6 | J60: 7 | K60: 8 | L60: 9 | M60: 10 | N60: 11 | O60: 12 | P60: 13 | Q60: 14 | R60: 15 | S60: 16 | T60: 17 | U60: 18 | V60: 19 | W60: 20
B61: Loan amount (USD ) | C61: =C58*C33 -> 
B62: Increasing rate of price of biodiesel (%) | C62: =+'Data Entry Needs'!$O$174 -> 0 | D62: =+C62 -> 0 | E62: 0 | F62: 0 | G62: 0 | H62: 0 | I62: 0 | J62: 0 | K62: 0 | L62: 0 | M62: 0 | N62: 0 | O62: 0 | P62: 0 | Q62: 0 | R62: 0 | S62: 0 | T62: 0 | U62: 0 | V62: 0 | W62: 0
B63: Escalation rate of labour cost (%) | D63: =+'Data Entry Needs'!$O$170 -> 0 | E63: =+D63 -> 0 | F63: 0 | G63: 0 | H63: 0 | I63: 0 | J63: 0 | K63: 0 | L63: 0 | M63: 0 | N63: 0 | O63: 0 | P63: 0 | Q63: 0 | R63: 0 | S63: 0 | T63: 0 | U63: 0 | V63: 0 | W63: 0
B64: Loan interest rate (%) | C64: =+'Data Entry Needs'!$D$65 -> 0
B65: Loan term (years) | C65: =+'Data Entry Needs'!$D$66 -> 0
B66: Loan payment (USD/month) | C66: =(PMT(C64/12,(12*C65),C61)) -> 
B67: Loan payment (USD/year) | D67: =IF(D54<=$C$65,$C$66*12,0) -> 0 | E67: 0 | F67: 0 | G67: 0 | H67: 0 | I67: 0 | J67: 0 | K67: 0 | L67: 0 | M67: 0 | N67: 0 | O67: 0 | P67: 0 | Q67: 0 | R67: 0 | S67: 0 | T67: 0 | U67: 0 | V67: 0 | W67: 0
B68: Total loan payment (USD) | C68: =SUM(D67:W67) -> 0
B69: Loan interest payment (USD) | C69: =C68+C61 ->  | D69: Average loan interest payment for project lifetime | G69: =C69/20 ->  | H69: USD per year
A71: Income tax analysis
B72: Operating Year | C72: Appraisal | D72: 1 | E72: 2 | F72: 3 | G72: 4 | H72: 5 | I72: 6 | J72: 7 | K72: 8 | L72: 9 | M72: 10 | N72: 11 | O72: 12 | P72: 13 | Q72: 14 | R72: 15 | S72: 16 | T72: 17 | U72: 18 | V72: 19 | W72: 20
B73: Effective income tax rate (%) | C73: 0 | D73: =C73 -> 0 | E73: 0 | F73: 0 | G73: 0 | H73: 0 | I73: 0 | J73: 0 | K73: 0 | L73: 0 | M73: 0 | N73: 0 | O73: 0 | P73: 0 | Q73: 0 | R73: 0 | S73: 0 | T73: 0 | U73: 0 | V73: 0 | W73: 0
B74: Income tax | D74: =IF(D97<0,0,D73*D97) -> 
A76: Depreciation
B77: Operating Year | C77: Appraisal | D77: 1 | E77: 2 | F77: 3 | G77: 4 | H77: 5 | I77: 6 | J77: 7 | K77: 8 | L77: 9 | M77: 10 | N77: 11 | O77: 12 | P77: 13 | Q77: 14 | R77: 15 | S77: 16 | T77: 17 | U77: 18 | V77: 19 | W77: 20
B78: Depreciation method | C78: Straight-line
B79: Total depreciation (USD) | D79: =+C45 ->  | E79: =D79 -> 
A82: Summary of this project - before tax
B83: Operating Year | C83: Appraisal | D83: 1 | E83: 2 | F83: 3 | G83: 4 | H83: 5 | I83: 6 | J83: 7 | K83: 8 | L83: 9 | M83: 10 | N83: 11 | O83: 12 | P83: 13 | Q83: 14 | R83: 15 | S83: 16 | T83: 17 | U83: 18 | V83: 19 | W83: 20
B84: Total revenue (USD) | D84: =+D22 -> 
B85: Total capital cost (USD) | C85: =-(C33-C61) -> 
B86: Total operating and maintenance cost (USD) | D86: =-(D50-D45) -> 
B87: Debt payment (USD) | D87: =D67 -> 0 | E87: 0 | F87: 0 | G87: 0 | H87: 0 | I87: 0 | J87: 0 | K87: 0 | L87: 0 | M87: 0 | N87: 0 | O87: 0 | P87: 0 | Q87: 0 | R87: 0 | S87: 0 | T87: 0 | U87: 0 | V87: 0 | W87: 0
B88: Cash-flow - before tax (USD) | C88: =SUM(C84:C87) -> 
B89: Present cash-flow - before tax (USD) | D89: =+D88/((1+$C57)^D83) -> 
D90: =+PV($C57,D83,,-D88,) -> 
A91: Summary of this project - after tax
B92: Operating Year | C92: Appraisal | D92: 1 | E92: 2 | F92: 3 | G92: 4 | H92: 5 | I92: 6 | J92: 7 | K92: 8 | L92: 9 | M92: 10 | N92: 11 | O92: 12 | P92: 13 | Q92: 14 | R92: 15 | S92: 16 | T92: 17 | U92: 18 | V92: 19 | W92: 20
B93: Total revenue (USD) | C93: =C84 -> 0
B94: Total operating and maintenance cost (USD) | D94: =-(D50-D45) -> 
B95: Debt payment (USD) | D95: =D67 -> 0 | E95: 0 | F95: 0 | G95: 0 | H95: 0 | I95: 0 | J95: 0 | K95: 0 | L95: 0 | M95: 0 | N95: 0 | O95: 0 | P95: 0 | Q95: 0 | R95: 0 | S95: 0 | T95: 0 | U95: 0 | V95: 0 | W95: 0
B96: Depreciation of fixed cost (USD) | D96: =-D79 -> 
B97: Net Profit - before tax (USD) for income tax calculation | C97: =SUM(C93:C96) -> 0
B98: Income tax | D98: =-D74 -> 
D99: =+PV($C57,D92,,-D98) -> 
B100: Cash-flow - after tax (USD) | C100: =C85 ->  | D100: =D88+D98 -> 
B101: Present cash-flow - after tax (USD) | D101: =+PV($C57,D92,,-D100) -> 
A103: Cumulative value of Net Profit
B104: Operating Year | C104: Appraisal | D104: 1 | E104: 2 | F104: 3 | G104: 4 | H104: 5 | I104: 6 | J104: 7 | K104: 8 | L104: 9 | M104: 10 | N104: 11 | O104: 12 | P104: 13 | Q104: 14 | R104: 15 | S104: 16 | T104: 17 | U104: 18 | V104: 19 | W104: 20
B105: Cumulative value of Net Profit - before tax | C105: =C88 ->  | D105: =C105+(D89) -> 
B106: Cumulative value of Net Profit - after tax | C106: =C100 ->  | D106: =C106+(D101) -> 
A108: Financial Analysis Result
B110: Net Present Value (NPV) (USD) - before tax | C110: =NPV(C57,D88:W88)+C88 -> 
B111: Internal Rate of Return (IRR) (%) - before tax | C111: =IF(C110<0,"Not feasible",IRR(C88:W88,0.000001)) -> 
B112: Payback period (years) | C112: Please see Figure of the cumulative value of Net Profit - before tax
B115: Net Present Value (NPV) (USD) - after tax | C115: =NPV(C57,D100:W100)+C100 -> 
B116: Internal Rate of Return (IRR) (%) - after tax | C116: =IF(C115<0,"Not feasible",IRR(C100:W100,0.000001)) -> 
B117: Payback period (years) | C117: Please see Figure of the cumulative value of Net Profit - after tax
B118: Total income tax payment of project lifetime | C118: =SUM(D99:W99) -> 

Sheet FA100_FS1_SC3 (hidden)
B2: =+UPPER("FINANCIAL EVALUATION OF "&'Data Entry Needs'!$E$10&" PRODUCTION 100 Million Litres/year SCENARIO 3") -> FINANCIAL EVALUATION OF PLEASE SELECT PRODUCTION 100 MILLION LITRES/YEAR SCENARIO 3
A5: ="Revenues of "&'Data Entry Needs'!$E$10&" production (Benefit)" -> Revenues of Please Select production (Benefit)
B7: Operating Year | C7: 0 | D7: 1 | E7: 2 | F7: 3 | G7: 4 | H7: 5 | I7: 6 | J7: 7 | K7: 8 | L7: 9 | M7: 10 | N7: 11 | O7: 12 | P7: 13 | Q7: 14 | R7: 15 | S7: 16 | T7: 17 | U7: 18 | V7: 19 | W7: 20
B9: Capacity (million of litres) | C9: 100 | D9: =C9 -> 100 | E9: 100 | F9: 100 | G9: 100 | H9: 100 | I9: 100 | J9: 100 | K9: 100 | L9: 100 | M9: 100 | N9: 100 | O9: 100 | P9: 100 | Q9: 100 | R9: 100 | S9: 100 | T9: 100 | U9: 100 | V9: 100 | W9: 100
B10: Annual production (litres per year) | C10: =+C9*1000000 -> 100000000 | D10: =+C10 -> 100000000 | E10: 100000000 | F10: 100000000 | G10: 100000000 | H10: 100000000 | I10: 100000000 | J10: 100000000 | K10: 100000000 | L10: 100000000 | M10: 100000000 | N10: 100000000 | O10: 100000000 | P10: 100000000 | Q10: 100000000 | R10: 100000000 | S10: 100000000 | T10: 100000000 | U10: 100000000 | V10: 100000000 | W10: 100000000
B11: Loss in production processing (%) | D11: 0 | E11: =+D11 -> 0 | F11: 0 | G11: 0 | H11: 0 | I11: 0 | J11: 0 | K11: 0 | L11: 0 | M11: 0 | N11: 0 | O11: 0 | P11: 0 | Q11: 0 | R11: 0 | S11: 0 | T11: 0 | U11: 0 | V11: 0 | W11: 0
B12: Sales to customers (litres per year) | C12: =+C10*(1-C11) -> 100000000 | D12: =+C12 -> 100000000 | E12: =+D12 -> 100000000 | F12: 100000000 | G12: 100000000 | H12: 100000000 | I12: 100000000 | J12: 100000000 | K12: 100000000 | L12: 100000000 | M12: 100000000 | N12: 100000000 | O12: 100000000 | P12: 100000000 | Q12: 100000000 | R12: 100000000 | S12: 100000000 | T12: 100000000 | U12: 100000000 | V12: 100000000 | W12: 100000000
B14: ="Price of "&'Data Entry Needs'!$E$10&" (USD/litre)" -> Price of Please Select (USD/litre) | C14: =+VLOOKUP('Data Entry Needs'!$E$10,'Data Entry Needs'!$T$180:$X$183,5,FALSE) ->  | D14: =+C14*(100%+D17) ->  | E14: =+D14*(100%+E17) -> 
B15: =+IF(COST_FS1!$AA$142="","","Price of "&COST_FS1!$AA$142&" (USD/ton)") ->  | C15: =+IF(COST_FS1!$AA$142="",0,COST_FS1!$AC$142) -> 0 | D15: =+C15*(100%+$C17) -> 0 | E15: =+D15*(100%+$C17) -> 0 | F15: =+E15*(100%+$C17) -> 0 | G15: 0 | H15: 0 | I15: 0 | J15: 0 | K15: 0 | L15: 0 | M15: 0 | N15: 0 | O15: 0 | P15: 0 | Q15: 0 | R15: 0 | S15: 0 | T15: 0 | U15: 0 | V15: 0 | W15: 0
B16: =+IF(COST_FS1!$AA$143="","","Price of "&COST_FS1!$AA$143&" (USD/ton)") ->  | C16: =+IF(COST_FS1!$AA$143="",0,COST_FS1!$AC$143) ->  | D16: =+C16*(100%+$C17) ->  | E16: =+D16*(100%+$C17) -> 
B17: ="Increase rate of price of "&'Data Entry Needs'!$E$10&" (%)" -> Increase rate of price of Please Select (%) | C17: =+'Data Entry Needs'!$O$174 -> 0 | D17: =+C17 -> 0 | E17: =+D17 -> 0 | F17: 0 | G17: 0 | H17: 0 | I17: 0 | J17: 0 | K17: 0 | L17: 0 | M17: 0 | N17: 0 | O17: 0 | P17: 0 | Q17: 0 | R17: 0 | S17: 0 | T17: 0 | U17: 0 | V17: 0 | W17: 0
B18: Income (USD per year) | C18: =+C12*C14 ->  | D18: =+D12*D14 -> 
B20: By-products revenue | C20: =+COST_FS1!$AJ$142*C15+COST_FS1!$AJ$143*C16 ->  | D20: =+COST_FS1!$AJ$142*D15+COST_FS1!$AJ$143*D16 ->  | E20: =+COST_FS1!$AJ$142*E15+COST_FS1!$AJ$143*E16 ->  | F20: =+COST_FS1!$AJ$142*F15+COST_FS1!$AJ$143*F16 ->  | G20: =+COST_FS1!$AJ$142*G15+COST_FS1!$AJ$143*G16 ->  | H20: =+COST_FS1!$AJ$142*H15+COST_FS1!$AJ$143*H16 ->  | I20: =+COST_FS1!$AJ$142*I15+COST_FS1!$AJ$143*I16 ->  | J20: =+COST_FS1!$AJ$142*J15+COST_FS1!$AJ$143*J16 ->  | K20: =+COST_FS1!$AJ$142*K15+COST_FS1!$AJ$143*K16 ->  | L20: =+COST_FS1!$AJ$142*L15+COST_FS1!$AJ$143*L16 ->  | M20: =+COST_FS1!$AJ$142*M15+COST_FS1!$AJ$143*M16 ->  | N20: =+COST_FS1!$AJ$142*N15+COST_FS1!$AJ$143*N16 ->  | O20: =+COST_FS1!$AJ$142*O15+COST_FS1!$AJ$143*O16 ->  | P20: =+COST_FS1!$AJ$142*P15+COST_FS1!$AJ$143*P16 ->  | Q20: =+COST_FS1!$AJ$142*Q15+COST_FS1!$AJ$143*Q16 ->  | R20: =+COST_FS1!$AJ$142*R15+COST_FS1!$AJ$143*R16 ->  | S20: =+COST_FS1!$AJ$142*S15+COST_FS1!$AJ$143*S16 ->  | T20: =+COST_FS1!$AJ$142*T15+COST_FS1!$AJ$143*T16 ->  | U20: =+COST_FS1!$AJ$142*U15+COST_FS1!$AJ$143*U16 ->  | V20: =+COST_FS1!$AJ$142*V15+COST_FS1!$AJ$143*V16 ->  | W20: =+COST_FS1!$AJ$142*W15+COST_FS1!$AJ$143*W16 -> 
B22: Total income | D22: =+D18+D20 ->  | E22: =+E18+E20 -> 
A25: Capital and operating cost
B27: Operating Year | C27: Appraisal | D27: 1 | E27: 2 | F27: 3 | G27: 4 | H27: 5 | I27: 6 | J27: 7 | K27: 8 | L27: 9 | M27: 10 | N27: 11 | O27: 12 | P27: 13 | Q27: 14 | R27: 15 | S27: 16 | T27: 17 | U27: 18 | V27: 19 | W27: 20
B28: Direct capital cost (USD)
B29: Equipments | C29: =+COST_FS1!$L74 -> 
B30: Building | C30: =+COST_FS1!$L75 ->  | N30: =+C30 -> 
B31: Installation | C31: =+COST_FS1!$L76 ->  | N31: =+C31 -> 
B33: Total capital cost (USD) | C33: =C29+C30+C31 ->  | D33: 0 | E33: 0 | F33: 0 | G33: 0 | H33: 0 | I33: 0 | J33: 0 | K33: 0 | L33: 0 | M33: 0 | O33: 0 | P33: 0 | Q33: 0 | R33: 0 | S33: 0 | T33: 0 | U33: 0 | V33: 0 | W33: 0
B34: Capital cost (USD/MLN litres) | C34: =+C33/C9 -> 
B35: Capital cost (USD/ litre) | C35: =+C33/C12 -> 
B38: Operating Year | C38: Appraisal | D38: 1 | E38: 2 | F38: 3 | G38: 4 | H38: 5 | I38: 6 | J38: 7 | K38: 8 | L38: 9 | M38: 10 | N38: 11 | O38: 12 | P38: 13 | Q38: 14 | R38: 15 | S38: 16 | T38: 17 | U38: 18 | V38: 19 | W38: 20
B39: Annual operating and maintenance cost
B40: Sub-total input cost (USD) | C40: =+C41+C42 -> 
B41: Feedstock cost (USD/year) | C41: =+COST_FS1!$M$44 ->  | D41: =+C41 -> 
B42: Other raw material costs (USD/year) | C42: =+COST_FS1!$M$57 ->  | D42: =+C42 -> 
B43: Labour cost (USD/year) | C43: =+COST_FS1!$M$64 -> 0 | D43: =C43*(1+D63) -> 0 | E43: 0 | F43: 0 | G43: 0 | H43: 0 | I43: 0 | J43: 0 | K43: 0 | L43: 0 | M43: 0 | N43: 0 | O43: 0 | P43: 0 | Q43: 0 | R43: 0 | S43: 0 | T43: 0 | U43: 0 | V43: 0 | W43: 0
B44: Transportation cost (USD/year) | C44: =+COST_FS1!$M$70 ->  | D44: =+C44 -> 
B45: Investment cost (USD/year) | C45: =+COST_FS1!$M$78 ->  | D45: =+C45 -> 
B46: Maintenance cost (USD/year) | C46: =+COST_FS1!$M$79 ->  | D46: =+C46 -> 
B47: Storage cost (USD/year) | C47: =+COST_FS1!$M$86 ->  | D47: =C47 -> 
B48: Plant overhead (USD/year) | C48: =+COST_FS1!$M$90 ->  | D48: =+C48 -> 
B49: General and administrative cost (USD/year) | C49: =+COST_FS1!$M$91 ->  | D49: =+C49 -> 
B50: Total annualized cost (USD) | C50: =SUM(C41:C49) ->  | D50: =SUM(D41:D49) -> 
B51: Total cost per litre (USD/l) | C51: =+C50/C12 -> 
A53: Financial parameters
B54: Operating Year | C54: Appraisal | D54: 1 | E54: 2 | F54: 3 | G54: 4 | H54: 5 | I54: 6 | J54: 7 | K54: 8 | L54: 9 | M54: 10 | N54: 11 | O54: 12 | P54: 13 | Q54: 14 | R54: 15 | S54: 16 | T54: 17 | U54: 18 | V54: 19 | W54: 20
B55: Raw material cost escalation rate (%) | D55: =+'Data Entry Needs'!$O$172 -> 0 | E55: =D55 -> 0 | F55: 0 | G55: 0 | H55: 0 | I55: 0 | J55: 0 | K55: 0 | L55: 0 | M55: 0 | N55: 0 | O55: 0 | P55: 0 | Q55: 0 | R55: 0 | S55: 0 | T55: 0 | U55: 0 | V55: 0 | W55: 0
B56: Inflation rate (%) | D56: =+'Data Entry Needs'!$O$175 -> 0 | E56: =D56 -> 0 | F56: 0 | G56: 0 | H56: 0 | I56: 0 | J56: 0 | K56: 0 | L56: 0 | M56: 0 | N56: 0 | O56: 0 | P56: 0 | Q56: 0 | R56: 0 | S56: 0 | T56: 0 | U56: 0 | V56: 0 | W56: 0
B57: Discount rate (%) | C57: =+'Data Entry Needs'!$D$64 -> 0
B58: Debt ratio (%) | C58: ='Data Entry Needs'!$D$72 -> 0
B60: Loan | D60: 1 | E60: 2 | F60: 3 | G60: 4 | H60: 5 | I60: 6 | J60: 7 | K60: 8 | L60: 9 | M60: 10 | N60: 11 | O60: 12 | P60: 13 | Q60: 14 | R60: 15 | S60: 16 | T60: 17 | U60: 18 | V60: 19 | W60: 20
B61: Loan amount (USD ) | C61: =C58*C33 -> 
B62: Increasing rate of price of biodiesel (%) | C62: =+'Data Entry Needs'!$O$174 -> 0 | D62: =+C62 -> 0 | E62: 0 | F62: 0 | G62: 0 | H62: 0 | I62: 0 | J62: 0 | K62: 0 | L62: 0 | M62: 0 | N62: 0 | O62: 0 | P62: 0 | Q62: 0 | R62: 0 | S62: 0 | T62: 0 | U62: 0 | V62: 0 | W62: 0
B63: Escalation rate of labour cost (%) | D63: =+'Data Entry Needs'!$O$170 -> 0 | E63: =+D63 -> 0 | F63: 0 | G63: 0 | H63: 0 | I63: 0 | J63: 0 | K63: 0 | L63: 0 | M63: 0 | N63: 0 | O63: 0 | P63: 0 | Q63: 0 | R63: 0 | S63: 0 | T63: 0 | U63: 0 | V63: 0 | W63: 0
B64: Loan interest rate (%) | C64: =+'Data Entry Needs'!$D$65 -> 0
B65: Loan term (years) | C65: =+'Data Entry Needs'!$D$66 -> 0
B66: Loan payment (USD/month) | C66: =(PMT(C64/12,(12*C65),C61)) -> 
B67: Loan payment (USD/year) | D67: =IF(D54<=$C$65,$C$66*12,0) -> 0 | E67: 0 | F67: 0 | G67: 0 | H67: 0 | I67: 0 | J67: 0 | K67: 0 | L67: 0 | M67: 0 | N67: 0 | O67: 0 | P67: 0 | Q67: 0 | R67: 0 | S67: 0 | T67: 0 | U67: 0 | V67: 0 | W67: 0
B68: Total loan payment (USD) | C68: =SUM(D67:W67) -> 0
B69: Loan interest payment (USD) | C69: =C68+C61 ->  | D69: Average loan interest payment for project lifetime | G69: =C69/20 ->  | H69: USD per year
A71: Income tax analysis
B72: Operating Year | C72: Appraisal | D72: 1 | E72: 2 | F72: 3 | G72: 4 | H72: 5 | I72: 6 | J72: 7 | K72: 8 | L72: 9 | M72: 10 | N72: 11 | O72: 12 | P72: 13 | Q72: 14 | R72: 15 | S72: 16 | T72: 17 | U72: 18 | V72: 19 | W72: 20
B73: Effective income tax rate (%) | C73: 0 | D73: =C73 -> 0 | E73: 0 | F73: 0 | G73: 0 | H73: 0 | I73: 0 | J73: 0 | K73: 0 | L73: 0 | M73: 0 | N73: 0 | O73: 0 | P73: 0 | Q73: 0 | R73: 0 | S73: 0 | T73: 0 | U73: 0 | V73: 0 | W73: 0
B74: Income tax | D74: =IF(D97<0,0,D73*D97) -> 
A76: Depreciation
B77: Operating Year | C77: Appraisal | D77: 1 | E77: 2 | F77: 3 | G77: 4 | H77: 5 | I77: 6 | J77: 7 | K77: 8 | L77: 9 | M77: 10 | N77: 11 | O77: 12 | P77: 13 | Q77: 14 | R77: 15 | S77: 16 | T77: 17 | U77: 18 | V77: 19 | W77: 20
B78: Depreciation method | C78: Straight-line
B79: Total depreciation (USD) | D79: =+C45 ->  | E79: =D79 -> 
A82: Summary of this project - before tax
B83: Operating Year | C83: Appraisal | D83: 1 | E83: 2 | F83: 3 | G83: 4 | H83: 5 | I83: 6 | J83: 7 | K83: 8 | L83: 9 | M83: 10 | N83: 11 | O83: 12 | P83: 13 | Q83: 14 | R83: 15 | S83: 16 | T83: 17 | U83: 18 | V83: 19 | W83: 20
B84: Total revenue (USD) | D84: =+D22 -> 
B85: Total capital cost (USD) | C85: =-(C33-C61) -> 
B86: Total operating and maintenance cost (USD) | D86: =-(D50-D45) -> 
B87: Debt payment (USD) | D87: =D67 -> 0 | E87: 0 | F87: 0 | G87: 0 | H87: 0 | I87: 0 | J87: 0 | K87: 0 | L87: 0 | M87: 0 | N87: 0 | O87: 0 | P87: 0 | Q87: 0 | R87: 0 | S87: 0 | T87: 0 | U87: 0 | V87: 0 | W87: 0
B88: Cash-flow - before tax (USD) | C88: =SUM(C84:C87) -> 
B89: Present cash-flow - before tax (USD) | D89: =+D88/((1+$C57)^D83) -> 
D90: =+PV($C57,D83,,-D88,) -> 
A91: Summary of this project - after tax
B92: Operating Year | C92: Appraisal | D92: 1 | E92: 2 | F92: 3 | G92: 4 | H92: 5 | I92: 6 | J92: 7 | K92: 8 | L92: 9 | M92: 10 | N92: 11 | O92: 12 | P92: 13 | Q92: 14 | R92: 15 | S92: 16 | T92: 17 | U92: 18 | V92: 19 | W92: 20
B93: Total revenue (USD) | C93: =C84 -> 0
B94: Total operating and maintenance cost (USD) | D94: =-(D50-D45) -> 
B95: Debt payment (USD) | D95: =D67 -> 0 | E95: 0 | F95: 0 | G95: 0 | H95: 0 | I95: 0 | J95: 0 | K95: 0 | L95: 0 | M95: 0 | N95: 0 | O95: 0 | P95: 0 | Q95: 0 | R95: 0 | S95: 0 | T95: 0 | U95: 0 | V95: 0 | W95: 0
B96: Depreciation of fixed cost (USD) | D96: =-D79 -> 
B97: Net Profit - before tax (USD) for income tax calculation | C97: =SUM(C93:C96) -> 0
B98: Income tax | D98: =-D74 -> 
D99: =+PV($C57,D92,,-D98) -> 
B100: Cash-flow - after tax (USD) | C100: =C85 ->  | D100: =D88+D98 -> 
B101: Present cash-flow - after tax (USD) | D101: =+PV($C57,D92,,-D100) -> 
A103: Cumulative value of Net Profit
B104: Operating Year | C104: Appraisal | D104: 1 | E104: 2 | F104: 3 | G104: 4 | H104: 5 | I104: 6 | J104: 7 | K104: 8 | L104: 9 | M104: 10 | N104: 11 | O104: 12 | P104: 13 | Q104: 14 | R104: 15 | S104: 16 | T104: 17 | U104: 18 | V104: 19 | W104: 20
B105: Cumulative value of Net Profit - before tax | C105: =C88 ->  | D105: =C105+(D89) -> 
B106: Cumulative value of Net Profit - after tax | C106: =C100 ->  | D106: =C106+(D101) -> 
A108: Financial Analysis Result
B110: Net Present Value (NPV) (USD) - before tax | C110: =NPV(C57,D88:W88)+C88 -> 
B111: Internal Rate of Return (IRR) (%) - before tax | C111: =IF(C110<0,"Not feasible",IRR(C88:W88,0.000001)) -> 
B112: Payback period (years) | C112: Please see Figure of the cumulative value of Net Profit - before tax
B115: Net Present Value (NPV) (USD) - after tax | C115: =NPV(C57,D100:W100)+C100 -> 
B116: Internal Rate of Return (IRR) (%) - after tax | C116: =IF(C115<0,"Not feasible",IRR(C100:W100,0.000001)) -> 
B117: Payback period (years) | C117: Please see Figure of the cumulative value of Net Profit - after tax
B118: Total income tax payment of project lifetime | C118: =SUM(D99:W99) -> 

Sheet COST_FS2
C3: =+UPPER(" Processing costs for "&'Data Entry Needs'!$F$10&" Production from "&'Data Entry Needs'!$F$11) -> PROCESSING COSTS FOR PLEASE SELECT PRODUCTION FROM
C6: Use white cells to input data | D6: Grey cells are used for calculations
C7: Summary of Feedstock and Storage | F7: Financial Parameters | J7: Investment Cost Update
C9: Feedstock available (t/year) | D9: =+'Data Entry Needs'!$F$12 -> 0 | F9: Discount rate (%) | H9: =+'Data Entry Needs'!D64 -> 0 | J9: =+'Data Entry Needs'!$F$65 -> Plant Cost Index during 6/2018 | L9: =+'Data Entry Needs'!$H$65 -> 0
C10: =+IF('Data Entry Needs'!$F$10="biodiesel",'Data Entry Needs'!$C$41,'Data Entry Needs'!$C$42)&" (USD/l)" -> Ethanol storage cost (USD/l) | D10: =+IF('Data Entry Needs'!$F$10="biodiesel",'Data Entry Needs'!$D$41,'Data Entry Needs'!$D$42) -> 0 | F10: Loan interest rate (%) | H10: =+'Data Entry Needs'!$D$65 -> 0
C11: =+IF('Data Entry Needs'!$F$10="biodiesel",'Data Entry Needs'!$F$41,'Data Entry Needs'!$F$42) -> Storage rate of ethanol | D11: =+IF('Data Entry Needs'!$V$157,'Data Entry Needs'!$H$41,'Data Entry Needs'!$H$42) -> 0 | F11: Loan term (years) | H11: =+'Data Entry Needs'!D66 -> 0
C12: Feedstock storage cost (USD/t) | D12: =+'Data Entry Needs'!$F$15 -> 0
C16: Transport Distance of Feedstock | E16: Transport Quantity
C17: Distance SIZE 1 (5 ML) (km) | E17: Size 1 (t/year) | G17: =+$F$42 -> 
C18: Distance SIZE 2 (25 ML) (km) | E18: Size 2 (t/year) | G18: =+$H$42 -> 
C19: Distance SIZE 3 (50 ML) (km) | E19: Size 3 (t/year) | G19: =+$J$42 -> 
C20: Distance SIZE 4 (100 ML) (km) | E20: Size 4 (t/year) | G20: =+$L$42 -> 
C22: Feedstock Production Schemes
C23: PLEASE INCLUDE AT LEAST ONE SCENARIO TO OBTAIN RESULTS
C24: Scenario 1: Own Production | F24: Scenario 2: Mixed | J24: Scenario 3: Outgrowers
C25: =+"Description: 100% "&'Data Entry Needs'!$F$11&" feedstock produced directly by processing plant." -> Description: 100% feedstock produced directly by processing plant. | F25: =+"Description: "&$AC$127&"% of "&'Data Entry Needs'!$F$11&" feedstock produced directly by processing plant, and "&(100-$AC$127)&"% provided by outgrowers at market price." -> Description: 60% of feedstock produced directly by processing plant, and 40% provided by outgrowers at market price. | J25: =+"Description: 100% of "&'Data Entry Needs'!$F$11&" feedstock is provided by outgrowers at market price." -> Description: 100% of feedstock is provided by outgrowers at market price.
C28: Feedstock Price = 100%*Production Cost | F28: ="Feedstock Price = "&$AC$127&"%*Production Cost + "&(100-$AC$127)&"%*Market Price" -> Feedstock Price = 60%*Production Cost + 40%*Market Price | J28: Feedstock Price = 100%*Market Price | K28: Feedstock Price = 100%*Production Cost
C29: =+'Data Entry Needs'!$F$13 -> 0 | F29: ='Data Entry Needs'!$F$14*COST_FS2!$AB$128+'Data Entry Needs'!$F$13*COST_FS2!$AB$127 -> 0 | J29: ='Data Entry Needs'!$F$14 -> 0
C31: Production Cost Details
F33: Capacities (Million litres per year)
F34: 5 | H34: 25 | J34: 50 | L34: 100
F35: Operating hours per year | G35: 8000 | H35: Operating hours per year | I35: 8000 | J35: Operating hours per year | K35: 8000 | L35: Operating hours per year | M35: 8000
C36: Scenario 1: Own Production
C37: Scenario 2: Mixed
C38: Scenario 3: Outgrowers
C40: Feedstock | D40: Unit | E40: Unit Price | F40: Quantity | G40: Total | H40: Quantity | I40: Total | J40: Quantity | K40: Total | L40: Quantity | M40: Total
E41: (USD) | F41: (Unit) | G41: (USD/year) | H41: (Unit) | I41: (USD/year) | J41: (Unit) | K41: (USD/year) | L41: (Unit) | M41: (USD/year)
C42: =+'Data Entry Needs'!$F$11&" Scenario 1" -> Scenario 1 | D42: t | E42: =+$C$29 -> 0 | F42: =+Allocator!$C$11 ->  | G42: =+F42*E42 ->  | H42: =+Allocator!$D$11 ->  | I42: =+H42*$E42 ->  | J42: =+Allocator!$E$11 ->  | K42: =+J42*$E42 ->  | L42: =+Allocator!$F$11 ->  | M42: =+L42*$E42 -> 
C43: =+'Data Entry Needs'!$F$11&" Scenario 2" -> Scenario 2 | D43: t | E43: =+$F$29 -> 0 | F43: =+Allocator!$C$11 ->  | G43: =+F43*E43 ->  | H43: =+Allocator!$D$11 ->  | I43: =+H43*$E43 ->  | J43: =+Allocator!$E$11 ->  | K43: =+J43*$E43 ->  | L43: =+Allocator!$F$11 ->  | M43: =+L43*$E43 -> 
C44: =+'Data Entry Needs'!$F$11&" Scenario 3" -> Scenario 3 | D44: t | E44: =+J29 -> 0 | F44: =+Allocator!$C$11 ->  | G44: =+F44*E44 ->  | H44: =+Allocator!$D$11 ->  | I44: =+H44*$E44 ->  | J44: =+Allocator!$E$11 ->  | K44: =+J44*$E44 ->  | L44: =+Allocator!$F$11 ->  | M44: =+L44*$E44 -> 
C46: Other chemical inputs | D46: Unit | E46: Unit Price | F46: Quantity | G46: Total | H46: Quantity | I46: Total | J46: Quantity | K46: Total | L46: Quantity | M46: Total
E47: (USD) | F47: (Unit) | G47: (USD/year) | H47: (Unit) | I47: (USD/year) | J47: (Unit) | K47: (USD/year) | L47: (Unit/year) | M47: (USD/year)
C48: =+Allocator!F113 ->  | D48: =IFERROR(VLOOKUP($C48,Allocator!$C$75:$J$97,7,FALSE),"") ->  | E48: =IFERROR(VLOOKUP($C48,Allocator!$C$75:$J$97,8,FALSE),0) -> 0 | F48: =+Allocator!$G113 ->  | G48: =+F48*E48 ->  | H48: =+Allocator!$H113 ->  | I48: =+H48*$E48 ->  | J48: =+Allocator!$I113 ->  | K48: =+J48*$E48 ->  | L48: =+Allocator!$J113 ->  | M48: =+L48*$E48 -> 
C49: =+Allocator!F114 ->  | D49: =IFERROR(VLOOKUP($C49,Allocator!$C$75:$J$97,7,FALSE),"") ->  | E49: =IFERROR(VLOOKUP($C49,Allocator!$C$75:$J$97,8,FALSE),0) -> 0 | F49: =+Allocator!$G114 ->  | H49: =+Allocator!$H114 ->  | J49: =+Allocator!$I114 ->  | L49: =+Allocator!$J114 -> 
C50: =+Allocator!F115 ->  | D50: =IFERROR(VLOOKUP($C50,Allocator!$C$75:$J$97,7,FALSE),"") ->  | E50: =IFERROR(VLOOKUP($C50,Allocator!$C$75:$J$97,8,FALSE),0) -> 0 | F50: =+Allocator!$G115 ->  | H50: =+Allocator!$H115 ->  | J50: =+Allocator!$I115 ->  | L50: =+Allocator!$J115 -> 
C51: =+Allocator!F116 ->  | D51: =IFERROR(VLOOKUP($C51,Allocator!$C$75:$J$97,7,FALSE),"") ->  | E51: =IFERROR(VLOOKUP($C51,Allocator!$C$75:$J$97,8,FALSE),0) -> 0 | F51: =+Allocator!$G116 ->  | G51: =+F51*E51 ->  | H51: =+Allocator!$H116 ->  | J51: =+Allocator!$I116 ->  | L51: =+Allocator!$J116 -> 
C52: =+Allocator!F117 ->  | D52: =IFERROR(VLOOKUP($C52,Allocator!$C$75:$J$97,7,FALSE),"") ->  | E52: =IFERROR(VLOOKUP($C52,Allocator!$C$75:$J$97,8,FALSE),0) -> 0 | F52: =+Allocator!$G117 ->  | H52: =+Allocator!$H117 ->  | J52: =+Allocator!$I117 ->  | L52: =+Allocator!$J117 -> 
C53: Energy inputs | D53: Unit | E53: Unit Price | F53: Quantity | G53: Total | H53: Quantity | I53: Total | J53: Quantity | K53: Total | L53: Quantity | M53: Total
E54: (USD) | F54: (Unit) | G54: (USD/year) | H54: (Unit) | I54: (USD/year) | J54: (Unit) | K54: (USD/year) | L54: (Unit) | M54: (USD/year)
C55: =+Allocator!F118 ->  | D55: =IFERROR(VLOOKUP($C55,Allocator!$C$75:$J$96,7,FALSE),"") ->  | E55: =IFERROR(VLOOKUP($C55,Allocator!$C$75:$J$96,8,FALSE),0) -> 0 | F55: =+Allocator!$G118 ->  | H55: =+Allocator!$H118 ->  | J55: =+Allocator!$I118 ->  | L55: =+Allocator!$J118 -> 
C56: =+Allocator!F119 ->  | D56: =IFERROR(VLOOKUP($C56,Allocator!$C$75:$J$96,7,FALSE),"") ->  | E56: =IFERROR(VLOOKUP($C56,Allocator!$C$75:$J$96,8,FALSE),0) -> 0 | F56: =+Allocator!$G119 ->  | H56: =+Allocator!$H119 ->  | J56: =+Allocator!$I119 ->  | L56: =+Allocator!$J119 -> 
C57: Subtotal | G57: =SUM(G48:G56) ->  | I57: =SUM(I48:I56) ->  | K57: =SUM(K48:K56) ->  | M57: =SUM(M48:M56) -> 
C59: Labour and miscellaneous costs | D59: Unit | E59: Unit Price | F59: Quantity | G59: Total | H59: Quantity | I59: Total | J59: Quantity | K59: Total | L59: Quantity | M59: Total
E60: (USD/hour) | F60: (Unit) | G60: (USD/year) | H60: (Unit) | I60: (USD/year) | J60: (Unit) | K60: (USD/year) | L60: (Unit) | M60: (USD/year)
C61: Unskilled worker | D61: # Employee | E61: =+'Data Entry Needs'!$D$32 -> 0 | F61: =+IF((F34/3.785)<6,6,ROUND(F34/3.785,0))*3 -> 18 | G61: =+E61*F61*8000 -> 0 | H61: =+IF((H34/3.785)<6,6,ROUND(H34/3.785,0))*3 -> 21 | I61: =+$E61*H61*8000 -> 0 | J61: =+IF((J34/3.785)<6,6,ROUND(J34/3.785,0))*3 -> 39 | K61: =+$E61*J61*8000 -> 0 | L61: =+IF((L34/3.785)<6,6,ROUND(L34/3.785,0))*3 -> 78 | M61: =+$E61*L61*8000 -> 0
C62: Skilled worker | D62: # Employee | E62: =+'Data Entry Needs'!$D$33 -> 0 | F62: =+ROUND(F61/4,0) -> 5 | G62: =+E62*F62*8000 -> 0 | H62: =+ROUND(H61/4,0) -> 5 | I62: =+$E62*H62*8000 -> 0 | J62: =+ROUND(J61/4,0) -> 10 | K62: =+$E62*J62*8000 -> 0 | L62: =+ROUND(L61/4,0) -> 20 | M62: =+$E62*L62*8000 -> 0
C63: Miscellaneous costs | F63: =+'Data Entry Needs'!$D$34 -> 0 | G63: =+F63*SUM(G61:G62) -> 0 | H63: =+$F$63 -> 0 | I63: =+H63*SUM(I61:I62) -> 0 | J63: =+H63 -> 0 | K63: =+J63*SUM(K61:K62) -> 0 | L63: =+J63 -> 0 | M63: =+L63*SUM(M61:M62) -> 0
C64: Subtotal | G64: =SUM(G61:G63) -> 0 | I64: =SUM(I61:I63) -> 0 | K64: =SUM(K61:K63) -> 0 | M64: =SUM(M61:M63) -> 0
C66: Transportation | D66: Unit | E66: Unit Price | F66: Quantity | G66: Total | H66: Quantity | I66: Total | J66: Quantity | K66: Total | L66: Quantity | M66: Total
E67: (USD/t/unit) | F67: (Unit) | G67: (USD/year) | H67: (Unit) | I67: (USD/year) | J67: (Unit) | K67: (USD/year) | L67: (Unit) | M67: (USD/year)
C68: Feedstock (farm to plant) | D68: km | E68: =+'Data Entry Needs'!$D$37 -> 0 | F68: =+$D$17 -> 0 | G68: =+$E$68*F68*$G$17 ->  | H68: =+$D$18 -> 0 | I68: =+$E$68*H68*$G$18 ->  | J68: =+$D$19 -> 0 | K68: =+$E$68*J68*$G$19 ->  | L68: =$D$20 -> 0 | M68: =+$E$68*L68*$G$20 -> 
C70: Subtotal | G70: =SUM(G68:G68) ->  | I70: =SUM(I68:I68) ->  | K70: =SUM(K68:K68) ->  | M70: =SUM(M68:M68) -> 
C72: Investment | D72: Unit | E72: Years | F72: Total | G72: Depreciation | H72: Total | I72: Depreciation | J72: Total | K72: Depreciation | L72: Total | M72: Depreciation
C73: Investment | F73: (USD) | G73: (USD/year) | H73: (USD) | I73: (USD/year) | J73: (USD) | K73: (USD/year) | L73: (USD) | M73: (USD/year)
C74: Equipment | D74: USD | E74: 20 | F74: =+Allocator!$L113*('Data Entry Needs'!$H$65/142.7) ->  | G74: =+F74/$E74 ->  | H74: =+Allocator!$M113*('Data Entry Needs'!$H$65/142.7) ->  | I74: =+H74/$E74 ->  | J74: =+Allocator!$N113*('Data Entry Needs'!$H$65/142.7) ->  | K74: =+J74/$E74 ->  | L74: =+Allocator!$O113*('Data Entry Needs'!$H$65/142.7) ->  | M74: =+L74/$E74 -> 
C75: Buildings | D75: USD | E75: =+E74/2 -> 10 | F75: =+Allocator!$L114*('Data Entry Needs'!$H$65/142.7) ->  | G75: =+F75/$E75 ->  | H75: =+Allocator!$M114*('Data Entry Needs'!$H$65/142.7) ->  | I75: =+H75/$E75 ->  | J75: =+Allocator!$N114*('Data Entry Needs'!$H$65/142.7) ->  | L75: =+Allocator!$O114*('Data Entry Needs'!$H$65/142.7) ->  | M75: =+L75/$E75 -> 
C76: Installation charges | D76: USD | E76: =+E74/2 -> 10 | F76: =+Allocator!$L115*('Data Entry Needs'!$H$65/142.7) ->  | G76: =+F76/$E76 ->  | H76: =+Allocator!$M115*('Data Entry Needs'!$H$65/142.7) ->  | J76: =+Allocator!$N115*('Data Entry Needs'!$H$65/142.7) ->  | L76: =+Allocator!$O115*('Data Entry Needs'!$H$65/142.7) ->  | M76: =+L76/$E76 -> 
C77: Total Investment | F77: =SUM(F74:F76) ->  | H77: =SUM(H74:H76) ->  | J77: =SUM(J74:J76) ->  | L77: =SUM(L74:L76) -> 
F78: Total Depreciation | G78: =SUM(G74:G77) ->  | H78: Total Depreciation | I78: =SUM(I74:I77) ->  | J78: Total Depreciation | K78: =SUM(K74:K77) ->  | L78: Total Depreciation | M78: =SUM(M74:M77) -> 
C79: Maintenance cost | E79: =+'Data Entry Needs'!$D$45 -> 0 | G79: =+$E$79*G78 ->  | I79: =+E79*$I$78 ->  | K79: =+$E$79*K78 ->  | M79: =+$E$79*M78 -> 
C80: Subtotal | G80: =SUM(G78:G79) ->  | I80: =SUM(I78:I79) ->  | K80: =SUM(K78:K79) ->  | M80: =SUM(M78:M79) -> 
C82: Storage | D82: Unit | E82: Unit Price | F82: Quantity | G82: Total | H82: Quantity | I82: Total | J82: Quantity | K82: Total | L82: Quantity | M82: Total
D83: (%) | E83: (USD) | F83: (Unit) | G83: (USD/year) | H83: (Unit) | I83: (USD/year) | J83: (Unit) | K83: (USD/year) | L83: (Unit) | M83: (USD/year)
C84: Feedstock (biomass) | D84: t | E84: =+$D$12 -> 0 | F84: =+STORAGE_FS2!$F$38 ->  | G84: =+F84*$E$84 ->  | H84: =+STORAGE_FS2!$I$38 ->  | I84: =+H84*$E$84 ->  | J84: =+STORAGE_FS2!$L$38 ->  | K84: =+J84*$E$84 ->  | L84: =+STORAGE_FS2!$O$38 ->  | M84: =+L84*$E$84 -> 
C85: =+'Data Entry Needs'!$F$10&" product" -> Please Select product | D85: litre | E85: =+$D$10 -> 0 | F85: =5000000*$D$11 -> 0 | G85: =+$E$85*F85 -> 0 | H85: =25000000*$D$11 -> 0 | I85: =+$E$85*H85 -> 0 | J85: =50000000*$D$11 -> 0 | K85: =+$E$85*J85 -> 0 | L85: =100000000*$D$11 -> 0 | M85: =+$E$85*L85 -> 0
C86: Subtotal | G86: =SUM(G84:G85) ->  | I86: =SUM(I84:I85) ->  | K86: =SUM(K84:K85) ->  | M86: =SUM(M84:M85) -> 
C88: Other costs | D88: Unit | E88: Rate (%) | G88: Total | I88: Total | K88: Total | M88: Total
G89: (USD/year) | I89: (USD/year) | K89: (USD/year) | M89: (USD/year)
C90: Plant overhead | D90: USD | E90: =+'Data Entry Needs'!$D$46 -> 0 | G90: =+(G61+G62+G79)*$E$90 ->  | I90: =+(I61+I62+I79)*$E$90 ->  | K90: =+(K61+K62+K79)*$E$90 ->  | M90: =+(M61+M62+M79)*$E$90 -> 
C91: General and administrative | D91: USD | E91: =+'Data Entry Needs'!$D$47 -> 0 | G91: =+(G57+G64+G90+G79)*$E$91 ->  | I91: =+(I57+I64+I90+I79)*$E$91 ->  | K91: =+(K57+K64+K90+K79)*$E$91 ->  | M91: =+(M57+M64+M90+M79)*$E$91 -> 
C92: Loan interest | D92: USD | G92: =-FA5_FS2_SC1!$G$69 ->  | I92: =-FA25_FS2_SC1!G69 ->  | K92: =-FA50_FS2_SC1!$G$69 ->  | M92: =-FA100_FS2_SC1!$G$69 -> 
C93: Subtotal | G93: =SUM(G90:G92) ->  | I93: =SUM(I90:I92) ->  | K93: =SUM(K90:K92) ->  | M93: =SUM(M90:M92) -> 
C95: Total Production Costs (USD/year)
F97: Total | G97: Total | H97: Total | I97: Total | J97: Total | K97: Total | L97: Total | M97: Total
F98: (USD/year) | G98: (USD/l) | H98: (USD/year) | I98: (USD/l) | J98: (USD/year) | K98: (USD/l) | L98: (USD/year) | M98: (USD/l)
C99: Scenario 1
C100: Total operating costs | F100: =G42+G57+G64+G70 ->  | G100: =+F100/5000000 ->  | H100: =I42+I57+I64+I70 ->  | I100: =+H100/25000000 ->  | J100: =K42+K57+K64+K70 ->  | K100: =+J100/50000000 ->  | L100: =M42+M57+M64+M70 ->  | M100: =+L100/100000000 -> 
C101: Total fixed costs | F101: =+$G$80+$G$86 ->  | G101: =+F101/5000000 ->  | H101: =+$I$80+$I$86 ->  | I101: =+H101/25000000 ->  | J101: =+$K$80+$K$86 ->  | K101: =+J101/50000000 ->  | L101: =+$M$80+$M$86 ->  | M101: =+L101/100000000 -> 
C102: Total other costs | F102: =+$G$93 ->  | G102: =+F102/5000000 ->  | H102: =+$I$93 ->  | I102: =+H102/25000000 ->  | J102: =+$K$93 ->  | K102: =+J102/50000000 ->  | L102: =+$M$93 ->  | M102: =+L102/100000000 -> 
C103: Total production costs scenario 1 (USD/year) | F103: =SUM(F100:F102) ->  | H103: =SUM(H100:H102) ->  | J103: =SUM(J100:J102) ->  | L103: =SUM(L100:L102) -> 
C104: Total production costs scenario 1 (USD/l) | G104: =SUM(G100:G102) ->  | I104: =SUM(I100:I102) ->  | K104: =SUM(K100:K103) ->  | M104: =SUM(M100:M103) -> 
C106: Scenario 2
C107: Total operating costs | F107: =+G43+G57+G64+G70 ->  | G107: =+F107/5000000 ->  | H107: =I43+I57+I64+I70 ->  | I107: =+H107/25000000 ->  | J107: =K43+K57+K64+K70 ->  | K107: =+J107/50000000 ->  | L107: =M43+M57+M64+M70 ->  | M107: =+L107/100000000 -> 
C108: Total fixed costs | F108: =+$G$80+$G$86 ->  | G108: =+F108/5000000 ->  | H108: =+$I$80+$I$86 ->  | I108: =+H108/25000000 ->  | J108: =+$K$80+$K$86 ->  | K108: =+J108/50000000 ->  | L108: =+$M$80+$M$86 ->  | M108: =+L108/100000000 -> 
C109: Total other costs | F109: =+$G$93 ->  | G109: =+F109/5000000 ->  | H109: =+$I$93 ->  | I109: =+H109/25000000 ->  | J109: =+$K$93 ->  | K109: =+J109/50000000 ->  | L109: =+$M$93 ->  | M109: =+L109/100000000 -> 
C110: Total production costs scenario 2 (USD/year) | F110: =SUM(F107:F109) ->  | H110: =SUM(H107:H109) ->  | J110: =SUM(J107:J109) ->  | L110: =SUM(L107:L109) -> 
C111: Total production costs scenario 2 (USD/l) | G111: =SUM(G107:G109) ->  | I111: =SUM(I107:I109) ->  | K111: =SUM(K107:K110) ->  | M111: =SUM(M107:M110) -> 
C113: Scenario 3
C114: Total operating costs | F114: =+G44+G57+G64+G70 ->  | G114: =+F114/5000000 ->  | H114: =I44+I57+I64+I70 ->  | I114: =+H114/25000000 ->  | J114: =K44+K57+K64+K70 ->  | K114: =+J114/50000000 ->  | L114: =M44+M57+M64+M70 ->  | M114: =+L114/100000000 -> 
C115: Total fixed costs | F115: =+$G$80+$G$86 ->  | G115: =+F115/5000000 ->  | H115: =+$I$80+$I$86 ->  | I115: =+H115/25000000 ->  | J115: =+$K$80+$K$86 ->  | K115: =+J115/50000000 ->  | L115: =+$M$80+$M$86 ->  | M115: =+L115/100000000 -> 
C116: Total other costs | F116: =+$G$93 ->  | G116: =+F116/5000000 ->  | H116: =+$I$93 ->  | I116: =+H116/25000000 ->  | J116: =+$K$93 ->  | K116: =+J116/50000000 ->  | L116: =+$M$93 ->  | M116: =+L116/100000000 -> 
C117: Total production costs scenario 3 (USD/year) | F117: =SUM(F114:F116) ->  | H117: =SUM(H114:H116) ->  | J117: =SUM(J114:J116) ->  | L117: =SUM(L114:L116) -> 
C118: Total production costs scenario 3 (USD/l) | G118: =SUM(G114:G116) ->  | I118: =SUM(I114:I116) ->  | K118: =SUM(K114:K117) ->  | M118: =SUM(M114:M117) -> 
AK122: Scenario 1 | AL122: 1
AK123: Scenario 2 | AL123: 1
AK124: Scenario 3 | AL124: 1
AL125: =IF(SUM(AL122:AL124)=0,FALSE,TRUE) -> TRUE
AA126: sc2 | AD126: sc1 | AF126: sc3
AA127: Factory (%) | AB127: =+AC127/100 -> 0.6 | AC127: 60 | AD127: Factory (%) | AE127: 1 | AF127: Factory (%) | AG127: 0 | AH127: yes | AI127: =IF(#REF!="NO",TRUE,FALSE) -> 
AA128: Outgrower (%) | AB128: =1-AB127 -> 0.4 | AD128: Outgrower (%) | AE128: 0 | AF128: Outgrower (%) | AG128: 1 | AH128: no
AD131: Capacities (ML/year)
AD132: 5 | AE132: 25 | AF132: 50 | AG132: 100
AA133: Biofuel Production (L/day) | AD133: =+AD132*1000000/(G35/24) -> 15000 | AE133: =+AE132*1000000/(I35/24) -> 75000 | AF133: =+AF132*1000000/(K35/24) -> 150000 | AG133: =+AG132*1000000/(M35/24) -> 300000
AA134: Tanker Truck Capacity (L) | AB134: =+'Data Entry Needs'!$G$38 -> 0
AA135: Number of Tanker Trucks per day | AD135: =+ROUNDUP(AD133/$AB$134,0) ->  | AE135: =+ROUNDUP(AE133/$AB$134,0) ->  | AF135: =+ROUNDUP(AF133/$AB$134,0) ->  | AG135: =+ROUNDUP(AG133/$AB$134,0) -> 
AA136: Biofuel Transportation Cost (USD/L/km) | AD136: =+'Data Entry Needs'!$D$38 -> 0 | AE136: =+'Data Entry Needs'!$D$38 -> 0 | AF136: =+'Data Entry Needs'!$D$38 -> 0 | AG136: =+'Data Entry Needs'!$D$38 -> 0
AD139: Potential Revenues
AA140: By-products Revenue | AB140: Unit | AC140: Unit Price | AD140: Quantity | AE140: Total | AF140: Quantity | AG140: Total | AH140: Quantity | AI140: Total | AJ140: Quantity | AK140: Total
AC141: (USD/t) | AD141: (Unit) | AE141: (USD/year) | AF141: (Unit) | AG141: (USD/year) | AH141: (Unit) | AI141: (USD/year) | AJ141: (Unit) | AK141: (USD/year)
AA142: =+Allocator!F120 ->  | AB142: =IFERROR(VLOOKUP($AA142,Allocator!$C$75:$J$97,7,FALSE),"") ->  | AC142: =IFERROR(VLOOKUP($AA142,Allocator!$C$75:$J$97,8,FALSE),0) -> 0 | AD142: =+Allocator!G120 ->  | AE142: =+$AC$142*AD142 ->  | AF142: =+Allocator!H120 ->  | AG142: =+$AC$142*AF142 ->  | AH142: =+Allocator!I120 ->  | AI142: =+$AC$142*AH142 ->  | AJ142: =+Allocator!J120 ->  | AK142: =+$AC$142*AJ142 -> 
AA143: =+Allocator!F121 ->  | AB143: =IFERROR(VLOOKUP($AA143,Allocator!$C$75:$J$97,7,FALSE),"") ->  | AC143: =IFERROR(VLOOKUP($AA143,Allocator!$C$75:$J$97,8,FALSE),0) -> 0 | AD143: =+Allocator!G121 ->  | AE143: =+$AC$143*AD143 ->  | AF143: =+Allocator!H121 ->  | AG143: =+$AC$143*AF143 ->  | AH143: =+Allocator!I121 ->  | AI143: =+$AC$143*AH143 ->  | AJ143: =+Allocator!J121 ->  | AK143: =+$AC$143*AJ143 -> 
AA144: Subtotal | AE144: =SUM(AE142:AE143) ->  | AG144: =SUM(AG142:AG143) ->  | AI144: =SUM(AI142:AI143) ->  | AK144: =SUM(AK142:AK143) -> 

Sheet FA5_FS2_SC1 (hidden)
B2: =+UPPER("FINANCIAL EVALUATION OF "&'Data Entry Needs'!$F$10&" PRODUCTION 5 Million Litres/year SCENARIO 1") -> FINANCIAL EVALUATION OF PLEASE SELECT PRODUCTION 5 MILLION LITRES/YEAR SCENARIO 1
A5: ="Revenues of "&'Data Entry Needs'!$F$10&" production (Benefit)" -> Revenues of Please Select production (Benefit)
B7: Operating Year | C7: 0 | D7: 1 | E7: 2 | F7: 3 | G7: 4 | H7: 5 | I7: 6 | J7: 7 | K7: 8 | L7: 9 | M7: 10 | N7: 11 | O7: 12 | P7: 13 | Q7: 14 | R7: 15 | S7: 16 | T7: 17 | U7: 18 | V7: 19 | W7: 20
B9: Capacity (million of litres) | C9: 5 | D9: =C9 -> 5 | E9: 5 | F9: 5 | G9: 5 | H9: 5 | I9: 5 | J9: 5 | K9: 5 | L9: 5 | M9: 5 | N9: 5 | O9: 5 | P9: 5 | Q9: 5 | R9: 5 | S9: 5 | T9: 5 | U9: 5 | V9: 5 | W9: 5
B10: Annual production (litres per year) | C10: =+C9*1000000 -> 5000000 | D10: =+C10 -> 5000000 | E10: 5000000 | F10: 5000000 | G10: 5000000 | H10: 5000000 | I10: 5000000 | J10: 5000000 | K10: 5000000 | L10: 5000000 | M10: 5000000 | N10: 5000000 | O10: 5000000 | P10: 5000000 | Q10: 5000000 | R10: 5000000 | S10: 5000000 | T10: 5000000 | U10: 5000000 | V10: 5000000 | W10: 5000000
B11: Loss in production processing (%) | D11: 0 | E11: 0 | F11: 0 | G11: 0 | H11: 0 | I11: 0 | J11: 0 | K11: 0 | L11: 0 | M11: 0 | N11: 0 | O11: 0 | P11: 0 | Q11: 0 | R11: 0 | S11: 0 | T11: 0 | U11: 0 | V11: 0 | W11: 0
B12: Sales to customers (litres per year) | C12: =+C10*(1-C11) -> 5000000 | D12: =+C12 -> 5000000 | E12: 5000000 | F12: 5000000 | G12: 5000000 | H12: 5000000 | I12: 5000000 | J12: 5000000 | K12: 5000000 | L12: 5000000 | M12: 5000000 | N12: 5000000 | O12: 5000000 | P12: 5000000 | Q12: 5000000 | R12: 5000000 | S12: 5000000 | T12: 5000000 | U12: 5000000 | V12: 5000000 | W12: 5000000
B14: ="Price of "&'Data Entry Needs'!$F$10&" (USD/litre)" -> Price of Please Select (USD/litre) | C14: =+VLOOKUP('Data Entry Needs'!$F$10,'Data Entry Needs'!$T$180:$X$183,5,FALSE) ->  | D14: =+C14*(100%+D17) ->  | E14: =+D14*(100%+E17) -> 
B15: =+IF(COST_FS2!$AA$142="","","Price of "&COST_FS2!$AA$142&" (USD/ton)") ->  | C15: =+IF(COST_FS2!$AA$142="",0,COST_FS2!$AC$142) -> 0 | D15: =+C15*(100%+$C17) -> 0 | E15: =+D15*(100%+$C17) -> 0 | F15: =+E15*(100%+$C17) -> 0 | G15: 0 | H15: 0 | I15: 0 | J15: 0 | K15: 0 | L15: 0 | M15: 0 | N15: 0 | O15: 0 | P15: 0 | Q15: 0 | R15: 0 | S15: 0 | T15: 0 | U15: 0 | V15: 0 | W15: 0
B16: =+IF(COST_FS2!$AA$143="","","Price of "&COST_FS2!$AA$143&" (USD/ton)") ->  | C16: =+IF(COST_FS2!$AA$143="",0,COST_FS2!$AC$143) ->  | D16: =+C16*(100%+$C17) ->  | E16: =+D16*(100%+$C17) -> 
B17: ="Increase rate of price of "&'Data Entry Needs'!$F$10&" (%)" -> Increase rate of price of Please Select (%) | C17: =+'Data Entry Needs'!$O$174 -> 0 | D17: =+C17 -> 0 | E17: =+D17 -> 0 | F17: 0 | G17: 0 | H17: 0 | I17: 0 | J17: 0 | K17: 0 | L17: 0 | M17: 0 | N17: 0 | O17: 0 | P17: 0 | Q17: 0 | R17: 0 | S17: 0 | T17: 0 | U17: 0 | V17: 0 | W17: 0
B18: Income (USD per year) | C18: =+C12*C14 ->  | D18: =+D12*D14 -> 
B20: By-products revenue | C20: =+COST_FS2!$AD$142*C15+COST_FS2!$AD$143*C16 ->  | D20: =+COST_FS2!$AD$142*D15+COST_FS2!$AD$143*D16 ->  | E20: =+COST_FS2!$AD$142*E15+COST_FS2!$AD$143*E16 ->  | F20: =+COST_FS2!$AD$142*F15+COST_FS2!$AD$143*F16 ->  | G20: =+COST_FS2!$AD$142*G15+COST_FS2!$AD$143*G16 ->  | H20: =+COST_FS2!$AD$142*H15+COST_FS2!$AD$143*H16 ->  | I20: =+COST_FS2!$AD$142*I15+COST_FS2!$AD$143*I16 ->  | J20: =+COST_FS2!$AD$142*J15+COST_FS2!$AD$143*J16 ->  | K20: =+COST_FS2!$AD$142*K15+COST_FS2!$AD$143*K16 ->  | L20: =+COST_FS2!$AD$142*L15+COST_FS2!$AD$143*L16 ->  | M20: =+COST_FS2!$AD$142*M15+COST_FS2!$AD$143*M16 ->  | N20: =+COST_FS2!$AD$142*N15+COST_FS2!$AD$143*N16 ->  | O20: =+COST_FS2!$AD$142*O15+COST_FS2!$AD$143*O16 ->  | P20: =+COST_FS2!$AD$142*P15+COST_FS2!$AD$143*P16 ->  | Q20: =+COST_FS2!$AD$142*Q15+COST_FS2!$AD$143*Q16 ->  | R20: =+COST_FS2!$AD$142*R15+COST_FS2!$AD$143*R16 ->  | S20: =+COST_FS2!$AD$142*S15+COST_FS2!$AD$143*S16 ->  | T20: =+COST_FS2!$AD$142*T15+COST_FS2!$AD$143*T16 ->  | U20: =+COST_FS2!$AD$142*U15+COST_FS2!$AD$143*U16 ->  | V20: =+COST_FS2!$AD$142*V15+COST_FS2!$AD$143*V16 ->  | W20: =+COST_FS2!$AD$142*W15+COST_FS2!$AD$143*W16 -> 
B22: Total income | D22: =+D18+D20 ->  | E22: =+E18+E20 -> 
A25: Capital and operating cost
B27: Operating Year | C27: Appraisal | D27: 1 | E27: 2 | F27: 3 | G27: 4 | H27: 5 | I27: 6 | J27: 7 | K27: 8 | L27: 9 | M27: 10 | N27: 11 | O27: 12 | P27: 13 | Q27: 14 | R27: 15 | S27: 16 | T27: 17 | U27: 18 | V27: 19 | W27: 20
B28: Direct capital cost (USD)
B29: Equipments | C29: =+COST_FS2!$F74 -> 
B30: Building | C30: =+COST_FS2!$F75 ->  | N30: =+C30 -> 
B31: Installation | C31: =+COST_FS2!$F76 ->  | N31: =+C31 -> 
B33: Total capital cost (USD) | C33: =C29+C30+C31 ->  | D33: 0 | E33: 0 | F33: 0 | G33: 0 | H33: 0 | I33: 0 | J33: 0 | K33: 0 | L33: 0 | M33: 0 | O33: 0 | P33: 0 | Q33: 0 | R33: 0 | S33: 0 | T33: 0 | U33: 0 | V33: 0 | W33: 0
B34: Capital cost (USD/MLN litres) | C34: =+C33/C9 -> 
B35: Capital cost (USD/ litre) | C35: =+C33/C12 -> 
B38: Operating Year | C38: Appraisal | D38: 1 | E38: 2 | F38: 3 | G38: 4 | H38: 5 | I38: 6 | J38: 7 | K38: 8 | L38: 9 | M38: 10 | N38: 11 | O38: 12 | P38: 13 | Q38: 14 | R38: 15 | S38: 16 | T38: 17 | U38: 18 | V38: 19 | W38: 20
B39: Annual operating and maintenance cost
B40: Sub-total input cost (USD) | C40: =+C41+C42 -> 
B41: Feedstock cost (USD/year) | C41: =+COST_FS2!$G$42 ->  | D41: =+C41 -> 
B42: Other raw material costs (USD/year) | C42: =+COST_FS2!$G$57 -> 
B43: Labour cost (USD/year) | C43: =+COST_FS2!$G$64 -> 0 | D43: =C43*(1+D63) -> 0 | E43: 0 | F43: 0 | G43: 0 | H43: 0 | I43: 0 | J43: 0 | K43: 0 | L43: 0 | M43: 0 | N43: 0 | O43: 0 | P43: 0 | Q43: 0 | R43: 0 | S43: 0 | T43: 0 | U43: 0 | V43: 0 | W43: 0
B44: Transportation cost (USD/year) | C44: =+COST_FS2!$G$70 ->  | D44: =+C44 -> 
B45: Investment cost (USD/year) | C45: =+COST_FS2!$G$78 -> 
B46: Maintenance cost (USD/year) | C46: =+COST_FS2!$G$79 -> 
B47: Storage cost (USD/year) | C47: =+COST_FS2!$G$86 ->  | D47: =C47 -> 
B48: Plant overhead (USD/year) | C48: =+COST_FS2!G90 ->  | D48: =+C48 -> 
B49: General and administrative cost (USD/year) | C49: =+COST_FS2!G91 -> 
B50: Total annualized cost (USD) | C50: =SUM(C41:C49) ->  | D50: =SUM(D41:D49) -> 
B51: Total cost per litre (USD/l) | C51: =+C50/C12 -> 
A53: Financial parameters
B54: Operating Year | C54: Appraisal | D54: 1 | E54: 2 | F54: 3 | G54: 4 | H54: 5 | I54: 6 | J54: 7 | K54: 8 | L54: 9 | M54: 10 | N54: 11 | O54: 12 | P54: 13 | Q54: 14 | R54: 15 | S54: 16 | T54: 17 | U54: 18 | V54: 19 | W54: 20
B55: Raw material cost escalation rate (%) | D55: =+'Data Entry Needs'!$O$172 -> 0 | E55: =D55 -> 0 | F55: 0 | G55: 0 | H55: 0 | I55: 0 | J55: 0 | K55: 0 | L55: 0 | M55: 0 | N55: 0 | O55: 0 | P55: 0 | Q55: 0 | R55: 0 | S55: 0 | T55: 0 | U55: 0 | V55: 0 | W55: 0
B56: Inflation rate (%) | D56: =+'Data Entry Needs'!$O$175 -> 0 | E56: 0 | F56: 0 | G56: 0 | H56: 0 | I56: 0 | J56: 0 | K56: 0 | L56: 0 | M56: 0 | N56: 0 | O56: 0 | P56: 0 | Q56: 0 | R56: 0 | S56: 0 | T56: 0 | U56: 0 | V56: 0 | W56: 0
B57: Discount rate (%) | C57: =+'Data Entry Needs'!$D$64 -> 0
B58: Debt ratio (%) | C58: =+'Data Entry Needs'!$D$69 -> 0
B60: Loan | D60: 1 | E60: 2 | F60: 3 | G60: 4 | H60: 5 | I60: 6 | J60: 7 | K60: 8 | L60: 9 | M60: 10 | N60: 11 | O60: 12 | P60: 13 | Q60: 14 | R60: 15 | S60: 16 | T60: 17 | U60: 18 | V60: 19 | W60: 20
B61: Loan amount (USD ) | C61: =C58*C33 -> 
B62: Increasing rate of price of biodiesel (%) | C62: =+'Data Entry Needs'!$O$174 -> 0 | D62: =+C62 -> 0 | E62: 0 | F62: 0 | G62: 0 | H62: 0 | I62: 0 | J62: 0 | K62: 0 | L62: 0 | M62: 0 | N62: 0 | O62: 0 | P62: 0 | Q62: 0 | R62: 0 | S62: 0 | T62: 0 | U62: 0 | V62: 0 | W62: 0
B63: Escalation rate of labour cost (%) | D63: =+'Data Entry Needs'!$O$170 -> 0 | E63: 0 | F63: 0 | G63: 0 | H63: 0 | I63: 0 | J63: 0 | K63: 0 | L63: 0 | M63: 0 | N63: 0 | O63: 0 | P63: 0 | Q63: 0 | R63: 0 | S63: 0 | T63: 0 | U63: 0 | V63: 0 | W63: 0
B64: Loan interest rate (%) | C64: =+'Data Entry Needs'!$D$65 -> 0
B65: Loan term (years) | C65: =+'Data Entry Needs'!$D$66 -> 0
B66: Loan payment (USD/month) | C66: =(PMT(C64/12,(12*C65),C61)) -> 
B67: Loan payment (USD/year) | D67: =IF(D54<=$C$65,$C$66*12,0) -> 0 | E67: 0 | F67: 0 | G67: 0 | H67: 0 | I67: 0 | J67: 0 | K67: 0 | L67: 0 | M67: 0 | N67: 0 | O67: 0 | P67: 0 | Q67: 0 | R67: 0 | S67: 0 | T67: 0 | U67: 0 | V67: 0 | W67: 0
B68: Total loan payment (USD) | C68: =SUM(D67:W67) -> 0
B69: Loan interest payment (USD) | C69: =C68+C61 ->  | D69: Average loan interest payment for project lifetime | G69: =C69/20 ->  | H69: USD per year
A71: Income tax analysis
B72: Operating Year | C72: Appraisal | D72: 1 | E72: 2 | F72: 3 | G72: 4 | H72: 5 | I72: 6 | J72: 7 | K72: 8 | L72: 9 | M72: 10 | N72: 11 | O72: 12 | P72: 13 | Q72: 14 | R72: 15 | S72: 16 | T72: 17 | U72: 18 | V72: 19 | W72: 20
B73: Effective income tax rate (%) | C73: 0 | D73: =C73 -> 0 | E73: 0 | F73: 0 | G73: 0 | H73: 0 | I73: 0 | J73: 0 | K73: 0 | L73: 0 | M73: 0 | N73: 0 | O73: 0 | P73: 0 | Q73: 0 | R73: 0 | S73: 0 | T73: 0 | U73: 0 | V73: 0 | W73: 0
B74: Income tax | D74: =IF(D97<0,0,D73*D97) -> 
A76: Depreciation
B77: Operating Year | C77: Appraisal | D77: 1 | E77: 2 | F77: 3 | G77: 4 | H77: 5 | I77: 6 | J77: 7 | K77: 8 | L77: 9 | M77: 10 | N77: 11 | O77: 12 | P77: 13 | Q77: 14 | R77: 15 | S77: 16 | T77: 17 | U77: 18 | V77: 19 | W77: 20
B78: Depreciation method | C78: Straight-line
B79: Total depreciation (USD) | D79: =+C45 ->  | E79: =D79 -> 
A82: Summary of this project - before tax
B83: Operating Year | C83: Appraisal | D83: 1 | E83: 2 | F83: 3 | G83: 4 | H83: 5 | I83: 6 | J83: 7 | K83: 8 | L83: 9 | M83: 10 | N83: 11 | O83: 12 | P83: 13 | Q83: 14 | R83: 15 | S83: 16 | T83: 17 | U83: 18 | V83: 19 | W83: 20
B84: Total revenue (USD) | D84: =+D22 -> 
B85: Total capital cost (USD) | C85: =-(C33-C61) -> 
B86: Total operating and maintenance cost (USD) | D86: =-(D50-D45) -> 
B87: Debt payment (USD) | D87: =D67 -> 0 | E87: 0 | F87: 0 | G87: 0 | H87: 0 | I87: 0 | J87: 0 | K87: 0 | L87: 0 | M87: 0 | N87: 0 | O87: 0 | P87: 0 | Q87: 0 | R87: 0 | S87: 0 | T87: 0 | U87: 0 | V87: 0 | W87: 0
B88: Cash-flow - before tax (USD) | C88: =SUM(C84:C87) -> 
B89: Present cash-flow - before tax (USD) | D89: =+D88/((1+$C57)^D83) -> 
D90: =+PV($C57,D83,,-D88,) -> 
A91: Summary of this project - after tax
B92: Operating Year | C92: Appraisal | D92: 1 | E92: 2 | F92: 3 | G92: 4 | H92: 5 | I92: 6 | J92: 7 | K92: 8 | L92: 9 | M92: 10 | N92: 11 | O92: 12 | P92: 13 | Q92: 14 | R92: 15 | S92: 16 | T92: 17 | U92: 18 | V92: 19 | W92: 20
B93: Total revenue (USD) | C93: =C84 -> 0
B94: Total operating and maintenance cost (USD) | D94: =-(D50-D45) -> 
B95: Debt payment (USD) | D95: =D67 -> 0 | E95: 0 | F95: 0 | G95: 0 | H95: 0 | I95: 0 | J95: 0 | K95: 0 | L95: 0 | M95: 0 | N95: 0 | O95: 0 | P95: 0 | Q95: 0 | R95: 0 | S95: 0 | T95: 0 | U95: 0 | V95: 0 | W95: 0
B96: Depreciation of fixed cost (USD) | D96: =-D79 -> 
B97: Net Profit - before tax (USD) for income tax calculation | C97: =SUM(C93:C96) -> 0
B98: Income tax | D98: =-D74 -> 
D99: =+PV($C57,D92,,-D98) -> 
B100: Cash-flow - after tax (USD) | C100: =C85 ->  | D100: =D88+D98 -> 
B101: Present cash-flow - after tax (USD) | D101: =+PV($C57,D92,,-D100) -> 
A103: Cumulative value of Net Profit
B104: Operating Year | C104: Appraisal | D104: 1 | E104: 2 | F104: 3 | G104: 4 | H104: 5 | I104: 6 | J104: 7 | K104: 8 | L104: 9 | M104: 10 | N104: 11 | O104: 12 | P104: 13 | Q104: 14 | R104: 15 | S104: 16 | T104: 17 | U104: 18 | V104: 19 | W104: 20
B105: Cumulative value of Net Profit - before tax | C105: =C88 ->  | D105: =C105+(D89) -> 
B106: Cumulative value of Net Profit - after tax | C106: =C100 ->  | D106: =C106+(D101) -> 
A108: Financial Analysis Result
B110: Net Present Value (NPV) (USD) - before tax | C110: =NPV(C57,D88:W88)+C88 -> 
B111: Internal Rate of Return (IRR) (%) - before tax | C111: =IF(C110<0,"Not feasible",IRR(C88:W88,0.000001)) -> 
B112: Payback period (years) | C112: Please see Figure of the cumulative value of Net Profit - before tax
B115: Net Present Value (NPV) (USD) - after tax | C115: =NPV(C57,D100:W100)+C100 -> 
B116: Internal Rate of Return (IRR) (%) - after tax | C116: =IF(C115<0,"Not feasible",IRR(C100:W100,0.000001)) -> 
B117: Payback period (years) | C117: Please see Figure of the cumulative value of Net Profit - after tax
B118: Total income tax payment of project lifetime | C118: =SUM(D99:W99) -> 

Sheet FA5_FS2_SC2 (hidden)
B2: =+UPPER("FINANCIAL EVALUATION OF "&'Data Entry Needs'!$F$10&" PRODUCTION 5 Million Litres/year SCENARIO 2") -> FINANCIAL EVALUATION OF PLEASE SELECT PRODUCTION 5 MILLION LITRES/YEAR SCENARIO 2
A5: ="Revenues of "&'Data Entry Needs'!$F$10&" production (Benefit)" -> Revenues of Please Select production (Benefit)
B7: Operating Year | C7: 0 | D7: 1 | E7: 2 | F7: 3 | G7: 4 | H7: 5 | I7: 6 | J7: 7 | K7: 8 | L7: 9 | M7: 10 | N7: 11 | O7: 12 | P7: 13 | Q7: 14 | R7: 15 | S7: 16 | T7: 17 | U7: 18 | V7: 19 | W7: 20
B9: Capacity (million of litres) | C9: 5 | D9: =C9 -> 5 | E9: 5 | F9: 5 | G9: 5 | H9: 5 | I9: 5 | J9: 5 | K9: 5 | L9: 5 | M9: 5 | N9: 5 | O9: 5 | P9: 5 | Q9: 5 | R9: 5 | S9: 5 | T9: 5 | U9: 5 | V9: 5 | W9: 5
B10: Annual production (litres per year) | C10: =+C9*1000000 -> 5000000 | D10: =+C10 -> 5000000 | E10: 5000000 | F10: 5000000 | G10: 5000000 | H10: 5000000 | I10: 5000000 | J10: 5000000 | K10: 5000000 | L10: 5000000 | M10: 5000000 | N10: 5000000 | O10: 5000000 | P10: 5000000 | Q10: 5000000 | R10: 5000000 | S10: 5000000 | T10: 5000000 | U10: 5000000 | V10: 5000000 | W10: 5000000
B11: Loss in production processing (%) | D11: 0 | E11: 0 | F11: 0 | G11: 0 | H11: 0 | I11: 0 | J11: 0 | K11: 0 | L11: 0 | M11: 0 | N11: 0 | O11: 0 | P11: 0 | Q11: 0 | R11: 0 | S11: 0 | T11: 0 | U11: 0 | V11: 0 | W11: 0
B12: Sales to customers (litres per year) | C12: =+C10*(1-C11) -> 5000000 | D12: =+C12 -> 5000000 | E12: 5000000 | F12: 5000000 | G12: 5000000 | H12: 5000000 | I12: 5000000 | J12: 5000000 | K12: 5000000 | L12: 5000000 | M12: 5000000 | N12: 5000000 | O12: 5000000 | P12: 5000000 | Q12: 5000000 | R12: 5000000 | S12: 5000000 | T12: 5000000 | U12: 5000000 | V12: 5000000 | W12: 5000000
B14: ="Price of "&'Data Entry Needs'!$F$10&" (USD/litre)" -> Price of Please Select (USD/litre) | C14: =+VLOOKUP('Data Entry Needs'!$F$10,'Data Entry Needs'!$T$180:$X$183,5,FALSE) ->  | D14: =+C14*(100%+D17) ->  | E14: =+D14*(100%+E17) -> 
B15: =+IF(COST_FS2!$AA$142="","","Price of "&COST_FS2!$AA$142&" (USD/ton)") ->  | C15: =+IF(COST_FS2!$AA$142="",0,COST_FS2!$AC$142) -> 0 | D15: =+C15*(100%+$C17) -> 0 | E15: =+D15*(100%+$C17) -> 0 | F15: =+E15*(100%+$C17) -> 0 | G15: 0 | H15: 0 | I15: 0 | J15: 0 | K15: 0 | L15: 0 | M15: 0 | N15: 0 | O15: 0 | P15: 0 | Q15: 0 | R15: 0 | S15: 0 | T15: 0 | U15: 0 | V15: 0 | W15: 0
B16: =+IF(COST_FS2!$AA$143="","","Price of "&COST_FS2!$AA$143&" (USD/ton)") ->  | C16: =+IF(COST_FS2!$AA$143="",0,COST_FS2!$AC$143) ->  | D16: =+C16*(100%+$C17) ->  | E16: =+D16*(100%+$C17) -> 
B17: ="Increase rate of price of "&'Data Entry Needs'!$F$10&" (%)" -> Increase rate of price of Please Select (%) | C17: =+'Data Entry Needs'!$O$174 -> 0 | D17: =+C17 -> 0 | E17: =+D17 -> 0 | F17: 0 | G17: 0 | H17: 0 | I17: 0 | J17: 0 | K17: 0 | L17: 0 | M17: 0 | N17: 0 | O17: 0 | P17: 0 | Q17: 0 | R17: 0 | S17: 0 | T17: 0 | U17: 0 | V17: 0 | W17: 0
B18: Income (USD per year) | C18: =+C12*C14 ->  | D18: =+D12*D14 -> 
B20: By-products revenue | C20: =+COST_FS2!$AD$142*C15+COST_FS2!$AD$143*C16 ->  | D20: =+COST_FS2!$AD$142*D15+COST_FS2!$AD$143*D16 ->  | E20: =+COST_FS2!$AD$142*E15+COST_FS2!$AD$143*E16 ->  | F20: =+COST_FS2!$AD$142*F15+COST_FS2!$AD$143*F16 ->  | G20: =+COST_FS2!$AD$142*G15+COST_FS2!$AD$143*G16 ->  | H20: =+COST_FS2!$AD$142*H15+COST_FS2!$AD$143*H16 ->  | I20: =+COST_FS2!$AD$142*I15+COST_FS2!$AD$143*I16 ->  | J20: =+COST_FS2!$AD$142*J15+COST_FS2!$AD$143*J16 ->  | K20: =+COST_FS2!$AD$142*K15+COST_FS2!$AD$143*K16 ->  | L20: =+COST_FS2!$AD$142*L15+COST_FS2!$AD$143*L16 ->  | M20: =+COST_FS2!$AD$142*M15+COST_FS2!$AD$143*M16 ->  | N20: =+COST_FS2!$AD$142*N15+COST_FS2!$AD$143*N16 ->  | O20: =+COST_FS2!$AD$142*O15+COST_FS2!$AD$143*O16 ->  | P20: =+COST_FS2!$AD$142*P15+COST_FS2!$AD$143*P16 ->  | Q20: =+COST_FS2!$AD$142*Q15+COST_FS2!$AD$143*Q16 ->  | R20: =+COST_FS2!$AD$142*R15+COST_FS2!$AD$143*R16 ->  | S20: =+COST_FS2!$AD$142*S15+COST_FS2!$AD$143*S16 ->  | T20: =+COST_FS2!$AD$142*T15+COST_FS2!$AD$143*T16 ->  | U20: =+COST_FS2!$AD$142*U15+COST_FS2!$AD$143*U16 ->  | V20: =+COST_FS2!$AD$142*V15+COST_FS2!$AD$143*V16 ->  | W20: =+COST_FS2!$AD$142*W15+COST_FS2!$AD$143*W16 -> 
B22: Total income | D22: =+D18+D20 ->  | E22: =+E18+E20 -> 
A25: Capital and operating cost
B27: Operating Year | C27: Appraisal | D27: 1 | E27: 2 | F27: 3 | G27: 4 | H27: 5 | I27: 6 | J27: 7 | K27: 8 | L27: 9 | M27: 10 | N27: 11 | O27: 12 | P27: 13 | Q27: 14 | R27: 15 | S27: 16 | T27: 17 | U27: 18 | V27: 19 | W27: 20
B28: Direct capital cost (USD)
B29: Equipments | C29: =+COST_FS2!$F74 -> 
B30: Building | C30: =+COST_FS2!$F75 ->  | N30: =+C30 -> 
B31: Installation | C31: =+COST_FS2!$F76 ->  | N31: =+C31 -> 
B33: Total capital cost (USD) | C33: =C29+C30+C31 ->  | D33: 0 | E33: 0 | F33: 0 | G33: 0 | H33: 0 | I33: 0 | J33: 0 | K33: 0 | L33: 0 | M33: 0 | O33: 0 | P33: 0 | Q33: 0 | R33: 0 | S33: 0 | T33: 0 | U33: 0 | V33: 0 | W33: 0
B34: Capital cost (USD/MLN litres) | C34: =+C33/C9 -> 
B35: Capital cost (USD/ litre) | C35: =+C33/C12 -> 
B38: Operating Year | C38: Appraisal | D38: 1 | E38: 2 | F38: 3 | G38: 4 | H38: 5 | I38: 6 | J38: 7 | K38: 8 | L38: 9 | M38: 10 | N38: 11 | O38: 12 | P38: 13 | Q38: 14 | R38: 15 | S38: 16 | T38: 17 | U38: 18 | V38: 19 | W38: 20
B39: Annual operating and maintenance cost
B40: Sub-total input cost (USD) | C40: =+C41+C42 -> 
B41: Feedstock cost (USD/year) | C41: =+COST_FS2!$G$43 ->  | D41: =+C41 -> 
B42: Other raw material costs (USD/year) | C42: =+COST_FS2!$G$57 -> 
B43: Labour cost (USD/year) | C43: =+COST_FS2!$G$64 -> 0 | D43: =C43*(1+D63) -> 0 | E43: 0 | F43: 0 | G43: 0 | H43: 0 | I43: 0 | J43: 0 | K43: 0 | L43: 0 | M43: 0 | N43: 0 | O43: 0 | P43: 0 | Q43: 0 | R43: 0 | S43: 0 | T43: 0 | U43: 0 | V43: 0 | W43: 0
B44: Transportation cost (USD/year) | C44: =+COST_FS2!$G$70 ->  | D44: =+C44 -> 
B45: Investment cost (USD/year) | C45: =+COST_FS2!$G$78 -> 
B46: Maintenance cost (USD/year) | C46: =+COST_FS2!$G$79 -> 
B47: Storage cost (USD/year) | C47: =+COST_FS2!$G$86 ->  | D47: =C47 -> 
B48: Plant overhead (USD/year) | C48: =+COST_FS2!G90 ->  | D48: =+C48 -> 
B49: General and administrative cost (USD/year) | C49: =+COST_FS2!G91 -> 
B50: Total annualized cost (USD) | C50: =SUM(C41:C49) ->  | D50: =SUM(D41:D49) -> 
B51: Total cost per litre (USD/l) | C51: =+C50/C12 -> 
A53: Financial parameters
B54: Operating Year | C54: Appraisal | D54: 1 | E54: 2 | F54: 3 | G54: 4 | H54: 5 | I54: 6 | J54: 7 | K54: 8 | L54: 9 | M54: 10 | N54: 11 | O54: 12 | P54: 13 | Q54: 14 | R54: 15 | S54: 16 | T54: 17 | U54: 18 | V54: 19 | W54: 20
B55: Raw material cost escalation rate (%) | D55: =+'Data Entry Needs'!$O$172 -> 0 | E55: =D55 -> 0 | F55: 0 | G55: 0 | H55: 0 | I55: 0 | J55: 0 | K55: 0 | L55: 0 | M55: 0 | N55: 0 | O55: 0 | P55: 0 | Q55: 0 | R55: 0 | S55: 0 | T55: 0 | U55: 0 | V55: 0 | W55: 0
B56: Inflation rate (%) | D56: =+'Data Entry Needs'!$O$175 -> 0 | E56: 0 | F56: 0 | G56: 0 | H56: 0 | I56: 0 | J56: 0 | K56: 0 | L56: 0 | M56: 0 | N56: 0 | O56: 0 | P56: 0 | Q56: 0 | R56: 0 | S56: 0 | T56: 0 | U56: 0 | V56: 0 | W56: 0
B57: Discount rate (%) | C57: =+'Data Entry Needs'!$D$64 -> 0
B58: Debt ratio (%) | C58: =+'Data Entry Needs'!$D$69 -> 0
B60: Loan | D60: 1 | E60: 2 | F60: 3 | G60: 4 | H60: 5 | I60: 6 | J60: 7 | K60: 8 | L60: 9 | M60: 10 | N60: 11 | O60: 12 | P60: 13 | Q60: 14 | R60: 15 | S60: 16 | T60: 17 | U60: 18 | V60: 19 | W60: 20
B61: Loan amount (USD ) | C61: =C58*C33 -> 
B62: Increasing rate of price of biodiesel (%) | C62: =+'Data Entry Needs'!$O$174 -> 0 | D62: =+C62 -> 0 | E62: 0 | F62: 0 | G62: 0 | H62: 0 | I62: 0 | J62: 0 | K62: 0 | L62: 0 | M62: 0 | N62: 0 | O62: 0 | P62: 0 | Q62: 0 | R62: 0 | S62: 0 | T62: 0 | U62: 0 | V62: 0 | W62: 0
B63: Escalation rate of labour cost (%) | D63: =+'Data Entry Needs'!$O$170 -> 0 | E63: 0 | F63: 0 | G63: 0 | H63: 0 | I63: 0 | J63: 0 | K63: 0 | L63: 0 | M63: 0 | N63: 0 | O63: 0 | P63: 0 | Q63: 0 | R63: 0 | S63: 0 | T63: 0 | U63: 0 | V63: 0 | W63: 0
B64: Loan interest rate (%) | C64: =+'Data Entry Needs'!$D$65 -> 0
B65: Loan term (years) | C65: =+'Data Entry Needs'!$D$66 -> 0
B66: Loan payment (USD/month) | C66: =(PMT(C64/12,(12*C65),C61)) -> 
B67: Loan payment (USD/year) | D67: =IF(D54<=$C$65,$C$66*12,0) -> 0 | E67: 0 | F67: 0 | G67: 0 | H67: 0 | I67: 0 | J67: 0 | K67: 0 | L67: 0 | M67: 0 | N67: 0 | O67: 0 | P67: 0 | Q67: 0 | R67: 0 | S67: 0 | T67: 0 | U67: 0 | V67: 0 | W67: 0
B68: Total loan payment (USD) | C68: =SUM(D67:W67) -> 0
B69: Loan interest payment (USD) | C69: =C68+C61 ->  | D69: Average loan interest payment for project lifetime | G69: =C69/20 ->  | H69: USD per year
A71: Income tax analysis
B72: Operating Year | C72: Appraisal | D72: 1 | E72: 2 | F72: 3 | G72: 4 | H72: 5 | I72: 6 | J72: 7 | K72: 8 | L72: 9 | M72: 10 | N72: 11 | O72: 12 | P72: 13 | Q72: 14 | R72: 15 | S72: 16 | T72: 17 | U72: 18 | V72: 19 | W72: 20
B73: Effective income tax rate (%) | C73: 0 | D73: =C73 -> 0 | E73: 0 | F73: 0 | G73: 0 | H73: 0 | I73: 0 | J73: 0 | K73: 0 | L73: 0 | M73: 0 | N73: 0 | O73: 0 | P73: 0 | Q73: 0 | R73: 0 | S73: 0 | T73: 0 | U73: 0 | V73: 0 | W73: 0
B74: Income tax | D74: =IF(D97<0,0,D73*D97) -> 
A76: Depreciation
B77: Operating Year | C77: Appraisal | D77: 1 | E77: 2 | F77: 3 | G77: 4 | H77: 5 | I77: 6 | J77: 7 | K77: 8 | L77: 9 | M77: 10 | N77: 11 | O77: 12 | P77: 13 | Q77: 14 | R77: 15 | S77: 16 | T77: 17 | U77: 18 | V77: 19 | W77: 20
B78: Depreciation method | C78: Straight-line
B79: Total depreciation (USD) | D79: =+C45 ->  | E79: =D79 -> 
A82: Summary of this project - before tax
B83: Operating Year | C83: Appraisal | D83: 1 | E83: 2 | F83: 3 | G83: 4 | H83: 5 | I83: 6 | J83: 7 | K83: 8 | L83: 9 | M83: 10 | N83: 11 | O83: 12 | P83: 13 | Q83: 14 | R83: 15 | S83: 16 | T83: 17 | U83: 18 | V83: 19 | W83: 20
B84: Total revenue (USD) | D84: =+D22 -> 
B85: Total capital cost (USD) | C85: =-(C33-C61) -> 
B86: Total operating and maintenance cost (USD) | D86: =-(D50-D45) -> 
B87: Debt payment (USD) | D87: =D67 -> 0 | E87: 0 | F87: 0 | G87: 0 | H87: 0 | I87: 0 | J87: 0 | K87: 0 | L87: 0 | M87: 0 | N87: 0 | O87: 0 | P87: 0 | Q87: 0 | R87: 0 | S87: 0 | T87: 0 | U87: 0 | V87: 0 | W87: 0
B88: Cash-flow - before tax (USD) | C88: =SUM(C84:C87) -> 
B89: Present cash-flow - before tax (USD) | D89: =+D88/((1+$C57)^D83) -> 
D90: =+PV($C57,D83,,-D88,) -> 
A91: Summary of this project - after tax
B92: Operating Year | C92: Appraisal | D92: 1 | E92: 2 | F92: 3 | G92: 4 | H92: 5 | I92: 6 | J92: 7 | K92: 8 | L92: 9 | M92: 10 | N92: 11 | O92: 12 | P92: 13 | Q92: 14 | R92: 15 | S92: 16 | T92: 17 | U92: 18 | V92: 19 | W92: 20
B93: Total revenue (USD) | C93: =C84 -> 0
B94: Total operating and maintenance cost (USD) | D94: =-(D50-D45) -> 
B95: Debt payment (USD) | D95: =D67 -> 0 | E95: 0 | F95: 0 | G95: 0 | H95: 0 | I95: 0 | J95: 0 | K95: 0 | L95: 0 | M95: 0 | N95: 0 | O95: 0 | P95: 0 | Q95: 0 | R95: 0 | S95: 0 | T95: 0 | U95: 0 | V95: 0 | W95: 0
B96: Depreciation of fixed cost (USD) | D96: =-D79 -> 
B97: Net Profit - before tax (USD) for income tax calculation | C97: =SUM(C93:C96) -> 0
B98: Income tax | D98: =-D74 -> 
D99: =+PV($C57,D92,,-D98) -> 
B100: Cash-flow - after tax (USD) | C100: =C85 ->  | D100: =D88+D98 -> 
B101: Present cash-flow - after tax (USD) | D101: =+PV($C57,D92,,-D100) -> 
A103: Cumulative value of Net Profit
B104: Operating Year | C104: Appraisal | D104: 1 | E104: 2 | F104: 3 | G104: 4 | H104: 5 | I104: 6 | J104: 7 | K104: 8 | L104: 9 | M104: 10 | N104: 11 | O104: 12 | P104: 13 | Q104: 14 | R104: 15 | S104: 16 | T104: 17 | U104: 18 | V104: 19 | W104: 20
B105: Cumulative value of Net Profit - before tax | C105: =C88 ->  | D105: =C105+(D89) -> 
B106: Cumulative value of Net Profit - after tax | C106: =C100 ->  | D106: =C106+(D101) -> 
A108: Financial Analysis Result
B110: Net Present Value (NPV) (USD) - before tax | C110: =NPV(C57,D88:W88)+C88 -> 
B111: Internal Rate of Return (IRR) (%) - before tax | C111: =IF(C110<0,"Not feasible",IRR(C88:W88,0.000001)) -> 
B112: Payback period (years) | C112: Please see Figure of the cumulative value of Net Profit - before tax
B115: Net Present Value (NPV) (USD) - after tax | C115: =NPV(C57,D100:W100)+C100 -> 
B116: Internal Rate of Return (IRR) (%) - after tax | C116: =IF(C115<0,"Not feasible",IRR(C100:W100,0.000001)) -> 
B117: Payback period (years) | C117: Please see Figure of the cumulative value of Net Profit - after tax
B118: Total income tax payment of project lifetime | C118: =SUM(D99:W99) -> 

Sheet FA5_FS2_SC3 (hidden)
B2: =+UPPER("FINANCIAL EVALUATION OF "&'Data Entry Needs'!$F$10&" PRODUCTION 5 Million Litres/year SCENARIO 3") -> FINANCIAL EVALUATION OF PLEASE SELECT PRODUCTION 5 MILLION LITRES/YEAR SCENARIO 3
A5: ="Revenues of "&'Data Entry Needs'!$F$10&" production (Benefit)" -> Revenues of Please Select production (Benefit)
B7: Operating Year | C7: 0 | D7: 1 | E7: 2 | F7: 3 | G7: 4 | H7: 5 | I7: 6 | J7: 7 | K7: 8 | L7: 9 | M7: 10 | N7: 11 | O7: 12 | P7: 13 | Q7: 14 | R7: 15 | S7: 16 | T7: 17 | U7: 18 | V7: 19 | W7: 20
B9: Capacity (million of litres) | C9: 5 | D9: =C9 -> 5 | E9: 5 | F9: 5 | G9: 5 | H9: 5 | I9: 5 | J9: 5 | K9: 5 | L9: 5 | M9: 5 | N9: 5 | O9: 5 | P9: 5 | Q9: 5 | R9: 5 | S9: 5 | T9: 5 | U9: 5 | V9: 5 | W9: 5
B10: Annual production (litres per year) | C10: =+C9*1000000 -> 5000000 | D10: =+C10 -> 5000000 | E10: 5000000 | F10: 5000000 | G10: 5000000 | H10: 5000000 | I10: 5000000 | J10: 5000000 | K10: 5000000 | L10: 5000000 | M10: 5000000 | N10: 5000000 | O10: 5000000 | P10: 5000000 | Q10: 5000000 | R10: 5000000 | S10: 5000000 | T10: 5000000 | U10: 5000000 | V10: 5000000 | W10: 5000000
B11: Loss in production processing (%) | D11: 0 | E11: 0 | F11: 0 | G11: 0 | H11: 0 | I11: 0 | J11: 0 | K11: 0 | L11: 0 | M11: 0 | N11: 0 | O11: 0 | P11: 0 | Q11: 0 | R11: 0 | S11: 0 | T11: 0 | U11: 0 | V11: 0 | W11: 0
B12: Sales to customers (litres per year) | C12: =+C10*(1-C11) -> 5000000 | D12: =+C12 -> 5000000 | E12: 5000000 | F12: 5000000 | G12: 5000000 | H12: 5000000 | I12: 5000000 | J12: 5000000 | K12: 5000000 | L12: 5000000 | M12: 5000000 | N12: 5000000 | O12: 5000000 | P12: 5000000 | Q12: 5000000 | R12: 5000000 | S12: 5000000 | T12: 5000000 | U12: 5000000 | V12: 5000000 | W12: 5000000
B14: ="Price of "&'Data Entry Needs'!$F$10&" (USD/litre)" -> Price of Please Select (USD/litre) | C14: =+VLOOKUP('Data Entry Needs'!$F$10,'Data Entry Needs'!$T$180:$X$183,5,FALSE) ->  | D14: =+C14*(100%+D17) ->  | E14: =+D14*(100%+E17) -> 
B15: =+IF(COST_FS2!$AA$142="","","Price of "&COST_FS2!$AA$142&" (USD/ton)") ->  | C15: =+IF(COST_FS2!$AA$142="",0,COST_FS2!$AC$142) -> 0 | D15: =+C15*(100%+$C17) -> 0 | E15: =+D15*(100%+$C17) -> 0 | F15: =+E15*(100%+$C17) -> 0 | G15: 0 | H15: 0 | I15: 0 | J15: 0 | K15: 0 | L15: 0 | M15: 0 | N15: 0 | O15: 0 | P15: 0 | Q15: 0 | R15: 0 | S15: 0 | T15: 0 | U15: 0 | V15: 0 | W15: 0
B16: =+IF(COST_FS2!$AA$143="","","Price of "&COST_FS2!$AA$143&" (USD/ton)") ->  | C16: =+IF(COST_FS2!$AA$143="",0,COST_FS2!$AC$143) ->  | D16: =+C16*(100%+$C17) ->  | E16: =+D16*(100%+$C17) -> 
B17: ="Increase rate of price of "&'Data Entry Needs'!$F$10&" (%)" -> Increase rate of price of Please Select (%) | C17: =+'Data Entry Needs'!$O$174 -> 0 | D17: =+C17 -> 0 | E17: =+D17 -> 0 | F17: 0 | G17: 0 | H17: 0 | I17: 0 | J17: 0 | K17: 0 | L17: 0 | M17: 0 | N17: 0 | O17: 0 | P17: 0 | Q17: 0 | R17: 0 | S17: 0 | T17: 0 | U17: 0 | V17: 0 | W17: 0
B18: Income (USD per year) | C18: =+C12*C14 ->  | D18: =+D12*D14 -> 
B20: By-products revenue | C20: =+COST_FS2!$AD$142*C15+COST_FS2!$AD$143*C16 ->  | D20: =+COST_FS2!$AD$142*D15+COST_FS2!$AD$143*D16 ->  | E20: =+COST_FS2!$AD$142*E15+COST_FS2!$AD$143*E16 ->  | F20: =+COST_FS2!$AD$142*F15+COST_FS2!$AD$143*F16 ->  | G20: =+COST_FS2!$AD$142*G15+COST_FS2!$AD$143*G16 ->  | H20: =+COST_FS2!$AD$142*H15+COST_FS2!$AD$143*H16 ->  | I20: =+COST_FS2!$AD$142*I15+COST_FS2!$AD$143*I16 ->  | J20: =+COST_FS2!$AD$142*J15+COST_FS2!$AD$143*J16 ->  | K20: =+COST_FS2!$AD$142*K15+COST_FS2!$AD$143*K16 ->  | L20: =+COST_FS2!$AD$142*L15+COST_FS2!$AD$143*L16 ->  | M20: =+COST_FS2!$AD$142*M15+COST_FS2!$AD$143*M16 ->  | N20: =+COST_FS2!$AD$142*N15+COST_FS2!$AD$143*N16 ->  | O20: =+COST_FS2!$AD$142*O15+COST_FS2!$AD$143*O16 ->  | P20: =+COST_FS2!$AD$142*P15+COST_FS2!$AD$143*P16 ->  | Q20: =+COST_FS2!$AD$142*Q15+COST_FS2!$AD$143*Q16 ->  | R20: =+COST_FS2!$AD$142*R15+COST_FS2!$AD$143*R16 ->  | S20: =+COST_FS2!$AD$142*S15+COST_FS2!$AD$143*S16 ->  | T20: =+COST_FS2!$AD$142*T15+COST_FS2!$AD$143*T16 ->  | U20: =+COST_FS2!$AD$142*U15+COST_FS2!$AD$143*U16 ->  | V20: =+COST_FS2!$AD$142*V15+COST_FS2!$AD$143*V16 ->  | W20: =+COST_FS2!$AD$142*W15+COST_FS2!$AD$143*W16 -> 
B22: Total income | D22: =+D18+D20 ->  | E22: =+E18+E20 -> 
A25: Capital and operating cost
B27: Operating Year | C27: Appraisal | D27: 1 | E27: 2 | F27: 3 | G27: 4 | H27: 5 | I27: 6 | J27: 7 | K27: 8 | L27: 9 | M27: 10 | N27: 11 | O27: 12 | P27: 13 | Q27: 14 | R27: 15 | S27: 16 | T27: 17 | U27: 18 | V27: 19 | W27: 20
B28: Direct capital cost (USD)
B29: Equipments | C29: =+COST_FS2!$F74 -> 
B30: Building | C30: =+COST_FS2!$F75 ->  | N30: =+C30 -> 
B31: Installation | C31: =+COST_FS2!$F76 ->  | N31: =+C31 -> 
B33: Total capital cost (USD) | C33: =C29+C30+C31 ->  | D33: 0 | E33: 0 | F33: 0 | G33: 0 | H33: 0 | I33: 0 | J33: 0 | K33: 0 | L33: 0 | M33: 0 | O33: 0 | P33: 0 | Q33: 0 | R33: 0 | S33: 0 | T33: 0 | U33: 0 | V33: 0 | W33: 0
B34: Capital cost (USD/MLN litres) | C34: =+C33/C9 -> 
B35: Capital cost (USD/ litre) | C35: =+C33/C12 -> 
B38: Operating Year | C38: Appraisal | D38: 1 | E38: 2 | F38: 3 | G38: 4 | H38: 5 | I38: 6 | J38: 7 | K38: 8 | L38: 9 | M38: 10 | N38: 11 | O38: 12 | P38: 13 | Q38: 14 | R38: 15 | S38: 16 | T38: 17 | U38: 18 | V38: 19 | W38: 20
B39: Annual operating and maintenance cost
B40: Sub-total input cost (USD) | C40: =+C41+C42 -> 
B41: Feedstock cost (USD/year) | C41: =+COST_FS2!$G$44 ->  | D41: =+C41 -> 
B42: Other raw material costs (USD/year) | C42: =+COST_FS2!$G$57 -> 
B43: Labour cost (USD/year) | C43: =+COST_FS2!$G$64 -> 0 | D43: =C43*(1+D63) -> 0 | E43: 0 | F43: 0 | G43: 0 | H43: 0 | I43: 0 | J43: 0 | K43: 0 | L43: 0 | M43: 0 | N43: 0 | O43: 0 | P43: 0 | Q43: 0 | R43: 0 | S43: 0 | T43: 0 | U43: 0 | V43: 0 | W43: 0
B44: Transportation cost (USD/year) | C44: =+COST_FS2!$G$70 ->  | D44: =+C44 -> 
B45: Investment cost (USD/year) | C45: =+COST_FS2!$G$78 -> 
B46: Maintenance cost (USD/year) | C46: =+COST_FS2!$G$79 -> 
B47: Storage cost (USD/year) | C47: =+COST_FS2!$G$86 ->  | D47: =C47 -> 
B48: Plant overhead (USD/year) | C48: =+COST_FS2!G90 ->  | D48: =+C48 -> 
B49: General and administrative cost (USD/year) | C49: =+COST_FS2!G91 -> 
B50: Total annualized cost (USD) | C50: =SUM(C41:C49) ->  | D50: =SUM(D41:D49) -> 
B51: Total cost per litre (USD/l) | C51: =+C50/C12 -> 
A53: Financial parameters
B54: Operating Year | C54: Appraisal | D54: 1 | E54: 2 | F54: 3 | G54: 4 | H54: 5 | I54: 6 | J54: 7 | K54: 8 | L54: 9 | M54: 10 | N54: 11 | O54: 12 | P54: 13 | Q54: 14 | R54: 15 | S54: 16 | T54: 17 | U54: 18 | V54: 19 | W54: 20
B55: Raw material cost escalation rate (%) | D55: =+'Data Entry Needs'!$O$172 -> 0 | E55: =D55 -> 0 | F55: 0 | G55: 0 | H55: 0 | I55: 0 | J55: 0 | K55: 0 | L55: 0 | M55: 0 | N55: 0 | O55: 0 | P55: 0 | Q55: 0 | R55: 0 | S55: 0 | T55: 0 | U55: 0 | V55: 0 | W55: 0
B56: Inflation rate (%) | D56: =+'Data Entry Needs'!$O$175 -> 0 | E56: 0 | F56: 0 | G56: 0 | H56: 0 | I56: 0 | J56: 0 | K56: 0 | L56: 0 | M56: 0 | N56: 0 | O56: 0 | P56: 0 | Q56: 0 | R56: 0 | S56: 0 | T56: 0 | U56: 0 | V56: 0 | W56: 0
B57: Discount rate (%) | C57: =+'Data Entry Needs'!$D$64 -> 0
B58: Debt ratio (%) | C58: =+'Data Entry Needs'!$D$69 -> 0
B60: Loan | D60: 1 | E60: 2 | F60: 3 | G60: 4 | H60: 5 | I60: 6 | J60: 7 | K60: 8 | L60: 9 | M60: 10 | N60: 11 | O60: 12 | P60: 13 | Q60: 14 | R60: 15 | S60: 16 | T60: 17 | U60: 18 | V60: 19 | W60: 20
B61: Loan amount (USD ) | C61: =C58*C33 -> 
B62: Increasing rate of price of biodiesel (%) | C62: =+'Data Entry Needs'!$O$174 -> 0 | D62: =+C62 -> 0 | E62: 0 | F62: 0 | G62: 0 | H62: 0 | I62: 0 | J62: 0 | K62: 0 | L62: 0 | M62: 0 | N62: 0 | O62: 0 | P62: 0 | Q62: 0 | R62: 0 | S62: 0 | T62: 0 | U62: 0 | V62: 0 | W62: 0
B63: Escalation rate of labour cost (%) | D63: =+'Data Entry Needs'!$O$170 -> 0 | E63: 0 | F63: 0 | G63: 0 | H63: 0 | I63: 0 | J63: 0 | K63: 0 | L63: 0 | M63: 0 | N63: 0 | O63: 0 | P63: 0 | Q63: 0 | R63: 0 | S63: 0 | T63: 0 | U63: 0 | V63: 0 | W63: 0
B64: Loan interest rate (%) | C64: =+'Data Entry Needs'!$D$65 -> 0
B65: Loan term (years) | C65: =+'Data Entry Needs'!$D$66 -> 0
B66: Loan payment (USD/month) | C66: =(PMT(C64/12,(12*C65),C61)) -> 
B67: Loan payment (USD/year) | D67: =IF(D54<=$C$65,$C$66*12,0) -> 0 | E67: 0 | F67: 0 | G67: 0 | H67: 0 | I67: 0 | J67: 0 | K67: 0 | L67: 0 | M67: 0 | N67: 0 | O67: 0 | P67: 0 | Q67: 0 | R67: 0 | S67: 0 | T67: 0 | U67: 0 | V67: 0 | W67: 0
B68: Total loan payment (USD) | C68: =SUM(D67:W67) -> 0
B69: Loan interest payment (USD) | C69: =C68+C61 ->  | D69: Average loan interest payment for project lifetime | G69: =C69/20 ->  | H69: USD per year
A71: Income tax analysis
B72: Operating Year | C72: Appraisal | D72: 1 | E72: 2 | F72: 3 | G72: 4 | H72: 5 | I72: 6 | J72: 7 | K72: 8 | L72: 9 | M72: 10 | N72: 11 | O72: 12 | P72: 13 | Q72: 14 | R72: 15 | S72: 16 | T72: 17 | U72: 18 | V72: 19 | W72: 20
B73: Effective income tax rate (%) | C73: 0 | D73: =C73 -> 0 | E73: 0 | F73: 0 | G73: 0 | H73: 0 | I73: 0 | J73: 0 | K73: 0 | L73: 0 | M73: 0 | N73: 0 | O73: 0 | P73: 0 | Q73: 0 | R73: 0 | S73: 0 | T73: 0 | U73: 0 | V73: 0 | W73: 0
B74: Income tax | D74: =IF(D97<0,0,D73*D97) -> 
A76: Depreciation
B77: Operating Year | C77: Appraisal | D77: 1 | E77: 2 | F77: 3 | G77: 4 | H77: 5 | I77: 6 | J77: 7 | K77: 8 | L77: 9 | M77: 10 | N77: 11 | O77: 12 | P77: 13 | Q77: 14 | R77: 15 | S77: 16 | T77: 17 | U77: 18 | V77: 19 | W77: 20
B78: Depreciation method | C78: Straight-line
B79: Total depreciation (USD) | D79: =+C45 ->  | E79: =D79 -> 
A82: Summary of this project - before tax
B83: Operating Year | C83: Appraisal | D83: 1 | E83: 2 | F83: 3 | G83: 4 | H83: 5 | I83: 6 | J83: 7 | K83: 8 | L83: 9 | M83: 10 | N83: 11 | O83: 12 | P83: 13 | Q83: 14 | R83: 15 | S83: 16 | T83: 17 | U83: 18 | V83: 19 | W83: 20
B84: Total revenue (USD) | D84: =+D22 -> 
B85: Total capital cost (USD) | C85: =-(C33-C61) -> 
B86: Total operating and maintenance cost (USD) | D86: =-(D50-D45) -> 
B87: Debt payment (USD) | D87: =D67 -> 0 | E87: 0 | F87: 0 | G87: 0 | H87: 0 | I87: 0 | J87: 0 | K87: 0 | L87: 0 | M87: 0 | N87: 0 | O87: 0 | P87: 0 | Q87: 0 | R87: 0 | S87: 0 | T87: 0 | U87: 0 | V87: 0 | W87: 0
B88: Cash-flow - before tax (USD) | C88: =SUM(C84:C87) -> 
B89: Present cash-flow - before tax (USD) | D89: =+D88/((1+$C57)^D83) -> 
D90: =+PV($C57,D83,,-D88,) -> 
A91: Summary of this project - after tax
B92: Operating Year | C92: Appraisal | D92: 1 | E92: 2 | F92: 3 | G92: 4 | H92: 5 | I92: 6 | J92: 7 | K92: 8 | L92: 9 | M92: 10 | N92: 11 | O92: 12 | P92: 13 | Q92: 14 | R92: 15 | S92: 16 | T92: 17 | U92: 18 | V92: 19 | W92: 20
B93: Total revenue (USD) | C93: =C84 -> 0
B94: Total operating and maintenance cost (USD) | D94: =-(D50-D45) -> 
B95: Debt payment (USD) | D95: =D67 -> 0 | E95: 0 | F95: 0 | G95: 0 | H95: 0 | I95: 0 | J95: 0 | K95: 0 | L95: 0 | M95: 0 | N95: 0 | O95: 0 | P95: 0 | Q95: 0 | R95: 0 | S95: 0 | T95: 0 | U95: 0 | V95: 0 | W95: 0
B96: Depreciation of fixed cost (USD) | D96: =-D79 -> 
B97: Net Profit - before tax (USD) for income tax calculation | C97: =SUM(C93:C96) -> 0
B98: Income tax | D98: =-D74 -> 
D99: =+PV($C57,D92,,-D98) -> 
B100: Cash-flow - after tax (USD) | C100: =C85 ->  | D100: =D88+D98 -> 
B101: Present cash-flow - after tax (USD) | D101: =+PV($C57,D92,,-D100) -> 
A103: Cumulative value of Net Profit
B104: Operating Year | C104: Appraisal | D104: 1 | E104: 2 | F104: 3 | G104: 4 | H104: 5 | I104: 6 | J104: 7 | K104: 8 | L104: 9 | M104: 10 | N104: 11 | O104: 12 | P104: 13 | Q104: 14 | R104: 15 | S104: 16 | T104: 17 | U104: 18 | V104: 19 | W104: 20
B105: Cumulative value of Net Profit - before tax | C105: =C88 ->  | D105: =C105+(D89) -> 
B106: Cumulative value of Net Profit - after tax | C106: =C100 ->  | D106: =C106+(D101) -> 
A108: Financial Analysis Result
B110: Net Present Value (NPV) (USD) - before tax | C110: =NPV(C57,D88:W88)+C88 -> 
B111: Internal Rate of Return (IRR) (%) - before tax | C111: =IF(C110<0,"Not feasible",IRR(C88:W88,0.000001)) -> 
B112: Payback period (years) | C112: Please see Figure of the Cumulative value of Net Profit - before tax
B115: Net Present Value (NPV) (USD) - after tax | C115: =NPV(C57,D100:W100)+C100 -> 
B116: Internal Rate of Return (IRR) (%) - after tax | C116: =IF(C115<0,"Not feasible",IRR(C100:W100,0.000001)) -> 
B117: Payback period (years) | C117: Please see Figure of the Cumulative value of Net Profit - after tax
B118: Total income tax payment of project lifetime | C118: =SUM(D99:W99) -> 

Sheet FA25_FS2_SC1 (hidden)
B2: =+UPPER("FINANCIAL EVALUATION OF "&'Data Entry Needs'!$F$10&" PRODUCTION 25 Million Litres/year SCENARIO 1") -> FINANCIAL EVALUATION OF PLEASE SELECT PRODUCTION 25 MILLION LITRES/YEAR SCENARIO 1
A5: ="Revenues of "&'Data Entry Needs'!$F$10&" production (Benefit)" -> Revenues of Please Select production (Benefit)
B7: Operating Year | C7: 0 | D7: 1 | E7: 2 | F7: 3 | G7: 4 | H7: 5 | I7: 6 | J7: 7 | K7: 8 | L7: 9 | M7: 10 | N7: 11 | O7: 12 | P7: 13 | Q7: 14 | R7: 15 | S7: 16 | T7: 17 | U7: 18 | V7: 19 | W7: 20
B9: Capacity (million of litres) | C9: 25 | D9: =C9 -> 25 | E9: 25 | F9: 25 | G9: 25 | H9: 25 | I9: 25 | J9: 25 | K9: 25 | L9: 25 | M9: 25 | N9: 25 | O9: 25 | P9: 25 | Q9: 25 | R9: 25 | S9: 25 | T9: 25 | U9: 25 | V9: 25 | W9: 25
B10: Annual production (litres per year) | C10: =+C9*1000000 -> 25000000 | D10: =+C10 -> 25000000 | E10: 25000000 | F10: 25000000 | G10: 25000000 | H10: 25000000 | I10: 25000000 | J10: 25000000 | K10: 25000000 | L10: 25000000 | M10: 25000000 | N10: 25000000 | O10: 25000000 | P10: 25000000 | Q10: 25000000 | R10: 25000000 | S10: 25000000 | T10: 25000000 | U10: 25000000 | V10: 25000000 | W10: 25000000
B11: Loss in production processing (%) | D11: 0 | E11: 0 | F11: 0 | G11: 0 | H11: 0 | I11: 0 | J11: 0 | K11: 0 | L11: 0 | M11: 0 | N11: 0 | O11: 0 | P11: 0 | Q11: 0 | R11: 0 | S11: 0 | T11: 0 | U11: 0 | V11: 0 | W11: 0
B12: Sales to customers (litres per year) | C12: =+C10*(1-C11) -> 25000000 | D12: =+C12 -> 25000000 | E12: 25000000 | F12: 25000000 | G12: 25000000 | H12: 25000000 | I12: 25000000 | J12: 25000000 | K12: 25000000 | L12: 25000000 | M12: 25000000 | N12: 25000000 | O12: 25000000 | P12: 25000000 | Q12: 25000000 | R12: 25000000 | S12: 25000000 | T12: 25000000 | U12: 25000000 | V12: 25000000 | W12: 25000000
B14: ="Price of "&'Data Entry Needs'!$F$10&" (USD/litre)" -> Price of Please Select (USD/litre) | C14: =+VLOOKUP('Data Entry Needs'!$F$10,'Data Entry Needs'!$T$180:$X$183,5,FALSE) ->  | D14: =+C14*(100%+D17) ->  | E14: =+D14*(100%+E17) -> 
B15: =+IF(COST_FS2!$AA$142="","","Price of "&COST_FS2!$AA$142&" (USD/ton)") ->  | C15: =+IF(COST_FS2!$AA$142="",0,COST_FS2!$AC$142) -> 0 | D15: =+C15*(100%+$C17) -> 0 | E15: =+D15*(100%+$C17) -> 0 | F15: =+E15*(100%+$C17) -> 0 | G15: 0 | H15: 0 | I15: 0 | J15: 0 | K15: 0 | L15: 0 | M15: 0 | N15: 0 | O15: 0 | P15: 0 | Q15: 0 | R15: 0 | S15: 0 | T15: 0 | U15: 0 | V15: 0 | W15: 0
B16: =+IF(COST_FS2!$AA$143="","","Price of "&COST_FS2!$AA$143&" (USD/ton)") ->  | C16: =+IF(COST_FS2!$AA$143="",0,COST_FS2!$AC$143) ->  | D16: =+C16*(100%+$C17) ->  | E16: =+D16*(100%+$C17) -> 
